Workbook

Sheet TDPrimas_ (hidden)
A3: periodo | B3: 2022-Q4
A4: Ramo_ | B4: 10 Total General
A6: jerarquia | B6: nombre_compania | C6: Suma de Prima_DirectaAct | D6: Suma de Prima_DirectaAnt | E6: Suma de Part_Mercado_Act | F6: Suma de Part_Mercado_Ant | G6: Suma de PD_IncreAbs | H6: Suma de PD_IncreRel | I6: Suma de Part_Operacion_Act | J6: Suma de Part_Cartera_Act | K6: Suma de Part_Sector_Act
A7: 1 | B7: G.N.P. | C7: 88896231.25 | D7: 78894165.13 | E7: 13.32896518 | F7: 12.45572036 | G7: 10002066.12 | H7: 12.67782745 | I7: 100 | J7: 100 | K7: 13.32896518
A8: 2 | B8: Metlife México | C8: 69679915.87 | D8: 62441035.43 | E8: 10.44770019 | F8: 9.858119102 | G8: 7238880.435 | H8: 11.59314605 | I8: 100 | J8: 100 | K8: 10.44770019
A9: 3 | B9: BBVA Bancomer | C9: 54574701.13 | D9: 46683566.47 | E9: 8.182847357 | F9: 7.370347965 | G9: 7891134.655 | H9: 16.90345287 | I9: 100 | J9: 100 | K9: 8.182847357
A10: 4 | B10: AXA Seguros | C10: 47014413.87 | D10: 44680995.32 | E10: 7.04926943 | F10: 7.054184327 | G10: 2333418.55 | H10: 5.222396084 | I10: 100 | J10: 100 | K10: 7.04926943
A11: 5 | B11: Quálitas | C11: 38613311.12 | D11: 34984952.3 | E11: 5.789620911 | F11: 5.523384168 | G11: 3628358.825 | H11: 10.37119843 | I11: 100 | J11: 100 | K11: 5.789620911
A12: 5.1 | B12: TOTAL GRANDES | C12: 298778573.2 | D12: 267684714.7 | E12: 44.79840307 | F12: 42.26175592 | G12: 31093858.59 | H12: 11.61585137 | I12: 100 | J12: 100 | K12: 44.79840307
A13: 6 | B13: Monterrey New York Life | C13: 37521624.68 | D13: 34531456 | E13: 5.625935113 | F13: 5.451786693 | G13: 2990168.674 | H13: 8.659260339 | I13: 100 | J13: 100 | K13: 5.625935113
A14: 7 | B14: Banorte | C14: 28914191.64 | D14: 27787128.92 | E14: 4.335349746 | F14: 4.387000064 | G14: 1127062.72 | H14: 4.056060354 | I14: 100 | J14: 100 | K14: 4.335349746
A15: 8 | B15: Inbursa | C15: 23044846.03 | D15: 20715913.72 | E15: 3.455309026 | F15: 3.270604712 | G15: 2328932.309 | H15: 11.24223793 | I15: 100 | J15: 100 | K15: 3.455309026
A16: 9 | B16: Mapfre México | C16: 21167003.16 | D16: 30973171.78 | E16: 3.173748133 | F16: 4.890008858 | G16: -9806168.624 | H16: -31.66020159 | I16: 100 | J16: 100 | K16: 3.173748133
A17: 10 | B17: Chubb Seguros México | C17: 20933874.3 | D17: 18644615.73 | E17: 3.138793149 | F17: 2.94359056 | G17: 2289258.579 | H17: 12.27838971 | I17: 100 | J17: 100 | K17: 3.138793149
A18: 11 | B18: Allianz México | C18: 18949473.91 | D18: 16560897.79 | E18: 2.841255184 | F18: 2.614615561 | G18: 2388576.116 | H18: 14.42298689 | I18: 100 | J18: 100 | K18: 2.841255184
A19: 12 | B19: Pensiones Banorte | C19: 18733422.24 | D19: 22649462.82 | E19: 2.808860727 | F19: 3.575871228 | G19: -3916040.575 | H19: -17.28977242 | I19: 100 | J19: 100 | K19: 2.808860727
A20: 13 | B20: Atlas | C20: 17397320.1 | D20: 16033506.83 | E20: 2.608527612 | F20: 2.531351681 | G20: 1363813.268 | H20: 8.506019813 | I20: 100 | J20: 100 | K20: 2.608527612
A21: 14 | B21: Citibanamex Seguros | C21: 17073983.29 | D21: 24304859.37 | E21: 2.560046984 | F21: 3.837223338 | G21: -7230876.08 | H21: -29.75074231 | I21: 100 | J21: 100 | K21: 2.560046984
A22: 15 | B22: Zurich Santander | C22: 14538030.86 | D22: 14742608.48 | E22: 2.179810149 | F22: 2.327546128 | G22: -204577.6175 | H22: -1.387662284 | I22: 100 | J22: 100 | K22: 2.179810149
A23: 15.1 | B23: TOTAL MEDIANAS | C23: 218273770.2 | D23: 226943621.4 | E23: 32.72763582 | F23: 35.82959882 | G23: -8669851.23 | H23: -3.820266538 | I23: 100 | J23: 100 | K23: 32.72763582
A24: 16 | B24: GMX Seguros | C24: 12685626.08 | D24: 10840674.32 | E24: 1.902063404 | F24: 1.711513235 | G24: 1844951.758 | H24: 17.01879149 | I24: 100 | J24: 100 | K24: 1.902063404
A25: 17 | B25: Pensiones BBVA Bancomer | C25: 11908763.69 | D25: 9822830.802 | E25: 1.785581845 | F25: 1.550817268 | G25: 2085932.89 | H25: 21.23555757 | I25: 100 | J25: 100 | K25: 1.785581845
A26: 18 | B26: ProFuturo G.N.P. | C26: 9964700.289 | D26: 14908494.75 | E26: 1.494091946 | F26: 2.353736062 | G26: -4943794.456 | H26: -33.16092296 | I26: 100 | J26: 100 | K26: 1.494091946
A27: 19 | B27: HDI Seguros | C27: 9660591.706 | D27: 8680810.987 | E27: 1.44849437 | F27: 1.370516488 | G27: 979780.7196 | H27: 11.28674177 | I27: 100 | J27: 100 | K27: 1.44849437
A28: 20 | B28: Afirme | C28: 7592685.292 | D28: 10199279.55 | E28: 1.138435639 | F28: 1.610250564 | G28: -2606594.257 | H28: -25.55665078 | I28: 100 | J28: 100 | K28: 1.138435639
A29: 21 | B29: Seguros SURA | C29: 6914356.54 | D29: 5900062.749 | E29: 1.036728062 | F29: 0.931495144 | G29: 1014293.791 | H29: 17.19123735 | I29: 100 | J29: 100 | K29: 1.036728062
A30: 22 | B30: Agroasemex | C30: 6906763.889 | D30: 0 | E30: 1.035589632 | I30: 100 | J30: 100 | K30: 1.035589632
A31: 23 | B31: HSBC Seguros | C31: 6620173.555 | D31: 6468384.206 | E31: 0.9926187145 | F31: 1.021221084 | G31: 151789.3491 | H31: 2.346634712 | I31: 100 | J31: 100 | K31: 0.9926187145
A32: 24 | B32: AIG Seguros | C32: 6307111.087 | D32: 5289324.872 | E32: 0.945678606 | F32: 0.835072548 | G32: 1017786.215 | H32: 19.24227079 | I32: 100 | J32: 100 | K32: 0.945678606
A33: 25 | B33: Zurich Aseguradora Mexicana | C33: 5416891.157 | D33: 257596.1868 | E33: 0.812200389 | F33: 0.04066899071 | G33: 5159294.97 | H33: 2002.861546 | I33: 100 | J33: 100 | K33: 0.812200389
A34: 26 | B34: BUPA México | C34: 4031130.83 | D34: 3594202.45 | E34: 0.6044216016 | F34: 0.5674485631 | G34: 436928.3798 | H34: 12.1564766 | I34: 100 | J34: 100 | K34: 0.6044216016
A35: 27 | B35: Seguros Azteca | C35: 3916508.027 | D35: 4983077.594 | E35: 0.5872352335 | F35: 0.7867225788 | G35: -1066569.567 | H35: -21.4038322 | I35: 100 | J35: 100 | K35: 0.5872352335
A36: 28 | B36: Seguros Argos | C36: 3759735.104 | D36: 3067143.767 | E36: 0.5637289408 | F36: 0.4842371423 | G36: 692591.337 | H36: 22.58098706 | I36: 100 | J36: 100 | K36: 0.5637289408
A37: 29 | B37: Hir Seguros | C37: 3705981.813 | D37: 1949854.184 | E37: 0.5556692544 | F37: 0.3078407437 | G37: 1756127.629 | H37: 90.0645619 | I37: 100 | J37: 100 | K37: 0.5556692544
A38: 30 | B38: FM Global | C38: 3524079.946 | D38: 3154604.317 | E38: 0.5283951662 | F38: 0.4980453136 | G38: 369475.6293 | H38: 11.71226538 | I38: 100 | J38: 100 | K38: 0.5283951662
A39: 31 | B39: ANA | C39: 3108861.043 | D39: 2846225.986 | E39: 0.4661378778 | F39: 0.4493588963 | G39: 262635.0565 | H39: 9.227484315 | I39: 100 | J39: 100 | K39: 0.4661378778
A40: 32 | B40: Ve Por Más | C40: 3075303.199 | D40: 3138973.143 | E40: 0.461106266 | F40: 0.4955774818 | G40: -63669.94357 | H40: -2.028368536 | I40: 100 | J40: 100 | K40: 0.461106266
A41: 33 | B41: Seguros Azteca Daños | C41: 3041486.847 | D41: 1844295.095 | E41: 0.4560358937 | F41: 0.2911751956 | G41: 1197191.752 | H41: 64.91324273 | I41: 100 | J41: 100 | K41: 0.4560358937
A42: 34 | B42: Cardif Vida | C42: 2952222.396 | D42: 2829394.621 | E42: 0.4426517183 | F42: 0.4467015796 | G42: 122827.7753 | H42: 4.341132707 | I42: 100 | J42: 100 | K42: 0.4426517183
A43: 35 | B43: Plan Seguro | C43: 2935556.73 | D43: 2596168.489 | E43: 0.4401528939 | F43: 0.4098801053 | G43: 339388.2412 | H43: 13.07265852 | I43: 100 | J43: 100 | K43: 0.4401528939
A44: 36 | B44: General de Seguros | C44: 2674276.15 | D44: 2516090.615 | E44: 0.4009768826 | F44: 0.3972375023 | G44: 158185.5351 | H44: 6.286957003 | I44: 100 | J44: 100 | K44: 0.4009768826
A45: 37 | B45: Patrimonial Vida | C45: 2638295.487 | D45: 1454885.501 | E45: 0.3955819969 | F45: 0.2296956553 | G45: 1183409.986 | H45: 81.34042062 | I45: 100 | J45: 100 | K45: 0.3955819969
A46: 38 | B46: El Potosí | C46: 2162007.806 | D46: 1937993.953 | E46: 0.3241681492 | F46: 0.3059682639 | G46: 224013.8531 | H46: 11.55905841 | I46: 100 | J46: 100 | K46: 0.3241681492
A47: 39 | B47: Cardif Seguros Generales | C47: 2044435.08 | D47: 1560679.237 | E47: 0.3065394742 | F47: 0.2463982491 | G47: 483755.8422 | H47: 30.99649374 | I47: 100 | J47: 100 | K47: 0.3065394742
A48: 40 | B48: Insignia Life | C48: 1967652.949 | D48: 1738938.033 | E48: 0.2950268787 | F48: 0.2745415434 | G48: 228714.9162 | H48: 13.15256277 | I48: 100 | J48: 100 | K48: 0.2950268787
A49: 41 | B49: Prudential | C49: 1613118.019 | D49: 1176956.401 | E49: 0.2418684527 | F49: 0.1858165275 | G49: 436161.6183 | H49: 37.05843462 | I49: 100 | J49: 100 | K49: 0.2418684527
A50: 42 | B50: El Águila | C50: 1427020.148 | D50: 1250683.778 | E50: 0.2139652221 | F50: 0.1974565213 | G50: 176336.3703 | H50: 14.09919705 | I50: 100 | J50: 100 | K50: 0.2139652221
A51: 43 | B51: Tokio Marine | C51: 1393936.176 | D51: 1374423.954 | E51: 0.2090046618 | F51: 0.2169924785 | G51: 19512.22156 | H51: 1.419665417 | I51: 100 | J51: 100 | K51: 0.2090046618
A52: 44 | B52: La Latinoamericana | C52: 1344599.487 | D52: 1322115.807 | E52: 0.201607194 | F52: 0.2087341282 | G52: 22483.67923 | H52: 1.700583194 | I52: 100 | J52: 100 | K52: 0.201607194
A53: 45 | B53: HDI Global Seguros | C53: 1126819.261 | D53: 1043388.72 | E53: 0.1689535594 | F53: 0.1647290151 | G53: 83430.5406 | H53: 7.996112954 | I53: 100 | J53: 100 | K53: 0.1689535594
A54: 46 | B54: Assurant Vida | C54: 1073592.106 | D54: 1024603.929 | E54: 0.1609727611 | F54: 0.1617632938 | G54: 48988.17727 | H54: 4.781181869 | I54: 100 | J54: 100 | K54: 0.1609727611
A55: 47 | B55: General de Salud | C55: 1053737.074 | D55: 513902.8165 | E55: 0.1579957279 | F55: 0.08113438763 | G55: 539834.2573 | H55: 105.0459814 | I55: 100 | J55: 100 | K55: 0.1579957279
A56: 48 | B56: Primero Seguros | C56: 988246.9214 | D56: 752773.3141 | E56: 0.1481762344 | F56: 0.118846988 | G56: 235473.6074 | H56: 31.28081229 | I56: 100 | J56: 100 | K56: 0.1481762344
A57: 49 | B57: BBVA Bancomer Salud | C57: 972061.2441 | D57: 1191065.811 | E57: 0.1457493787 | F57: 0.1880441051 | G57: -219004.5672 | H57: -18.38727677 | I57: 100 | J57: 100 | K57: 0.1457493787
A58: 50 | B58: Pan-American México | C58: 953705.3999 | D58: 769483.4333 | E58: 0.1429971315 | F58: 0.1214851624 | G58: 184221.9667 | H58: 23.94099194 | I58: 100 | J58: 100 | K58: 0.1429971315
A59: 51 | B59: Atradius | C59: 808718.9571 | D59: 621840.9362 | E59: 0.1212580856 | F59: 0.09817553424 | G59: 186878.0209 | H59: 30.05238318 | I59: 100 | J59: 100 | K59: 0.1212580856
A60: 52 | B60: Sompo Japan | C60: 700245.3844 | D60: 605863.712 | E60: 0.1049937237 | F60: 0.09565306839 | G60: 94381.67237 | H60: 15.57803686 | I60: 100 | J60: 100 | K60: 0.1049937237
A61: 53 | B61: Solunion Crédito | C61: 675000.4388 | D61: 539056.7947 | E61: 0.1012085351 | F61: 0.08510566887 | G61: 135943.644 | H61: 25.21879797 | I61: 100 | J61: 100 | K61: 0.1012085351
A62: 54 | B62: Swiss Re Corporate Solutions | C62: 672719.1746 | D62: 317503.7349 | E62: 0.1008664859 | F62: 0.05012712573 | G62: 355215.4397 | H62: 111.8775626 | I62: 100 | J62: 100 | K62: 0.1008664859
A63: 55 | B63: Berkley Seguros | C63: 636056.9386 | D63: 465002.4395 | E63: 0.09536940618 | F63: 0.07341405214 | G63: 171054.4992 | H63: 36.78572081 | I63: 100 | J63: 100 | K63: 0.09536940618
A64: 56 | B64: PREVEM Seguros | C64: 580810.9912 | D64: 495857.3322 | E64: 0.08708591318 | F64: 0.07828538724 | G64: 84953.659 | H64: 17.13268182 | I64: 100 | J64: 100 | K64: 0.08708591318
A65: 57 | B65: Patrimonial Inbursa | C65: 575425.8227 | D65: 633205.9417 | E65: 0.08627846924 | F65: 0.09996982828 | G65: -57780.11898 | H65: -9.125012129 | I65: 100 | J65: 100 | K65: 0.08627846924
A66: 58 | B66: AXA Salud | C66: 573796.8175 | D66: 163768.7374 | E66: 0.0860342187 | F66: 0.02585562055 | G66: 410028.0801 | H66: 250.3701784 | I66: 100 | J66: 100 | K66: 0.0860342187
A67: 59 | B67: Dentegra | C67: 506069.7808 | D67: 449909.7433 | E67: 0.07587933022 | F67: 0.07103123458 | G67: 56160.03752 | H67: 12.48251196 | I67: 100 | J67: 100 | K67: 0.07587933022
A68: 60 | B68: Skandia Life | C68: 447144.7953 | D68: 426948.5898 | E68: 0.06704420787 | F68: 0.06740615398 | G68: 20196.20551 | H68: 4.730360046 | I68: 100 | J68: 100 | K68: 0.06704420787
A69: 61 | B69: Coface | C69: 385583.536 | D69: 330415.1544 | E69: 0.05781380664 | F69: 0.05216556584 | G69: 55168.38159 | H69: 16.69668623 | I69: 100 | J69: 100 | K69: 0.05781380664
A70: 62 | B70: SHF Cred Vivienda | C70: 378646.8667 | D70: 419514.9486 | E70: 0.05677373304 | F70: 0.06623253922 | G70: -40868.0819 | H70: -9.741746281 | I70: 100 | J70: 100 | K70: 0.05677373304
A71: 63 | B71: MediAccess | C71: 287353.0011 | D71: 222274.3503 | E71: 0.04308527022 | F71: 0.03509241964 | G71: 65078.65079 | H71: 29.27852481 | I71: 100 | J71: 100 | K71: 0.04308527022
A72: 64 | B72: Patrimonial Daños | C72: 284972.9415 | D72: 172814.1554 | E72: 0.04272840773 | F72: 0.02728370077 | G72: 112158.7861 | H72: 64.90138837 | I72: 100 | J72: 100 | K72: 0.04272840773
A73: 65 | B73: Assurant Daños | C73: 195056.2367 | D73: 175769.7389 | E73: 0.02924643429 | F73: 0.0277503249 | G73: 19286.49779 | H73: 10.97259284 | I73: 100 | J73: 100 | K73: 0.02924643429
A74: 66 | B74: Centauro | C74: 183069.316 | D74: 161859.45 | E74: 0.02744913371 | F74: 0.02555418444 | G74: 21209.866 | H74: 13.1038787 | I74: 100 | J74: 100 | K74: 0.02744913371
A75: 67 | B75: Tláloc Seguros | C75: 114710.4536 | D75: 122691.3088 | E75: 0.01719951027 | F75: 0.01937036321 | G75: -7980.85519 | H75: -6.504825212 | I75: 100 | J75: 100 | K75: 0.01719951027
A76: 68 | B76: Virginia Surety | C76: 108805.0165 | D76: 71210.53291 | E76: 0.01631405804 | F76: 0.01124263731 | G76: 37594.48357 | H76: 52.79343102 | I76: 100 | J76: 100 | K76: 0.01631405804
A77: 69 | B77: Odontoprev | C77: 81304.39794 | D77: 76993.93244 | E77: 0.01219065728 | F77: 0.0121557138 | G77: 4310.4655 | H77: 5.598448298 | I77: 100 | J77: 100 | K77: 0.01219065728
A78: 70 | B78: Genworth Seg. de Crédito | C78: 70363.62443 | D78: 65916.11533 | E78: 0.01055021441 | F78: 0.01040676073 | G78: 4447.5091 | H78: 6.747225739 | I78: 100 | J78: 100 | K78: 0.01055021441
A79: 71 | B79: Crabi | C79: 36639.4109 | D79: 40543.6393 | E79: 0.005493657326 | F79: 0.0064009833 | G79: -3904.2284 | H79: -9.629693997 | I79: 100 | J79: 100 | K79: 0.005493657326
A80: 72 | B80: SPT | C80: 31148.55592 | D80: 0 | E80: 0.004670366914 | I80: 100 | J80: 100 | K80: 0.004670366914
A81: 73 | B81: Metlife Más | C81: 30174.1693 | D81: 31095.04911 | E81: 0.004524268872 | F81: 0.004909250712 | G81: -920.87981 | H81: -2.961499777 | I81: 100 | J81: 100 | K81: 0.004524268872
A82: 74 | B82: Citibanamex Pensiones | C82: 21149.46084 | D82: 12102.12455 | E82: 0.003171117865 | F82: 0.001910669552 | G82: 9047.33629 | H82: 74.75824805 | I82: 100 | J82: 100 | K82: 0.003171117865
A83: 75 | B83: Metlife Pensiones | C83: 20461.44299 | D83: 15995.85067 | E83: 0.003067957519 | F83: 0.002525406569 | G83: 4465.59232 | H83: 27.91719185 | I83: 100 | J83: 100 | K83: 0.003067957519
A84: 76 | B84: SIS NOVA | C84: 18506.62207 | D84: 939149.0756 | E84: 0.002774854655 | F84: 0.1482717796 | G84: -920642.4535 | H84: -98.02942658 | I84: 100 | J84: 100 | K84: 0.002774854655
A85: 77 | B85: Pensiones Inbursa | C85: 1325.17551 | D85: 533.28378 | E85: 0.0001986947926 | F85: 8.419423192e-05 | G85: 791.89173 | H85: 148.4934963 | I85: 100 | J85: 100 | K85: 0.0001986947926
A86: 78 | B86: Aserta Seguros de Vida | C86: 596.44602 | D86: 172554.4396 | E86: 8.943020553e-05 | F86: 0.02724269714 | G86: -171957.9936 | H86: -99.65434328 | I86: 100 | J86: 100 | K86: 8.943020553e-05
A87: 79 | B87: Principal México | C87: 0 | D87: 192.54227 | F87: 3.039835289e-05
A88: 79 | B88: Zurich Daños | C88: 0 | D88: 7183909.404 | F88: 1.134187382
A89: 79 | B89: Zurich Vida | C89: 0 | D89: 1834835.984 | F89: 0.289681802
A90: 150.1 | B90: TOTAL RESTO | C90: 149887888.3 | D90: 138768712.4 | E90: 22.47396111 | F90: 21.90864525 | G90: 11119175.9 | H90: 8.012739834 | I90: 100 | J90: 100 | K90: 22.47396111
A91: 200 | B91: Patria | C91: 0 | D91: 0
A92: 201.1 | B92: TOTAL | C92: 666940231.7 | D92: 633397048.5 | E92: 100 | F92: 100 | G92: 33543183.25 | H92: 5.295759324 | I92: 100 | J92: 100 | K92: 100

Sheet TD Siniestros_ (hidden)
A2: periodo | B2: 2022-Q4
A3: Ramo_ | B3: 10 Total General
A5: jerarquia | B5: nombre_compania | C5: Suma de CostoSin_Act | D5: Suma de SIN_IncreRel | E5: Suma de IncResvDivAct | F5: Suma de SINvsPRIM_ACT | G5: Suma de SINvsPRIM_ANT | H5: Suma de PartSIN_Merc_Act
A6: 1 | B6: G.N.P. | C6: 57942254.66 | D6: 6.910792097 | E6: 235991.341 | F6: 65.17965255 | G6: 68.69560593 | H6: 14.05241729
A7: 2 | B7: Metlife México | C7: 47812737.47 | D7: -6.563562889 | E7: 33669.21221 | F7: 68.61767394 | G7: 81.95156351 | H7: 11.59576103
A8: 3 | B8: BBVA Bancomer | C8: 28668011.94 | D8: 5.23343955 | E8: 0 | F8: 52.52985605 | G8: 58.35522983 | H8: 6.952695732
A9: 4 | B9: AXA Seguros | C9: 32411884.01 | D9: 2.935252234 | E9: 519435.7953 | F9: 68.94031285 | G9: 70.47211473 | H9: 7.860676495
A10: 5 | B10: Quálitas | C10: 25385948.86 | D10: 20.04610973 | E10: 102597.0733 | F10: 65.74403522 | G10: 60.44550693 | H10: 6.156714972
A11: 5.1 | B11: TOTAL GRANDES | C11: 192220836.9 | D11: 3.765732178 | E11: 891693.4219 | F11: 64.33554952 | G11: 69.2026836 | H11: 46.61826552
A12: 6 | B12: Monterrey New York Life | C12: 24612258.16 | D12: -2.148234461 | E12: 69856.26594 | F12: 65.59486261 | G12: 72.8396592 | H12: 5.969076007
A13: 7 | B13: Banorte | C13: 16965249.23 | D13: -13.64701137 | E13: 46229.84486 | F13: 58.67447184 | G13: 70.70322035 | H13: 4.114488866
A14: 8 | B14: Inbursa | C14: 12593961.63 | D14: 16.8439193 | E14: 263889.9447 | F14: 54.64979726 | G14: 52.02979998 | H14: 3.054344454
A15: 9 | B15: Mapfre México | C15: 13307614.65 | D15: -23.87991099 | E15: 308715.4761 | F15: 62.86962094 | G15: 56.44367049 | H15: 3.227422807
A16: 10 | B16: Chubb Seguros México | C16: 12052095.72 | D16: 15.89652759 | E16: 115661.0871 | F16: 57.57221785 | G16: 55.77488857 | H16: 2.922928686
A17: 11 | B17: Allianz México | C17: 12238873.85 | D17: 26.60271555 | E17: 37724.76549 | F17: 64.58687937 | G17: 58.3733423 | H17: 2.968226963
A18: 12 | B18: Pensiones Banorte | C18: 11802256.33 | D18: 18.72282229 | E18: 0 | F18: 63.00106928 | G18: 43.89074213 | H18: 2.862336508
A19: 13 | B19: Atlas | C19: 10098998.71 | D19: 6.755300191 | E19: 39291.69486 | F19: 58.04916306 | G19: 59.00113274 | H19: 2.449254779
A20: 14 | B20: Citibanamex Seguros | C20: 27048070.6 | D20: 11.89663668 | E20: 0 | F20: 158.4168741 | G20: 99.45489104 | H20: 6.559820243
A21: 15 | B21: Zurich Santander | C21: 3023917.722 | D21: -21.81202334 | E21: 0 | F21: 20.80005024 | G21: 26.23346538 | H21: 0.7333741833
A22: 15.1 | B22: TOTAL MEDIANAS | C22: 143743296.6 | D22: 2.259753267 | E22: 881369.0791 | F22: 65.85459008 | G22: 61.93909841 | H22: 34.8612735
A23: 16 | B23: GMX Seguros | C23: 5157067.151 | D23: 3.030747259 | E23: 0 | F23: 40.65283905 | G23: 46.17210127 | H23: 1.250715217
A24: 17 | B24: Pensiones BBVA Bancomer | C24: 7674691.81 | D24: 14.20687689 | E24: 0 | F24: 64.44574776 | G24: 68.41195885 | H24: 1.86130092
A25: 18 | B25: ProFuturo G.N.P. | C25: 4846781.697 | D25: 19.76469603 | E25: 0 | F25: 48.63951305 | G25: 27.14506251 | H25: 1.175463387
A26: 19 | B26: HDI Seguros | C26: 5853239.968 | D26: 8.368322727 | E26: 0 | F26: 60.58883498 | G26: 62.22052592 | H26: 1.419554192
A27: 20 | B27: Afirme | C27: 5905353.598 | D27: 10.07744279 | E27: 14012.8626 | F27: 77.77687828 | G27: 52.59907175 | H27: 1.432193026
A28: 21 | B28: Seguros SURA | C28: 3724756.846 | D28: 6.139910261 | E28: 13072.73884 | F28: 53.86989844 | G28: 59.47885238 | H28: 0.9033448527
A29: 22 | B29: Agroasemex | C29: 1340021.987 | E29: -6173.53515 | F29: 19.40158963 | H29: 0.3249881843
A30: 23 | B30: HSBC Seguros | C30: 2724139.573 | D30: 19.97632894 | E30: 0 | F30: 41.14906581 | G30: 35.10249434 | H30: 0.6606706325
A31: 24 | B31: AIG Seguros | C31: 1592581.972 | D31: 72.32218716 | E31: 11439.48426 | F31: 25.25057749 | G31: 17.47271346 | H31: 0.3862401726
A32: 25 | B32: Zurich Aseguradora Mexicana | C32: 4431024.178 | D32: 1778.570612 | E32: 10858.88839 | F32: 81.80013314 | G32: 91.56661632 | H32: 1.074631996
A33: 26 | B33: BUPA México | C33: 2861700.089 | D33: 12.11372496 | E33: 0 | F33: 70.99000776 | G33: 71.01707795 | H33: 0.6940324302
A34: 27 | B34: Seguros Azteca | C34: 2753059.703 | D34: -38.73810208 | E34: 0 | F34: 70.29373319 | G34: 90.18359267 | H34: 0.667684473
A35: 28 | B35: Seguros Argos | C35: 2710936.054 | D35: -17.079164 | E35: 9679.21783 | F35: 72.10444296 | G35: 106.5912286 | H35: 0.6574684554
A36: 29 | B36: Hir Seguros | C36: 1478646.584 | D36: -13.47691829 | E36: 393008.1154 | F36: 39.89891637 | G36: 87.64563062 | H36: 0.3586080477
A37: 30 | B37: FM Global | C37: 264444.2368 | D37: 19.5184614 | E37: 0 | F37: 7.503922751 | G37: 7.013813598 | H37: 0.06413421065
A38: 31 | B38: ANA | C38: 2008183.86 | D38: 36.45599883 | E38: 10762.34681 | F38: 64.59548471 | G38: 51.70606169 | H38: 0.4870338194
A39: 32 | B39: Ve Por Más | C39: 1875257.664 | D39: -14.696254 | E39: 6802.46087 | F39: 60.97797658 | G39: 70.03340567 | H39: 0.4547959582
A40: 33 | B40: Seguros Azteca Daños | C40: 923246.8169 | D40: 16.94828399 | E40: 31342.30935 | F40: 30.35511457 | G40: 42.80490663 | H40: 0.2239099878
A41: 34 | B41: Cardif Vida | C41: 853584.8887 | D41: -51.41869052 | E41: 56978.55681 | F41: 28.91329901 | G41: 62.09891007 | H41: 0.2070152623
A42: 35 | B42: Plan Seguro | C42: 1967867.285 | D42: 12.8934701 | E42: 0 | F42: 67.03557335 | G42: 67.14197453 | H42: 0.4772560617
A43: 36 | B43: General de Seguros | C43: 2052103.731 | D43: 38.1416608 | E43: 16906.32705 | F43: 76.7349225 | G43: 59.0402733 | H43: 0.497685465
A44: 37 | B44: Patrimonial Vida | C44: 1823633.754 | D44: 14.40697739 | E44: 1484.77202 | F44: 69.12166445 | G44: 109.5610774 | H44: 0.4422758942
A45: 38 | B45: El Potosí | C45: 1370824.133 | D45: 30.00221667 | E45: 2247.85427 | F45: 63.40514263 | G45: 54.40998001 | H45: 0.3324584599
A46: 39 | B46: Cardif Seguros Generales | C46: 178083.6046 | D46: -22.43889468 | E46: 0 | F46: 8.710650995 | G46: 14.71181637 | H46: 0.04318964008
A47: 40 | B47: Insignia Life | C47: 850788.5569 | D47: -33.92605874 | E47: 23132.75267 | F47: 43.23875089 | G47: 74.04697497 | H47: 0.2063370833
A48: 41 | B48: Prudential | C48: 167226.4275 | D48: -2.958229658 | E48: 0 | F48: 10.36665795 | G48: 14.64150856 | H48: 0.04055650845
A49: 42 | B49: El Águila | C49: 593424.9589 | D49: -8.960022335 | E49: 0 | F49: 41.58490402 | G49: 52.1178089 | H49: 0.1439201012
A50: 43 | B50: Tokio Marine | C50: 595057.628 | D50: -21.4002016 | E50: -1321.50783 | F50: 42.68901534 | G50: 55.0829104 | H50: 0.1443160635
A51: 44 | B51: La Latinoamericana | C51: 773285.0902 | D51: -3.015851218 | E51: 3424.28538 | F51: 57.51044068 | G51: 60.3072299 | H51: 0.1875405925
A52: 45 | B52: HDI Global Seguros | C52: 389690.0421 | D52: 59.26142399 | E52: 0 | F52: 34.58318966 | G52: 23.45106532 | H52: 0.09450938899
A53: 46 | B53: Assurant Vida | C53: 246251.0592 | D53: -51.15474069 | E53: 8345.47733 | F53: 22.93711531 | G53: 49.2039163 | H53: 0.05972191906
A54: 47 | B54: General de Salud | C54: 677020.8711 | D54: 67.08151759 | E54: 0 | F54: 64.24950662 | G54: 78.84835697 | H54: 0.1641941593
A55: 48 | B55: Primero Seguros | C55: 548948.89 | D55: 4.372589291 | E55: 0 | F55: 55.54774602 | G55: 69.86847091 | H55: 0.1331335641
A56: 49 | B56: BBVA Bancomer Salud | C56: 715689.0064 | D56: -1.328990181 | E56: 0 | F56: 73.62591717 | G56: 60.89743696 | H56: 0.1735721302
A57: 50 | B57: Pan-American México | C57: 521869.1892 | D57: -13.81330231 | E57: 11078.40328 | F57: 54.72016717 | G57: 78.69047057 | H57: 0.1265660727
A58: 51 | B58: Atradius | C58: 181850.3109 | D58: 1476.561479 | E58: 19191.945 | F58: 22.48621839 | G58: 1.85491421 | H58: 0.0441031587
A59: 52 | B59: Sompo Japan | C59: 29032.57158 | D59: -86.98212247 | E59: 9.4211 | F59: 4.146056829 | G59: 36.81038693 | H59: 0.007041110382
A60: 53 | B60: Solunion Crédito | C60: 142452.9281 | D60: -38.97443075 | E60: 733.84482 | F60: 21.10412377 | G60: 43.30370111 | H60: 0.03454832749
A61: 54 | B61: Swiss Re Corporate Solutions | C61: 34790.2682 | D61: -248.2433338 | E61: -293.2492 | F61: 5.171588608 | G61: -7.39152015 | H61: 0.008437492971
A62: 55 | B62: Berkley Seguros | C62: 412985.0796 | D62: 146.5362575 | E62: 2418.83794 | F62: 64.9289481 | G62: 36.02453067 | H62: 0.1001590067
A63: 56 | B63: PREVEM Seguros | C63: 355377.5728 | D63: 39.63269182 | E63: 0 | F63: 61.18644071 | G63: 51.32703379 | H63: 0.08618777397
A64: 57 | B64: Patrimonial Inbursa | C64: 61401.30629 | D64: -68.21434167 | E64: 0 | F64: 10.67058583 | G64: 30.50713462 | H64: 0.01489132211
A65: 58 | B65: AXA Salud | C65: 523388.0102 | D65: 14.90212563 | E65: 0 | F65: 91.21486808 | G65: 278.140804 | H65: 0.1269344241
A66: 59 | B66: Dentegra | C66: 165464.5238 | D66: 19.59543455 | E66: 53.53645 | F66: 32.69598977 | G66: 30.75140012 | H66: 0.04012920361
A67: 60 | B67: Skandia Life | C67: 66540.00445 | D67: -0.09128820846 | E67: 0 | F67: 14.88108665 | G67: 15.59925591 | H67: 0.0161375824
A68: 61 | B68: Coface | C68: 46682.78404 | D68: 243.4001476 | E68: 13239.2675 | F68: 12.10704807 | G68: 4.114303385 | H68: 0.01132171962
A69: 62 | B69: SHF Cred Vivienda | C69: 64047.90936 | D69: -158.7933989 | E69: 0 | F69: 16.91494503 | G69: -25.96742882 | H69: 0.01553318824
A70: 63 | B70: MediAccess | C70: 143738.2977 | D70: 5.111495962 | E70: 0 | F70: 50.02150567 | G70: 61.52235207 | H70: 0.03486006114
A71: 64 | B71: Patrimonial Daños | C71: 41259.52115 | D71: -20.8717537 | E71: 0 | F71: 14.47839957 | G71: 30.17264129 | H71: 0.01000644541
A72: 65 | B72: Assurant Daños | C72: 62642.31524 | D72: 12.58281005 | E72: 511.87678 | F72: 32.11500248 | G72: 31.65567721 | H72: 0.01519229721
A73: 66 | B73: Centauro | C73: 94180.36984 | D73: 25.65891414 | E73: -38.20543 | F73: 51.44519677 | G73: 46.30512157 | H73: 0.02284104865
A74: 67 | B74: Tláloc Seguros | C74: 74814.19031 | D74: -21.16103183 | E74: 0 | F74: 65.22002829 | G74: 77.34446665 | H74: 0.01814427532
A75: 68 | B75: Virginia Surety | C75: 28969.15519 | D75: 104.2153143 | E75: 0 | F75: 26.62483415 | G75: 19.92064001 | H75: 0.007025730353
A76: 69 | B76: Odontoprev | C76: 21827.24595 | D76: 22.02271221 | E76: 0 | F76: 26.84632874 | G76: 23.23281138 | H76: 0.005293642268
A77: 70 | B77: Genworth Seg. de Crédito | C77: 11744.4062 | D77: -243.2901927 | E77: 0 | F77: 16.69101939 | G77: -12.43434726 | H77: 0.002848306434
A78: 71 | B78: Crabi | C78: 34438.8394 | D78: -17.99389758 | E78: 0 | F78: 93.99397685 | G78: 103.5808824 | H78: 0.008352262871
A79: 72 | B79: SPT | C79: 21183.37144 | E79: 0 | F79: 68.00755545 | H79: 0.005137486914
A80: 73 | B80: Metlife Más | C80: 2858.59672 | D80: 234.9133013 | E80: 0 | F80: 9.473655071 | G80: 2.744917196 | H80: 0.0006932797871
A81: 74 | B81: Citibanamex Pensiones | C81: 762473.8199 | D81: 4.57336092 | E81: 0 | F81: 3605.169066 | G81: 6024.794693 | H81: 0.1849185944
A82: 75 | B82: Metlife Pensiones | C82: 351445.4143 | D82: 5.870845223 | E82: 0 | F82: 1717.598385 | G82: 2075.267857 | H82: 0.08523412914
A83: 76 | B83: SIS NOVA | C83: 130897.2733 | D83: -84.66828992 | E83: 0 | F83: 707.299651 | G83: 90.90870398 | H83: 0.03174579791
A84: 77 | B84: Pensiones Inbursa | C84: 24422.15746 | D84: 5.15741596 | E84: 0 | F84: 1842.937579 | G84: 4354.975807 | H84: 0.005922971927
A85: 78 | B85: Aserta Seguros de Vida | C85: 23923.40601 | D85: -93.9217125 | E85: 0 | F85: 4010.992648 | G85: 228.0949316 | H85: 0.005802012473
A86: 79 | B86: Principal México | C86: 0 | E86: 0
A87: 79 | B87: Zurich Daños | C87: -2.000000336e-05 | D87: -100 | E87: 0 | G87: 65.93723781 | H87: -4.850491143e-12
A88: 79 | B88: Zurich Vida | C88: 0 | E88: 0
A89: 150.1 | B89: TOTAL RESTO | C89: 76365314.55 | D89: 3.337765047 | E89: 652909.0852 | F89: 50.94828903 | G89: 53.25317695 | H89: 18.52046098
A90: 200 | B90: Patria | C90: 0 | E90: 0
A91: 201.1 | B91: TOTAL | C91: 412329448.1 | D91: 3.156999437 | E91: 2425971.586 | F91: 61.82404787 | G91: 63.10584934 | H91: 100

Sheet Inicio
J4: EstadisticAMIS Informe
D6: Con la finalidad de atender la solicitud de información, presentamos esta publicación comparando los datosprimas del periodo actual vs el mismo periodo del año anterior.
I10: Periodo: | J10: 2022-Q4
I11: Fecha de actualización: | J11: 2023-03-10
B13: Derivado de la consolidación de las compañías Zurich Daños y Zurich Vida con Zurich Aseguradora Mexicana las primas emitidas, cedidas y otros rubros del estado de resultados “técnico” se presentaron en el renglón de operaciones discontinuadas.
B15: ANÁLISIS DE PRIMAS DIRECTAS | G15: ANÁLISIS DE SINIESTROS
B21: DEFINICIÓN DE TÉRMINOS
B23: Participación de mercado
B24: Porcentaje que representa la participación de las compañías sobre el total del ramo o subramo que se está consultando.
B26: Participación por operación
B27: Porcentaje que representa la participación del subramo sobre el ramo de la compañía.
B29: Participación por cartera
B30: Porcentaje que representa la participación del ramo o subramos sobre el total general sin pensiones de la compañía.
B32: Participación por sector
B33: Porcentaje que representa la participación de la compañía del ramo o subramo(s) sobre la suma del total general sin pensiones.

Sheet TDPrimas (hidden)
A3: periodo | B3: 2022-Q4
A4: Ramo_ | B4: 22 Pensiones ISSSTE
A6: Jerarquia 2 | B6: nombre_compania | C6: Suma de Prima_DirectaAct | D6: Suma de Prima_DirectaAnt | E6: Suma de %CARTERA | F6: Suma de %SECTOR
A7: 1 | B7: Pensiones BBVA Bancomer | C7: 4208664.46 | D7: 3639244.032 | E7: 35.34090161 | F7: 10.35346336
A8: 2 | B8: Pensiones Banorte | C8: 4037481.456 | D8: 4279755.099 | E8: 21.55228983 | F8: 9.932347123
A9: 3 | B9: ProFuturo G.N.P. | C9: 3791047.547 | D9: 3288759.668 | E9: 38.04477242 | F9: 9.326110995
A10: 5.1 | B10: TOTAL GRANDES | C10: 12037193.46 | D10: 11207758.8 | E10: 29.64323193 | F10: 29.61192148
A11: 151.1 | B11: TOTAL | C11: 12037193.46 | D11: 11207758.8 | E11: 29.64323193 | F11: 29.61192148

Sheet TDPrimas Vida (hidden)
A2: periodo | B2: 2022-Q4
A3: Ramo2 | B3: 12 Vida Total
A4: subramo | B4: (Varios elementos)
A6: Jerarquia 2 | B6: nombre_compania | C6: Suma de Prima_DirectaAct | D6: Suma de Prima_DirectaAnt | E6: Suma de %CARTERA | F6: Suma de Prima_Directa_Act1anio | G6: Suma de Prima_Directa_Ant1anio | H6: Suma de %CARTERA_1anio | I6: Suma de PrimaDirectaAct_Renov | J6: Suma de PrimaDirectaAnt_Renov | K6: Suma de %CARTERA_Renov | L6: Suma de PrimaDirectaAct_Unica | M6: Suma de PrimaDirectaAnt_Unica | N6: Suma de %CARTERA_uni
A7: 1 | B7: Metlife México | C7: 48016518.99 | D7: 45847773.85 | E7: 68.91012768 | F7: 9244390.84 | G7: 8748784.907 | H7: 13.26693743 | I7: 32002822.34 | J7: 30911024.16 | K7: 45.92833092 | L7: 6769305.805 | M7: 6187964.785 | N7: 9.714859326
A8: 2 | B8: BBVA Bancomer | C8: 43150700.47 | D8: 37325851.61 | E8: 79.06722269 | F8: 36550558.51 | G8: 31939704.63 | H8: 66.97344695 | I8: 4528194.094 | J8: 4119155.011 | K8: 8.297240297 | L8: 2071947.872 | M8: 1266991.97 | N8: 3.796535444
A9: 3 | B9: G.N.P. | C9: 35246575.57 | D9: 32138338.2 | E9: 39.64912243 | F9: 8615839.587 | G9: 7791578.782 | H9: 9.692018959 | I9: 18931513.77 | J9: 17995644.97 | K9: 21.29619389 | L9: 7699222.208 | M9: 6351114.456 | N9: 8.660909579
A10: 4 | B10: Monterrey New York Life | C10: 25726165.11 | D10: 23548993.2 | E10: 68.56356922 | F10: 2404396.266 | G10: 2200084.573 | H10: 6.408028136 | I10: 16907794.13 | J10: 15411250.56 | K10: 45.06146596 | L10: 6413974.711 | M10: 5937658.061 | N10: 17.09407513
A11: 5 | B11: Citibanamex Seguros | C11: 16107597.51 | D11: 23397154.32 | E11: 94.34000981 | F11: 8860948.793 | G11: 14333370.96 | H11: 51.897373 | I11: 7246648.714 | J11: 9063783.361 | K11: 42.4426368 | L11: 0 | M11: 0 | N11: 0
A12: 5.1 | B12: TOTAL GRANDES | C12: 168247557.6 | D12: 162258111.2 | E12: 62.83838824 | F12: 65676133.99 | G12: 65013523.85 | H12: 24.52922624 | I12: 79616973.05 | J12: 77500858.06 | K12: 29.73595773 | L12: 22954450.6 | M12: 19743729.27 | N12: 8.573204262
A13: 6 | B13: Banorte | C13: 15636401.48 | D13: 15171410.45 | E13: 54.07863955 | F13: 5176883.032 | G13: 3838669.01 | H13: 17.90429799 | I13: 7984926.705 | J13: 7476991.336 | K13: 27.61594307 | L13: 2474591.741 | M13: 3855750.103 | N13: 8.558398489
A14: 7 | B14: Allianz México | C14: 10326844.2 | D14: 9080227.052 | E14: 54.49673298 | F14: 4570849.743 | G14: 4859120.954 | H14: 24.12124878 | I14: 5755994.453 | J14: 4221106.098 | K14: 30.3754842 | L14: 0 | M14: 0 | N14: 0
A15: 8 | B15: Zurich Santander | C15: 10124406.06 | D15: 10872638.54 | E15: 69.64083484 | F15: 4184166.794 | G15: 6128239.404 | H15: 28.78083583 | I15: 1359424.265 | J15: 1224789.944 | K15: 9.350814278 | L15: 4580814.999 | M15: 3519609.193 | N15: 31.50918473
A16: 9 | B16: HSBC Seguros | C16: 6262776.066 | D16: 6118480.682 | E16: 94.60138793 | F16: 3961507.714 | G16: 4219031.923 | H16: 59.83993745 | I16: 2301268.352 | J16: 1899448.759 | K16: 34.76145048 | L16: 0 | M16: 0 | N16: 0
A17: 10 | B17: AXA Seguros | C17: 5473617.575 | D17: 5769071.136 | E17: 11.64242436 | F17: 1151388.461 | G17: 1329927.921 | H17: 2.449011624 | I17: 4315534.032 | J17: 4433822.948 | K17: 9.179172249 | L17: 6695.08307 | M17: 5320.26688 | N17: 0.01424049035
A18: 11 | B18: Mapfre México | C18: 5365137.705 | D18: 5405617.678 | E18: 25.34670433 | F18: 4602141.839 | G18: 4596064.591 | H18: 21.74205675 | I18: 759074.1155 | J18: 808465.8015 | K18: 3.586119914 | L18: 3368.52744 | M18: 1087.28627 | N18: 0.01591404988
A19: 12 | B19: Inbursa | C19: 5269961.063 | D19: 5013331.068 | E19: 22.86828498 | F19: 2958038.826 | G19: 2847270.967 | H19: 12.83601037 | I19: 2311922.237 | J19: 2166060.101 | K19: 10.03227461 | L19: 0 | M19: 0 | N19: 0
A20: 13 | B20: Seguros Azteca | C20: 3769814.528 | D20: 4867012.418 | E20: 96.25448235 | F20: 3667577.854 | G20: 4782784.052 | H20: 93.64407856 | I20: 11381.52445 | J20: 9354.4844 | K20: 0.2906038842 | L20: 90855.14963 | M20: 74873.88082 | N20: 2.319799909
A21: 14 | B21: Seguros Argos | C21: 3759735.104 | D21: 3067143.767 | E21: 100 | F21: 976257.407 | G21: 745728.4944 | H21: 25.96612208 | I21: 2511749.588 | J21: 1910456.997 | K21: 66.80655734 | L21: 271728.1087 | M21: 410958.2758 | N21: 7.227320575
A22: 15 | B22: Hir Seguros | C22: 3672557.955 | D22: 1927562.535 | E22: 99.09811057 | F22: 1054319.038 | G22: 547658.7619 | H22: 28.44911527 | I22: 2618238.917 | J22: 1379903.773 | K22: 70.6489953 | L22: 0 | M22: 0 | N22: 0
A23: 15.1 | B23: TOTAL MEDIANAS | C23: 69661251.73 | D23: 67292495.33 | E23: 40.58795458 | F23: 32303130.71 | G23: 33894496.08 | H23: 18.82133854 | I23: 29929514.19 | J23: 25530400.24 | K23: 17.43835679 | L23: 7428053.609 | M23: 7867599.005 | N23: 4.327936909
A24: 16 | B24: Cardif Vida | C24: 2711266.144 | D24: 2596506.437 | E24: 91.83814024 | F24: 339064.6367 | G24: 149862.9352 | H24: 11.48506417 | I24: 1708593.716 | J24: 1893173.154 | K24: 57.87483079 | L24: 663607.7912 | M24: 553470.3474 | N24: 22.47824527
A25: 17 | B25: Patrimonial Vida | C25: 2638295.487 | D25: 1454885.501 | E25: 100 | F25: 2638295.487 | G25: 1454885.501 | H25: 100 | I25: 0 | J25: 0 | K25: 0 | L25: 0 | M25: 0 | N25: 0
A26: 18 | B26: Atlas | C26: 2612427.283 | D26: 2388659.077 | E26: 15.01626266 | F26: 1824502.26 | G26: 1602285.869 | H26: 10.48726039 | I26: 708213.5183 | J26: 646101.1058 | K26: 4.07081961 | L26: 79711.50393 | M26: 140272.1024 | N26: 0.4581826596
A27: 19 | B27: Afirme | C27: 2172231.379 | D27: 2880992.41 | E27: 28.6095274 | F27: 2172231.379 | G27: 2880992.41 | H27: 28.6095274 | I27: 0 | J27: 0 | K27: 0 | L27: 0 | M27: 0 | N27: 0
A28: 20 | B28: Insignia Life | C28: 1967652.949 | D28: 1738938.033 | E28: 100 | F28: 577363.1559 | G28: 489251.2496 | H28: 29.34273325 | I28: 1392872.776 | J28: 1255059.761 | K28: 70.78853907 | L28: -2582.98365 | M28: -5372.97824 | N28: -0.1312723187
A29: 21 | B29: Seguros SURA | C29: 1862741.333 | D29: 1457579.496 | E29: 26.94019787 | F29: 1602380.46 | G29: 1190642.442 | H29: 23.17468662 | I29: 255559.0793 | J29: 261495.0305 | K29: 3.696064526 | L29: 4801.7945 | M29: 5442.02343 | N29: 0.06944672975
A30: 22 | B30: Prudential | C30: 1613118.019 | D30: 1176956.401 | E30: 100 | F30: 555658.74 | G30: 445529.6856 | H30: 34.44625461 | I30: 1023104.967 | J30: 695859.7244 | K30: 63.42406165 | L30: 34354.31222 | M30: 35566.99092 | N30: 2.129683743
A31: 23 | B31: Assurant Vida | C31: 1073592.106 | D31: 1024603.929 | E31: 100 | F31: 1062278.157 | G31: 1013361.026 | H31: 98.94615946 | I31: 11313.94886 | J31: 11242.90221 | K31: 1.053840541 | L31: 0 | M31: 0 | N31: 0
A32: 24 | B32: Chubb Seguros México | C32: 969501.0056 | D32: 1024740.448 | E32: 4.631254547 | F32: 969501.0056 | G32: 1024740.448 | H32: 4.631254547 | I32: 0 | J32: 0 | K32: 0 | L32: 0 | M32: 0 | N32: 0
A33: 25 | B33: General de Seguros | C33: 593549.9112 | D33: 706075.5755 | E33: 22.19478759 | F33: 172497.4866 | G33: 445757.1978 | H33: 6.450249596 | I33: 421052.4246 | J33: 260318.3777 | K33: 15.744538 | L33: 0 | M33: 0 | N33: 0
A34: 26 | B34: Ve Por Más | C34: 570808.7613 | D34: 674385.0961 | E34: 18.5610564 | F34: 196413.0316 | G34: 89826.77494 | H34: 6.386785916 | I34: 291572.7297 | J34: 430576.45 | K34: 9.48110514 | L34: 82823 | M34: 153981.8712 | N34: 2.693165345
A35: 27 | B35: Zurich Aseguradora Mexicana | C35: 483896.7651 | D35: 251614.9732 | E35: 8.933108514 | F35: 225631.4776 | G35: 251614.9732 | H35: 4.165331572 | I35: 138342.2452 | J35: 0 | K35: 2.553904836 | L35: 119923.0424 | M35: 0 | N35: 2.213872107
A36: 28 | B36: Pan-American México | C36: 481604.771 | D36: 343072.039 | E36: 50.49827452 | F36: 76118.23219 | G36: 59914.64648 | H36: 7.981315005 | I36: 304129.5147 | J36: 195470.3371 | K36: 31.88925162 | L36: 101357.0241 | M36: 87687.05542 | N36: 10.6277079
A37: 29 | B37: Skandia Life | C37: 447144.7953 | D37: 426948.5898 | E37: 100 | F37: 212633.8011 | G37: 215625.4647 | H37: 47.55367911 | I37: 234510.9942 | J37: 211323.1252 | K37: 52.44632089 | L37: 0 | M37: 0 | N37: 0
A38: 30 | B38: Patrimonial Inbursa | C38: 382702.6806 | D38: 455803.1574 | E38: 66.50773488 | F38: 382702.6806 | G38: 455803.1574 | H38: 66.50773488 | I38: 0 | J38: 0 | K38: 0 | L38: 0 | M38: 0 | N38: 0
A39: 31 | B39: La Latinoamericana | C39: 335301.6168 | D39: 289231.4033 | E39: 24.93691394 | F39: 133472.1995 | G39: 105684.6005 | H39: 9.926539523 | I39: 201829.4174 | J39: 183546.8028 | K39: 15.01037442 | L39: 0 | M39: 0 | N39: 0
A40: 32 | B40: El Potosí | C40: 266560.3718 | D40: 238010.4584 | E40: 12.32929738 | F40: 71968.59623 | G40: 75680.6013 | H40: 3.328785217 | I40: 194288.8259 | J40: 162329.8571 | K40: 8.986499743 | L40: 302.9497 | M40: 0 | N40: 0.01401242397
A41: 33 | B41: Tokio Marine | C41: 77681.76061 | D41: 64153.74575 | E41: 5.572834822 | F41: 32215.67904 | G41: 40967.13837 | H41: 2.311130136 | I41: 45466.08157 | J41: 23186.60738 | K41: 3.261704686 | L41: 0 | M41: 0 | N41: 0
A42: 34 | B42: Agroasemex | C42: 58592.33705 | D42: 0 | E42: 0.8483327067 | F42: 58592.33705 | G42: 0 | H42: 0.8483327067 | I42: 0 | J42: 0 | K42: 0 | L42: 0 | M42: 0 | N42: 0
A43: 35 | B43: HDI Seguros | C43: 16047.40389 | D43: 19418.20989 | E43: 0.1661120186 | F43: 0 | G43: 0 | H43: 0 | I43: 16047.40389 | J43: 19418.20989 | K43: 0.1661120186 | L43: 0 | M43: 0 | N43: 0
A44: 36 | B44: Aserta Seguros de Vida | C44: 596.44602 | D44: 172610.6998 | E44: 100 | F44: 616.71188 | G44: 93975.27466 | H44: 103.3977693 | I44: -2.93576 | J44: 30422.09108 | K44: -0.4922088339 | L44: -17.3301 | M44: 48213.33406 | N44: -2.905560507
A45: 37 | B45: Zurich Vida | C45: 0 | D45: 502882.7278 | E45: 0 | F45: 0 | G45: 0 | H45: 0 | I45: 0 | J45: 0 | K45: 0 | L45: 0 | M45: 0 | N45: 0
A46: 38 | B46: Principal México | C46: 0 | D46: 192.54227 | E46: 0 | F46: 0 | G46: 0 | H46: 0 | I46: 0 | J46: 0 | K46: 0 | L46: 0 | M46: 0 | N46: 0
A47: 150.1 | B47: TOTAL RESTO | C47: 21335313.33 | D47: 19888260.95 | E47: 21.83883849 | F47: 13304137.52 | G47: 12086401.4 | H47: 13.6181225 | I47: 6946894.708 | J47: 6279523.537 | K47: 7.110845255 | L47: 1084281.104 | M47: 1019260.747 | N47: 1.109870736
A48: 151.1 | B48: TOTAL | C48: 259244122.7 | D48: 249438867.5 | E48: 48.26997529 | F48: 111283402.2 | G48: 110994421.3 | H48: 20.72041989 | I48: 116493381.9 | J48: 109310781.8 | K48: 21.69049238 | L48: 31466785.31 | M48: 28630589.02 | N48: 5.858960016

Sheet TD Siniestros (hidden)
A3: periodo | B3: 2022-Q4
A4: Ramo_ | B4: 22 Pensiones ISSSTE
A6: Jerarquia 2 | B6: nombre_compania | C6: Suma de CostoSin_Act | D6: Suma de IncSin | E6: Suma de IncResvDivAct | F6: Suma de %SinvsPrm_Act | G6: Suma de %SinvsPrm_Ant | H6: Suma de Costo_Sin_RetAct | I6: Suma de IncSin_Ret | J6: Suma de Prima_DevengadaAct | K6: Suma de IncSin_PDev | L6: Suma de %SinvsPDev_Act | M6: Suma de %SinvsPDev_Ant
A7: 1 | B7: Pensiones BBVA Bancomer | C7: 1710734.474 | D7: 22.0242535 | E7: 0 | F7: 40.6479179 | G7: 38.52345847 | H7: 1710734.474 | I7: 22.0242535 | J7: -1186886.145 | K7: 27.32649594 | L7: -144.1363589 | M7: -150.3994247
A8: 2 | B8: Pensiones Banorte | C8: 2145080.777 | D8: 18.42597831 | E8: 0 | F8: 53.12917966 | G8: 42.32312741 | H8: 2145080.777 | I8: 18.42597831 | J8: -1571681.895 | K8: 25.46796142 | L8: -136.4831384 | M8: -144.5988574
A9: 3 | B9: ProFuturo G.N.P. | C9: 1300737.188 | D9: 28.47700299 | E9: 0 | F9: 34.31075901 | G9: 30.78449417 | H9: 1300737.188 | I9: 28.47700299 | J9: -927538.2042 | K9: 21.86545328 | L9: -140.2354299 | M9: -133.0187803
A10: 5.1 | B10: TOTAL GRANDES | C10: 5156552.439 | D10: 22.02787284 | E10: 0 | F10: 42.83849433 | G10: 37.70349604 | H10: 5156552.439 | I10: 22.02787284 | J10: -3686106.244 | K10: 25.12529297 | L10: -139.8915847 | M10: -143.4424375
A11: 151.1 | B11: TOTAL | C11: 5156552.439 | D11: 22.02787284 | E11: 0 | F11: 42.83849433 | G11: 37.70349604 | H11: 5156552.439 | I11: 22.02787284 | J11: -3686106.244 | K11: 25.12529297 | L11: -139.8915847 | M11: -143.4424375

Sheet TD Operación (hidden)
B4: periodo | C4: 2022-Q4
B6: nombre_compania | C6: Ramo_ | D6: Suma de Prima_DirectaAct
A7: =B7&"|"&C7 -> Afirme|10 Total General | B7: Afirme | C7: 10 Total General | D7: 7592685.292
A8: =B8&"|"&C8 -> Afirme|11 Total General Sin Pensiones | B8: Afirme | C8: 11 Total General Sin Pensiones | D8: 7592685.292
A9: Afirme|12 Vida Total | B9: Afirme | C9: 12 Vida Total | D9: 2172231.379
A10: Afirme|13 Vida Individual | B10: Afirme | C10: 13 Vida Individual | D10: 1640597.831
A11: Afirme|14 Vida Gpo y Col | B11: Afirme | C11: 14 Vida Gpo y Col | D11: 531633.5484
A12: Afirme|38 Daños Total | B12: Afirme | C12: 38 Daños Total | D12: 5420453.913
A13: Afirme|39 Automoviles Total | B13: Afirme | C13: 39 Automoviles Total | D13: 2370669.643
A14: Afirme|41 Automoviles Residentes | B14: Afirme | C14: 41 Automoviles Residentes | D14: 1802591.467
A15: Afirme|42 Camiones | B15: Afirme | C15: 42 Camiones | D15: 541184.8131
A16: Afirme|44 Otros Automoviles y Obligatorios | B16: Afirme | C16: 44 Otros Automoviles y Obligatorios | D16: 26893.36269
A17: Afirme|45 Daños Sin Autos Total | B17: Afirme | C17: 45 Daños Sin Autos Total | D17: 3049784.27
A18: Afirme|46 Responsabilidad Civil y Riesgos Profesionales | B18: Afirme | C18: 46 Responsabilidad Civil y Riesgos Profesionales | D18: 740438.5273
A19: Afirme|47 RC General | B19: Afirme | C19: 47 RC General | D19: 418059.8593
A20: Afirme|48 RC Aviones y Barcos | B20: Afirme | C20: 48 RC Aviones y Barcos | D20: 102920.3366
A21: Afirme|49 RC Viajero | B21: Afirme | C21: 49 RC Viajero | D21: 7995.57758
A22: Afirme|50 RC Otros | B22: Afirme | C22: 50 RC Otros | D22: 211462.7539
A23: Afirme|51 Maritimo y Transportes | B23: Afirme | C23: 51 Maritimo y Transportes | D23: 420385.5932
A24: Afirme|52 MyT Carga | B24: Afirme | C24: 52 MyT Carga | D24: 189961.7988
A25: Afirme|53 MyT Cascos | B25: Afirme | C25: 53 MyT Cascos | D25: 230423.7944
A26: Afirme|54 Incendio | B26: Afirme | C26: 54 Incendio | D26: 616937.5751
A27: Afirme|55 Riesgos Catastroficos | B27: Afirme | C27: 55 Riesgos Catastroficos | D27: 388961.3154
A28: Afirme|56 Terremoto y Erupcion Volcanica | B28: Afirme | C28: 56 Terremoto y Erupcion Volcanica | D28: 158545.1651
A29: Afirme|57 Huracan y Otros Riesgos Hidrometeorologicos | B29: Afirme | C29: 57 Huracan y Otros Riesgos Hidrometeorologicos | D29: 230416.1503
A30: Afirme|63 Diversos | B30: Afirme | C30: 63 Diversos | D30: 883061.2588
A31: Afirme|64 Miscelaneos | B31: Afirme | C31: 64 Miscelaneos | D31: 202371.3586
A32: Afirme|65 Tecnicos | B32: Afirme | C32: 65 Tecnicos | D32: 680689.9002
A33: Agroasemex|10 Total General | B33: Agroasemex | C33: 10 Total General | D33: 6906763.889
A34: Agroasemex|11 Total General Sin Pensiones | B34: Agroasemex | C34: 11 Total General Sin Pensiones | D34: 6906763.889
A35: Agroasemex|12 Vida Total | B35: Agroasemex | C35: 12 Vida Total | D35: 58592.33705
A36: Agroasemex|14 Vida Gpo y Col | B36: Agroasemex | C36: 14 Vida Gpo y Col | D36: 58592.33705
A37: Agroasemex|28 Accidentes y Enfermedades Total | B37: Agroasemex | C37: 28 Accidentes y Enfermedades Total | D37: 0
A38: Agroasemex|29 Accidentes Personales | B38: Agroasemex | C38: 29 Accidentes Personales | D38: 0
A39: Agroasemex|31 AP Gpo y Col | B39: Agroasemex | C39: 31 AP Gpo y Col | D39: 0
A40: Agroasemex|38 Daños Total | B40: Agroasemex | C40: 38 Daños Total | D40: 6848171.552
A41: Agroasemex|45 Daños Sin Autos Total | B41: Agroasemex | C41: 45 Daños Sin Autos Total | D41: 6848171.552
A42: Agroasemex|46 Responsabilidad Civil y Riesgos Profesionales | B42: Agroasemex | C42: 46 Responsabilidad Civil y Riesgos Profesionales | D42: 208038.9072
A43: Agroasemex|47 RC General | B43: Agroasemex | C43: 47 RC General | D43: 183625.4531
A44: Agroasemex|48 RC Aviones y Barcos | B44: Agroasemex | C44: 48 RC Aviones y Barcos | D44: 2615.46195
A45: Agroasemex|49 RC Viajero | B45: Agroasemex | C45: 49 RC Viajero | D45: 11251.91685
A46: Agroasemex|50 RC Otros | B46: Agroasemex | C46: 50 RC Otros | D46: 10546.07525
A47: Agroasemex|51 Maritimo y Transportes | B47: Agroasemex | C47: 51 Maritimo y Transportes | D47: 248588.6223
A48: Agroasemex|52 MyT Carga | B48: Agroasemex | C48: 52 MyT Carga | D48: 45596.64325
A49: Agroasemex|53 MyT Cascos | B49: Agroasemex | C49: 53 MyT Cascos | D49: 202991.979
A50: Agroasemex|54 Incendio | B50: Agroasemex | C50: 54 Incendio | D50: 857386.4266
A51: Agroasemex|55 Riesgos Catastroficos | B51: Agroasemex | C51: 55 Riesgos Catastroficos | D51: 4270354.899
A52: Agroasemex|56 Terremoto y Erupcion Volcanica | B52: Agroasemex | C52: 56 Terremoto y Erupcion Volcanica | D52: 1691690.92
A53: Agroasemex|57 Huracan y Otros Riesgos Hidrometeorologicos | B53: Agroasemex | C53: 57 Huracan y Otros Riesgos Hidrometeorologicos | D53: 2486928.083
A54: Agroasemex|58 Otros Riesgos Catastroficos | B54: Agroasemex | C54: 58 Otros Riesgos Catastroficos | D54: 91735.8958
A55: Agroasemex|59 Agricola y de Animales | B55: Agroasemex | C55: 59 Agricola y de Animales | D55: 36438.36094
A56: Agroasemex|60 AyA Agricola | B56: Agroasemex | C56: 60 AyA Agricola | D56: 7600.29422
A57: Agroasemex|61 AyA Otros | B57: Agroasemex | C57: 61 AyA Otros | D57: 0
A58: Agroasemex|62 AyA Pecuario | B58: Agroasemex | C58: 62 AyA Pecuario | D58: 28838.06672
A59: Agroasemex|63 Diversos | B59: Agroasemex | C59: 63 Diversos | D59: 1227364.336
A60: Agroasemex|64 Miscelaneos | B60: Agroasemex | C60: 64 Miscelaneos | D60: 324420.071
A61: Agroasemex|65 Tecnicos | B61: Agroasemex | C61: 65 Tecnicos | D61: 902944.2653
A62: AIG Seguros|10 Total General | B62: AIG Seguros | C62: 10 Total General | D62: 6307111.087
A63: AIG Seguros|11 Total General Sin Pensiones | B63: AIG Seguros | C63: 11 Total General Sin Pensiones | D63: 6307111.087
A64: AIG Seguros|28 Accidentes y Enfermedades Total | B64: AIG Seguros | C64: 28 Accidentes y Enfermedades Total | D64: 251901.4685
A65: AIG Seguros|29 Accidentes Personales | B65: AIG Seguros | C65: 29 Accidentes Personales | D65: 251901.4685
A66: AIG Seguros|30 AP Individual | B66: AIG Seguros | C66: 30 AP Individual | D66: 64514.09582
A67: AIG Seguros|31 AP Gpo y Col | B67: AIG Seguros | C67: 31 AP Gpo y Col | D67: 187387.3727
A68: AIG Seguros|38 Daños Total | B68: AIG Seguros | C68: 38 Daños Total | D68: 6055209.618
A69: AIG Seguros|39 Automoviles Total | B69: AIG Seguros | C69: 39 Automoviles Total | D69: 462168.8461
A70: AIG Seguros|41 Automoviles Residentes | B70: AIG Seguros | C70: 41 Automoviles Residentes | D70: 277541.6559
A71: AIG Seguros|42 Camiones | B71: AIG Seguros | C71: 42 Camiones | D71: 58779.30771
A72: =B72&"|"&C72 -> AIG Seguros|43 Automoviles Turistas | B72: AIG Seguros | C72: 43 Automoviles Turistas | D72: 112569.4015
A73: AIG Seguros|44 Otros Automoviles y Obligatorios | B73: AIG Seguros | C73: 44 Otros Automoviles y Obligatorios | D73: 13278.48094
A74: AIG Seguros|45 Daños Sin Autos Total | B74: AIG Seguros | C74: 45 Daños Sin Autos Total | D74: 5593040.772
A75: AIG Seguros|46 Responsabilidad Civil y Riesgos Profesionales | B75: AIG Seguros | C75: 46 Responsabilidad Civil y Riesgos Profesionales | D75: 1561043.806
A76: AIG Seguros|47 RC General | B76: AIG Seguros | C76: 47 RC General | D76: 1559612.304
A77: AIG Seguros|48 RC Aviones y Barcos | B77: AIG Seguros | C77: 48 RC Aviones y Barcos | D77: 1431.50161
A78: AIG Seguros|51 Maritimo y Transportes | B78: AIG Seguros | C78: 51 Maritimo y Transportes | D78: 1021418.96
A79: AIG Seguros|52 MyT Carga | B79: AIG Seguros | C79: 52 MyT Carga | D79: 1020142.516
A80: AIG Seguros|53 MyT Cascos | B80: AIG Seguros | C80: 53 MyT Cascos | D80: 1276.44488
A81: AIG Seguros|54 Incendio | B81: AIG Seguros | C81: 54 Incendio | D81: 2008154.308
A82: AIG Seguros|55 Riesgos Catastroficos | B82: AIG Seguros | C82: 55 Riesgos Catastroficos | D82: 627897.2732
A83: AIG Seguros|56 Terremoto y Erupcion Volcanica | B83: AIG Seguros | C83: 56 Terremoto y Erupcion Volcanica | D83: 323917.5594
A84: AIG Seguros|57 Huracan y Otros Riesgos Hidrometeorologicos | B84: AIG Seguros | C84: 57 Huracan y Otros Riesgos Hidrometeorologicos | D84: 303979.7138
A85: AIG Seguros|63 Diversos | B85: AIG Seguros | C85: 63 Diversos | D85: 355872.8599
A86: AIG Seguros|64 Miscelaneos | B86: AIG Seguros | C86: 64 Miscelaneos | D86: 227603.1529
A87: AIG Seguros|65 Tecnicos | B87: AIG Seguros | C87: 65 Tecnicos | D87: 128269.707
A88: AIG Seguros|66 Credito | B88: AIG Seguros | C88: 66 Credito | D88: 18653.56427
A89: Allianz México|10 Total General | B89: Allianz México | C89: 10 Total General | D89: 18949473.91
A90: Allianz México|11 Total General Sin Pensiones | B90: Allianz México | C90: 11 Total General Sin Pensiones | D90: 18949473.91
A91: Allianz México|12 Vida Total | B91: Allianz México | C91: 12 Vida Total | D91: 10326844.2
A92: Allianz México|13 Vida Individual | B92: Allianz México | C92: 13 Vida Individual | D92: 10083357.19
A93: Allianz México|14 Vida Gpo y Col | B93: Allianz México | C93: 14 Vida Gpo y Col | D93: 243487.0102
A94: Allianz México|28 Accidentes y Enfermedades Total | B94: Allianz México | C94: 28 Accidentes y Enfermedades Total | D94: 2742629.401
A95: Allianz México|29 Accidentes Personales | B95: Allianz México | C95: 29 Accidentes Personales | D95: 455.71339
A96: Allianz México|30 AP Individual | B96: Allianz México | C96: 30 AP Individual | D96: 0
A97: Allianz México|31 AP Gpo y Col | B97: Allianz México | C97: 31 AP Gpo y Col | D97: 455.71339
A98: Allianz México|32 Gastos Medicos | B98: Allianz México | C98: 32 Gastos Medicos | D98: 2742173.688
A99: Allianz México|33 GMM. Individual | B99: Allianz México | C99: 33 GMM. Individual | D99: 1431523.119
A100: Allianz México|34 GMM. Gpo y Col | B100: Allianz México | C100: 34 GMM. Gpo y Col | D100: 1310650.568
A101: Allianz México|38 Daños Total | B101: Allianz México | C101: 38 Daños Total | D101: 5880000.31
A102: Allianz México|39 Automoviles Total | B102: Allianz México | C102: 39 Automoviles Total | D102: 94928.5039
A103: Allianz México|41 Automoviles Residentes | B103: Allianz México | C103: 41 Automoviles Residentes | D103: 94928.5039
A104: Allianz México|42 Camiones | B104: Allianz México | C104: 42 Camiones | D104: 0
A105: Allianz México|45 Daños Sin Autos Total | B105: Allianz México | C105: 45 Daños Sin Autos Total | D105: 5785071.806
A106: Allianz México|46 Responsabilidad Civil y Riesgos Profesionales | B106: Allianz México | C106: 46 Responsabilidad Civil y Riesgos Profesionales | D106: 308353.8188
A107: Allianz México|47 RC General | B107: Allianz México | C107: 47 RC General | D107: 284545.2467
A108: Allianz México|48 RC Aviones y Barcos | B108: Allianz México | C108: 48 RC Aviones y Barcos | D108: 23808.57209
A109: Allianz México|50 RC Otros | B109: Allianz México | C109: 50 RC Otros | D109: 0
A110: Allianz México|51 Maritimo y Transportes | B110: Allianz México | C110: 51 Maritimo y Transportes | D110: 298784.3166
A111: Allianz México|52 MyT Carga | B111: Allianz México | C111: 52 MyT Carga | D111: 245907.4962
A112: Allianz México|53 MyT Cascos | B112: Allianz México | C112: 53 MyT Cascos | D112: 52876.82041
A113: Allianz México|54 Incendio | B113: Allianz México | C113: 54 Incendio | D113: 909247.1236
A114: Allianz México|55 Riesgos Catastroficos | B114: Allianz México | C114: 55 Riesgos Catastroficos | D114: 447111.8298
A115: Allianz México|56 Terremoto y Erupcion Volcanica | B115: Allianz México | C115: 56 Terremoto y Erupcion Volcanica | D115: 195455.4695
A116: Allianz México|57 Huracan y Otros Riesgos Hidrometeorologicos | B116: Allianz México | C116: 57 Huracan y Otros Riesgos Hidrometeorologicos | D116: 251656.3603
A117: Allianz México|63 Diversos | B117: Allianz México | C117: 63 Diversos | D117: 3821574.717
A118: Allianz México|64 Miscelaneos | B118: Allianz México | C118: 64 Miscelaneos | D118: 131328.3425
A119: Allianz México|65 Tecnicos | B119: Allianz México | C119: 65 Tecnicos | D119: 3690246.375
A120: ANA|10 Total General | B120: ANA | C120: 10 Total General | D120: 3108861.043
A121: ANA|11 Total General Sin Pensiones | B121: ANA | C121: 11 Total General Sin Pensiones | D121: 3108861.043
A122: ANA|38 Daños Total | B122: ANA | C122: 38 Daños Total | D122: 3108861.043
A123: ANA|39 Automoviles Total | B123: ANA | C123: 39 Automoviles Total | D123: 3108861.043
A124: ANA|41 Automoviles Residentes | B124: ANA | C124: 41 Automoviles Residentes | D124: 1748125.499
A125: ANA|42 Camiones | B125: ANA | C125: 42 Camiones | D125: 1162917.603
A126: ANA|43 Automoviles Turistas | B126: ANA | C126: 43 Automoviles Turistas | D126: 138151.599
A127: ANA|44 Otros Automoviles y Obligatorios | B127: ANA | C127: 44 Otros Automoviles y Obligatorios | D127: 59666.34209
A128: Aserta Seguros de Vida|10 Total General | B128: Aserta Seguros de Vida | C128: 10 Total General | D128: 596.44602
A129: Aserta Seguros de Vida|11 Total General Sin Pensiones | B129: Aserta Seguros de Vida | C129: 11 Total General Sin Pensiones | D129: 596.44602
A130: Aserta Seguros de Vida|12 Vida Total | B130: Aserta Seguros de Vida | C130: 12 Vida Total | D130: 596.44602
A131: Aserta Seguros de Vida|13 Vida Individual | B131: Aserta Seguros de Vida | C131: 13 Vida Individual | D131: 2.65
A132: Aserta Seguros de Vida|14 Vida Gpo y Col | B132: Aserta Seguros de Vida | C132: 14 Vida Gpo y Col | D132: 593.79602
A133: Aserta Seguros de Vida|28 Accidentes y Enfermedades Total | B133: Aserta Seguros de Vida | C133: 28 Accidentes y Enfermedades Total | D133: 0
A134: Aserta Seguros de Vida|29 Accidentes Personales | B134: Aserta Seguros de Vida | C134: 29 Accidentes Personales | D134: 0
A135: Aserta Seguros de Vida|30 AP Individual | B135: Aserta Seguros de Vida | C135: 30 AP Individual | D135: 0
A136: =B136&"|"&C136 -> Aserta Seguros de Vida|31 AP Gpo y Col | B136: Aserta Seguros de Vida | C136: 31 AP Gpo y Col | D136: 0
A137: Aserta Seguros de Vida|32 Gastos Medicos | B137: Aserta Seguros de Vida | C137: 32 Gastos Medicos | D137: 0
A138: Aserta Seguros de Vida|33 GMM. Individual | B138: Aserta Seguros de Vida | C138: 33 GMM. Individual | D138: 0
A139: Assurant Daños|10 Total General | B139: Assurant Daños | C139: 10 Total General | D139: 195056.2367
A140: Assurant Daños|11 Total General Sin Pensiones | B140: Assurant Daños | C140: 11 Total General Sin Pensiones | D140: 195056.2367
A141: Assurant Daños|38 Daños Total | B141: Assurant Daños | C141: 38 Daños Total | D141: 195056.2367
A142: Assurant Daños|39 Automoviles Total | B142: Assurant Daños | C142: 39 Automoviles Total | D142: 16822.68688
A143: Assurant Daños|41 Automoviles Residentes | B143: Assurant Daños | C143: 41 Automoviles Residentes | D143: 16822.68688
A144: Assurant Daños|45 Daños Sin Autos Total | B144: Assurant Daños | C144: 45 Daños Sin Autos Total | D144: 178233.5498
A145: Assurant Daños|46 Responsabilidad Civil y Riesgos Profesionales | B145: Assurant Daños | C145: 46 Responsabilidad Civil y Riesgos Profesionales | D145: 0
A146: Assurant Daños|47 RC General | B146: Assurant Daños | C146: 47 RC General | D146: 0
A147: Assurant Daños|54 Incendio | B147: Assurant Daños | C147: 54 Incendio | D147: 0
A148: Assurant Daños|55 Riesgos Catastroficos | B148: Assurant Daños | C148: 55 Riesgos Catastroficos | D148: 0
A149: Assurant Daños|56 Terremoto y Erupcion Volcanica | B149: Assurant Daños | C149: 56 Terremoto y Erupcion Volcanica | D149: 0
A150: Assurant Daños|57 Huracan y Otros Riesgos Hidrometeorologicos | B150: Assurant Daños | C150: 57 Huracan y Otros Riesgos Hidrometeorologicos | D150: 0
A151: Assurant Daños|63 Diversos | B151: Assurant Daños | C151: 63 Diversos | D151: 178233.5498
A152: Assurant Daños|64 Miscelaneos | B152: Assurant Daños | C152: 64 Miscelaneos | D152: 142361.1442
A153: Assurant Daños|65 Tecnicos | B153: Assurant Daños | C153: 65 Tecnicos | D153: 35872.40558
A154: Assurant Vida|10 Total General | B154: Assurant Vida | C154: 10 Total General | D154: 1073592.106
A155: Assurant Vida|11 Total General Sin Pensiones | B155: Assurant Vida | C155: 11 Total General Sin Pensiones | D155: 1073592.106
A156: Assurant Vida|12 Vida Total | B156: Assurant Vida | C156: 12 Vida Total | D156: 1073592.106
A157: Assurant Vida|14 Vida Gpo y Col | B157: Assurant Vida | C157: 14 Vida Gpo y Col | D157: 1073592.106
A158: Assurant Vida|28 Accidentes y Enfermedades Total | B158: Assurant Vida | C158: 28 Accidentes y Enfermedades Total | D158: 0
A159: Assurant Vida|29 Accidentes Personales | B159: Assurant Vida | C159: 29 Accidentes Personales | D159: 0
A160: Assurant Vida|30 AP Individual | B160: Assurant Vida | C160: 30 AP Individual | D160: 0
A161: Assurant Vida|31 AP Gpo y Col | B161: Assurant Vida | C161: 31 AP Gpo y Col | D161: 0
A162: Assurant Vida|32 Gastos Medicos | B162: Assurant Vida | C162: 32 Gastos Medicos | D162: 0
A163: Assurant Vida|33 GMM. Individual | B163: Assurant Vida | C163: 33 GMM. Individual | D163: 0
A164: Atlas|10 Total General | B164: Atlas | C164: 10 Total General | D164: 17397320.1
A165: Atlas|11 Total General Sin Pensiones | B165: Atlas | C165: 11 Total General Sin Pensiones | D165: 17397320.1
A166: Atlas|12 Vida Total | B166: Atlas | C166: 12 Vida Total | D166: 2612427.283
A167: Atlas|13 Vida Individual | B167: Atlas | C167: 13 Vida Individual | D167: 925997.3874
A168: Atlas|14 Vida Gpo y Col | B168: Atlas | C168: 14 Vida Gpo y Col | D168: 1686429.895
A169: Atlas|28 Accidentes y Enfermedades Total | B169: Atlas | C169: 28 Accidentes y Enfermedades Total | D169: 5367995.984
A170: Atlas|29 Accidentes Personales | B170: Atlas | C170: 29 Accidentes Personales | D170: 157749.6504
A171: Atlas|30 AP Individual | B171: Atlas | C171: 30 AP Individual | D171: 3704.49265
A172: Atlas|31 AP Gpo y Col | B172: Atlas | C172: 31 AP Gpo y Col | D172: 154045.1578
A173: Atlas|32 Gastos Medicos | B173: Atlas | C173: 32 Gastos Medicos | D173: 5210246.333
A174: Atlas|33 GMM. Individual | B174: Atlas | C174: 33 GMM. Individual | D174: 1290733.955
A175: Atlas|34 GMM. Gpo y Col | B175: Atlas | C175: 34 GMM. Gpo y Col | D175: 3919512.378
A176: Atlas|38 Daños Total | B176: Atlas | C176: 38 Daños Total | D176: 9416896.833
A177: Atlas|39 Automoviles Total | B177: Atlas | C177: 39 Automoviles Total | D177: 3322655.043
A178: Atlas|41 Automoviles Residentes | B178: Atlas | C178: 41 Automoviles Residentes | D178: 2044787.821
A179: Atlas|42 Camiones | B179: Atlas | C179: 42 Camiones | D179: 1214209.943
A180: Atlas|43 Automoviles Turistas | B180: Atlas | C180: 43 Automoviles Turistas | D180: 3471.21204
A181: Atlas|44 Otros Automoviles y Obligatorios | B181: Atlas | C181: 44 Otros Automoviles y Obligatorios | D181: 60186.0667
A182: Atlas|45 Daños Sin Autos Total | B182: Atlas | C182: 45 Daños Sin Autos Total | D182: 6094241.791
A183: Atlas|46 Responsabilidad Civil y Riesgos Profesionales | B183: Atlas | C183: 46 Responsabilidad Civil y Riesgos Profesionales | D183: 696071.7534
A184: Atlas|47 RC General | B184: Atlas | C184: 47 RC General | D184: 482339.6302
A185: Atlas|48 RC Aviones y Barcos | B185: Atlas | C185: 48 RC Aviones y Barcos | D185: 197804.8045
A186: Atlas|49 RC Viajero | B186: Atlas | C186: 49 RC Viajero | D186: 15927.31871
A187: Atlas|51 Maritimo y Transportes | B187: Atlas | C187: 51 Maritimo y Transportes | D187: 1191596.922
A188: Atlas|52 MyT Carga | B188: Atlas | C188: 52 MyT Carga | D188: 737328.4455
A189: Atlas|53 MyT Cascos | B189: Atlas | C189: 53 MyT Cascos | D189: 454268.4768
A190: Atlas|54 Incendio | B190: Atlas | C190: 54 Incendio | D190: 994153.7476
A191: Atlas|55 Riesgos Catastroficos | B191: Atlas | C191: 55 Riesgos Catastroficos | D191: 1394352.299
A192: Atlas|56 Terremoto y Erupcion Volcanica | B192: Atlas | C192: 56 Terremoto y Erupcion Volcanica | D192: 474624.3594
A193: Atlas|57 Huracan y Otros Riesgos Hidrometeorologicos | B193: Atlas | C193: 57 Huracan y Otros Riesgos Hidrometeorologicos | D193: 919727.9392
A194: Atlas|63 Diversos | B194: Atlas | C194: 63 Diversos | D194: 1818067.069
A195: Atlas|64 Miscelaneos | B195: Atlas | C195: 64 Miscelaneos | D195: 605510.8815
A196: Atlas|65 Tecnicos | B196: Atlas | C196: 65 Tecnicos | D196: 1212556.187
A197: Atradius|10 Total General | B197: Atradius | C197: 10 Total General | D197: 808718.9571
A198: Atradius|11 Total General Sin Pensiones | B198: Atradius | C198: 11 Total General Sin Pensiones | D198: 808718.9571
A199: Atradius|38 Daños Total | B199: Atradius | C199: 38 Daños Total | D199: 808718.9571
A200: =B200&"|"&C200 -> Atradius|45 Daños Sin Autos Total | B200: Atradius | C200: 45 Daños Sin Autos Total | D200: 808718.9571
A201: Atradius|66 Credito | B201: Atradius | C201: 66 Credito | D201: 808718.9571
A202: AXA Salud|10 Total General | B202: AXA Salud | C202: 10 Total General | D202: 573796.8175
A203: AXA Salud|11 Total General Sin Pensiones | B203: AXA Salud | C203: 11 Total General Sin Pensiones | D203: 573796.8175
A204: AXA Salud|28 Accidentes y Enfermedades Total | B204: AXA Salud | C204: 28 Accidentes y Enfermedades Total | D204: 573796.8175
... 1412 more rows

Sheet TD Siniestros Daños (hidden)
A1: periodo | B1: 2022-Q4
A2: Ramo3 | B2: 45 Daños Sin Autos Total
A3: operacion | B3: (Varios elementos)
A4: ramo_complemento | B4: (Varios elementos)
A6: Jerarquia 2 | B6: nombre_compania | C6: Suma de CostoSin_Act | D6: Suma de IncSin | E6: Suma de IncResvDivAct | F6: Suma de %SinvsPrm_Act | G6: Suma de %SinvsPrm_Ant | H6: Suma de Costo_Sin_RetAct | I6: Suma de IncSin_Ret | J6: Suma de Prima_DevengadaAct | K6: Suma de IncSin_PDev | L6: Suma de %SinvsPDev_Act | M6: Suma de %SinvsPDev_Ant
A7: 1 | B7: GMX Seguros | C7: 5157067.151 | D7: 3.030747259 | E7: 0 | F7: 40.65283905 | G7: 46.17210127 | H7: 798619.1836 | I7: -7.127688384 | J7: 2734021.379 | K7: 29.60013562 | L7: 29.21042205 | M7: 40.76214528
A8: 2 | B8: Mapfre México | C8: 4690793.675 | D8: -41.1837631 | E8: 221213.3343 | F8: 52.65054463 | G8: 42.24326549 | H8: 946802.4991 | I8: -8.04958885 | J8: 2088869.706 | K8: 29.77548524 | L8: 45.32606779 | M8: 63.97157302
A9: 3 | B9: AXA Seguros | C9: 3021416.839 | D9: 34.70492231 | E9: 0 | F9: 34.35752114 | G9: 25.16178198 | H9: 1094409.022 | I9: -16.63424436 | J9: 3746530.704 | K9: 11.24538696 | L9: 29.21126526 | M9: 38.98025613
A10: 4 | B10: Inbursa | C10: 2045733.688 | D10: 120.8073897 | E10: 0 | F10: 24.48840667 | G10: 12.18358958 | H10: 661564.1042 | I10: -5.394279784 | J10: 1620475.887 | K10: 13.06008728 | L10: 40.82529765 | M10: 48.78892846
A11: 5 | B11: Agroasemex | C11: 1046396.941 | D11: 0 | E11: -6172.11845 | F11: 15.27994637 | G11: 0 | H11: 1019694.006 | I11: 0 | J11: 7344206.23 | K11: 0 | L11: 13.88433241 | M11: 0
A12: 5.1 | B12: TOTAL GRANDES | C12: 15961408.29 | D12: -1.168809777 | E12: 215041.2159 | F12: 35.00997563 | G12: 34.92774337 | H12: 4521088.814 | I12: 15.87589282 | J12: 17534103.91 | K12: 105.7925811 | L12: 25.78454444 | M12: 45.79268236
A13: 6 | B13: Chubb Seguros México | C13: 2052224.288 | D13: 1.470975283 | E13: 1624.67208 | F13: 33.41055973 | G13: 35.3381132 | H13: 327057.7558 | I13: 3664.158161 | J13: 1956349.4 | K13: 32.47949504 | L13: 16.71775787 | M13: 0.5883812599
A14: 7 | B14: Atlas | C14: 2145327.88 | D14: 12.79461655 | E14: 8446.78887 | F14: 35.2025396 | G14: 30.06900679 | H14: 350369.6421 | I14: -6.685075795 | J14: 871743.028 | K14: -14.10083116 | L14: 40.19184908 | M14: 36.99779493
A15: 8 | B15: Allianz México | C15: 3051551.616 | D15: 110.6384155 | E15: 2874.24926 | F15: 52.74872497 | G15: 29.09235744 | H15: 167983.4322 | I15: -35.64250635 | J15: 486449.4849 | K15: -13.36709659 | L15: 34.53255424 | M15: 46.48495872
A16: 9 | B16: AIG Seguros | C16: 1258688.86 | D16: 82.0930671 | E16: 11277.27804 | F16: 22.50455363 | G16: 14.81048773 | H16: 229231.3107 | I16: 43.17112501 | J16: 552244.4027 | K16: -15.31961953 | L16: 41.50903288 | M16: 24.55104475
A17: 10 | B17: G.N.P. | C17: 2948656.197 | D17: 54.45307549 | E17: 0 | F17: 56.4098558 | G17: 35.37699223 | H17: 964625.2939 | I17: 41.68062113 | J17: 1716977.893 | K17: 18.20847759 | L17: 56.18157915 | M17: 46.87401062
A18: 11 | B18: BBVA Bancomer | C18: 529734.0974 | D18: -36.60907646 | E18: 0 | F18: 11.92964728 | G18: 24.04592587 | H18: 481338.135 | I18: -40.049441 | J18: 3916324.236 | K18: 28.61629398 | L18: 12.29055885 | M18: 26.36782971
A19: 12 | B19: Banorte | C19: 620231.0562 | D19: -8.957513228 | E19: 0 | F19: 14.81191301 | G19: 16.17718591 | H19: 439760.7632 | I19: 41.16855091 | J19: 1909209.774 | K19: 8.872685082 | L19: 23.03365346 | M19: 17.7641244
A20: 13 | B20: FM Global | C20: 264444.2368 | D20: 19.5184614 | E20: 0 | F20: 7.503922751 | G20: 7.013813598 | H20: 12407.30461 | I20: 429.4931818 | J20: 8175.2947 | K20: -193.8492482 | L20: 151.7658392 | M20: -26.89951524
A21: 14 | B21: Zurich Santander | C21: 289082.0782 | D21: 26.66813433 | E21: 0 | F21: 8.402005516 | G21: 7.750925486 | H21: 273013.184 | I21: 45.37021809 | J21: 2637962.309 | K21: 13.56333455 | L21: 10.34939669 | M21: 8.084957252
A22: 15 | B22: Seguros SURA | C22: 1410481.042 | D22: 13.53283078 | E22: 2777.93454 | F22: 43.61729607 | G22: 42.88093614 | H22: 660605.1928 | I22: 33.65582544 | J22: 2037893.548 | K22: 31.15697165 | L22: 32.41607952 | M22: 31.81002255
A23: 15.1 | B23: TOTAL MEDIANAS | C23: 14570421.35 | D23: 30.29959351 | E23: 27000.92279 | F23: 30.56624574 | G23: 25.54502821 | H23: 3906392.014 | I23: 18.91808812 | J23: 16093329.37 | K23: 16.4135415 | L23: 24.27336149 | M23: 23.76213762
A24: 16 | B24: Afirme | C24: 1908601.229 | D24: -8.968974696 | E24: 0 | F24: 62.58151594 | G24: 42.42365646 | H24: 399299.2325 | I24: 7.039983501 | J24: 745476.8758 | K24: -22.24014513 | L24: 53.56292669 | M24: 38.91111779
A25: 17 | B25: Seguros Azteca Daños | C25: 869467.7425 | D25: 33.61989927 | E25: 31342.30935 | F25: 31.16251354 | G25: 43.63737716 | H25: 31353.45806 | I25: -29.18010304 | J25: 95589.98958 | K25: -25.85801384 | L25: 32.79993878 | M25: 34.33855048
A26: 18 | B26: Zurich Aseguradora Mexicana | C26: 2546791.326 | D26: -8782.143174 | E26: 776.72174 | F26: 104.5604876 | G26: -1362.040884 | H26: 480601.473 | I26: -1890.334605 | J26: 908380.5194 | K26: 34327.12309 | L26: 52.90750547 | M26: -1017.381443
A27: 19 | B27: HDI Seguros | C27: 989737.9512 | D27: 2.836869373 | E27: 0 | F27: 49.20872312 | G27: 51.26118219 | H27: 800076.8088 | I27: 19.50207106 | J27: 1751050.375 | K27: 31.57336029 | L27: 45.69125026 | M27: 50.30667067
A28: 20 | B28: Tokio Marine | C28: 555667.6624 | D28: -17.92413004 | E28: -714.63795 | F28: 42.85916819 | G28: 52.43337704 | H28: 95857.68684 | I28: 51.92807841 | J28: 145766.3939 | K28: -2.228866443 | L28: 65.76117052 | M28: 42.31965712
A29: 21 | B29: HDI Global Seguros | C29: 389690.0421 | D29: 59.26142399 | E29: 0 | F29: 34.58318966 | G29: 23.45106532 | H29: 1590.97998 | I29: -120.9472096 | J29: -5477.89246 | K29: 231.3324862 | L29: -29.04365121 | M29: 459.3979505
A30: 22 | B30: Cardif Seguros Generales | C30: 103678.0012 | D30: -28.31669901 | E30: 0 | F30: 9.928762014 | G30: 14.75727849 | H30: 158746.9549 | I30: -23.31672351 | J30: 1115634.545 | K30: 26.98874406 | L30: 14.22929718 | M30: 23.56394589
A31: 23 | B31: Atradius | C31: 181850.3109 | D31: 1476.561479 | E31: 19191.945 | F31: 22.48621839 | G31: 1.85491421 | H31: 67491.69116 | I31: 1169.635915 | J31: 231698.5383 | K31: 41.5832184 | L31: 29.12909665 | M31: 3.248325922
A32: 24 | B32: General de Seguros | C32: 328978.6602 | D32: 32.06469277 | E32: 17500 | F32: 44.4127972 | G32: 40.32711478 | H32: 132374.1276 | I32: 12.5761914 | J32: 234437.6741 | K32: 16.76223586 | L32: 56.4645286 | M32: 58.56411133
A33: 25 | B33: El Águila | C33: 222423.7237 | D33: -30.81238484 | E33: 0 | F33: 30.97683303 | G33: 52.19363196 | H33: 105290.7936 | I33: 27.31501707 | J33: 352181.5142 | K33: 16.67607648 | L33: 29.89674057 | M33: 27.39845204
A34: 26 | B34: Sompo Japan | C34: 28224.79506 | D34: -87.34123247 | E34: 9.4211 | F34: 4.032767036 | G34: 36.80101108 | H34: -8453.04253 | I34: -146.0328194 | J34: 145454.5315 | K34: 22.59149021 | L34: -5.811467298 | M34: 15.47670652
A35: 27 | B35: El Potosí | C35: 388984.269 | D35: 97.49156418 | E35: 0 | F35: 57.31576893 | G35: 30.57056752 | H35: 166305.0891 | I35: 73.28564149 | J35: 258968.4381 | K35: 32.2698573 | L35: 64.21828481 | M35: 49.01816038
A36: 28 | B36: Solunion Crédito | C36: 142452.9281 | D36: -38.97443075 | E36: 733.84482 | F36: 21.10412377 | G36: 43.30370111 | H36: 15347.58004 | I36: -39.60018168 | J36: 28981.64365 | K36: -0.3915456387 | L36: 52.95620989 | M36: 87.33281593
A37: 29 | B37: Swiss Re Corporate Solutions | C37: 34790.2682 | D37: -248.2433338 | E37: -293.2492 | F37: 5.171588608 | G37: -7.39152015 | H37: 6155.6332 | I37: 260.1862487 | J37: -9218.0895 | K37: -1751.660497 | L37: -66.77775476 | M37: 306.2142988
A38: 30 | B38: Berkley Seguros | C38: 412985.0796 | D38: 146.5362575 | E38: 2418.83794 | F38: 64.9289481 | G38: 36.02453067 | H38: 25840.97586 | I38: 186.808203 | J38: 17068.81339 | K38: -10.5048893 | L38: 151.392925 | M38: 47.24037333
A39: 31 | B39: Ve Por Más | C39: 45834.75756 | D39: -67.20169486 | E39: 0 | F39: 10.50720633 | G39: 26.22312525 | H39: 22774.25795 | I39: -33.52847717 | J39: 88506.38843 | K39: 19.93081352 | L39: 25.73176734 | M39: 46.42637416
A40: 32 | B40: Coface | C40: 46682.78404 | D40: 243.4001476 | E40: 13239.2675 | F40: 12.10704807 | G40: 4.114303385 | H40: 22519.92431 | I40: 137.2770922 | J40: 78430.4553 | K40: 33.72306526 | L40: 28.71323929 | M40: 16.18201882
A41: 33 | B41: SHF Cred Vivienda | C41: 64047.90936 | D41: -158.7933989 | E41: 0 | F41: 16.91494503 | G41: -25.96742882 | H41: 55474.46997 | I41: -146.5758998 | J41: -1269.53341 | K41: -100.3841909 | L41: -4369.673892 | M41: -36.04415538
A42: 34 | B42: Primero Seguros | C42: 124400.2394 | D42: 39.89660276 | E42: 0 | F42: 43.52071369 | G42: 37.10964212 | H42: 35607.66907 | I42: 32.87696088 | J42: 66383.75035 | K42: 20.46838823 | L42: 53.6391344 | M42: 48.63010129
A43: 35 | B43: La Latinoamericana | C43: 6056.70079 | D43: -14.1693713 | E43: 2089.83452 | F43: 3.105926199 | G43: 3.553665324 | H43: 5504.32185 | I43: 3.392819956 | J43: 111288.7707 | K43: 0.4080421385 | L43: 4.945981354 | M43: 4.803199143
A44: 36 | B44: Assurant Daños | C44: 55339.92961 | D44: 4.827670957 | E44: 511.87678 | F44: 31.04910926 | G44: 31.55522531 | H44: 14481.3274 | I44: 22.47908809 | J44: 41237.51262 | K44: -1.547886796 | L44: 35.11687898 | M44: 28.22792852
A45: 37 | B45: Citibanamex Seguros | C45: 4196.39148 | D45: -89.17628688 | E45: 0 | F45: 3.057570527 | G45: 24.82365274 | H45: -20251.44463 | I45: -361.833417 | J45: 26.40472 | K45: -97.60958611 | L45: -76696.30517 | M45: 700.2005896
A46: 38 | B46: Patrimonial Inbursa | C46: 3476.17532 | D46: 340.3788101 | E46: 0 | F46: 2.55591427 | G46: 0.5448351269 | H46: 3421.98272 | I46: 350.6529048 | J46: 136153.2941 | K46: -6.93070677 | L46: 2.513330832 | M46: 0.5190556229
A47: 39 | B47: Tláloc Seguros | C47: 74814.19031 | D47: -21.16103183 | E47: 0 | F47: 65.22002829 | G47: 77.34446665 | H47: 10420.34862 | I47: -23.53263809 | J47: 21251.59837 | K47: 7.615811429 | L47: 49.03324653 | M47: 69.00659942
A48: 40 | B48: Virginia Surety | C48: 28699.85449 | D48: 105.4329476 | E48: 0 | F48: 26.71412116 | G48: 19.98191514 | H48: 17905.1088 | I48: 67.15178619 | J48: 45022.96192 | K48: 70.65950238 | L48: 39.76883802 | M48: 40.60339565
A49: 41 | B49: Genworth Seg. de Crédito | C49: 11744.4062 | D49: -243.2901927 | E49: 0 | F49: 16.69101939 | G49: -12.43434726 | H49: 11118.92807 | I49: -27.64349613 | J49: 174321.6431 | K49: 29.94684323 | L49: 6.378397929 | M49: 11.45512333
A50: 42 | B50: Quálitas | C50: 3308.701 | D50: 3044.823314 | E50: 0 | F50: 88.50561191 | G50: 3.563328051 | H50: 1708.34823 | I50: 1523.734916 | J50: 2562.75179 | K50: 163.3865906 | L50: 66.66069795 | M50: 10.81305439
A51: 43 | B51: Zurich Daños | C51: -54836.22737 | D51: -101.6795381 | E51: 0 | F51: 0 | G51: 64.8753161 | H51: -54836.22737 | I51: -109.1960472 | J51: 0 | K51: -100 | L51: 0 | M51: 30.91498351
A52: 145 | B52: HSBC Seguros | D52: 0 | E52: 0 | F52: 0 | G52: 0 | H52: 0 | I52: 0 | J52: 0 | K52: 0 | L52: 0 | M52: 0
A53: 150.1 | B53: TOTAL RESTO | C53: 9518089.801 | D53: -2.125417823 | E53: 86806.1716 | F53: 43.63437017 | G53: 41.31452245 | H53: 2603728.457 | I53: 13.61286315 | J53: 6779909.868 | K53: -8.438141012 | L53: 38.40358512 | M53: 30.94987264
A54: 151.1 | B54: TOTAL | C54: 40049919.45 | D54: 8.075942011 | E54: 328848.3103 | F54: 34.80402889 | G54: 32.63460258 | H54: 11031209.29 | I54: 16.38306163 | J54: 40407343.14 | K54: 35.82625501 | L54: 27.3000114 | M54: 31.8608074
A55: 200 | B55: Patria | C55: 0 | D55: 0 | E55: 0 | F55: 0 | G55: 0 | H55: 3250422.824 | I55: 30.82403584 | J55: 7620216.583 | K55: 29.76783274 | L55: 42.65525512 | M55: 42.31087947

Sheet Primas Directas
B1: PRIMAS DIRECTAS | L1: =VLOOKUP(RIGHT(TDPrimas_!B3,2),Cat!$N$2:$O$5,2,0)&" "&LEFT(TDPrimas_!B3,4) -> Cuarto Trimestre 2022
B2: =UPPER(RIGHT(TDPrimas_!$B$4,LEN(TDPrimas_!$B$4)-3)) -> TOTAL GENERAL
L3: Cifras en miles
D4: 2 | E4: 3 | F4: 4 | G4: 5 | H4: 6 | I4: 7 | J4: 8 | K4: 9 | L4: 10
D5: Primas Directas | F5: % Part. en Merc. | H5: Incremento | J5: % de Cartera
B6: Compañías | D6: =LEFT(TDPrimas_!B3,4) -> 2022 | E6: =D6-1 -> 2021 | F6: =D6 -> 2022 | G6: =E6 -> 2021 | H6: Importe | I6: % | J6: Por | K6: Total | L6: Total
D7: Importe | E7: Importe | F7: =RIGHT(TDPrimas_!B3,2) -> Q4 | G7: =RIGHT(TDPrimas_!B3,2) -> Q4 | J7: Operación | K7: Cartera | L7: Sector
C8: TOTAL | D8: =VLOOKUP($C$8,$C$9:$L$125,D$4,0) -> 666940231.7 | E8: =VLOOKUP($C$8,$C$9:$L$125,E$4,0) -> 633397048.5 | F8: 100 | G8: 100 | H8: 33543183.25 | I8: 5.295759324 | J8: 100 | K8: 100 | L8: 100
B9: =IF(TDPrimas_!A7="","",TDPrimas_!A7) -> 1 | C9: =IF(TDPrimas_!B7="","",TDPrimas_!B7) -> G.N.P. | D9: =IF(TDPrimas_!C7="","",TDPrimas_!C7) -> 88896231.25 | E9: =IF(TDPrimas_!D7="","",TDPrimas_!D7) -> 78894165.13 | F9: =IF(TDPrimas_!E7="","",TDPrimas_!E7) -> 13.32896518 | G9: =IF(TDPrimas_!F7="","",TDPrimas_!F7) -> 12.45572036 | H9: =IF(TDPrimas_!G7="","",TDPrimas_!G7) -> 10002066.12 | I9: =IF(TDPrimas_!H7="","",TDPrimas_!H7) -> 12.67782745 | J9: =IF(TDPrimas_!I7="","",TDPrimas_!I7) -> 100 | K9: =IF(TDPrimas_!J7="","",TDPrimas_!J7) -> 100 | L9: =IF(TDPrimas_!K7="","",TDPrimas_!K7) -> 13.32896518
B10: =IF(TDPrimas_!A8="","",TDPrimas_!A8) -> 2 | C10: =IF(TDPrimas_!B8="","",TDPrimas_!B8) -> Metlife México | D10: =IF(TDPrimas_!C8="","",TDPrimas_!C8) -> 69679915.87 | E10: =IF(TDPrimas_!D8="","",TDPrimas_!D8) -> 62441035.43 | F10: =IF(TDPrimas_!E8="","",TDPrimas_!E8) -> 10.44770019 | G10: =IF(TDPrimas_!F8="","",TDPrimas_!F8) -> 9.858119102 | H10: =IF(TDPrimas_!G8="","",TDPrimas_!G8) -> 7238880.435 | I10: =IF(TDPrimas_!H8="","",TDPrimas_!H8) -> 11.59314605 | J10: =IF(TDPrimas_!I8="","",TDPrimas_!I8) -> 100 | K10: =IF(TDPrimas_!J8="","",TDPrimas_!J8) -> 100 | L10: =IF(TDPrimas_!K8="","",TDPrimas_!K8) -> 10.44770019
B11: =IF(TDPrimas_!A9="","",TDPrimas_!A9) -> 3 | C11: =IF(TDPrimas_!B9="","",TDPrimas_!B9) -> BBVA Bancomer | D11: =IF(TDPrimas_!C9="","",TDPrimas_!C9) -> 54574701.13 | E11: =IF(TDPrimas_!D9="","",TDPrimas_!D9) -> 46683566.47 | F11: =IF(TDPrimas_!E9="","",TDPrimas_!E9) -> 8.182847357 | G11: =IF(TDPrimas_!F9="","",TDPrimas_!F9) -> 7.370347965 | H11: =IF(TDPrimas_!G9="","",TDPrimas_!G9) -> 7891134.655 | I11: =IF(TDPrimas_!H9="","",TDPrimas_!H9) -> 16.90345287 | J11: =IF(TDPrimas_!I9="","",TDPrimas_!I9) -> 100 | K11: =IF(TDPrimas_!J9="","",TDPrimas_!J9) -> 100 | L11: =IF(TDPrimas_!K9="","",TDPrimas_!K9) -> 8.182847357
B12: =IF(TDPrimas_!A10="","",TDPrimas_!A10) -> 4 | C12: =IF(TDPrimas_!B10="","",TDPrimas_!B10) -> AXA Seguros | D12: =IF(TDPrimas_!C10="","",TDPrimas_!C10) -> 47014413.87 | E12: =IF(TDPrimas_!D10="","",TDPrimas_!D10) -> 44680995.32 | F12: =IF(TDPrimas_!E10="","",TDPrimas_!E10) -> 7.04926943 | G12: =IF(TDPrimas_!F10="","",TDPrimas_!F10) -> 7.054184327 | H12: =IF(TDPrimas_!G10="","",TDPrimas_!G10) -> 2333418.55 | I12: =IF(TDPrimas_!H10="","",TDPrimas_!H10) -> 5.222396084 | J12: =IF(TDPrimas_!I10="","",TDPrimas_!I10) -> 100 | K12: =IF(TDPrimas_!J10="","",TDPrimas_!J10) -> 100 | L12: =IF(TDPrimas_!K10="","",TDPrimas_!K10) -> 7.04926943
B13: =IF(TDPrimas_!A11="","",TDPrimas_!A11) -> 5 | C13: =IF(TDPrimas_!B11="","",TDPrimas_!B11) -> Quálitas | D13: =IF(TDPrimas_!C11="","",TDPrimas_!C11) -> 38613311.12 | E13: =IF(TDPrimas_!D11="","",TDPrimas_!D11) -> 34984952.3 | F13: =IF(TDPrimas_!E11="","",TDPrimas_!E11) -> 5.789620911 | G13: =IF(TDPrimas_!F11="","",TDPrimas_!F11) -> 5.523384168 | H13: =IF(TDPrimas_!G11="","",TDPrimas_!G11) -> 3628358.825 | I13: =IF(TDPrimas_!H11="","",TDPrimas_!H11) -> 10.37119843 | J13: =IF(TDPrimas_!I11="","",TDPrimas_!I11) -> 100 | K13: =IF(TDPrimas_!J11="","",TDPrimas_!J11) -> 100 | L13: =IF(TDPrimas_!K11="","",TDPrimas_!K11) -> 5.789620911
B14: =IF(TDPrimas_!A12="","",TDPrimas_!A12) -> 5.1 | C14: =IF(TDPrimas_!B12="","",TDPrimas_!B12) -> TOTAL GRANDES | D14: =IF(TDPrimas_!C12="","",TDPrimas_!C12) -> 298778573.2 | E14: =IF(TDPrimas_!D12="","",TDPrimas_!D12) -> 267684714.7 | F14: =IF(TDPrimas_!E12="","",TDPrimas_!E12) -> 44.79840307 | G14: =IF(TDPrimas_!F12="","",TDPrimas_!F12) -> 42.26175592 | H14: =IF(TDPrimas_!G12="","",TDPrimas_!G12) -> 31093858.59 | I14: =IF(TDPrimas_!H12="","",TDPrimas_!H12) -> 11.61585137 | J14: =IF(TDPrimas_!I12="","",TDPrimas_!I12) -> 100 | K14: =IF(TDPrimas_!J12="","",TDPrimas_!J12) -> 100 | L14: =IF(TDPrimas_!K12="","",TDPrimas_!K12) -> 44.79840307
B15: =IF(TDPrimas_!A13="","",TDPrimas_!A13) -> 6 | C15: =IF(TDPrimas_!B13="","",TDPrimas_!B13) -> Monterrey New York Life | D15: =IF(TDPrimas_!C13="","",TDPrimas_!C13) -> 37521624.68 | E15: =IF(TDPrimas_!D13="","",TDPrimas_!D13) -> 34531456 | F15: =IF(TDPrimas_!E13="","",TDPrimas_!E13) -> 5.625935113 | G15: =IF(TDPrimas_!F13="","",TDPrimas_!F13) -> 5.451786693 | H15: =IF(TDPrimas_!G13="","",TDPrimas_!G13) -> 2990168.674 | I15: =IF(TDPrimas_!H13="","",TDPrimas_!H13) -> 8.659260339 | J15: =IF(TDPrimas_!I13="","",TDPrimas_!I13) -> 100 | K15: =IF(TDPrimas_!J13="","",TDPrimas_!J13) -> 100 | L15: =IF(TDPrimas_!K13="","",TDPrimas_!K13) -> 5.625935113
B16: =IF(TDPrimas_!A14="","",TDPrimas_!A14) -> 7 | C16: =IF(TDPrimas_!B14="","",TDPrimas_!B14) -> Banorte | D16: =IF(TDPrimas_!C14="","",TDPrimas_!C14) -> 28914191.64 | E16: =IF(TDPrimas_!D14="","",TDPrimas_!D14) -> 27787128.92 | F16: =IF(TDPrimas_!E14="","",TDPrimas_!E14) -> 4.335349746 | G16: =IF(TDPrimas_!F14="","",TDPrimas_!F14) -> 4.387000064 | H16: =IF(TDPrimas_!G14="","",TDPrimas_!G14) -> 1127062.72 | I16: =IF(TDPrimas_!H14="","",TDPrimas_!H14) -> 4.056060354 | J16: =IF(TDPrimas_!I14="","",TDPrimas_!I14) -> 100 | K16: =IF(TDPrimas_!J14="","",TDPrimas_!J14) -> 100 | L16: =IF(TDPrimas_!K14="","",TDPrimas_!K14) -> 4.335349746
B17: =IF(TDPrimas_!A15="","",TDPrimas_!A15) -> 8 | C17: =IF(TDPrimas_!B15="","",TDPrimas_!B15) -> Inbursa | D17: =IF(TDPrimas_!C15="","",TDPrimas_!C15) -> 23044846.03 | E17: =IF(TDPrimas_!D15="","",TDPrimas_!D15) -> 20715913.72 | F17: =IF(TDPrimas_!E15="","",TDPrimas_!E15) -> 3.455309026 | G17: =IF(TDPrimas_!F15="","",TDPrimas_!F15) -> 3.270604712 | H17: =IF(TDPrimas_!G15="","",TDPrimas_!G15) -> 2328932.309 | I17: =IF(TDPrimas_!H15="","",TDPrimas_!H15) -> 11.24223793 | J17: =IF(TDPrimas_!I15="","",TDPrimas_!I15) -> 100 | K17: =IF(TDPrimas_!J15="","",TDPrimas_!J15) -> 100 | L17: =IF(TDPrimas_!K15="","",TDPrimas_!K15) -> 3.455309026
B18: =IF(TDPrimas_!A16="","",TDPrimas_!A16) -> 9 | C18: =IF(TDPrimas_!B16="","",TDPrimas_!B16) -> Mapfre México | D18: =IF(TDPrimas_!C16="","",TDPrimas_!C16) -> 21167003.16 | E18: =IF(TDPrimas_!D16="","",TDPrimas_!D16) -> 30973171.78 | F18: =IF(TDPrimas_!E16="","",TDPrimas_!E16) -> 3.173748133 | G18: =IF(TDPrimas_!F16="","",TDPrimas_!F16) -> 4.890008858 | H18: =IF(TDPrimas_!G16="","",TDPrimas_!G16) -> -9806168.624 | I18: =IF(TDPrimas_!H16="","",TDPrimas_!H16) -> -31.66020159 | J18: =IF(TDPrimas_!I16="","",TDPrimas_!I16) -> 100 | K18: =IF(TDPrimas_!J16="","",TDPrimas_!J16) -> 100 | L18: =IF(TDPrimas_!K16="","",TDPrimas_!K16) -> 3.173748133
B19: =IF(TDPrimas_!A17="","",TDPrimas_!A17) -> 10 | C19: =IF(TDPrimas_!B17="","",TDPrimas_!B17) -> Chubb Seguros México | D19: =IF(TDPrimas_!C17="","",TDPrimas_!C17) -> 20933874.3 | E19: =IF(TDPrimas_!D17="","",TDPrimas_!D17) -> 18644615.73 | F19: =IF(TDPrimas_!E17="","",TDPrimas_!E17) -> 3.138793149 | G19: =IF(TDPrimas_!F17="","",TDPrimas_!F17) -> 2.94359056 | H19: =IF(TDPrimas_!G17="","",TDPrimas_!G17) -> 2289258.579 | I19: =IF(TDPrimas_!H17="","",TDPrimas_!H17) -> 12.27838971 | J19: =IF(TDPrimas_!I17="","",TDPrimas_!I17) -> 100 | K19: =IF(TDPrimas_!J17="","",TDPrimas_!J17) -> 100 | L19: =IF(TDPrimas_!K17="","",TDPrimas_!K17) -> 3.138793149
B20: =IF(TDPrimas_!A18="","",TDPrimas_!A18) -> 11 | C20: =IF(TDPrimas_!B18="","",TDPrimas_!B18) -> Allianz México | D20: =IF(TDPrimas_!C18="","",TDPrimas_!C18) -> 18949473.91 | E20: =IF(TDPrimas_!D18="","",TDPrimas_!D18) -> 16560897.79 | F20: =IF(TDPrimas_!E18="","",TDPrimas_!E18) -> 2.841255184 | G20: =IF(TDPrimas_!F18="","",TDPrimas_!F18) -> 2.614615561 | H20: =IF(TDPrimas_!G18="","",TDPrimas_!G18) -> 2388576.116 | I20: =IF(TDPrimas_!H18="","",TDPrimas_!H18) -> 14.42298689 | J20: =IF(TDPrimas_!I18="","",TDPrimas_!I18) -> 100 | K20: =IF(TDPrimas_!J18="","",TDPrimas_!J18) -> 100 | L20: =IF(TDPrimas_!K18="","",TDPrimas_!K18) -> 2.841255184
B21: =IF(TDPrimas_!A19="","",TDPrimas_!A19) -> 12 | C21: =IF(TDPrimas_!B19="","",TDPrimas_!B19) -> Pensiones Banorte | D21: =IF(TDPrimas_!C19="","",TDPrimas_!C19) -> 18733422.24 | E21: =IF(TDPrimas_!D19="","",TDPrimas_!D19) -> 22649462.82 | F21: =IF(TDPrimas_!E19="","",TDPrimas_!E19) -> 2.808860727 | G21: =IF(TDPrimas_!F19="","",TDPrimas_!F19) -> 3.575871228 | H21: =IF(TDPrimas_!G19="","",TDPrimas_!G19) -> -3916040.575 | I21: =IF(TDPrimas_!H19="","",TDPrimas_!H19) -> -17.28977242 | J21: =IF(TDPrimas_!I19="","",TDPrimas_!I19) -> 100 | K21: =IF(TDPrimas_!J19="","",TDPrimas_!J19) -> 100 | L21: =IF(TDPrimas_!K19="","",TDPrimas_!K19) -> 2.808860727
B22: =IF(TDPrimas_!A20="","",TDPrimas_!A20) -> 13 | C22: =IF(TDPrimas_!B20="","",TDPrimas_!B20) -> Atlas | D22: =IF(TDPrimas_!C20="","",TDPrimas_!C20) -> 17397320.1 | E22: =IF(TDPrimas_!D20="","",TDPrimas_!D20) -> 16033506.83 | F22: =IF(TDPrimas_!E20="","",TDPrimas_!E20) -> 2.608527612 | G22: =IF(TDPrimas_!F20="","",TDPrimas_!F20) -> 2.531351681 | H22: =IF(TDPrimas_!G20="","",TDPrimas_!G20) -> 1363813.268 | I22: =IF(TDPrimas_!H20="","",TDPrimas_!H20) -> 8.506019813 | J22: =IF(TDPrimas_!I20="","",TDPrimas_!I20) -> 100 | K22: =IF(TDPrimas_!J20="","",TDPrimas_!J20) -> 100 | L22: =IF(TDPrimas_!K20="","",TDPrimas_!K20) -> 2.608527612
B23: =IF(TDPrimas_!A21="","",TDPrimas_!A21) -> 14 | C23: =IF(TDPrimas_!B21="","",TDPrimas_!B21) -> Citibanamex Seguros | D23: =IF(TDPrimas_!C21="","",TDPrimas_!C21) -> 17073983.29 | E23: =IF(TDPrimas_!D21="","",TDPrimas_!D21) -> 24304859.37 | F23: =IF(TDPrimas_!E21="","",TDPrimas_!E21) -> 2.560046984 | G23: =IF(TDPrimas_!F21="","",TDPrimas_!F21) -> 3.837223338 | H23: =IF(TDPrimas_!G21="","",TDPrimas_!G21) -> -7230876.08 | I23: =IF(TDPrimas_!H21="","",TDPrimas_!H21) -> -29.75074231 | J23: =IF(TDPrimas_!I21="","",TDPrimas_!I21) -> 100 | K23: =IF(TDPrimas_!J21="","",TDPrimas_!J21) -> 100 | L23: =IF(TDPrimas_!K21="","",TDPrimas_!K21) -> 2.560046984
B24: =IF(TDPrimas_!A22="","",TDPrimas_!A22) -> 15 | C24: =IF(TDPrimas_!B22="","",TDPrimas_!B22) -> Zurich Santander | D24: =IF(TDPrimas_!C22="","",TDPrimas_!C22) -> 14538030.86 | E24: =IF(TDPrimas_!D22="","",TDPrimas_!D22) -> 14742608.48 | F24: =IF(TDPrimas_!E22="","",TDPrimas_!E22) -> 2.179810149 | G24: =IF(TDPrimas_!F22="","",TDPrimas_!F22) -> 2.327546128 | H24: =IF(TDPrimas_!G22="","",TDPrimas_!G22) -> -204577.6175 | I24: =IF(TDPrimas_!H22="","",TDPrimas_!H22) -> -1.387662284 | J24: =IF(TDPrimas_!I22="","",TDPrimas_!I22) -> 100 | K24: =IF(TDPrimas_!J22="","",TDPrimas_!J22) -> 100 | L24: =IF(TDPrimas_!K22="","",TDPrimas_!K22) -> 2.179810149
B25: =IF(TDPrimas_!A23="","",TDPrimas_!A23) -> 15.1 | C25: =IF(TDPrimas_!B23="","",TDPrimas_!B23) -> TOTAL MEDIANAS | D25: =IF(TDPrimas_!C23="","",TDPrimas_!C23) -> 218273770.2 | E25: =IF(TDPrimas_!D23="","",TDPrimas_!D23) -> 226943621.4 | F25: =IF(TDPrimas_!E23="","",TDPrimas_!E23) -> 32.72763582 | G25: =IF(TDPrimas_!F23="","",TDPrimas_!F23) -> 35.82959882 | H25: =IF(TDPrimas_!G23="","",TDPrimas_!G23) -> -8669851.23 | I25: =IF(TDPrimas_!H23="","",TDPrimas_!H23) -> -3.820266538 | J25: =IF(TDPrimas_!I23="","",TDPrimas_!I23) -> 100 | K25: =IF(TDPrimas_!J23="","",TDPrimas_!J23) -> 100 | L25: =IF(TDPrimas_!K23="","",TDPrimas_!K23) -> 32.72763582
B26: =IF(TDPrimas_!A24="","",TDPrimas_!A24) -> 16 | C26: =IF(TDPrimas_!B24="","",TDPrimas_!B24) -> GMX Seguros | D26: =IF(TDPrimas_!C24="","",TDPrimas_!C24) -> 12685626.08 | E26: =IF(TDPrimas_!D24="","",TDPrimas_!D24) -> 10840674.32 | F26: =IF(TDPrimas_!E24="","",TDPrimas_!E24) -> 1.902063404 | G26: =IF(TDPrimas_!F24="","",TDPrimas_!F24) -> 1.711513235 | H26: =IF(TDPrimas_!G24="","",TDPrimas_!G24) -> 1844951.758 | I26: =IF(TDPrimas_!H24="","",TDPrimas_!H24) -> 17.01879149 | J26: =IF(TDPrimas_!I24="","",TDPrimas_!I24) -> 100 | K26: =IF(TDPrimas_!J24="","",TDPrimas_!J24) -> 100 | L26: =IF(TDPrimas_!K24="","",TDPrimas_!K24) -> 1.902063404
B27: =IF(TDPrimas_!A25="","",TDPrimas_!A25) -> 17 | C27: =IF(TDPrimas_!B25="","",TDPrimas_!B25) -> Pensiones BBVA Bancomer | D27: =IF(TDPrimas_!C25="","",TDPrimas_!C25) -> 11908763.69 | E27: =IF(TDPrimas_!D25="","",TDPrimas_!D25) -> 9822830.802 | F27: =IF(TDPrimas_!E25="","",TDPrimas_!E25) -> 1.785581845 | G27: =IF(TDPrimas_!F25="","",TDPrimas_!F25) -> 1.550817268 | H27: =IF(TDPrimas_!G25="","",TDPrimas_!G25) -> 2085932.89 | I27: =IF(TDPrimas_!H25="","",TDPrimas_!H25) -> 21.23555757 | J27: =IF(TDPrimas_!I25="","",TDPrimas_!I25) -> 100 | K27: =IF(TDPrimas_!J25="","",TDPrimas_!J25) -> 100 | L27: =IF(TDPrimas_!K25="","",TDPrimas_!K25) -> 1.785581845
B28: =IF(TDPrimas_!A26="","",TDPrimas_!A26) -> 18 | C28: =IF(TDPrimas_!B26="","",TDPrimas_!B26) -> ProFuturo G.N.P. | D28: =IF(TDPrimas_!C26="","",TDPrimas_!C26) -> 9964700.289 | E28: =IF(TDPrimas_!D26="","",TDPrimas_!D26) -> 14908494.75 | F28: =IF(TDPrimas_!E26="","",TDPrimas_!E26) -> 1.494091946 | G28: =IF(TDPrimas_!F26="","",TDPrimas_!F26) -> 2.353736062 | H28: =IF(TDPrimas_!G26="","",TDPrimas_!G26) -> -4943794.456 | I28: =IF(TDPrimas_!H26="","",TDPrimas_!H26) -> -33.16092296 | J28: =IF(TDPrimas_!I26="","",TDPrimas_!I26) -> 100 | K28: =IF(TDPrimas_!J26="","",TDPrimas_!J26) -> 100 | L28: =IF(TDPrimas_!K26="","",TDPrimas_!K26) -> 1.494091946
B29: =IF(TDPrimas_!A27="","",TDPrimas_!A27) -> 19 | C29: =IF(TDPrimas_!B27="","",TDPrimas_!B27) -> HDI Seguros | D29: =IF(TDPrimas_!C27="","",TDPrimas_!C27) -> 9660591.706 | E29: =IF(TDPrimas_!D27="","",TDPrimas_!D27) -> 8680810.987 | F29: =IF(TDPrimas_!E27="","",TDPrimas_!E27) -> 1.44849437 | G29: =IF(TDPrimas_!F27="","",TDPrimas_!F27) -> 1.370516488 | H29: =IF(TDPrimas_!G27="","",TDPrimas_!G27) -> 979780.7196 | I29: =IF(TDPrimas_!H27="","",TDPrimas_!H27) -> 11.28674177 | J29: =IF(TDPrimas_!I27="","",TDPrimas_!I27) -> 100 | K29: =IF(TDPrimas_!J27="","",TDPrimas_!J27) -> 100 | L29: =IF(TDPrimas_!K27="","",TDPrimas_!K27) -> 1.44849437
B30: =IF(TDPrimas_!A28="","",TDPrimas_!A28) -> 20 | C30: =IF(TDPrimas_!B28="","",TDPrimas_!B28) -> Afirme | D30: =IF(TDPrimas_!C28="","",TDPrimas_!C28) -> 7592685.292 | E30: =IF(TDPrimas_!D28="","",TDPrimas_!D28) -> 10199279.55 | F30: =IF(TDPrimas_!E28="","",TDPrimas_!E28) -> 1.138435639 | G30: =IF(TDPrimas_!F28="","",TDPrimas_!F28) -> 1.610250564 | H30: =IF(TDPrimas_!G28="","",TDPrimas_!G28) -> -2606594.257 | I30: =IF(TDPrimas_!H28="","",TDPrimas_!H28) -> -25.55665078 | J30: =IF(TDPrimas_!I28="","",TDPrimas_!I28) -> 100 | K30: =IF(TDPrimas_!J28="","",TDPrimas_!J28) -> 100 | L30: =IF(TDPrimas_!K28="","",TDPrimas_!K28) -> 1.138435639
B31: =IF(TDPrimas_!A29="","",TDPrimas_!A29) -> 21 | C31: =IF(TDPrimas_!B29="","",TDPrimas_!B29) -> Seguros SURA | D31: =IF(TDPrimas_!C29="","",TDPrimas_!C29) -> 6914356.54 | E31: =IF(TDPrimas_!D29="","",TDPrimas_!D29) -> 5900062.749 | F31: =IF(TDPrimas_!E29="","",TDPrimas_!E29) -> 1.036728062 | G31: =IF(TDPrimas_!F29="","",TDPrimas_!F29) -> 0.931495144 | H31: =IF(TDPrimas_!G29="","",TDPrimas_!G29) -> 1014293.791 | I31: =IF(TDPrimas_!H29="","",TDPrimas_!H29) -> 17.19123735 | J31: =IF(TDPrimas_!I29="","",TDPrimas_!I29) -> 100 | K31: =IF(TDPrimas_!J29="","",TDPrimas_!J29) -> 100 | L31: =IF(TDPrimas_!K29="","",TDPrimas_!K29) -> 1.036728062
B32: =IF(TDPrimas_!A30="","",TDPrimas_!A30) -> 22 | C32: =IF(TDPrimas_!B30="","",TDPrimas_!B30) -> Agroasemex | D32: =IF(TDPrimas_!C30="","",TDPrimas_!C30) -> 6906763.889 | E32: =IF(TDPrimas_!D30="","",TDPrimas_!D30) -> 0 | F32: =IF(TDPrimas_!E30="","",TDPrimas_!E30) -> 1.035589632 | G32: =IF(TDPrimas_!F30="","",TDPrimas_!F30) ->  | H32: =IF(TDPrimas_!G30="","",TDPrimas_!G30) ->  | I32: =IF(TDPrimas_!H30="","",TDPrimas_!H30) ->  | J32: =IF(TDPrimas_!I30="","",TDPrimas_!I30) -> 100 | K32: =IF(TDPrimas_!J30="","",TDPrimas_!J30) -> 100 | L32: =IF(TDPrimas_!K30="","",TDPrimas_!K30) -> 1.035589632
B33: =IF(TDPrimas_!A31="","",TDPrimas_!A31) -> 23 | C33: =IF(TDPrimas_!B31="","",TDPrimas_!B31) -> HSBC Seguros | D33: =IF(TDPrimas_!C31="","",TDPrimas_!C31) -> 6620173.555 | E33: =IF(TDPrimas_!D31="","",TDPrimas_!D31) -> 6468384.206 | F33: =IF(TDPrimas_!E31="","",TDPrimas_!E31) -> 0.9926187145 | G33: =IF(TDPrimas_!F31="","",TDPrimas_!F31) -> 1.021221084 | H33: =IF(TDPrimas_!G31="","",TDPrimas_!G31) -> 151789.3491 | I33: =IF(TDPrimas_!H31="","",TDPrimas_!H31) -> 2.346634712 | J33: =IF(TDPrimas_!I31="","",TDPrimas_!I31) -> 100 | K33: =IF(TDPrimas_!J31="","",TDPrimas_!J31) -> 100 | L33: =IF(TDPrimas_!K31="","",TDPrimas_!K31) -> 0.9926187145
B34: =IF(TDPrimas_!A32="","",TDPrimas_!A32) -> 24 | C34: =IF(TDPrimas_!B32="","",TDPrimas_!B32) -> AIG Seguros | D34: =IF(TDPrimas_!C32="","",TDPrimas_!C32) -> 6307111.087 | E34: =IF(TDPrimas_!D32="","",TDPrimas_!D32) -> 5289324.872 | F34: =IF(TDPrimas_!E32="","",TDPrimas_!E32) -> 0.945678606 | G34: =IF(TDPrimas_!F32="","",TDPrimas_!F32) -> 0.835072548 | H34: =IF(TDPrimas_!G32="","",TDPrimas_!G32) -> 1017786.215 | I34: =IF(TDPrimas_!H32="","",TDPrimas_!H32) -> 19.24227079 | J34: =IF(TDPrimas_!I32="","",TDPrimas_!I32) -> 100 | K34: =IF(TDPrimas_!J32="","",TDPrimas_!J32) -> 100 | L34: =IF(TDPrimas_!K32="","",TDPrimas_!K32) -> 0.945678606
B35: =IF(TDPrimas_!A33="","",TDPrimas_!A33) -> 25 | C35: =IF(TDPrimas_!B33="","",TDPrimas_!B33) -> Zurich Aseguradora Mexicana | D35: =IF(TDPrimas_!C33="","",TDPrimas_!C33) -> 5416891.157 | E35: =IF(TDPrimas_!D33="","",TDPrimas_!D33) -> 257596.1868 | F35: =IF(TDPrimas_!E33="","",TDPrimas_!E33) -> 0.812200389 | G35: =IF(TDPrimas_!F33="","",TDPrimas_!F33) -> 0.04066899071 | H35: =IF(TDPrimas_!G33="","",TDPrimas_!G33) -> 5159294.97 | I35: =IF(TDPrimas_!H33="","",TDPrimas_!H33) -> 2002.861546 | J35: =IF(TDPrimas_!I33="","",TDPrimas_!I33) -> 100 | K35: =IF(TDPrimas_!J33="","",TDPrimas_!J33) -> 100 | L35: =IF(TDPrimas_!K33="","",TDPrimas_!K33) -> 0.812200389
B36: =IF(TDPrimas_!A34="","",TDPrimas_!A34) -> 26 | C36: =IF(TDPrimas_!B34="","",TDPrimas_!B34) -> BUPA México | D36: =IF(TDPrimas_!C34="","",TDPrimas_!C34) -> 4031130.83 | E36: =IF(TDPrimas_!D34="","",TDPrimas_!D34) -> 3594202.45 | F36: =IF(TDPrimas_!E34="","",TDPrimas_!E34) -> 0.6044216016 | G36: =IF(TDPrimas_!F34="","",TDPrimas_!F34) -> 0.5674485631 | H36: =IF(TDPrimas_!G34="","",TDPrimas_!G34) -> 436928.3798 | I36: =IF(TDPrimas_!H34="","",TDPrimas_!H34) -> 12.1564766 | J36: =IF(TDPrimas_!I34="","",TDPrimas_!I34) -> 100 | K36: =IF(TDPrimas_!J34="","",TDPrimas_!J34) -> 100 | L36: =IF(TDPrimas_!K34="","",TDPrimas_!K34) -> 0.6044216016
B37: =IF(TDPrimas_!A35="","",TDPrimas_!A35) -> 27 | C37: =IF(TDPrimas_!B35="","",TDPrimas_!B35) -> Seguros Azteca | D37: =IF(TDPrimas_!C35="","",TDPrimas_!C35) -> 3916508.027 | E37: =IF(TDPrimas_!D35="","",TDPrimas_!D35) -> 4983077.594 | F37: =IF(TDPrimas_!E35="","",TDPrimas_!E35) -> 0.5872352335 | G37: =IF(TDPrimas_!F35="","",TDPrimas_!F35) -> 0.7867225788 | H37: =IF(TDPrimas_!G35="","",TDPrimas_!G35) -> -1066569.567 | I37: =IF(TDPrimas_!H35="","",TDPrimas_!H35) -> -21.4038322 | J37: =IF(TDPrimas_!I35="","",TDPrimas_!I35) -> 100 | K37: =IF(TDPrimas_!J35="","",TDPrimas_!J35) -> 100 | L37: =IF(TDPrimas_!K35="","",TDPrimas_!K35) -> 0.5872352335
B38: =IF(TDPrimas_!A36="","",TDPrimas_!A36) -> 28 | C38: =IF(TDPrimas_!B36="","",TDPrimas_!B36) -> Seguros Argos | D38: =IF(TDPrimas_!C36="","",TDPrimas_!C36) -> 3759735.104 | E38: =IF(TDPrimas_!D36="","",TDPrimas_!D36) -> 3067143.767 | F38: =IF(TDPrimas_!E36="","",TDPrimas_!E36) -> 0.5637289408 | G38: =IF(TDPrimas_!F36="","",TDPrimas_!F36) -> 0.4842371423 | H38: =IF(TDPrimas_!G36="","",TDPrimas_!G36) -> 692591.337 | I38: =IF(TDPrimas_!H36="","",TDPrimas_!H36) -> 22.58098706 | J38: =IF(TDPrimas_!I36="","",TDPrimas_!I36) -> 100 | K38: =IF(TDPrimas_!J36="","",TDPrimas_!J36) -> 100 | L38: =IF(TDPrimas_!K36="","",TDPrimas_!K36) -> 0.5637289408
B39: =IF(TDPrimas_!A37="","",TDPrimas_!A37) -> 29 | C39: =IF(TDPrimas_!B37="","",TDPrimas_!B37) -> Hir Seguros | D39: =IF(TDPrimas_!C37="","",TDPrimas_!C37) -> 3705981.813 | E39: =IF(TDPrimas_!D37="","",TDPrimas_!D37) -> 1949854.184 | F39: =IF(TDPrimas_!E37="","",TDPrimas_!E37) -> 0.5556692544 | G39: =IF(TDPrimas_!F37="","",TDPrimas_!F37) -> 0.3078407437 | H39: =IF(TDPrimas_!G37="","",TDPrimas_!G37) -> 1756127.629 | I39: =IF(TDPrimas_!H37="","",TDPrimas_!H37) -> 90.0645619 | J39: =IF(TDPrimas_!I37="","",TDPrimas_!I37) -> 100 | K39: =IF(TDPrimas_!J37="","",TDPrimas_!J37) -> 100 | L39: =IF(TDPrimas_!K37="","",TDPrimas_!K37) -> 0.5556692544
B40: =IF(TDPrimas_!A38="","",TDPrimas_!A38) -> 30 | C40: =IF(TDPrimas_!B38="","",TDPrimas_!B38) -> FM Global | D40: =IF(TDPrimas_!C38="","",TDPrimas_!C38) -> 3524079.946 | E40: =IF(TDPrimas_!D38="","",TDPrimas_!D38) -> 3154604.317 | F40: =IF(TDPrimas_!E38="","",TDPrimas_!E38) -> 0.5283951662 | G40: =IF(TDPrimas_!F38="","",TDPrimas_!F38) -> 0.4980453136 | H40: =IF(TDPrimas_!G38="","",TDPrimas_!G38) -> 369475.6293 | I40: =IF(TDPrimas_!H38="","",TDPrimas_!H38) -> 11.71226538 | J40: =IF(TDPrimas_!I38="","",TDPrimas_!I38) -> 100 | K40: =IF(TDPrimas_!J38="","",TDPrimas_!J38) -> 100 | L40: =IF(TDPrimas_!K38="","",TDPrimas_!K38) -> 0.5283951662
B41: =IF(TDPrimas_!A39="","",TDPrimas_!A39) -> 31 | C41: =IF(TDPrimas_!B39="","",TDPrimas_!B39) -> ANA | D41: =IF(TDPrimas_!C39="","",TDPrimas_!C39) -> 3108861.043 | E41: =IF(TDPrimas_!D39="","",TDPrimas_!D39) -> 2846225.986 | F41: =IF(TDPrimas_!E39="","",TDPrimas_!E39) -> 0.4661378778 | G41: =IF(TDPrimas_!F39="","",TDPrimas_!F39) -> 0.4493588963 | H41: =IF(TDPrimas_!G39="","",TDPrimas_!G39) -> 262635.0565 | I41: =IF(TDPrimas_!H39="","",TDPrimas_!H39) -> 9.227484315 | J41: =IF(TDPrimas_!I39="","",TDPrimas_!I39) -> 100 | K41: =IF(TDPrimas_!J39="","",TDPrimas_!J39) -> 100 | L41: =IF(TDPrimas_!K39="","",TDPrimas_!K39) -> 0.4661378778
B42: =IF(TDPrimas_!A40="","",TDPrimas_!A40) -> 32 | C42: =IF(TDPrimas_!B40="","",TDPrimas_!B40) -> Ve Por Más | D42: =IF(TDPrimas_!C40="","",TDPrimas_!C40) -> 3075303.199 | E42: =IF(TDPrimas_!D40="","",TDPrimas_!D40) -> 3138973.143 | F42: =IF(TDPrimas_!E40="","",TDPrimas_!E40) -> 0.461106266 | G42: =IF(TDPrimas_!F40="","",TDPrimas_!F40) -> 0.4955774818 | H42: =IF(TDPrimas_!G40="","",TDPrimas_!G40) -> -63669.94357 | I42: =IF(TDPrimas_!H40="","",TDPrimas_!H40) -> -2.028368536 | J42: =IF(TDPrimas_!I40="","",TDPrimas_!I40) -> 100 | K42: =IF(TDPrimas_!J40="","",TDPrimas_!J40) -> 100 | L42: =IF(TDPrimas_!K40="","",TDPrimas_!K40) -> 0.461106266
B43: =IF(TDPrimas_!A41="","",TDPrimas_!A41) -> 33 | C43: =IF(TDPrimas_!B41="","",TDPrimas_!B41) -> Seguros Azteca Daños | D43: =IF(TDPrimas_!C41="","",TDPrimas_!C41) -> 3041486.847 | E43: =IF(TDPrimas_!D41="","",TDPrimas_!D41) -> 1844295.095 | F43: =IF(TDPrimas_!E41="","",TDPrimas_!E41) -> 0.4560358937 | G43: =IF(TDPrimas_!F41="","",TDPrimas_!F41) -> 0.2911751956 | H43: =IF(TDPrimas_!G41="","",TDPrimas_!G41) -> 1197191.752 | I43: =IF(TDPrimas_!H41="","",TDPrimas_!H41) -> 64.91324273 | J43: =IF(TDPrimas_!I41="","",TDPrimas_!I41) -> 100 | K43: =IF(TDPrimas_!J41="","",TDPrimas_!J41) -> 100 | L43: =IF(TDPrimas_!K41="","",TDPrimas_!K41) -> 0.4560358937
B44: =IF(TDPrimas_!A42="","",TDPrimas_!A42) -> 34 | C44: =IF(TDPrimas_!B42="","",TDPrimas_!B42) -> Cardif Vida | D44: =IF(TDPrimas_!C42="","",TDPrimas_!C42) -> 2952222.396 | E44: =IF(TDPrimas_!D42="","",TDPrimas_!D42) -> 2829394.621 | F44: =IF(TDPrimas_!E42="","",TDPrimas_!E42) -> 0.4426517183 | G44: =IF(TDPrimas_!F42="","",TDPrimas_!F42) -> 0.4467015796 | H44: =IF(TDPrimas_!G42="","",TDPrimas_!G42) -> 122827.7753 | I44: =IF(TDPrimas_!H42="","",TDPrimas_!H42) -> 4.341132707 | J44: =IF(TDPrimas_!I42="","",TDPrimas_!I42) -> 100 | K44: =IF(TDPrimas_!J42="","",TDPrimas_!J42) -> 100 | L44: =IF(TDPrimas_!K42="","",TDPrimas_!K42) -> 0.4426517183
B45: =IF(TDPrimas_!A43="","",TDPrimas_!A43) -> 35 | C45: =IF(TDPrimas_!B43="","",TDPrimas_!B43) -> Plan Seguro | D45: =IF(TDPrimas_!C43="","",TDPrimas_!C43) -> 2935556.73 | E45: =IF(TDPrimas_!D43="","",TDPrimas_!D43) -> 2596168.489 | F45: =IF(TDPrimas_!E43="","",TDPrimas_!E43) -> 0.4401528939 | G45: =IF(TDPrimas_!F43="","",TDPrimas_!F43) -> 0.4098801053 | H45: =IF(TDPrimas_!G43="","",TDPrimas_!G43) -> 339388.2412 | I45: =IF(TDPrimas_!H43="","",TDPrimas_!H43) -> 13.07265852 | J45: =IF(TDPrimas_!I43="","",TDPrimas_!I43) -> 100 | K45: =IF(TDPrimas_!J43="","",TDPrimas_!J43) -> 100 | L45: =IF(TDPrimas_!K43="","",TDPrimas_!K43) -> 0.4401528939
B46: =IF(TDPrimas_!A44="","",TDPrimas_!A44) -> 36 | C46: =IF(TDPrimas_!B44="","",TDPrimas_!B44) -> General de Seguros | D46: =IF(TDPrimas_!C44="","",TDPrimas_!C44) -> 2674276.15 | E46: =IF(TDPrimas_!D44="","",TDPrimas_!D44) -> 2516090.615 | F46: =IF(TDPrimas_!E44="","",TDPrimas_!E44) -> 0.4009768826 | G46: =IF(TDPrimas_!F44="","",TDPrimas_!F44) -> 0.3972375023 | H46: =IF(TDPrimas_!G44="","",TDPrimas_!G44) -> 158185.5351 | I46: =IF(TDPrimas_!H44="","",TDPrimas_!H44) -> 6.286957003 | J46: =IF(TDPrimas_!I44="","",TDPrimas_!I44) -> 100 | K46: =IF(TDPrimas_!J44="","",TDPrimas_!J44) -> 100 | L46: =IF(TDPrimas_!K44="","",TDPrimas_!K44) -> 0.4009768826
B47: =IF(TDPrimas_!A45="","",TDPrimas_!A45) -> 37 | C47: =IF(TDPrimas_!B45="","",TDPrimas_!B45) -> Patrimonial Vida | D47: =IF(TDPrimas_!C45="","",TDPrimas_!C45) -> 2638295.487 | E47: =IF(TDPrimas_!D45="","",TDPrimas_!D45) -> 1454885.501 | F47: =IF(TDPrimas_!E45="","",TDPrimas_!E45) -> 0.3955819969 | G47: =IF(TDPrimas_!F45="","",TDPrimas_!F45) -> 0.2296956553 | H47: =IF(TDPrimas_!G45="","",TDPrimas_!G45) -> 1183409.986 | I47: =IF(TDPrimas_!H45="","",TDPrimas_!H45) -> 81.34042062 | J47: =IF(TDPrimas_!I45="","",TDPrimas_!I45) -> 100 | K47: =IF(TDPrimas_!J45="","",TDPrimas_!J45) -> 100 | L47: =IF(TDPrimas_!K45="","",TDPrimas_!K45) -> 0.3955819969
B48: =IF(TDPrimas_!A46="","",TDPrimas_!A46) -> 38 | C48: =IF(TDPrimas_!B46="","",TDPrimas_!B46) -> El Potosí | D48: =IF(TDPrimas_!C46="","",TDPrimas_!C46) -> 2162007.806 | E48: =IF(TDPrimas_!D46="","",TDPrimas_!D46) -> 1937993.953 | F48: =IF(TDPrimas_!E46="","",TDPrimas_!E46) -> 0.3241681492 | G48: =IF(TDPrimas_!F46="","",TDPrimas_!F46) -> 0.3059682639 | H48: =IF(TDPrimas_!G46="","",TDPrimas_!G46) -> 224013.8531 | I48: =IF(TDPrimas_!H46="","",TDPrimas_!H46) -> 11.55905841 | J48: =IF(TDPrimas_!I46="","",TDPrimas_!I46) -> 100 | K48: =IF(TDPrimas_!J46="","",TDPrimas_!J46) -> 100 | L48: =IF(TDPrimas_!K46="","",TDPrimas_!K46) -> 0.3241681492
B49: =IF(TDPrimas_!A47="","",TDPrimas_!A47) -> 39 | C49: =IF(TDPrimas_!B47="","",TDPrimas_!B47) -> Cardif Seguros Generales | D49: =IF(TDPrimas_!C47="","",TDPrimas_!C47) -> 2044435.08 | E49: =IF(TDPrimas_!D47="","",TDPrimas_!D47) -> 1560679.237 | F49: =IF(TDPrimas_!E47="","",TDPrimas_!E47) -> 0.3065394742 | G49: =IF(TDPrimas_!F47="","",TDPrimas_!F47) -> 0.2463982491 | H49: =IF(TDPrimas_!G47="","",TDPrimas_!G47) -> 483755.8422 | I49: =IF(TDPrimas_!H47="","",TDPrimas_!H47) -> 30.99649374 | J49: =IF(TDPrimas_!I47="","",TDPrimas_!I47) -> 100 | K49: =IF(TDPrimas_!J47="","",TDPrimas_!J47) -> 100 | L49: =IF(TDPrimas_!K47="","",TDPrimas_!K47) -> 0.3065394742
B50: =IF(TDPrimas_!A48="","",TDPrimas_!A48) -> 40 | C50: =IF(TDPrimas_!B48="","",TDPrimas_!B48) -> Insignia Life | D50: =IF(TDPrimas_!C48="","",TDPrimas_!C48) -> 1967652.949 | E50: =IF(TDPrimas_!D48="","",TDPrimas_!D48) -> 1738938.033 | F50: =IF(TDPrimas_!E48="","",TDPrimas_!E48) -> 0.2950268787 | G50: =IF(TDPrimas_!F48="","",TDPrimas_!F48) -> 0.2745415434 | H50: =IF(TDPrimas_!G48="","",TDPrimas_!G48) -> 228714.9162 | I50: =IF(TDPrimas_!H48="","",TDPrimas_!H48) -> 13.15256277 | J50: =IF(TDPrimas_!I48="","",TDPrimas_!I48) -> 100 | K50: =IF(TDPrimas_!J48="","",TDPrimas_!J48) -> 100 | L50: =IF(TDPrimas_!K48="","",TDPrimas_!K48) -> 0.2950268787
B51: =IF(TDPrimas_!A49="","",TDPrimas_!A49) -> 41 | C51: =IF(TDPrimas_!B49="","",TDPrimas_!B49) -> Prudential | D51: =IF(TDPrimas_!C49="","",TDPrimas_!C49) -> 1613118.019 | E51: =IF(TDPrimas_!D49="","",TDPrimas_!D49) -> 1176956.401 | F51: =IF(TDPrimas_!E49="","",TDPrimas_!E49) -> 0.2418684527 | G51: =IF(TDPrimas_!F49="","",TDPrimas_!F49) -> 0.1858165275 | H51: =IF(TDPrimas_!G49="","",TDPrimas_!G49) -> 436161.6183 | I51: =IF(TDPrimas_!H49="","",TDPrimas_!H49) -> 37.05843462 | J51: =IF(TDPrimas_!I49="","",TDPrimas_!I49) -> 100 | K51: =IF(TDPrimas_!J49="","",TDPrimas_!J49) -> 100 | L51: =IF(TDPrimas_!K49="","",TDPrimas_!K49) -> 0.2418684527
B52: =IF(TDPrimas_!A50="","",TDPrimas_!A50) -> 42 | C52: =IF(TDPrimas_!B50="","",TDPrimas_!B50) -> El Águila | D52: =IF(TDPrimas_!C50="","",TDPrimas_!C50) -> 1427020.148 | E52: =IF(TDPrimas_!D50="","",TDPrimas_!D50) -> 1250683.778 | F52: =IF(TDPrimas_!E50="","",TDPrimas_!E50) -> 0.2139652221 | G52: =IF(TDPrimas_!F50="","",TDPrimas_!F50) -> 0.1974565213 | H52: =IF(TDPrimas_!G50="","",TDPrimas_!G50) -> 176336.3703 | I52: =IF(TDPrimas_!H50="","",TDPrimas_!H50) -> 14.09919705 | J52: =IF(TDPrimas_!I50="","",TDPrimas_!I50) -> 100 | K52: =IF(TDPrimas_!J50="","",TDPrimas_!J50) -> 100 | L52: =IF(TDPrimas_!K50="","",TDPrimas_!K50) -> 0.2139652221
B53: =IF(TDPrimas_!A51="","",TDPrimas_!A51) -> 43 | C53: =IF(TDPrimas_!B51="","",TDPrimas_!B51) -> Tokio Marine | D53: =IF(TDPrimas_!C51="","",TDPrimas_!C51) -> 1393936.176 | E53: =IF(TDPrimas_!D51="","",TDPrimas_!D51) -> 1374423.954 | F53: =IF(TDPrimas_!E51="","",TDPrimas_!E51) -> 0.2090046618 | G53: =IF(TDPrimas_!F51="","",TDPrimas_!F51) -> 0.2169924785 | H53: =IF(TDPrimas_!G51="","",TDPrimas_!G51) -> 19512.22156 | I53: =IF(TDPrimas_!H51="","",TDPrimas_!H51) -> 1.419665417 | J53: =IF(TDPrimas_!I51="","",TDPrimas_!I51) -> 100 | K53: =IF(TDPrimas_!J51="","",TDPrimas_!J51) -> 100 | L53: =IF(TDPrimas_!K51="","",TDPrimas_!K51) -> 0.2090046618
B54: =IF(TDPrimas_!A52="","",TDPrimas_!A52) -> 44 | C54: =IF(TDPrimas_!B52="","",TDPrimas_!B52) -> La Latinoamericana | D54: =IF(TDPrimas_!C52="","",TDPrimas_!C52) -> 1344599.487 | E54: =IF(TDPrimas_!D52="","",TDPrimas_!D52) -> 1322115.807 | F54: =IF(TDPrimas_!E52="","",TDPrimas_!E52) -> 0.201607194 | G54: =IF(TDPrimas_!F52="","",TDPrimas_!F52) -> 0.2087341282 | H54: =IF(TDPrimas_!G52="","",TDPrimas_!G52) -> 22483.67923 | I54: =IF(TDPrimas_!H52="","",TDPrimas_!H52) -> 1.700583194 | J54: =IF(TDPrimas_!I52="","",TDPrimas_!I52) -> 100 | K54: =IF(TDPrimas_!J52="","",TDPrimas_!J52) -> 100 | L54: =IF(TDPrimas_!K52="","",TDPrimas_!K52) -> 0.201607194
B55: =IF(TDPrimas_!A53="","",TDPrimas_!A53) -> 45 | C55: =IF(TDPrimas_!B53="","",TDPrimas_!B53) -> HDI Global Seguros | D55: =IF(TDPrimas_!C53="","",TDPrimas_!C53) -> 1126819.261 | E55: =IF(TDPrimas_!D53="","",TDPrimas_!D53) -> 1043388.72 | F55: =IF(TDPrimas_!E53="","",TDPrimas_!E53) -> 0.1689535594 | G55: =IF(TDPrimas_!F53="","",TDPrimas_!F53) -> 0.1647290151 | H55: =IF(TDPrimas_!G53="","",TDPrimas_!G53) -> 83430.5406 | I55: =IF(TDPrimas_!H53="","",TDPrimas_!H53) -> 7.996112954 | J55: =IF(TDPrimas_!I53="","",TDPrimas_!I53) -> 100 | K55: =IF(TDPrimas_!J53="","",TDPrimas_!J53) -> 100 | L55: =IF(TDPrimas_!K53="","",TDPrimas_!K53) -> 0.1689535594
B56: =IF(TDPrimas_!A54="","",TDPrimas_!A54) -> 46 | C56: =IF(TDPrimas_!B54="","",TDPrimas_!B54) -> Assurant Vida | D56: =IF(TDPrimas_!C54="","",TDPrimas_!C54) -> 1073592.106 | E56: =IF(TDPrimas_!D54="","",TDPrimas_!D54) -> 1024603.929 | F56: =IF(TDPrimas_!E54="","",TDPrimas_!E54) -> 0.1609727611 | G56: =IF(TDPrimas_!F54="","",TDPrimas_!F54) -> 0.1617632938 | H56: =IF(TDPrimas_!G54="","",TDPrimas_!G54) -> 48988.17727 | I56: =IF(TDPrimas_!H54="","",TDPrimas_!H54) -> 4.781181869 | J56: =IF(TDPrimas_!I54="","",TDPrimas_!I54) -> 100 | K56: =IF(TDPrimas_!J54="","",TDPrimas_!J54) -> 100 | L56: =IF(TDPrimas_!K54="","",TDPrimas_!K54) -> 0.1609727611
B57: =IF(TDPrimas_!A55="","",TDPrimas_!A55) -> 47 | C57: =IF(TDPrimas_!B55="","",TDPrimas_!B55) -> General de Salud | D57: =IF(TDPrimas_!C55="","",TDPrimas_!C55) -> 1053737.074 | E57: =IF(TDPrimas_!D55="","",TDPrimas_!D55) -> 513902.8165 | F57: =IF(TDPrimas_!E55="","",TDPrimas_!E55) -> 0.1579957279 | G57: =IF(TDPrimas_!F55="","",TDPrimas_!F55) -> 0.08113438763 | H57: =IF(TDPrimas_!G55="","",TDPrimas_!G55) -> 539834.2573 | I57: =IF(TDPrimas_!H55="","",TDPrimas_!H55) -> 105.0459814 | J57: =IF(TDPrimas_!I55="","",TDPrimas_!I55) -> 100 | K57: =IF(TDPrimas_!J55="","",TDPrimas_!J55) -> 100 | L57: =IF(TDPrimas_!K55="","",TDPrimas_!K55) -> 0.1579957279
B58: =IF(TDPrimas_!A56="","",TDPrimas_!A56) -> 48 | C58: =IF(TDPrimas_!B56="","",TDPrimas_!B56) -> Primero Seguros | D58: =IF(TDPrimas_!C56="","",TDPrimas_!C56) -> 988246.9214 | E58: =IF(TDPrimas_!D56="","",TDPrimas_!D56) -> 752773.3141 | F58: =IF(TDPrimas_!E56="","",TDPrimas_!E56) -> 0.1481762344 | G58: =IF(TDPrimas_!F56="","",TDPrimas_!F56) -> 0.118846988 | H58: =IF(TDPrimas_!G56="","",TDPrimas_!G56) -> 235473.6074 | I58: =IF(TDPrimas_!H56="","",TDPrimas_!H56) -> 31.28081229 | J58: =IF(TDPrimas_!I56="","",TDPrimas_!I56) -> 100 | K58: =IF(TDPrimas_!J56="","",TDPrimas_!J56) -> 100 | L58: =IF(TDPrimas_!K56="","",TDPrimas_!K56) -> 0.1481762344
B59: =IF(TDPrimas_!A57="","",TDPrimas_!A57) -> 49 | C59: =IF(TDPrimas_!B57="","",TDPrimas_!B57) -> BBVA Bancomer Salud | D59: =IF(TDPrimas_!C57="","",TDPrimas_!C57) -> 972061.2441 | E59: =IF(TDPrimas_!D57="","",TDPrimas_!D57) -> 1191065.811 | F59: =IF(TDPrimas_!E57="","",TDPrimas_!E57) -> 0.1457493787 | G59: =IF(TDPrimas_!F57="","",TDPrimas_!F57) -> 0.1880441051 | H59: =IF(TDPrimas_!G57="","",TDPrimas_!G57) -> -219004.5672 | I59: =IF(TDPrimas_!H57="","",TDPrimas_!H57) -> -18.38727677 | J59: =IF(TDPrimas_!I57="","",TDPrimas_!I57) -> 100 | K59: =IF(TDPrimas_!J57="","",TDPrimas_!J57) -> 100 | L59: =IF(TDPrimas_!K57="","",TDPrimas_!K57) -> 0.1457493787
B60: =IF(TDPrimas_!A58="","",TDPrimas_!A58) -> 50 | C60: =IF(TDPrimas_!B58="","",TDPrimas_!B58) -> Pan-American México | D60: =IF(TDPrimas_!C58="","",TDPrimas_!C58) -> 953705.3999 | E60: =IF(TDPrimas_!D58="","",TDPrimas_!D58) -> 769483.4333 | F60: =IF(TDPrimas_!E58="","",TDPrimas_!E58) -> 0.1429971315 | G60: =IF(TDPrimas_!F58="","",TDPrimas_!F58) -> 0.1214851624 | H60: =IF(TDPrimas_!G58="","",TDPrimas_!G58) -> 184221.9667 | I60: =IF(TDPrimas_!H58="","",TDPrimas_!H58) -> 23.94099194 | J60: =IF(TDPrimas_!I58="","",TDPrimas_!I58) -> 100 | K60: =IF(TDPrimas_!J58="","",TDPrimas_!J58) -> 100 | L60: =IF(TDPrimas_!K58="","",TDPrimas_!K58) -> 0.1429971315
B61: =IF(TDPrimas_!A59="","",TDPrimas_!A59) -> 51 | C61: =IF(TDPrimas_!B59="","",TDPrimas_!B59) -> Atradius | D61: =IF(TDPrimas_!C59="","",TDPrimas_!C59) -> 808718.9571 | E61: =IF(TDPrimas_!D59="","",TDPrimas_!D59) -> 621840.9362 | F61: =IF(TDPrimas_!E59="","",TDPrimas_!E59) -> 0.1212580856 | G61: =IF(TDPrimas_!F59="","",TDPrimas_!F59) -> 0.09817553424 | H61: =IF(TDPrimas_!G59="","",TDPrimas_!G59) -> 186878.0209 | I61: =IF(TDPrimas_!H59="","",TDPrimas_!H59) -> 30.05238318 | J61: =IF(TDPrimas_!I59="","",TDPrimas_!I59) -> 100 | K61: =IF(TDPrimas_!J59="","",TDPrimas_!J59) -> 100 | L61: =IF(TDPrimas_!K59="","",TDPrimas_!K59) -> 0.1212580856
B62: =IF(TDPrimas_!A60="","",TDPrimas_!A60) -> 52 | C62: =IF(TDPrimas_!B60="","",TDPrimas_!B60) -> Sompo Japan | D62: =IF(TDPrimas_!C60="","",TDPrimas_!C60) -> 700245.3844 | E62: =IF(TDPrimas_!D60="","",TDPrimas_!D60) -> 605863.712 | F62: =IF(TDPrimas_!E60="","",TDPrimas_!E60) -> 0.1049937237 | G62: =IF(TDPrimas_!F60="","",TDPrimas_!F60) -> 0.09565306839 | H62: =IF(TDPrimas_!G60="","",TDPrimas_!G60) -> 94381.67237 | I62: =IF(TDPrimas_!H60="","",TDPrimas_!H60) -> 15.57803686 | J62: =IF(TDPrimas_!I60="","",TDPrimas_!I60) -> 100 | K62: =IF(TDPrimas_!J60="","",TDPrimas_!J60) -> 100 | L62: =IF(TDPrimas_!K60="","",TDPrimas_!K60) -> 0.1049937237
B63: =IF(TDPrimas_!A61="","",TDPrimas_!A61) -> 53 | C63: =IF(TDPrimas_!B61="","",TDPrimas_!B61) -> Solunion Crédito | D63: =IF(TDPrimas_!C61="","",TDPrimas_!C61) -> 675000.4388 | E63: =IF(TDPrimas_!D61="","",TDPrimas_!D61) -> 539056.7947 | F63: =IF(TDPrimas_!E61="","",TDPrimas_!E61) -> 0.1012085351 | G63: =IF(TDPrimas_!F61="","",TDPrimas_!F61) -> 0.08510566887 | H63: =IF(TDPrimas_!G61="","",TDPrimas_!G61) -> 135943.644 | I63: =IF(TDPrimas_!H61="","",TDPrimas_!H61) -> 25.21879797 | J63: =IF(TDPrimas_!I61="","",TDPrimas_!I61) -> 100 | K63: =IF(TDPrimas_!J61="","",TDPrimas_!J61) -> 100 | L63: =IF(TDPrimas_!K61="","",TDPrimas_!K61) -> 0.1012085351
B64: =IF(TDPrimas_!A62="","",TDPrimas_!A62) -> 54 | C64: =IF(TDPrimas_!B62="","",TDPrimas_!B62) -> Swiss Re Corporate Solutions | D64: =IF(TDPrimas_!C62="","",TDPrimas_!C62) -> 672719.1746 | E64: =IF(TDPrimas_!D62="","",TDPrimas_!D62) -> 317503.7349 | F64: =IF(TDPrimas_!E62="","",TDPrimas_!E62) -> 0.1008664859 | G64: =IF(TDPrimas_!F62="","",TDPrimas_!F62) -> 0.05012712573 | H64: =IF(TDPrimas_!G62="","",TDPrimas_!G62) -> 355215.4397 | I64: =IF(TDPrimas_!H62="","",TDPrimas_!H62) -> 111.8775626 | J64: =IF(TDPrimas_!I62="","",TDPrimas_!I62) -> 100 | K64: =IF(TDPrimas_!J62="","",TDPrimas_!J62) -> 100 | L64: =IF(TDPrimas_!K62="","",TDPrimas_!K62) -> 0.1008664859
B65: =IF(TDPrimas_!A63="","",TDPrimas_!A63) -> 55 | C65: =IF(TDPrimas_!B63="","",TDPrimas_!B63) -> Berkley Seguros | D65: =IF(TDPrimas_!C63="","",TDPrimas_!C63) -> 636056.9386 | E65: =IF(TDPrimas_!D63="","",TDPrimas_!D63) -> 465002.4395 | F65: =IF(TDPrimas_!E63="","",TDPrimas_!E63) -> 0.09536940618 | G65: =IF(TDPrimas_!F63="","",TDPrimas_!F63) -> 0.07341405214 | H65: =IF(TDPrimas_!G63="","",TDPrimas_!G63) -> 171054.4992 | I65: =IF(TDPrimas_!H63="","",TDPrimas_!H63) -> 36.78572081 | J65: =IF(TDPrimas_!I63="","",TDPrimas_!I63) -> 100 | K65: =IF(TDPrimas_!J63="","",TDPrimas_!J63) -> 100 | L65: =IF(TDPrimas_!K63="","",TDPrimas_!K63) -> 0.09536940618
B66: =IF(TDPrimas_!A64="","",TDPrimas_!A64) -> 56 | C66: =IF(TDPrimas_!B64="","",TDPrimas_!B64) -> PREVEM Seguros | D66: =IF(TDPrimas_!C64="","",TDPrimas_!C64) -> 580810.9912 | E66: =IF(TDPrimas_!D64="","",TDPrimas_!D64) -> 495857.3322 | F66: =IF(TDPrimas_!E64="","",TDPrimas_!E64) -> 0.08708591318 | G66: =IF(TDPrimas_!F64="","",TDPrimas_!F64) -> 0.07828538724 | H66: =IF(TDPrimas_!G64="","",TDPrimas_!G64) -> 84953.659 | I66: =IF(TDPrimas_!H64="","",TDPrimas_!H64) -> 17.13268182 | J66: =IF(TDPrimas_!I64="","",TDPrimas_!I64) -> 100 | K66: =IF(TDPrimas_!J64="","",TDPrimas_!J64) -> 100 | L66: =IF(TDPrimas_!K64="","",TDPrimas_!K64) -> 0.08708591318
B67: =IF(TDPrimas_!A65="","",TDPrimas_!A65) -> 57 | C67: =IF(TDPrimas_!B65="","",TDPrimas_!B65) -> Patrimonial Inbursa | D67: =IF(TDPrimas_!C65="","",TDPrimas_!C65) -> 575425.8227 | E67: =IF(TDPrimas_!D65="","",TDPrimas_!D65) -> 633205.9417 | F67: =IF(TDPrimas_!E65="","",TDPrimas_!E65) -> 0.08627846924 | G67: =IF(TDPrimas_!F65="","",TDPrimas_!F65) -> 0.09996982828 | H67: =IF(TDPrimas_!G65="","",TDPrimas_!G65) -> -57780.11898 | I67: =IF(TDPrimas_!H65="","",TDPrimas_!H65) -> -9.125012129 | J67: =IF(TDPrimas_!I65="","",TDPrimas_!I65) -> 100 | K67: =IF(TDPrimas_!J65="","",TDPrimas_!J65) -> 100 | L67: =IF(TDPrimas_!K65="","",TDPrimas_!K65) -> 0.08627846924
B68: =IF(TDPrimas_!A66="","",TDPrimas_!A66) -> 58 | C68: =IF(TDPrimas_!B66="","",TDPrimas_!B66) -> AXA Salud | D68: =IF(TDPrimas_!C66="","",TDPrimas_!C66) -> 573796.8175 | E68: =IF(TDPrimas_!D66="","",TDPrimas_!D66) -> 163768.7374 | F68: =IF(TDPrimas_!E66="","",TDPrimas_!E66) -> 0.0860342187 | G68: =IF(TDPrimas_!F66="","",TDPrimas_!F66) -> 0.02585562055 | H68: =IF(TDPrimas_!G66="","",TDPrimas_!G66) -> 410028.0801 | I68: =IF(TDPrimas_!H66="","",TDPrimas_!H66) -> 250.3701784 | J68: =IF(TDPrimas_!I66="","",TDPrimas_!I66) -> 100 | K68: =IF(TDPrimas_!J66="","",TDPrimas_!J66) -> 100 | L68: =IF(TDPrimas_!K66="","",TDPrimas_!K66) -> 0.0860342187
B69: =IF(TDPrimas_!A67="","",TDPrimas_!A67) -> 59 | C69: =IF(TDPrimas_!B67="","",TDPrimas_!B67) -> Dentegra | D69: =IF(TDPrimas_!C67="","",TDPrimas_!C67) -> 506069.7808 | E69: =IF(TDPrimas_!D67="","",TDPrimas_!D67) -> 449909.7433 | F69: =IF(TDPrimas_!E67="","",TDPrimas_!E67) -> 0.07587933022 | G69: =IF(TDPrimas_!F67="","",TDPrimas_!F67) -> 0.07103123458 | H69: =IF(TDPrimas_!G67="","",TDPrimas_!G67) -> 56160.03752 | I69: =IF(TDPrimas_!H67="","",TDPrimas_!H67) -> 12.48251196 | J69: =IF(TDPrimas_!I67="","",TDPrimas_!I67) -> 100 | K69: =IF(TDPrimas_!J67="","",TDPrimas_!J67) -> 100 | L69: =IF(TDPrimas_!K67="","",TDPrimas_!K67) -> 0.07587933022
B70: =IF(TDPrimas_!A68="","",TDPrimas_!A68) -> 60 | C70: =IF(TDPrimas_!B68="","",TDPrimas_!B68) -> Skandia Life | D70: =IF(TDPrimas_!C68="","",TDPrimas_!C68) -> 447144.7953 | E70: =IF(TDPrimas_!D68="","",TDPrimas_!D68) -> 426948.5898 | F70: =IF(TDPrimas_!E68="","",TDPrimas_!E68) -> 0.06704420787 | G70: =IF(TDPrimas_!F68="","",TDPrimas_!F68) -> 0.06740615398 | H70: =IF(TDPrimas_!G68="","",TDPrimas_!G68) -> 20196.20551 | I70: =IF(TDPrimas_!H68="","",TDPrimas_!H68) -> 4.730360046 | J70: =IF(TDPrimas_!I68="","",TDPrimas_!I68) -> 100 | K70: =IF(TDPrimas_!J68="","",TDPrimas_!J68) -> 100 | L70: =IF(TDPrimas_!K68="","",TDPrimas_!K68) -> 0.06704420787
B71: =IF(TDPrimas_!A69="","",TDPrimas_!A69) -> 61 | C71: =IF(TDPrimas_!B69="","",TDPrimas_!B69) -> Coface | D71: =IF(TDPrimas_!C69="","",TDPrimas_!C69) -> 385583.536 | E71: =IF(TDPrimas_!D69="","",TDPrimas_!D69) -> 330415.1544 | F71: =IF(TDPrimas_!E69="","",TDPrimas_!E69) -> 0.05781380664 | G71: =IF(TDPrimas_!F69="","",TDPrimas_!F69) -> 0.05216556584 | H71: =IF(TDPrimas_!G69="","",TDPrimas_!G69) -> 55168.38159 | I71: =IF(TDPrimas_!H69="","",TDPrimas_!H69) -> 16.69668623 | J71: =IF(TDPrimas_!I69="","",TDPrimas_!I69) -> 100 | K71: =IF(TDPrimas_!J69="","",TDPrimas_!J69) -> 100 | L71: =IF(TDPrimas_!K69="","",TDPrimas_!K69) -> 0.05781380664
B72: =IF(TDPrimas_!A70="","",TDPrimas_!A70) -> 62 | C72: =IF(TDPrimas_!B70="","",TDPrimas_!B70) -> SHF Cred Vivienda | D72: =IF(TDPrimas_!C70="","",TDPrimas_!C70) -> 378646.8667 | E72: =IF(TDPrimas_!D70="","",TDPrimas_!D70) -> 419514.9486 | F72: =IF(TDPrimas_!E70="","",TDPrimas_!E70) -> 0.05677373304 | G72: =IF(TDPrimas_!F70="","",TDPrimas_!F70) -> 0.06623253922 | H72: =IF(TDPrimas_!G70="","",TDPrimas_!G70) -> -40868.0819 | I72: =IF(TDPrimas_!H70="","",TDPrimas_!H70) -> -9.741746281 | J72: =IF(TDPrimas_!I70="","",TDPrimas_!I70) -> 100 | K72: =IF(TDPrimas_!J70="","",TDPrimas_!J70) -> 100 | L72: =IF(TDPrimas_!K70="","",TDPrimas_!K70) -> 0.05677373304
B73: =IF(TDPrimas_!A71="","",TDPrimas_!A71) -> 63 | C73: =IF(TDPrimas_!B71="","",TDPrimas_!B71) -> MediAccess | D73: =IF(TDPrimas_!C71="","",TDPrimas_!C71) -> 287353.0011 | E73: =IF(TDPrimas_!D71="","",TDPrimas_!D71) -> 222274.3503 | F73: =IF(TDPrimas_!E71="","",TDPrimas_!E71) -> 0.04308527022 | G73: =IF(TDPrimas_!F71="","",TDPrimas_!F71) -> 0.03509241964 | H73: =IF(TDPrimas_!G71="","",TDPrimas_!G71) -> 65078.65079 | I73: =IF(TDPrimas_!H71="","",TDPrimas_!H71) -> 29.27852481 | J73: =IF(TDPrimas_!I71="","",TDPrimas_!I71) -> 100 | K73: =IF(TDPrimas_!J71="","",TDPrimas_!J71) -> 100 | L73: =IF(TDPrimas_!K71="","",TDPrimas_!K71) -> 0.04308527022
B74: =IF(TDPrimas_!A72="","",TDPrimas_!A72) -> 64 | C74: =IF(TDPrimas_!B72="","",TDPrimas_!B72) -> Patrimonial Daños | D74: =IF(TDPrimas_!C72="","",TDPrimas_!C72) -> 284972.9415 | E74: =IF(TDPrimas_!D72="","",TDPrimas_!D72) -> 172814.1554 | F74: =IF(TDPrimas_!E72="","",TDPrimas_!E72) -> 0.04272840773 | G74: =IF(TDPrimas_!F72="","",TDPrimas_!F72) -> 0.02728370077 | H74: =IF(TDPrimas_!G72="","",TDPrimas_!G72) -> 112158.7861 | I74: =IF(TDPrimas_!H72="","",TDPrimas_!H72) -> 64.90138837 | J74: =IF(TDPrimas_!I72="","",TDPrimas_!I72) -> 100 | K74: =IF(TDPrimas_!J72="","",TDPrimas_!J72) -> 100 | L74: =IF(TDPrimas_!K72="","",TDPrimas_!K72) -> 0.04272840773
B75: =IF(TDPrimas_!A73="","",TDPrimas_!A73) -> 65 | C75: =IF(TDPrimas_!B73="","",TDPrimas_!B73) -> Assurant Daños | D75: =IF(TDPrimas_!C73="","",TDPrimas_!C73) -> 195056.2367 | E75: =IF(TDPrimas_!D73="","",TDPrimas_!D73) -> 175769.7389 | F75: =IF(TDPrimas_!E73="","",TDPrimas_!E73) -> 0.02924643429 | G75: =IF(TDPrimas_!F73="","",TDPrimas_!F73) -> 0.0277503249 | H75: =IF(TDPrimas_!G73="","",TDPrimas_!G73) -> 19286.49779 | I75: =IF(TDPrimas_!H73="","",TDPrimas_!H73) -> 10.97259284 | J75: =IF(TDPrimas_!I73="","",TDPrimas_!I73) -> 100 | K75: =IF(TDPrimas_!J73="","",TDPrimas_!J73) -> 100 | L75: =IF(TDPrimas_!K73="","",TDPrimas_!K73) -> 0.02924643429
B76: =IF(TDPrimas_!A74="","",TDPrimas_!A74) -> 66 | C76: =IF(TDPrimas_!B74="","",TDPrimas_!B74) -> Centauro | D76: =IF(TDPrimas_!C74="","",TDPrimas_!C74) -> 183069.316 | E76: =IF(TDPrimas_!D74="","",TDPrimas_!D74) -> 161859.45 | F76: =IF(TDPrimas_!E74="","",TDPrimas_!E74) -> 0.02744913371 | G76: =IF(TDPrimas_!F74="","",TDPrimas_!F74) -> 0.02555418444 | H76: =IF(TDPrimas_!G74="","",TDPrimas_!G74) -> 21209.866 | I76: =IF(TDPrimas_!H74="","",TDPrimas_!H74) -> 13.1038787 | J76: =IF(TDPrimas_!I74="","",TDPrimas_!I74) -> 100 | K76: =IF(TDPrimas_!J74="","",TDPrimas_!J74) -> 100 | L76: =IF(TDPrimas_!K74="","",TDPrimas_!K74) -> 0.02744913371
B77: =IF(TDPrimas_!A75="","",TDPrimas_!A75) -> 67 | C77: =IF(TDPrimas_!B75="","",TDPrimas_!B75) -> Tláloc Seguros | D77: =IF(TDPrimas_!C75="","",TDPrimas_!C75) -> 114710.4536 | E77: =IF(TDPrimas_!D75="","",TDPrimas_!D75) -> 122691.3088 | F77: =IF(TDPrimas_!E75="","",TDPrimas_!E75) -> 0.01719951027 | G77: =IF(TDPrimas_!F75="","",TDPrimas_!F75) -> 0.01937036321 | H77: =IF(TDPrimas_!G75="","",TDPrimas_!G75) -> -7980.85519 | I77: =IF(TDPrimas_!H75="","",TDPrimas_!H75) -> -6.504825212 | J77: =IF(TDPrimas_!I75="","",TDPrimas_!I75) -> 100 | K77: =IF(TDPrimas_!J75="","",TDPrimas_!J75) -> 100 | L77: =IF(TDPrimas_!K75="","",TDPrimas_!K75) -> 0.01719951027
B78: =IF(TDPrimas_!A76="","",TDPrimas_!A76) -> 68 | C78: =IF(TDPrimas_!B76="","",TDPrimas_!B76) -> Virginia Surety | D78: =IF(TDPrimas_!C76="","",TDPrimas_!C76) -> 108805.0165 | E78: =IF(TDPrimas_!D76="","",TDPrimas_!D76) -> 71210.53291 | F78: =IF(TDPrimas_!E76="","",TDPrimas_!E76) -> 0.01631405804 | G78: =IF(TDPrimas_!F76="","",TDPrimas_!F76) -> 0.01124263731 | H78: =IF(TDPrimas_!G76="","",TDPrimas_!G76) -> 37594.48357 | I78: =IF(TDPrimas_!H76="","",TDPrimas_!H76) -> 52.79343102 | J78: =IF(TDPrimas_!I76="","",TDPrimas_!I76) -> 100 | K78: =IF(TDPrimas_!J76="","",TDPrimas_!J76) -> 100 | L78: =IF(TDPrimas_!K76="","",TDPrimas_!K76) -> 0.01631405804
B79: =IF(TDPrimas_!A77="","",TDPrimas_!A77) -> 69 | C79: =IF(TDPrimas_!B77="","",TDPrimas_!B77) -> Odontoprev | D79: =IF(TDPrimas_!C77="","",TDPrimas_!C77) -> 81304.39794 | E79: =IF(TDPrimas_!D77="","",TDPrimas_!D77) -> 76993.93244 | F79: =IF(TDPrimas_!E77="","",TDPrimas_!E77) -> 0.01219065728 | G79: =IF(TDPrimas_!F77="","",TDPrimas_!F77) -> 0.0121557138 | H79: =IF(TDPrimas_!G77="","",TDPrimas_!G77) -> 4310.4655 | I79: =IF(TDPrimas_!H77="","",TDPrimas_!H77) -> 5.598448298 | J79: =IF(TDPrimas_!I77="","",TDPrimas_!I77) -> 100 | K79: =IF(TDPrimas_!J77="","",TDPrimas_!J77) -> 100 | L79: =IF(TDPrimas_!K77="","",TDPrimas_!K77) -> 0.01219065728
B80: =IF(TDPrimas_!A78="","",TDPrimas_!A78) -> 70 | C80: =IF(TDPrimas_!B78="","",TDPrimas_!B78) -> Genworth Seg. de Crédito | D80: =IF(TDPrimas_!C78="","",TDPrimas_!C78) -> 70363.62443 | E80: =IF(TDPrimas_!D78="","",TDPrimas_!D78) -> 65916.11533 | F80: =IF(TDPrimas_!E78="","",TDPrimas_!E78) -> 0.01055021441 | G80: =IF(TDPrimas_!F78="","",TDPrimas_!F78) -> 0.01040676073 | H80: =IF(TDPrimas_!G78="","",TDPrimas_!G78) -> 4447.5091 | I80: =IF(TDPrimas_!H78="","",TDPrimas_!H78) -> 6.747225739 | J80: =IF(TDPrimas_!I78="","",TDPrimas_!I78) -> 100 | K80: =IF(TDPrimas_!J78="","",TDPrimas_!J78) -> 100 | L80: =IF(TDPrimas_!K78="","",TDPrimas_!K78) -> 0.01055021441
B81: =IF(TDPrimas_!A79="","",TDPrimas_!A79) -> 71 | C81: =IF(TDPrimas_!B79="","",TDPrimas_!B79) -> Crabi | D81: =IF(TDPrimas_!C79="","",TDPrimas_!C79) -> 36639.4109 | E81: =IF(TDPrimas_!D79="","",TDPrimas_!D79) -> 40543.6393 | F81: =IF(TDPrimas_!E79="","",TDPrimas_!E79) -> 0.005493657326 | G81: =IF(TDPrimas_!F79="","",TDPrimas_!F79) -> 0.0064009833 | H81: =IF(TDPrimas_!G79="","",TDPrimas_!G79) -> -3904.2284 | I81: =IF(TDPrimas_!H79="","",TDPrimas_!H79) -> -9.629693997 | J81: =IF(TDPrimas_!I79="","",TDPrimas_!I79) -> 100 | K81: =IF(TDPrimas_!J79="","",TDPrimas_!J79) -> 100 | L81: =IF(TDPrimas_!K79="","",TDPrimas_!K79) -> 0.005493657326
B82: =IF(TDPrimas_!A80="","",TDPrimas_!A80) -> 72 | C82: =IF(TDPrimas_!B80="","",TDPrimas_!B80) -> SPT | D82: =IF(TDPrimas_!C80="","",TDPrimas_!C80) -> 31148.55592 | E82: =IF(TDPrimas_!D80="","",TDPrimas_!D80) -> 0 | F82: =IF(TDPrimas_!E80="","",TDPrimas_!E80) -> 0.004670366914 | G82: =IF(TDPrimas_!F80="","",TDPrimas_!F80) ->  | H82: =IF(TDPrimas_!G80="","",TDPrimas_!G80) ->  | I82: =IF(TDPrimas_!H80="","",TDPrimas_!H80) ->  | J82: =IF(TDPrimas_!I80="","",TDPrimas_!I80) -> 100 | K82: =IF(TDPrimas_!J80="","",TDPrimas_!J80) -> 100 | L82: =IF(TDPrimas_!K80="","",TDPrimas_!K80) -> 0.004670366914
B83: =IF(TDPrimas_!A81="","",TDPrimas_!A81) -> 73 | C83: =IF(TDPrimas_!B81="","",TDPrimas_!B81) -> Metlife Más | D83: =IF(TDPrimas_!C81="","",TDPrimas_!C81) -> 30174.1693 | E83: =IF(TDPrimas_!D81="","",TDPrimas_!D81) -> 31095.04911 | F83: =IF(TDPrimas_!E81="","",TDPrimas_!E81) -> 0.004524268872 | G83: =IF(TDPrimas_!F81="","",TDPrimas_!F81) -> 0.004909250712 | H83: =IF(TDPrimas_!G81="","",TDPrimas_!G81) -> -920.87981 | I83: =IF(TDPrimas_!H81="","",TDPrimas_!H81) -> -2.961499777 | J83: =IF(TDPrimas_!I81="","",TDPrimas_!I81) -> 100 | K83: =IF(TDPrimas_!J81="","",TDPrimas_!J81) -> 100 | L83: =IF(TDPrimas_!K81="","",TDPrimas_!K81) -> 0.004524268872
B84: =IF(TDPrimas_!A82="","",TDPrimas_!A82) -> 74 | C84: =IF(TDPrimas_!B82="","",TDPrimas_!B82) -> Citibanamex Pensiones | D84: =IF(TDPrimas_!C82="","",TDPrimas_!C82) -> 21149.46084 | E84: =IF(TDPrimas_!D82="","",TDPrimas_!D82) -> 12102.12455 | F84: =IF(TDPrimas_!E82="","",TDPrimas_!E82) -> 0.003171117865 | G84: =IF(TDPrimas_!F82="","",TDPrimas_!F82) -> 0.001910669552 | H84: =IF(TDPrimas_!G82="","",TDPrimas_!G82) -> 9047.33629 | I84: =IF(TDPrimas_!H82="","",TDPrimas_!H82) -> 74.75824805 | J84: =IF(TDPrimas_!I82="","",TDPrimas_!I82) -> 100 | K84: =IF(TDPrimas_!J82="","",TDPrimas_!J82) -> 100 | L84: =IF(TDPrimas_!K82="","",TDPrimas_!K82) -> 0.003171117865
B85: =IF(TDPrimas_!A83="","",TDPrimas_!A83) -> 75 | C85: =IF(TDPrimas_!B83="","",TDPrimas_!B83) -> Metlife Pensiones | D85: =IF(TDPrimas_!C83="","",TDPrimas_!C83) -> 20461.44299 | E85: =IF(TDPrimas_!D83="","",TDPrimas_!D83) -> 15995.85067 | F85: =IF(TDPrimas_!E83="","",TDPrimas_!E83) -> 0.003067957519 | G85: =IF(TDPrimas_!F83="","",TDPrimas_!F83) -> 0.002525406569 | H85: =IF(TDPrimas_!G83="","",TDPrimas_!G83) -> 4465.59232 | I85: =IF(TDPrimas_!H83="","",TDPrimas_!H83) -> 27.91719185 | J85: =IF(TDPrimas_!I83="","",TDPrimas_!I83) -> 100 | K85: =IF(TDPrimas_!J83="","",TDPrimas_!J83) -> 100 | L85: =IF(TDPrimas_!K83="","",TDPrimas_!K83) -> 0.003067957519
B86: =IF(TDPrimas_!A84="","",TDPrimas_!A84) -> 76 | C86: =IF(TDPrimas_!B84="","",TDPrimas_!B84) -> SIS NOVA | D86: =IF(TDPrimas_!C84="","",TDPrimas_!C84) -> 18506.62207 | E86: =IF(TDPrimas_!D84="","",TDPrimas_!D84) -> 939149.0756 | F86: =IF(TDPrimas_!E84="","",TDPrimas_!E84) -> 0.002774854655 | G86: =IF(TDPrimas_!F84="","",TDPrimas_!F84) -> 0.1482717796 | H86: =IF(TDPrimas_!G84="","",TDPrimas_!G84) -> -920642.4535 | I86: =IF(TDPrimas_!H84="","",TDPrimas_!H84) -> -98.02942658 | J86: =IF(TDPrimas_!I84="","",TDPrimas_!I84) -> 100 | K86: =IF(TDPrimas_!J84="","",TDPrimas_!J84) -> 100 | L86: =IF(TDPrimas_!K84="","",TDPrimas_!K84) -> 0.002774854655
B87: =IF(TDPrimas_!A85="","",TDPrimas_!A85) -> 77 | C87: =IF(TDPrimas_!B85="","",TDPrimas_!B85) -> Pensiones Inbursa | D87: =IF(TDPrimas_!C85="","",TDPrimas_!C85) -> 1325.17551 | E87: =IF(TDPrimas_!D85="","",TDPrimas_!D85) -> 533.28378 | F87: =IF(TDPrimas_!E85="","",TDPrimas_!E85) -> 0.0001986947926 | G87: =IF(TDPrimas_!F85="","",TDPrimas_!F85) -> 8.419423192e-05 | H87: =IF(TDPrimas_!G85="","",TDPrimas_!G85) -> 791.89173 | I87: =IF(TDPrimas_!H85="","",TDPrimas_!H85) -> 148.4934963 | J87: =IF(TDPrimas_!I85="","",TDPrimas_!I85) -> 100 | K87: =IF(TDPrimas_!J85="","",TDPrimas_!J85) -> 100 | L87: =IF(TDPrimas_!K85="","",TDPrimas_!K85) -> 0.0001986947926
B88: =IF(TDPrimas_!A86="","",TDPrimas_!A86) -> 78 | C88: =IF(TDPrimas_!B86="","",TDPrimas_!B86) -> Aserta Seguros de Vida | D88: =IF(TDPrimas_!C86="","",TDPrimas_!C86) -> 596.44602 | E88: =IF(TDPrimas_!D86="","",TDPrimas_!D86) -> 172554.4396 | F88: =IF(TDPrimas_!E86="","",TDPrimas_!E86) -> 8.943020553e-05 | G88: =IF(TDPrimas_!F86="","",TDPrimas_!F86) -> 0.02724269714 | H88: =IF(TDPrimas_!G86="","",TDPrimas_!G86) -> -171957.9936 | I88: =IF(TDPrimas_!H86="","",TDPrimas_!H86) -> -99.65434328 | J88: =IF(TDPrimas_!I86="","",TDPrimas_!I86) -> 100 | K88: =IF(TDPrimas_!J86="","",TDPrimas_!J86) -> 100 | L88: =IF(TDPrimas_!K86="","",TDPrimas_!K86) -> 8.943020553e-05
B89: =IF(TDPrimas_!A87="","",TDPrimas_!A87) -> 79 | C89: =IF(TDPrimas_!B87="","",TDPrimas_!B87) -> Principal México | D89: =IF(TDPrimas_!C87="","",TDPrimas_!C87) -> 0 | E89: =IF(TDPrimas_!D87="","",TDPrimas_!D87) -> 192.54227 | F89: =IF(TDPrimas_!E87="","",TDPrimas_!E87) ->  | G89: =IF(TDPrimas_!F87="","",TDPrimas_!F87) -> 3.039835289e-05 | H89: =IF(TDPrimas_!G87="","",TDPrimas_!G87) ->  | I89: =IF(TDPrimas_!H87="","",TDPrimas_!H87) ->  | J89: =IF(TDPrimas_!I87="","",TDPrimas_!I87) ->  | K89: =IF(TDPrimas_!J87="","",TDPrimas_!J87) ->  | L89: =IF(TDPrimas_!K87="","",TDPrimas_!K87) -> 
B90: =IF(TDPrimas_!A88="","",TDPrimas_!A88) -> 79 | C90: =IF(TDPrimas_!B88="","",TDPrimas_!B88) -> Zurich Daños | D90: =IF(TDPrimas_!C88="","",TDPrimas_!C88) -> 0 | E90: =IF(TDPrimas_!D88="","",TDPrimas_!D88) -> 7183909.404 | F90: =IF(TDPrimas_!E88="","",TDPrimas_!E88) ->  | G90: =IF(TDPrimas_!F88="","",TDPrimas_!F88) -> 1.134187382 | H90: =IF(TDPrimas_!G88="","",TDPrimas_!G88) ->  | I90: =IF(TDPrimas_!H88="","",TDPrimas_!H88) ->  | J90: =IF(TDPrimas_!I88="","",TDPrimas_!I88) ->  | K90: =IF(TDPrimas_!J88="","",TDPrimas_!J88) ->  | L90: =IF(TDPrimas_!K88="","",TDPrimas_!K88) -> 
B91: =IF(TDPrimas_!A89="","",TDPrimas_!A89) -> 79 | C91: =IF(TDPrimas_!B89="","",TDPrimas_!B89) -> Zurich Vida | D91: =IF(TDPrimas_!C89="","",TDPrimas_!C89) -> 0 | E91: =IF(TDPrimas_!D89="","",TDPrimas_!D89) -> 1834835.984 | F91: =IF(TDPrimas_!E89="","",TDPrimas_!E89) ->  | G91: =IF(TDPrimas_!F89="","",TDPrimas_!F89) -> 0.289681802 | H91: =IF(TDPrimas_!G89="","",TDPrimas_!G89) ->  | I91: =IF(TDPrimas_!H89="","",TDPrimas_!H89) ->  | J91: =IF(TDPrimas_!I89="","",TDPrimas_!I89) ->  | K91: =IF(TDPrimas_!J89="","",TDPrimas_!J89) ->  | L91: =IF(TDPrimas_!K89="","",TDPrimas_!K89) -> 
B92: =IF(TDPrimas_!A90="","",TDPrimas_!A90) -> 150.1 | C92: =IF(TDPrimas_!B90="","",TDPrimas_!B90) -> TOTAL RESTO | D92: =IF(TDPrimas_!C90="","",TDPrimas_!C90) -> 149887888.3 | E92: =IF(TDPrimas_!D90="","",TDPrimas_!D90) -> 138768712.4 | F92: =IF(TDPrimas_!E90="","",TDPrimas_!E90) -> 22.47396111 | G92: =IF(TDPrimas_!F90="","",TDPrimas_!F90) -> 21.90864525 | H92: =IF(TDPrimas_!G90="","",TDPrimas_!G90) -> 11119175.9 | I92: =IF(TDPrimas_!H90="","",TDPrimas_!H90) -> 8.012739834 | J92: =IF(TDPrimas_!I90="","",TDPrimas_!I90) -> 100 | K92: =IF(TDPrimas_!J90="","",TDPrimas_!J90) -> 100 | L92: =IF(TDPrimas_!K90="","",TDPrimas_!K90) -> 22.47396111
B93: =IF(TDPrimas_!A91="","",TDPrimas_!A91) -> 200 | C93: =IF(TDPrimas_!B91="","",TDPrimas_!B91) -> Patria | D93: =IF(TDPrimas_!C91="","",TDPrimas_!C91) -> 0 | E93: =IF(TDPrimas_!D91="","",TDPrimas_!D91) -> 0 | F93: =IF(TDPrimas_!E91="","",TDPrimas_!E91) ->  | G93: =IF(TDPrimas_!F91="","",TDPrimas_!F91) ->  | H93: =IF(TDPrimas_!G91="","",TDPrimas_!G91) ->  | I93: =IF(TDPrimas_!H91="","",TDPrimas_!H91) ->  | J93: =IF(TDPrimas_!I91="","",TDPrimas_!I91) ->  | K93: =IF(TDPrimas_!J91="","",TDPrimas_!J91) ->  | L93: =IF(TDPrimas_!K91="","",TDPrimas_!K91) -> 
B94: =IF(TDPrimas_!A92="","",TDPrimas_!A92) -> 201.1 | C94: =IF(TDPrimas_!B92="","",TDPrimas_!B92) -> TOTAL | D94: =IF(TDPrimas_!C92="","",TDPrimas_!C92) -> 666940231.7 | E94: =IF(TDPrimas_!D92="","",TDPrimas_!D92) -> 633397048.5 | F94: =IF(TDPrimas_!E92="","",TDPrimas_!E92) -> 100 | G94: =IF(TDPrimas_!F92="","",TDPrimas_!F92) -> 100 | H94: =IF(TDPrimas_!G92="","",TDPrimas_!G92) -> 33543183.25 | I94: =IF(TDPrimas_!H92="","",TDPrimas_!H92) -> 5.295759324 | J94: =IF(TDPrimas_!I92="","",TDPrimas_!I92) -> 100 | K94: =IF(TDPrimas_!J92="","",TDPrimas_!J92) -> 100 | L94: =IF(TDPrimas_!K92="","",TDPrimas_!K92) -> 100
B95: =IF(TDPrimas_!A93="","",TDPrimas_!A93) ->  | C95: =IF(TDPrimas_!B93="","",TDPrimas_!B93) ->  | D95: =IF(TDPrimas_!C93="","",TDPrimas_!C93) ->  | E95: =IF(TDPrimas_!D93="","",TDPrimas_!D93) ->  | F95: =IF(TDPrimas_!E93="","",TDPrimas_!E93) ->  | G95: =IF(TDPrimas_!F93="","",TDPrimas_!F93) ->  | H95: =IF(TDPrimas_!G93="","",TDPrimas_!G93) ->  | I95: =IF(TDPrimas_!H93="","",TDPrimas_!H93) ->  | J95: =IF(TDPrimas_!I93="","",TDPrimas_!I93) ->  | K95: =IF(TDPrimas_!J93="","",TDPrimas_!J93) ->  | L95: =IF(TDPrimas_!K93="","",TDPrimas_!K93) -> 
B96: =IF(TDPrimas_!A94="","",TDPrimas_!A94) ->  | C96: =IF(TDPrimas_!B94="","",TDPrimas_!B94) ->  | D96: =IF(TDPrimas_!C94="","",TDPrimas_!C94) ->  | E96: =IF(TDPrimas_!D94="","",TDPrimas_!D94) ->  | F96: =IF(TDPrimas_!E94="","",TDPrimas_!E94) ->  | G96: =IF(TDPrimas_!F94="","",TDPrimas_!F94) ->  | H96: =IF(TDPrimas_!G94="","",TDPrimas_!G94) ->  | I96: =IF(TDPrimas_!H94="","",TDPrimas_!H94) ->  | J96: =IF(TDPrimas_!I94="","",TDPrimas_!I94) ->  | K96: =IF(TDPrimas_!J94="","",TDPrimas_!J94) ->  | L96: =IF(TDPrimas_!K94="","",TDPrimas_!K94) -> 
B97: =IF(TDPrimas_!A95="","",TDPrimas_!A95) ->  | C97: =IF(TDPrimas_!B95="","",TDPrimas_!B95) ->  | D97: =IF(TDPrimas_!C95="","",TDPrimas_!C95) ->  | E97: =IF(TDPrimas_!D95="","",TDPrimas_!D95) ->  | F97: =IF(TDPrimas_!E95="","",TDPrimas_!E95) ->  | G97: =IF(TDPrimas_!F95="","",TDPrimas_!F95) ->  | H97: =IF(TDPrimas_!G95="","",TDPrimas_!G95) ->  | I97: =IF(TDPrimas_!H95="","",TDPrimas_!H95) ->  | J97: =IF(TDPrimas_!I95="","",TDPrimas_!I95) ->  | K97: =IF(TDPrimas_!J95="","",TDPrimas_!J95) ->  | L97: =IF(TDPrimas_!K95="","",TDPrimas_!K95) -> 
B98: =IF(TDPrimas_!A96="","",TDPrimas_!A96) ->  | C98: =IF(TDPrimas_!B96="","",TDPrimas_!B96) ->  | D98: =IF(TDPrimas_!C96="","",TDPrimas_!C96) ->  | E98: =IF(TDPrimas_!D96="","",TDPrimas_!D96) ->  | F98: =IF(TDPrimas_!E96="","",TDPrimas_!E96) ->  | G98: =IF(TDPrimas_!F96="","",TDPrimas_!F96) ->  | H98: =IF(TDPrimas_!G96="","",TDPrimas_!G96) ->  | I98: =IF(TDPrimas_!H96="","",TDPrimas_!H96) ->  | J98: =IF(TDPrimas_!I96="","",TDPrimas_!I96) ->  | K98: =IF(TDPrimas_!J96="","",TDPrimas_!J96) ->  | L98: =IF(TDPrimas_!K96="","",TDPrimas_!K96) -> 
B99: =IF(TDPrimas_!A97="","",TDPrimas_!A97) ->  | C99: =IF(TDPrimas_!B97="","",TDPrimas_!B97) ->  | D99: =IF(TDPrimas_!C97="","",TDPrimas_!C97) ->  | E99: =IF(TDPrimas_!D97="","",TDPrimas_!D97) ->  | F99: =IF(TDPrimas_!E97="","",TDPrimas_!E97) ->  | G99: =IF(TDPrimas_!F97="","",TDPrimas_!F97) ->  | H99: =IF(TDPrimas_!G97="","",TDPrimas_!G97) ->  | I99: =IF(TDPrimas_!H97="","",TDPrimas_!H97) ->  | J99: =IF(TDPrimas_!I97="","",TDPrimas_!I97) ->  | K99: =IF(TDPrimas_!J97="","",TDPrimas_!J97) ->  | L99: =IF(TDPrimas_!K97="","",TDPrimas_!K97) -> 
B100: =IF(TDPrimas_!A98="","",TDPrimas_!A98) ->  | C100: =IF(TDPrimas_!B98="","",TDPrimas_!B98) ->  | D100: =IF(TDPrimas_!C98="","",TDPrimas_!C98) ->  | E100: =IF(TDPrimas_!D98="","",TDPrimas_!D98) ->  | F100: =IF(TDPrimas_!E98="","",TDPrimas_!E98) ->  | G100: =IF(TDPrimas_!F98="","",TDPrimas_!F98) ->  | H100: =IF(TDPrimas_!G98="","",TDPrimas_!G98) ->  | I100: =IF(TDPrimas_!H98="","",TDPrimas_!H98) ->  | J100: =IF(TDPrimas_!I98="","",TDPrimas_!I98) ->  | K100: =IF(TDPrimas_!J98="","",TDPrimas_!J98) ->  | L100: =IF(TDPrimas_!K98="","",TDPrimas_!K98) -> 
B101: =IF(TDPrimas_!A99="","",TDPrimas_!A99) ->  | C101: =IF(TDPrimas_!B99="","",TDPrimas_!B99) ->  | D101: =IF(TDPrimas_!C99="","",TDPrimas_!C99) ->  | E101: =IF(TDPrimas_!D99="","",TDPrimas_!D99) ->  | F101: =IF(TDPrimas_!E99="","",TDPrimas_!E99) ->  | G101: =IF(TDPrimas_!F99="","",TDPrimas_!F99) ->  | H101: =IF(TDPrimas_!G99="","",TDPrimas_!G99) ->  | I101: =IF(TDPrimas_!H99="","",TDPrimas_!H99) ->  | J101: =IF(TDPrimas_!I99="","",TDPrimas_!I99) ->  | K101: =IF(TDPrimas_!J99="","",TDPrimas_!J99) ->  | L101: =IF(TDPrimas_!K99="","",TDPrimas_!K99) -> 
B102: =IF(TDPrimas_!A100="","",TDPrimas_!A100) ->  | C102: =IF(TDPrimas_!B100="","",TDPrimas_!B100) ->  | D102: =IF(TDPrimas_!C100="","",TDPrimas_!C100) ->  | E102: =IF(TDPrimas_!D100="","",TDPrimas_!D100) ->  | F102: =IF(TDPrimas_!E100="","",TDPrimas_!E100) ->  | G102: =IF(TDPrimas_!F100="","",TDPrimas_!F100) ->  | H102: =IF(TDPrimas_!G100="","",TDPrimas_!G100) ->  | I102: =IF(TDPrimas_!H100="","",TDPrimas_!H100) ->  | J102: =IF(TDPrimas_!I100="","",TDPrimas_!I100) ->  | K102: =IF(TDPrimas_!J100="","",TDPrimas_!J100) ->  | L102: =IF(TDPrimas_!K100="","",TDPrimas_!K100) -> 
B103: =IF(TDPrimas_!A101="","",TDPrimas_!A101) ->  | C103: =IF(TDPrimas_!B101="","",TDPrimas_!B101) ->  | D103: =IF(TDPrimas_!C101="","",TDPrimas_!C101) ->  | E103: =IF(TDPrimas_!D101="","",TDPrimas_!D101) ->  | F103: =IF(TDPrimas_!E101="","",TDPrimas_!E101) ->  | G103: =IF(TDPrimas_!F101="","",TDPrimas_!F101) ->  | H103: =IF(TDPrimas_!G101="","",TDPrimas_!G101) ->  | I103: =IF(TDPrimas_!H101="","",TDPrimas_!H101) ->  | J103: =IF(TDPrimas_!I101="","",TDPrimas_!I101) ->  | K103: =IF(TDPrimas_!J101="","",TDPrimas_!J101) ->  | L103: =IF(TDPrimas_!K101="","",TDPrimas_!K101) -> 
B104: =IF(TDPrimas_!A102="","",TDPrimas_!A102) ->  | C104: =IF(TDPrimas_!B102="","",TDPrimas_!B102) ->  | D104: =IF(TDPrimas_!C102="","",TDPrimas_!C102) ->  | E104: =IF(TDPrimas_!D102="","",TDPrimas_!D102) ->  | F104: =IF(TDPrimas_!E102="","",TDPrimas_!E102) ->  | G104: =IF(TDPrimas_!F102="","",TDPrimas_!F102) ->  | H104: =IF(TDPrimas_!G102="","",TDPrimas_!G102) ->  | I104: =IF(TDPrimas_!H102="","",TDPrimas_!H102) ->  | J104: =IF(TDPrimas_!I102="","",TDPrimas_!I102) ->  | K104: =IF(TDPrimas_!J102="","",TDPrimas_!J102) ->  | L104: =IF(TDPrimas_!K102="","",TDPrimas_!K102) -> 
B105: =IF(TDPrimas_!A103="","",TDPrimas_!A103) ->  | C105: =IF(TDPrimas_!B103="","",TDPrimas_!B103) ->  | D105: =IF(TDPrimas_!C103="","",TDPrimas_!C103) ->  | E105: =IF(TDPrimas_!D103="","",TDPrimas_!D103) ->  | F105: =IF(TDPrimas_!E103="","",TDPrimas_!E103) ->  | G105: =IF(TDPrimas_!F103="","",TDPrimas_!F103) ->  | H105: =IF(TDPrimas_!G103="","",TDPrimas_!G103) ->  | I105: =IF(TDPrimas_!H103="","",TDPrimas_!H103) ->  | J105: =IF(TDPrimas_!I103="","",TDPrimas_!I103) ->  | K105: =IF(TDPrimas_!J103="","",TDPrimas_!J103) ->  | L105: =IF(TDPrimas_!K103="","",TDPrimas_!K103) -> 
B106: =IF(TDPrimas_!A104="","",TDPrimas_!A104) ->  | C106: =IF(TDPrimas_!B104="","",TDPrimas_!B104) ->  | D106: =IF(TDPrimas_!C104="","",TDPrimas_!C104) ->  | E106: =IF(TDPrimas_!D104="","",TDPrimas_!D104) ->  | F106: =IF(TDPrimas_!E104="","",TDPrimas_!E104) ->  | G106: =IF(TDPrimas_!F104="","",TDPrimas_!F104) ->  | H106: =IF(TDPrimas_!G104="","",TDPrimas_!G104) ->  | I106: =IF(TDPrimas_!H104="","",TDPrimas_!H104) ->  | J106: =IF(TDPrimas_!I104="","",TDPrimas_!I104) ->  | K106: =IF(TDPrimas_!J104="","",TDPrimas_!J104) ->  | L106: =IF(TDPrimas_!K104="","",TDPrimas_!K104) -> 
B107: =IF(TDPrimas_!A105="","",TDPrimas_!A105) ->  | C107: =IF(TDPrimas_!B105="","",TDPrimas_!B105) ->  | D107: =IF(TDPrimas_!C105="","",TDPrimas_!C105) ->  | E107: =IF(TDPrimas_!D105="","",TDPrimas_!D105) ->  | F107: =IF(TDPrimas_!E105="","",TDPrimas_!E105) ->  | G107: =IF(TDPrimas_!F105="","",TDPrimas_!F105) ->  | H107: =IF(TDPrimas_!G105="","",TDPrimas_!G105) ->  | I107: =IF(TDPrimas_!H105="","",TDPrimas_!H105) ->  | J107: =IF(TDPrimas_!I105="","",TDPrimas_!I105) ->  | K107: =IF(TDPrimas_!J105="","",TDPrimas_!J105) ->  | L107: =IF(TDPrimas_!K105="","",TDPrimas_!K105) -> 
B108: =IF(TDPrimas_!A106="","",TDPrimas_!A106) ->  | C108: =IF(TDPrimas_!B106="","",TDPrimas_!B106) ->  | D108: =IF(TDPrimas_!C106="","",TDPrimas_!C106) ->  | E108: =IF(TDPrimas_!D106="","",TDPrimas_!D106) ->  | F108: =IF(TDPrimas_!E106="","",TDPrimas_!E106) ->  | G108: =IF(TDPrimas_!F106="","",TDPrimas_!F106) ->  | H108: =IF(TDPrimas_!G106="","",TDPrimas_!G106) ->  | I108: =IF(TDPrimas_!H106="","",TDPrimas_!H106) ->  | J108: =IF(TDPrimas_!I106="","",TDPrimas_!I106) ->  | K108: =IF(TDPrimas_!J106="","",TDPrimas_!J106) ->  | L108: =IF(TDPrimas_!K106="","",TDPrimas_!K106) -> 
B109: =IF(TDPrimas_!A107="","",TDPrimas_!A107) ->  | C109: =IF(TDPrimas_!B107="","",TDPrimas_!B107) ->  | D109: =IF(TDPrimas_!C107="","",TDPrimas_!C107) ->  | E109: =IF(TDPrimas_!D107="","",TDPrimas_!D107) ->  | F109: =IF(TDPrimas_!E107="","",TDPrimas_!E107) ->  | G109: =IF(TDPrimas_!F107="","",TDPrimas_!F107) ->  | H109: =IF(TDPrimas_!G107="","",TDPrimas_!G107) ->  | I109: =IF(TDPrimas_!H107="","",TDPrimas_!H107) ->  | J109: =IF(TDPrimas_!I107="","",TDPrimas_!I107) ->  | K109: =IF(TDPrimas_!J107="","",TDPrimas_!J107) ->  | L109: =IF(TDPrimas_!K107="","",TDPrimas_!K107) -> 
B110: =IF(TDPrimas_!A108="","",TDPrimas_!A108) ->  | C110: =IF(TDPrimas_!B108="","",TDPrimas_!B108) ->  | D110: =IF(TDPrimas_!C108="","",TDPrimas_!C108) ->  | E110: =IF(TDPrimas_!D108="","",TDPrimas_!D108) ->  | F110: =IF(TDPrimas_!E108="","",TDPrimas_!E108) ->  | G110: =IF(TDPrimas_!F108="","",TDPrimas_!F108) ->  | H110: =IF(TDPrimas_!G108="","",TDPrimas_!G108) ->  | I110: =IF(TDPrimas_!H108="","",TDPrimas_!H108) ->  | J110: =IF(TDPrimas_!I108="","",TDPrimas_!I108) ->  | K110: =IF(TDPrimas_!J108="","",TDPrimas_!J108) ->  | L110: =IF(TDPrimas_!K108="","",TDPrimas_!K108) -> 
B111: =IF(TDPrimas_!A109="","",TDPrimas_!A109) ->  | C111: =IF(TDPrimas_!B109="","",TDPrimas_!B109) ->  | D111: =IF(TDPrimas_!C109="","",TDPrimas_!C109) ->  | E111: =IF(TDPrimas_!D109="","",TDPrimas_!D109) ->  | F111: =IF(TDPrimas_!E109="","",TDPrimas_!E109) ->  | G111: =IF(TDPrimas_!F109="","",TDPrimas_!F109) ->  | H111: =IF(TDPrimas_!G109="","",TDPrimas_!G109) ->  | I111: =IF(TDPrimas_!H109="","",TDPrimas_!H109) ->  | J111: =IF(TDPrimas_!I109="","",TDPrimas_!I109) ->  | K111: =IF(TDPrimas_!J109="","",TDPrimas_!J109) ->  | L111: =IF(TDPrimas_!K109="","",TDPrimas_!K109) -> 
B112: =IF(TDPrimas_!A110="","",TDPrimas_!A110) ->  | C112: =IF(TDPrimas_!B110="","",TDPrimas_!B110) ->  | D112: =IF(TDPrimas_!C110="","",TDPrimas_!C110) ->  | E112: =IF(TDPrimas_!D110="","",TDPrimas_!D110) ->  | F112: =IF(TDPrimas_!E110="","",TDPrimas_!E110) ->  | G112: =IF(TDPrimas_!F110="","",TDPrimas_!F110) ->  | H112: =IF(TDPrimas_!G110="","",TDPrimas_!G110) ->  | I112: =IF(TDPrimas_!H110="","",TDPrimas_!H110) ->  | J112: =IF(TDPrimas_!I110="","",TDPrimas_!I110) ->  | K112: =IF(TDPrimas_!J110="","",TDPrimas_!J110) ->  | L112: =IF(TDPrimas_!K110="","",TDPrimas_!K110) -> 
B113: =IF(TDPrimas_!A111="","",TDPrimas_!A111) ->  | C113: =IF(TDPrimas_!B111="","",TDPrimas_!B111) ->  | D113: =IF(TDPrimas_!C111="","",TDPrimas_!C111) ->  | E113: =IF(TDPrimas_!D111="","",TDPrimas_!D111) ->  | F113: =IF(TDPrimas_!E111="","",TDPrimas_!E111) ->  | G113: =IF(TDPrimas_!F111="","",TDPrimas_!F111) ->  | H113: =IF(TDPrimas_!G111="","",TDPrimas_!G111) ->  | I113: =IF(TDPrimas_!H111="","",TDPrimas_!H111) ->  | J113: =IF(TDPrimas_!I111="","",TDPrimas_!I111) ->  | K113: =IF(TDPrimas_!J111="","",TDPrimas_!J111) ->  | L113: =IF(TDPrimas_!K111="","",TDPrimas_!K111) -> 
B114: =IF(TDPrimas_!A112="","",TDPrimas_!A112) ->  | C114: =IF(TDPrimas_!B112="","",TDPrimas_!B112) ->  | D114: =IF(TDPrimas_!C112="","",TDPrimas_!C112) ->  | E114: =IF(TDPrimas_!D112="","",TDPrimas_!D112) ->  | F114: =IF(TDPrimas_!E112="","",TDPrimas_!E112) ->  | G114: =IF(TDPrimas_!F112="","",TDPrimas_!F112) ->  | H114: =IF(TDPrimas_!G112="","",TDPrimas_!G112) ->  | I114: =IF(TDPrimas_!H112="","",TDPrimas_!H112) ->  | J114: =IF(TDPrimas_!I112="","",TDPrimas_!I112) ->  | K114: =IF(TDPrimas_!J112="","",TDPrimas_!J112) ->  | L114: =IF(TDPrimas_!K112="","",TDPrimas_!K112) -> 
B115: =IF(TDPrimas_!A113="","",TDPrimas_!A113) ->  | C115: =IF(TDPrimas_!B113="","",TDPrimas_!B113) ->  | D115: =IF(TDPrimas_!C113="","",TDPrimas_!C113) ->  | E115: =IF(TDPrimas_!D113="","",TDPrimas_!D113) ->  | F115: =IF(TDPrimas_!E113="","",TDPrimas_!E113) ->  | G115: =IF(TDPrimas_!F113="","",TDPrimas_!F113) ->  | H115: =IF(TDPrimas_!G113="","",TDPrimas_!G113) ->  | I115: =IF(TDPrimas_!H113="","",TDPrimas_!H113) ->  | J115: =IF(TDPrimas_!I113="","",TDPrimas_!I113) ->  | K115: =IF(TDPrimas_!J113="","",TDPrimas_!J113) ->  | L115: =IF(TDPrimas_!K113="","",TDPrimas_!K113) -> 
B116: =IF(TDPrimas_!A114="","",TDPrimas_!A114) ->  | C116: =IF(TDPrimas_!B114="","",TDPrimas_!B114) ->  | D116: =IF(TDPrimas_!C114="","",TDPrimas_!C114) ->  | E116: =IF(TDPrimas_!D114="","",TDPrimas_!D114) ->  | F116: =IF(TDPrimas_!E114="","",TDPrimas_!E114) ->  | G116: =IF(TDPrimas_!F114="","",TDPrimas_!F114) ->  | H116: =IF(TDPrimas_!G114="","",TDPrimas_!G114) ->  | I116: =IF(TDPrimas_!H114="","",TDPrimas_!H114) ->  | J116: =IF(TDPrimas_!I114="","",TDPrimas_!I114) ->  | K116: =IF(TDPrimas_!J114="","",TDPrimas_!J114) ->  | L116: =IF(TDPrimas_!K114="","",TDPrimas_!K114) -> 
B117: =IF(TDPrimas_!A115="","",TDPrimas_!A115) ->  | C117: =IF(TDPrimas_!B115="","",TDPrimas_!B115) ->  | D117: =IF(TDPrimas_!C115="","",TDPrimas_!C115) ->  | E117: =IF(TDPrimas_!D115="","",TDPrimas_!D115) ->  | F117: =IF(TDPrimas_!E115="","",TDPrimas_!E115) ->  | G117: =IF(TDPrimas_!F115="","",TDPrimas_!F115) ->  | H117: =IF(TDPrimas_!G115="","",TDPrimas_!G115) ->  | I117: =IF(TDPrimas_!H115="","",TDPrimas_!H115) ->  | J117: =IF(TDPrimas_!I115="","",TDPrimas_!I115) ->  | K117: =IF(TDPrimas_!J115="","",TDPrimas_!J115) ->  | L117: =IF(TDPrimas_!K115="","",TDPrimas_!K115) -> 
B118: =IF(TDPrimas_!A116="","",TDPrimas_!A116) ->  | C118: =IF(TDPrimas_!B116="","",TDPrimas_!B116) ->  | D118: =IF(TDPrimas_!C116="","",TDPrimas_!C116) ->  | E118: =IF(TDPrimas_!D116="","",TDPrimas_!D116) ->  | F118: =IF(TDPrimas_!E116="","",TDPrimas_!E116) ->  | G118: =IF(TDPrimas_!F116="","",TDPrimas_!F116) ->  | H118: =IF(TDPrimas_!G116="","",TDPrimas_!G116) ->  | I118: =IF(TDPrimas_!H116="","",TDPrimas_!H116) ->  | J118: =IF(TDPrimas_!I116="","",TDPrimas_!I116) ->  | K118: =IF(TDPrimas_!J116="","",TDPrimas_!J116) ->  | L118: =IF(TDPrimas_!K116="","",TDPrimas_!K116) -> 
B119: =IF(TDPrimas_!A117="","",TDPrimas_!A117) ->  | C119: =IF(TDPrimas_!B117="","",TDPrimas_!B117) ->  | D119: =IF(TDPrimas_!C117="","",TDPrimas_!C117) ->  | E119: =IF(TDPrimas_!D117="","",TDPrimas_!D117) ->  | F119: =IF(TDPrimas_!E117="","",TDPrimas_!E117) ->  | G119: =IF(TDPrimas_!F117="","",TDPrimas_!F117) ->  | H119: =IF(TDPrimas_!G117="","",TDPrimas_!G117) ->  | I119: =IF(TDPrimas_!H117="","",TDPrimas_!H117) ->  | J119: =IF(TDPrimas_!I117="","",TDPrimas_!I117) ->  | K119: =IF(TDPrimas_!J117="","",TDPrimas_!J117) ->  | L119: =IF(TDPrimas_!K117="","",TDPrimas_!K117) -> 
B120: =IF(TDPrimas_!A118="","",TDPrimas_!A118) ->  | C120: =IF(TDPrimas_!B118="","",TDPrimas_!B118) ->  | D120: =IF(TDPrimas_!C118="","",TDPrimas_!C118) ->  | E120: =IF(TDPrimas_!D118="","",TDPrimas_!D118) ->  | F120: =IF(TDPrimas_!E118="","",TDPrimas_!E118) ->  | G120: =IF(TDPrimas_!F118="","",TDPrimas_!F118) ->  | H120: =IF(TDPrimas_!G118="","",TDPrimas_!G118) ->  | I120: =IF(TDPrimas_!H118="","",TDPrimas_!H118) ->  | J120: =IF(TDPrimas_!I118="","",TDPrimas_!I118) ->  | K120: =IF(TDPrimas_!J118="","",TDPrimas_!J118) ->  | L120: =IF(TDPrimas_!K118="","",TDPrimas_!K118) -> 
B121: =IF(TDPrimas_!A119="","",TDPrimas_!A119) ->  | C121: =IF(TDPrimas_!B119="","",TDPrimas_!B119) ->  | D121: =IF(TDPrimas_!C119="","",TDPrimas_!C119) ->  | E121: =IF(TDPrimas_!D119="","",TDPrimas_!D119) ->  | F121: =IF(TDPrimas_!E119="","",TDPrimas_!E119) ->  | G121: =IF(TDPrimas_!F119="","",TDPrimas_!F119) ->  | H121: =IF(TDPrimas_!G119="","",TDPrimas_!G119) ->  | I121: =IF(TDPrimas_!H119="","",TDPrimas_!H119) ->  | J121: =IF(TDPrimas_!I119="","",TDPrimas_!I119) ->  | K121: =IF(TDPrimas_!J119="","",TDPrimas_!J119) ->  | L121: =IF(TDPrimas_!K119="","",TDPrimas_!K119) -> 
B122: =IF(TDPrimas_!A120="","",TDPrimas_!A120) ->  | C122: =IF(TDPrimas_!B120="","",TDPrimas_!B120) ->  | D122: =IF(TDPrimas_!C120="","",TDPrimas_!C120) ->  | E122: =IF(TDPrimas_!D120="","",TDPrimas_!D120) ->  | F122: =IF(TDPrimas_!E120="","",TDPrimas_!E120) ->  | G122: =IF(TDPrimas_!F120="","",TDPrimas_!F120) ->  | H122: =IF(TDPrimas_!G120="","",TDPrimas_!G120) ->  | I122: =IF(TDPrimas_!H120="","",TDPrimas_!H120) ->  | J122: =IF(TDPrimas_!I120="","",TDPrimas_!I120) ->  | K122: =IF(TDPrimas_!J120="","",TDPrimas_!J120) ->  | L122: =IF(TDPrimas_!K120="","",TDPrimas_!K120) -> 
B123: =IF(TDPrimas_!A121="","",TDPrimas_!A121) ->  | C123: =IF(TDPrimas_!B121="","",TDPrimas_!B121) ->  | D123: =IF(TDPrimas_!C121="","",TDPrimas_!C121) ->  | E123: =IF(TDPrimas_!D121="","",TDPrimas_!D121) ->  | F123: =IF(TDPrimas_!E121="","",TDPrimas_!E121) ->  | G123: =IF(TDPrimas_!F121="","",TDPrimas_!F121) ->  | H123: =IF(TDPrimas_!G121="","",TDPrimas_!G121) ->  | I123: =IF(TDPrimas_!H121="","",TDPrimas_!H121) ->  | J123: =IF(TDPrimas_!I121="","",TDPrimas_!I121) ->  | K123: =IF(TDPrimas_!J121="","",TDPrimas_!J121) ->  | L123: =IF(TDPrimas_!K121="","",TDPrimas_!K121) -> 
B124: =IF(TDPrimas_!A122="","",TDPrimas_!A122) ->  | C124: =IF(TDPrimas_!B122="","",TDPrimas_!B122) ->  | D124: =IF(TDPrimas_!C122="","",TDPrimas_!C122) ->  | E124: =IF(TDPrimas_!D122="","",TDPrimas_!D122) ->  | F124: =IF(TDPrimas_!E122="","",TDPrimas_!E122) ->  | G124: =IF(TDPrimas_!F122="","",TDPrimas_!F122) ->  | H124: =IF(TDPrimas_!G122="","",TDPrimas_!G122) ->  | I124: =IF(TDPrimas_!H122="","",TDPrimas_!H122) ->  | J124: =IF(TDPrimas_!I122="","",TDPrimas_!I122) ->  | K124: =IF(TDPrimas_!J122="","",TDPrimas_!J122) ->  | L124: =IF(TDPrimas_!K122="","",TDPrimas_!K122) -> 
B125: =IF(TDPrimas_!A123="","",TDPrimas_!A123) ->  | C125: =IF(TDPrimas_!B123="","",TDPrimas_!B123) ->  | D125: =IF(TDPrimas_!C123="","",TDPrimas_!C123) ->  | E125: =IF(TDPrimas_!D123="","",TDPrimas_!D123) ->  | F125: =IF(TDPrimas_!E123="","",TDPrimas_!E123) ->  | G125: =IF(TDPrimas_!F123="","",TDPrimas_!F123) ->  | H125: =IF(TDPrimas_!G123="","",TDPrimas_!G123) ->  | I125: =IF(TDPrimas_!H123="","",TDPrimas_!H123) ->  | J125: =IF(TDPrimas_!I123="","",TDPrimas_!I123) ->  | K125: =IF(TDPrimas_!J123="","",TDPrimas_!J123) ->  | L125: =IF(TDPrimas_!K123="","",TDPrimas_!K123) -> 
B128: NE = No Existe
B129: * % Extraordinario mayor de 1000%

Sheet Siniestros
B1: SINIESTROS DIRECTOS | I1: ='Primas Directas'!L1 -> Cuarto Trimestre 2022
B2: =UPPER(RIGHT(TDPrimas_!$B$4,LEN(TDPrimas_!$B$4)-3)) -> TOTAL GENERAL
D4: Siniestros Directos
B5: Compañías | D5: Importe | E5: Incr. % | F5: Inc. Rva. Dividendos | G5: % vs. Prima Directa | I5: % Participac de Mercado
D6: ='Primas Directas'!D6 -> 2022 | G6: ='Primas Directas'!D6 -> 2022 | H6: ='Primas Directas'!E6 -> 2021
C7: TOTAL | D7: =VLOOKUP(C7,'TD Siniestros_'!$B$7:$M$154,2,0) -> 412329448.1 | E7: =VLOOKUP(C7,'TD Siniestros_'!$B$7:$M$154,3,0) -> 3.156999437 | F7: =VLOOKUP(C7,'TD Siniestros_'!$B$7:$M$154,4,0) -> 2425971.586 | G7: =VLOOKUP(C7,'TD Siniestros_'!$B$7:$M$154,5,0) -> 61.82404787 | H7: =VLOOKUP(C7,'TD Siniestros_'!$B$7:$M$154,6,0) -> 63.10584934 | I7: =IFERROR(D7/VLOOKUP("TOTAL",$C$8:$D$124,2,0)*100,"") -> 100
B8: =IF('TD Siniestros_'!A6="","",'TD Siniestros_'!A6) -> 1 | C8: =IF('TD Siniestros_'!B6="","",'TD Siniestros_'!B6) -> G.N.P. | D8: =IF('TD Siniestros_'!C6="","",'TD Siniestros_'!C6) -> 57942254.66 | E8: =IF('TD Siniestros_'!D6="","",'TD Siniestros_'!D6) -> 6.910792097 | F8: =IF('TD Siniestros_'!E6="","",'TD Siniestros_'!E6) -> 235991.341 | G8: =IF('TD Siniestros_'!F6="","",'TD Siniestros_'!F6) -> 65.17965255 | H8: =IF('TD Siniestros_'!G6="","",'TD Siniestros_'!G6) -> 68.69560593 | I8: =IF('TD Siniestros_'!H6="","",'TD Siniestros_'!H6) -> 14.05241729
B9: =IF('TD Siniestros_'!A7="","",'TD Siniestros_'!A7) -> 2 | C9: =IF('TD Siniestros_'!B7="","",'TD Siniestros_'!B7) -> Metlife México | D9: =IF('TD Siniestros_'!C7="","",'TD Siniestros_'!C7) -> 47812737.47 | E9: =IF('TD Siniestros_'!D7="","",'TD Siniestros_'!D7) -> -6.563562889 | F9: =IF('TD Siniestros_'!E7="","",'TD Siniestros_'!E7) -> 33669.21221 | G9: =IF('TD Siniestros_'!F7="","",'TD Siniestros_'!F7) -> 68.61767394 | H9: =IF('TD Siniestros_'!G7="","",'TD Siniestros_'!G7) -> 81.95156351 | I9: =IF('TD Siniestros_'!H7="","",'TD Siniestros_'!H7) -> 11.59576103
B10: =IF('TD Siniestros_'!A8="","",'TD Siniestros_'!A8) -> 3 | C10: =IF('TD Siniestros_'!B8="","",'TD Siniestros_'!B8) -> BBVA Bancomer | D10: =IF('TD Siniestros_'!C8="","",'TD Siniestros_'!C8) -> 28668011.94 | E10: =IF('TD Siniestros_'!D8="","",'TD Siniestros_'!D8) -> 5.23343955 | F10: =IF('TD Siniestros_'!E8="","",'TD Siniestros_'!E8) -> 0 | G10: =IF('TD Siniestros_'!F8="","",'TD Siniestros_'!F8) -> 52.52985605 | H10: =IF('TD Siniestros_'!G8="","",'TD Siniestros_'!G8) -> 58.35522983 | I10: =IF('TD Siniestros_'!H8="","",'TD Siniestros_'!H8) -> 6.952695732
B11: =IF('TD Siniestros_'!A9="","",'TD Siniestros_'!A9) -> 4 | C11: =IF('TD Siniestros_'!B9="","",'TD Siniestros_'!B9) -> AXA Seguros | D11: =IF('TD Siniestros_'!C9="","",'TD Siniestros_'!C9) -> 32411884.01 | E11: =IF('TD Siniestros_'!D9="","",'TD Siniestros_'!D9) -> 2.935252234 | F11: =IF('TD Siniestros_'!E9="","",'TD Siniestros_'!E9) -> 519435.7953 | G11: =IF('TD Siniestros_'!F9="","",'TD Siniestros_'!F9) -> 68.94031285 | H11: =IF('TD Siniestros_'!G9="","",'TD Siniestros_'!G9) -> 70.47211473 | I11: =IF('TD Siniestros_'!H9="","",'TD Siniestros_'!H9) -> 7.860676495
B12: =IF('TD Siniestros_'!A10="","",'TD Siniestros_'!A10) -> 5 | C12: =IF('TD Siniestros_'!B10="","",'TD Siniestros_'!B10) -> Quálitas | D12: =IF('TD Siniestros_'!C10="","",'TD Siniestros_'!C10) -> 25385948.86 | E12: =IF('TD Siniestros_'!D10="","",'TD Siniestros_'!D10) -> 20.04610973 | F12: =IF('TD Siniestros_'!E10="","",'TD Siniestros_'!E10) -> 102597.0733 | G12: =IF('TD Siniestros_'!F10="","",'TD Siniestros_'!F10) -> 65.74403522 | H12: =IF('TD Siniestros_'!G10="","",'TD Siniestros_'!G10) -> 60.44550693 | I12: =IF('TD Siniestros_'!H10="","",'TD Siniestros_'!H10) -> 6.156714972
B13: =IF('TD Siniestros_'!A11="","",'TD Siniestros_'!A11) -> 5.1 | C13: =IF('TD Siniestros_'!B11="","",'TD Siniestros_'!B11) -> TOTAL GRANDES | D13: =IF('TD Siniestros_'!C11="","",'TD Siniestros_'!C11) -> 192220836.9 | E13: =IF('TD Siniestros_'!D11="","",'TD Siniestros_'!D11) -> 3.765732178 | F13: =IF('TD Siniestros_'!E11="","",'TD Siniestros_'!E11) -> 891693.4219 | G13: =IF('TD Siniestros_'!F11="","",'TD Siniestros_'!F11) -> 64.33554952 | H13: =IF('TD Siniestros_'!G11="","",'TD Siniestros_'!G11) -> 69.2026836 | I13: =IF('TD Siniestros_'!H11="","",'TD Siniestros_'!H11) -> 46.61826552
B14: =IF('TD Siniestros_'!A12="","",'TD Siniestros_'!A12) -> 6 | C14: =IF('TD Siniestros_'!B12="","",'TD Siniestros_'!B12) -> Monterrey New York Life | D14: =IF('TD Siniestros_'!C12="","",'TD Siniestros_'!C12) -> 24612258.16 | E14: =IF('TD Siniestros_'!D12="","",'TD Siniestros_'!D12) -> -2.148234461 | F14: =IF('TD Siniestros_'!E12="","",'TD Siniestros_'!E12) -> 69856.26594 | G14: =IF('TD Siniestros_'!F12="","",'TD Siniestros_'!F12) -> 65.59486261 | H14: =IF('TD Siniestros_'!G12="","",'TD Siniestros_'!G12) -> 72.8396592 | I14: =IF('TD Siniestros_'!H12="","",'TD Siniestros_'!H12) -> 5.969076007
B15: =IF('TD Siniestros_'!A13="","",'TD Siniestros_'!A13) -> 7 | C15: =IF('TD Siniestros_'!B13="","",'TD Siniestros_'!B13) -> Banorte | D15: =IF('TD Siniestros_'!C13="","",'TD Siniestros_'!C13) -> 16965249.23 | E15: =IF('TD Siniestros_'!D13="","",'TD Siniestros_'!D13) -> -13.64701137 | F15: =IF('TD Siniestros_'!E13="","",'TD Siniestros_'!E13) -> 46229.84486 | G15: =IF('TD Siniestros_'!F13="","",'TD Siniestros_'!F13) -> 58.67447184 | H15: =IF('TD Siniestros_'!G13="","",'TD Siniestros_'!G13) -> 70.70322035 | I15: =IF('TD Siniestros_'!H13="","",'TD Siniestros_'!H13) -> 4.114488866
B16: =IF('TD Siniestros_'!A14="","",'TD Siniestros_'!A14) -> 8 | C16: =IF('TD Siniestros_'!B14="","",'TD Siniestros_'!B14) -> Inbursa | D16: =IF('TD Siniestros_'!C14="","",'TD Siniestros_'!C14) -> 12593961.63 | E16: =IF('TD Siniestros_'!D14="","",'TD Siniestros_'!D14) -> 16.8439193 | F16: =IF('TD Siniestros_'!E14="","",'TD Siniestros_'!E14) -> 263889.9447 | G16: =IF('TD Siniestros_'!F14="","",'TD Siniestros_'!F14) -> 54.64979726 | H16: =IF('TD Siniestros_'!G14="","",'TD Siniestros_'!G14) -> 52.02979998 | I16: =IF('TD Siniestros_'!H14="","",'TD Siniestros_'!H14) -> 3.054344454
B17: =IF('TD Siniestros_'!A15="","",'TD Siniestros_'!A15) -> 9 | C17: =IF('TD Siniestros_'!B15="","",'TD Siniestros_'!B15) -> Mapfre México | D17: =IF('TD Siniestros_'!C15="","",'TD Siniestros_'!C15) -> 13307614.65 | E17: =IF('TD Siniestros_'!D15="","",'TD Siniestros_'!D15) -> -23.87991099 | F17: =IF('TD Siniestros_'!E15="","",'TD Siniestros_'!E15) -> 308715.4761 | G17: =IF('TD Siniestros_'!F15="","",'TD Siniestros_'!F15) -> 62.86962094 | H17: =IF('TD Siniestros_'!G15="","",'TD Siniestros_'!G15) -> 56.44367049 | I17: =IF('TD Siniestros_'!H15="","",'TD Siniestros_'!H15) -> 3.227422807
B18: =IF('TD Siniestros_'!A16="","",'TD Siniestros_'!A16) -> 10 | C18: =IF('TD Siniestros_'!B16="","",'TD Siniestros_'!B16) -> Chubb Seguros México | D18: =IF('TD Siniestros_'!C16="","",'TD Siniestros_'!C16) -> 12052095.72 | E18: =IF('TD Siniestros_'!D16="","",'TD Siniestros_'!D16) -> 15.89652759 | F18: =IF('TD Siniestros_'!E16="","",'TD Siniestros_'!E16) -> 115661.0871 | G18: =IF('TD Siniestros_'!F16="","",'TD Siniestros_'!F16) -> 57.57221785 | H18: =IF('TD Siniestros_'!G16="","",'TD Siniestros_'!G16) -> 55.77488857 | I18: =IF('TD Siniestros_'!H16="","",'TD Siniestros_'!H16) -> 2.922928686
B19: =IF('TD Siniestros_'!A17="","",'TD Siniestros_'!A17) -> 11 | C19: =IF('TD Siniestros_'!B17="","",'TD Siniestros_'!B17) -> Allianz México | D19: =IF('TD Siniestros_'!C17="","",'TD Siniestros_'!C17) -> 12238873.85 | E19: =IF('TD Siniestros_'!D17="","",'TD Siniestros_'!D17) -> 26.60271555 | F19: =IF('TD Siniestros_'!E17="","",'TD Siniestros_'!E17) -> 37724.76549 | G19: =IF('TD Siniestros_'!F17="","",'TD Siniestros_'!F17) -> 64.58687937 | H19: =IF('TD Siniestros_'!G17="","",'TD Siniestros_'!G17) -> 58.3733423 | I19: =IF('TD Siniestros_'!H17="","",'TD Siniestros_'!H17) -> 2.968226963
B20: =IF('TD Siniestros_'!A18="","",'TD Siniestros_'!A18) -> 12 | C20: =IF('TD Siniestros_'!B18="","",'TD Siniestros_'!B18) -> Pensiones Banorte | D20: =IF('TD Siniestros_'!C18="","",'TD Siniestros_'!C18) -> 11802256.33 | E20: =IF('TD Siniestros_'!D18="","",'TD Siniestros_'!D18) -> 18.72282229 | F20: =IF('TD Siniestros_'!E18="","",'TD Siniestros_'!E18) -> 0 | G20: =IF('TD Siniestros_'!F18="","",'TD Siniestros_'!F18) -> 63.00106928 | H20: =IF('TD Siniestros_'!G18="","",'TD Siniestros_'!G18) -> 43.89074213 | I20: =IF('TD Siniestros_'!H18="","",'TD Siniestros_'!H18) -> 2.862336508
B21: =IF('TD Siniestros_'!A19="","",'TD Siniestros_'!A19) -> 13 | C21: =IF('TD Siniestros_'!B19="","",'TD Siniestros_'!B19) -> Atlas | D21: =IF('TD Siniestros_'!C19="","",'TD Siniestros_'!C19) -> 10098998.71 | E21: =IF('TD Siniestros_'!D19="","",'TD Siniestros_'!D19) -> 6.755300191 | F21: =IF('TD Siniestros_'!E19="","",'TD Siniestros_'!E19) -> 39291.69486 | G21: =IF('TD Siniestros_'!F19="","",'TD Siniestros_'!F19) -> 58.04916306 | H21: =IF('TD Siniestros_'!G19="","",'TD Siniestros_'!G19) -> 59.00113274 | I21: =IF('TD Siniestros_'!H19="","",'TD Siniestros_'!H19) -> 2.449254779
B22: =IF('TD Siniestros_'!A20="","",'TD Siniestros_'!A20) -> 14 | C22: =IF('TD Siniestros_'!B20="","",'TD Siniestros_'!B20) -> Citibanamex Seguros | D22: =IF('TD Siniestros_'!C20="","",'TD Siniestros_'!C20) -> 27048070.6 | E22: =IF('TD Siniestros_'!D20="","",'TD Siniestros_'!D20) -> 11.89663668 | F22: =IF('TD Siniestros_'!E20="","",'TD Siniestros_'!E20) -> 0 | G22: =IF('TD Siniestros_'!F20="","",'TD Siniestros_'!F20) -> 158.4168741 | H22: =IF('TD Siniestros_'!G20="","",'TD Siniestros_'!G20) -> 99.45489104 | I22: =IF('TD Siniestros_'!H20="","",'TD Siniestros_'!H20) -> 6.559820243
B23: =IF('TD Siniestros_'!A21="","",'TD Siniestros_'!A21) -> 15 | C23: =IF('TD Siniestros_'!B21="","",'TD Siniestros_'!B21) -> Zurich Santander | D23: =IF('TD Siniestros_'!C21="","",'TD Siniestros_'!C21) -> 3023917.722 | E23: =IF('TD Siniestros_'!D21="","",'TD Siniestros_'!D21) -> -21.81202334 | F23: =IF('TD Siniestros_'!E21="","",'TD Siniestros_'!E21) -> 0 | G23: =IF('TD Siniestros_'!F21="","",'TD Siniestros_'!F21) -> 20.80005024 | H23: =IF('TD Siniestros_'!G21="","",'TD Siniestros_'!G21) -> 26.23346538 | I23: =IF('TD Siniestros_'!H21="","",'TD Siniestros_'!H21) -> 0.7333741833
B24: =IF('TD Siniestros_'!A22="","",'TD Siniestros_'!A22) -> 15.1 | C24: =IF('TD Siniestros_'!B22="","",'TD Siniestros_'!B22) -> TOTAL MEDIANAS | D24: =IF('TD Siniestros_'!C22="","",'TD Siniestros_'!C22) -> 143743296.6 | E24: =IF('TD Siniestros_'!D22="","",'TD Siniestros_'!D22) -> 2.259753267 | F24: =IF('TD Siniestros_'!E22="","",'TD Siniestros_'!E22) -> 881369.0791 | G24: =IF('TD Siniestros_'!F22="","",'TD Siniestros_'!F22) -> 65.85459008 | H24: =IF('TD Siniestros_'!G22="","",'TD Siniestros_'!G22) -> 61.93909841 | I24: =IF('TD Siniestros_'!H22="","",'TD Siniestros_'!H22) -> 34.8612735
B25: =IF('TD Siniestros_'!A23="","",'TD Siniestros_'!A23) -> 16 | C25: =IF('TD Siniestros_'!B23="","",'TD Siniestros_'!B23) -> GMX Seguros | D25: =IF('TD Siniestros_'!C23="","",'TD Siniestros_'!C23) -> 5157067.151 | E25: =IF('TD Siniestros_'!D23="","",'TD Siniestros_'!D23) -> 3.030747259 | F25: =IF('TD Siniestros_'!E23="","",'TD Siniestros_'!E23) -> 0 | G25: =IF('TD Siniestros_'!F23="","",'TD Siniestros_'!F23) -> 40.65283905 | H25: =IF('TD Siniestros_'!G23="","",'TD Siniestros_'!G23) -> 46.17210127 | I25: =IF('TD Siniestros_'!H23="","",'TD Siniestros_'!H23) -> 1.250715217
B26: =IF('TD Siniestros_'!A24="","",'TD Siniestros_'!A24) -> 17 | C26: =IF('TD Siniestros_'!B24="","",'TD Siniestros_'!B24) -> Pensiones BBVA Bancomer | D26: =IF('TD Siniestros_'!C24="","",'TD Siniestros_'!C24) -> 7674691.81 | E26: =IF('TD Siniestros_'!D24="","",'TD Siniestros_'!D24) -> 14.20687689 | F26: =IF('TD Siniestros_'!E24="","",'TD Siniestros_'!E24) -> 0 | G26: =IF('TD Siniestros_'!F24="","",'TD Siniestros_'!F24) -> 64.44574776 | H26: =IF('TD Siniestros_'!G24="","",'TD Siniestros_'!G24) -> 68.41195885 | I26: =IF('TD Siniestros_'!H24="","",'TD Siniestros_'!H24) -> 1.86130092
B27: =IF('TD Siniestros_'!A25="","",'TD Siniestros_'!A25) -> 18 | C27: =IF('TD Siniestros_'!B25="","",'TD Siniestros_'!B25) -> ProFuturo G.N.P. | D27: =IF('TD Siniestros_'!C25="","",'TD Siniestros_'!C25) -> 4846781.697 | E27: =IF('TD Siniestros_'!D25="","",'TD Siniestros_'!D25) -> 19.76469603 | F27: =IF('TD Siniestros_'!E25="","",'TD Siniestros_'!E25) -> 0 | G27: =IF('TD Siniestros_'!F25="","",'TD Siniestros_'!F25) -> 48.63951305 | H27: =IF('TD Siniestros_'!G25="","",'TD Siniestros_'!G25) -> 27.14506251 | I27: =IF('TD Siniestros_'!H25="","",'TD Siniestros_'!H25) -> 1.175463387
B28: =IF('TD Siniestros_'!A26="","",'TD Siniestros_'!A26) -> 19 | C28: =IF('TD Siniestros_'!B26="","",'TD Siniestros_'!B26) -> HDI Seguros | D28: =IF('TD Siniestros_'!C26="","",'TD Siniestros_'!C26) -> 5853239.968 | E28: =IF('TD Siniestros_'!D26="","",'TD Siniestros_'!D26) -> 8.368322727 | F28: =IF('TD Siniestros_'!E26="","",'TD Siniestros_'!E26) -> 0 | G28: =IF('TD Siniestros_'!F26="","",'TD Siniestros_'!F26) -> 60.58883498 | H28: =IF('TD Siniestros_'!G26="","",'TD Siniestros_'!G26) -> 62.22052592 | I28: =IF('TD Siniestros_'!H26="","",'TD Siniestros_'!H26) -> 1.419554192
B29: =IF('TD Siniestros_'!A27="","",'TD Siniestros_'!A27) -> 20 | C29: =IF('TD Siniestros_'!B27="","",'TD Siniestros_'!B27) -> Afirme | D29: =IF('TD Siniestros_'!C27="","",'TD Siniestros_'!C27) -> 5905353.598 | E29: =IF('TD Siniestros_'!D27="","",'TD Siniestros_'!D27) -> 10.07744279 | F29: =IF('TD Siniestros_'!E27="","",'TD Siniestros_'!E27) -> 14012.8626 | G29: =IF('TD Siniestros_'!F27="","",'TD Siniestros_'!F27) -> 77.77687828 | H29: =IF('TD Siniestros_'!G27="","",'TD Siniestros_'!G27) -> 52.59907175 | I29: =IF('TD Siniestros_'!H27="","",'TD Siniestros_'!H27) -> 1.432193026
B30: =IF('TD Siniestros_'!A28="","",'TD Siniestros_'!A28) -> 21 | C30: =IF('TD Siniestros_'!B28="","",'TD Siniestros_'!B28) -> Seguros SURA | D30: =IF('TD Siniestros_'!C28="","",'TD Siniestros_'!C28) -> 3724756.846 | E30: =IF('TD Siniestros_'!D28="","",'TD Siniestros_'!D28) -> 6.139910261 | F30: =IF('TD Siniestros_'!E28="","",'TD Siniestros_'!E28) -> 13072.73884 | G30: =IF('TD Siniestros_'!F28="","",'TD Siniestros_'!F28) -> 53.86989844 | H30: =IF('TD Siniestros_'!G28="","",'TD Siniestros_'!G28) -> 59.47885238 | I30: =IF('TD Siniestros_'!H28="","",'TD Siniestros_'!H28) -> 0.9033448527
B31: =IF('TD Siniestros_'!A29="","",'TD Siniestros_'!A29) -> 22 | C31: =IF('TD Siniestros_'!B29="","",'TD Siniestros_'!B29) -> Agroasemex | D31: =IF('TD Siniestros_'!C29="","",'TD Siniestros_'!C29) -> 1340021.987 | E31: =IF('TD Siniestros_'!D29="","",'TD Siniestros_'!D29) ->  | F31: =IF('TD Siniestros_'!E29="","",'TD Siniestros_'!E29) -> -6173.53515 | G31: =IF('TD Siniestros_'!F29="","",'TD Siniestros_'!F29) -> 19.40158963 | H31: =IF('TD Siniestros_'!G29="","",'TD Siniestros_'!G29) ->  | I31: =IF('TD Siniestros_'!H29="","",'TD Siniestros_'!H29) -> 0.3249881843
B32: =IF('TD Siniestros_'!A30="","",'TD Siniestros_'!A30) -> 23 | C32: =IF('TD Siniestros_'!B30="","",'TD Siniestros_'!B30) -> HSBC Seguros | D32: =IF('TD Siniestros_'!C30="","",'TD Siniestros_'!C30) -> 2724139.573 | E32: =IF('TD Siniestros_'!D30="","",'TD Siniestros_'!D30) -> 19.97632894 | F32: =IF('TD Siniestros_'!E30="","",'TD Siniestros_'!E30) -> 0 | G32: =IF('TD Siniestros_'!F30="","",'TD Siniestros_'!F30) -> 41.14906581 | H32: =IF('TD Siniestros_'!G30="","",'TD Siniestros_'!G30) -> 35.10249434 | I32: =IF('TD Siniestros_'!H30="","",'TD Siniestros_'!H30) -> 0.6606706325
B33: =IF('TD Siniestros_'!A31="","",'TD Siniestros_'!A31) -> 24 | C33: =IF('TD Siniestros_'!B31="","",'TD Siniestros_'!B31) -> AIG Seguros | D33: =IF('TD Siniestros_'!C31="","",'TD Siniestros_'!C31) -> 1592581.972 | E33: =IF('TD Siniestros_'!D31="","",'TD Siniestros_'!D31) -> 72.32218716 | F33: =IF('TD Siniestros_'!E31="","",'TD Siniestros_'!E31) -> 11439.48426 | G33: =IF('TD Siniestros_'!F31="","",'TD Siniestros_'!F31) -> 25.25057749 | H33: =IF('TD Siniestros_'!G31="","",'TD Siniestros_'!G31) -> 17.47271346 | I33: =IF('TD Siniestros_'!H31="","",'TD Siniestros_'!H31) -> 0.3862401726
B34: =IF('TD Siniestros_'!A32="","",'TD Siniestros_'!A32) -> 25 | C34: =IF('TD Siniestros_'!B32="","",'TD Siniestros_'!B32) -> Zurich Aseguradora Mexicana | D34: =IF('TD Siniestros_'!C32="","",'TD Siniestros_'!C32) -> 4431024.178 | E34: =IF('TD Siniestros_'!D32="","",'TD Siniestros_'!D32) -> 1778.570612 | F34: =IF('TD Siniestros_'!E32="","",'TD Siniestros_'!E32) -> 10858.88839 | G34: =IF('TD Siniestros_'!F32="","",'TD Siniestros_'!F32) -> 81.80013314 | H34: =IF('TD Siniestros_'!G32="","",'TD Siniestros_'!G32) -> 91.56661632 | I34: =IF('TD Siniestros_'!H32="","",'TD Siniestros_'!H32) -> 1.074631996
B35: =IF('TD Siniestros_'!A33="","",'TD Siniestros_'!A33) -> 26 | C35: =IF('TD Siniestros_'!B33="","",'TD Siniestros_'!B33) -> BUPA México | D35: =IF('TD Siniestros_'!C33="","",'TD Siniestros_'!C33) -> 2861700.089 | E35: =IF('TD Siniestros_'!D33="","",'TD Siniestros_'!D33) -> 12.11372496 | F35: =IF('TD Siniestros_'!E33="","",'TD Siniestros_'!E33) -> 0 | G35: =IF('TD Siniestros_'!F33="","",'TD Siniestros_'!F33) -> 70.99000776 | H35: =IF('TD Siniestros_'!G33="","",'TD Siniestros_'!G33) -> 71.01707795 | I35: =IF('TD Siniestros_'!H33="","",'TD Siniestros_'!H33) -> 0.6940324302
B36: =IF('TD Siniestros_'!A34="","",'TD Siniestros_'!A34) -> 27 | C36: =IF('TD Siniestros_'!B34="","",'TD Siniestros_'!B34) -> Seguros Azteca | D36: =IF('TD Siniestros_'!C34="","",'TD Siniestros_'!C34) -> 2753059.703 | E36: =IF('TD Siniestros_'!D34="","",'TD Siniestros_'!D34) -> -38.73810208 | F36: =IF('TD Siniestros_'!E34="","",'TD Siniestros_'!E34) -> 0 | G36: =IF('TD Siniestros_'!F34="","",'TD Siniestros_'!F34) -> 70.29373319 | H36: =IF('TD Siniestros_'!G34="","",'TD Siniestros_'!G34) -> 90.18359267 | I36: =IF('TD Siniestros_'!H34="","",'TD Siniestros_'!H34) -> 0.667684473
B37: =IF('TD Siniestros_'!A35="","",'TD Siniestros_'!A35) -> 28 | C37: =IF('TD Siniestros_'!B35="","",'TD Siniestros_'!B35) -> Seguros Argos | D37: =IF('TD Siniestros_'!C35="","",'TD Siniestros_'!C35) -> 2710936.054 | E37: =IF('TD Siniestros_'!D35="","",'TD Siniestros_'!D35) -> -17.079164 | F37: =IF('TD Siniestros_'!E35="","",'TD Siniestros_'!E35) -> 9679.21783 | G37: =IF('TD Siniestros_'!F35="","",'TD Siniestros_'!F35) -> 72.10444296 | H37: =IF('TD Siniestros_'!G35="","",'TD Siniestros_'!G35) -> 106.5912286 | I37: =IF('TD Siniestros_'!H35="","",'TD Siniestros_'!H35) -> 0.6574684554
B38: =IF('TD Siniestros_'!A36="","",'TD Siniestros_'!A36) -> 29 | C38: =IF('TD Siniestros_'!B36="","",'TD Siniestros_'!B36) -> Hir Seguros | D38: =IF('TD Siniestros_'!C36="","",'TD Siniestros_'!C36) -> 1478646.584 | E38: =IF('TD Siniestros_'!D36="","",'TD Siniestros_'!D36) -> -13.47691829 | F38: =IF('TD Siniestros_'!E36="","",'TD Siniestros_'!E36) -> 393008.1154 | G38: =IF('TD Siniestros_'!F36="","",'TD Siniestros_'!F36) -> 39.89891637 | H38: =IF('TD Siniestros_'!G36="","",'TD Siniestros_'!G36) -> 87.64563062 | I38: =IF('TD Siniestros_'!H36="","",'TD Siniestros_'!H36) -> 0.3586080477
B39: =IF('TD Siniestros_'!A37="","",'TD Siniestros_'!A37) -> 30 | C39: =IF('TD Siniestros_'!B37="","",'TD Siniestros_'!B37) -> FM Global | D39: =IF('TD Siniestros_'!C37="","",'TD Siniestros_'!C37) -> 264444.2368 | E39: =IF('TD Siniestros_'!D37="","",'TD Siniestros_'!D37) -> 19.5184614 | F39: =IF('TD Siniestros_'!E37="","",'TD Siniestros_'!E37) -> 0 | G39: =IF('TD Siniestros_'!F37="","",'TD Siniestros_'!F37) -> 7.503922751 | H39: =IF('TD Siniestros_'!G37="","",'TD Siniestros_'!G37) -> 7.013813598 | I39: =IF('TD Siniestros_'!H37="","",'TD Siniestros_'!H37) -> 0.06413421065
B40: =IF('TD Siniestros_'!A38="","",'TD Siniestros_'!A38) -> 31 | C40: =IF('TD Siniestros_'!B38="","",'TD Siniestros_'!B38) -> ANA | D40: =IF('TD Siniestros_'!C38="","",'TD Siniestros_'!C38) -> 2008183.86 | E40: =IF('TD Siniestros_'!D38="","",'TD Siniestros_'!D38) -> 36.45599883 | F40: =IF('TD Siniestros_'!E38="","",'TD Siniestros_'!E38) -> 10762.34681 | G40: =IF('TD Siniestros_'!F38="","",'TD Siniestros_'!F38) -> 64.59548471 | H40: =IF('TD Siniestros_'!G38="","",'TD Siniestros_'!G38) -> 51.70606169 | I40: =IF('TD Siniestros_'!H38="","",'TD Siniestros_'!H38) -> 0.4870338194
B41: =IF('TD Siniestros_'!A39="","",'TD Siniestros_'!A39) -> 32 | C41: =IF('TD Siniestros_'!B39="","",'TD Siniestros_'!B39) -> Ve Por Más | D41: =IF('TD Siniestros_'!C39="","",'TD Siniestros_'!C39) -> 1875257.664 | E41: =IF('TD Siniestros_'!D39="","",'TD Siniestros_'!D39) -> -14.696254 | F41: =IF('TD Siniestros_'!E39="","",'TD Siniestros_'!E39) -> 6802.46087 | G41: =IF('TD Siniestros_'!F39="","",'TD Siniestros_'!F39) -> 60.97797658 | H41: =IF('TD Siniestros_'!G39="","",'TD Siniestros_'!G39) -> 70.03340567 | I41: =IF('TD Siniestros_'!H39="","",'TD Siniestros_'!H39) -> 0.4547959582
B42: =IF('TD Siniestros_'!A40="","",'TD Siniestros_'!A40) -> 33 | C42: =IF('TD Siniestros_'!B40="","",'TD Siniestros_'!B40) -> Seguros Azteca Daños | D42: =IF('TD Siniestros_'!C40="","",'TD Siniestros_'!C40) -> 923246.8169 | E42: =IF('TD Siniestros_'!D40="","",'TD Siniestros_'!D40) -> 16.94828399 | F42: =IF('TD Siniestros_'!E40="","",'TD Siniestros_'!E40) -> 31342.30935 | G42: =IF('TD Siniestros_'!F40="","",'TD Siniestros_'!F40) -> 30.35511457 | H42: =IF('TD Siniestros_'!G40="","",'TD Siniestros_'!G40) -> 42.80490663 | I42: =IF('TD Siniestros_'!H40="","",'TD Siniestros_'!H40) -> 0.2239099878
B43: =IF('TD Siniestros_'!A41="","",'TD Siniestros_'!A41) -> 34 | C43: =IF('TD Siniestros_'!B41="","",'TD Siniestros_'!B41) -> Cardif Vida | D43: =IF('TD Siniestros_'!C41="","",'TD Siniestros_'!C41) -> 853584.8887 | E43: =IF('TD Siniestros_'!D41="","",'TD Siniestros_'!D41) -> -51.41869052 | F43: =IF('TD Siniestros_'!E41="","",'TD Siniestros_'!E41) -> 56978.55681 | G43: =IF('TD Siniestros_'!F41="","",'TD Siniestros_'!F41) -> 28.91329901 | H43: =IF('TD Siniestros_'!G41="","",'TD Siniestros_'!G41) -> 62.09891007 | I43: =IF('TD Siniestros_'!H41="","",'TD Siniestros_'!H41) -> 0.2070152623
B44: =IF('TD Siniestros_'!A42="","",'TD Siniestros_'!A42) -> 35 | C44: =IF('TD Siniestros_'!B42="","",'TD Siniestros_'!B42) -> Plan Seguro | D44: =IF('TD Siniestros_'!C42="","",'TD Siniestros_'!C42) -> 1967867.285 | E44: =IF('TD Siniestros_'!D42="","",'TD Siniestros_'!D42) -> 12.8934701 | F44: =IF('TD Siniestros_'!E42="","",'TD Siniestros_'!E42) -> 0 | G44: =IF('TD Siniestros_'!F42="","",'TD Siniestros_'!F42) -> 67.03557335 | H44: =IF('TD Siniestros_'!G42="","",'TD Siniestros_'!G42) -> 67.14197453 | I44: =IF('TD Siniestros_'!H42="","",'TD Siniestros_'!H42) -> 0.4772560617
B45: =IF('TD Siniestros_'!A43="","",'TD Siniestros_'!A43) -> 36 | C45: =IF('TD Siniestros_'!B43="","",'TD Siniestros_'!B43) -> General de Seguros | D45: =IF('TD Siniestros_'!C43="","",'TD Siniestros_'!C43) -> 2052103.731 | E45: =IF('TD Siniestros_'!D43="","",'TD Siniestros_'!D43) -> 38.1416608 | F45: =IF('TD Siniestros_'!E43="","",'TD Siniestros_'!E43) -> 16906.32705 | G45: =IF('TD Siniestros_'!F43="","",'TD Siniestros_'!F43) -> 76.7349225 | H45: =IF('TD Siniestros_'!G43="","",'TD Siniestros_'!G43) -> 59.0402733 | I45: =IF('TD Siniestros_'!H43="","",'TD Siniestros_'!H43) -> 0.497685465
B46: =IF('TD Siniestros_'!A44="","",'TD Siniestros_'!A44) -> 37 | C46: =IF('TD Siniestros_'!B44="","",'TD Siniestros_'!B44) -> Patrimonial Vida | D46: =IF('TD Siniestros_'!C44="","",'TD Siniestros_'!C44) -> 1823633.754 | E46: =IF('TD Siniestros_'!D44="","",'TD Siniestros_'!D44) -> 14.40697739 | F46: =IF('TD Siniestros_'!E44="","",'TD Siniestros_'!E44) -> 1484.77202 | G46: =IF('TD Siniestros_'!F44="","",'TD Siniestros_'!F44) -> 69.12166445 | H46: =IF('TD Siniestros_'!G44="","",'TD Siniestros_'!G44) -> 109.5610774 | I46: =IF('TD Siniestros_'!H44="","",'TD Siniestros_'!H44) -> 0.4422758942
B47: =IF('TD Siniestros_'!A45="","",'TD Siniestros_'!A45) -> 38 | C47: =IF('TD Siniestros_'!B45="","",'TD Siniestros_'!B45) -> El Potosí | D47: =IF('TD Siniestros_'!C45="","",'TD Siniestros_'!C45) -> 1370824.133 | E47: =IF('TD Siniestros_'!D45="","",'TD Siniestros_'!D45) -> 30.00221667 | F47: =IF('TD Siniestros_'!E45="","",'TD Siniestros_'!E45) -> 2247.85427 | G47: =IF('TD Siniestros_'!F45="","",'TD Siniestros_'!F45) -> 63.40514263 | H47: =IF('TD Siniestros_'!G45="","",'TD Siniestros_'!G45) -> 54.40998001 | I47: =IF('TD Siniestros_'!H45="","",'TD Siniestros_'!H45) -> 0.3324584599
B48: =IF('TD Siniestros_'!A46="","",'TD Siniestros_'!A46) -> 39 | C48: =IF('TD Siniestros_'!B46="","",'TD Siniestros_'!B46) -> Cardif Seguros Generales | D48: =IF('TD Siniestros_'!C46="","",'TD Siniestros_'!C46) -> 178083.6046 | E48: =IF('TD Siniestros_'!D46="","",'TD Siniestros_'!D46) -> -22.43889468 | F48: =IF('TD Siniestros_'!E46="","",'TD Siniestros_'!E46) -> 0 | G48: =IF('TD Siniestros_'!F46="","",'TD Siniestros_'!F46) -> 8.710650995 | H48: =IF('TD Siniestros_'!G46="","",'TD Siniestros_'!G46) -> 14.71181637 | I48: =IF('TD Siniestros_'!H46="","",'TD Siniestros_'!H46) -> 0.04318964008
B49: =IF('TD Siniestros_'!A47="","",'TD Siniestros_'!A47) -> 40 | C49: =IF('TD Siniestros_'!B47="","",'TD Siniestros_'!B47) -> Insignia Life | D49: =IF('TD Siniestros_'!C47="","",'TD Siniestros_'!C47) -> 850788.5569 | E49: =IF('TD Siniestros_'!D47="","",'TD Siniestros_'!D47) -> -33.92605874 | F49: =IF('TD Siniestros_'!E47="","",'TD Siniestros_'!E47) -> 23132.75267 | G49: =IF('TD Siniestros_'!F47="","",'TD Siniestros_'!F47) -> 43.23875089 | H49: =IF('TD Siniestros_'!G47="","",'TD Siniestros_'!G47) -> 74.04697497 | I49: =IF('TD Siniestros_'!H47="","",'TD Siniestros_'!H47) -> 0.2063370833
B50: =IF('TD Siniestros_'!A48="","",'TD Siniestros_'!A48) -> 41 | C50: =IF('TD Siniestros_'!B48="","",'TD Siniestros_'!B48) -> Prudential | D50: =IF('TD Siniestros_'!C48="","",'TD Siniestros_'!C48) -> 167226.4275 | E50: =IF('TD Siniestros_'!D48="","",'TD Siniestros_'!D48) -> -2.958229658 | F50: =IF('TD Siniestros_'!E48="","",'TD Siniestros_'!E48) -> 0 | G50: =IF('TD Siniestros_'!F48="","",'TD Siniestros_'!F48) -> 10.36665795 | H50: =IF('TD Siniestros_'!G48="","",'TD Siniestros_'!G48) -> 14.64150856 | I50: =IF('TD Siniestros_'!H48="","",'TD Siniestros_'!H48) -> 0.04055650845
B51: =IF('TD Siniestros_'!A49="","",'TD Siniestros_'!A49) -> 42 | C51: =IF('TD Siniestros_'!B49="","",'TD Siniestros_'!B49) -> El Águila | D51: =IF('TD Siniestros_'!C49="","",'TD Siniestros_'!C49) -> 593424.9589 | E51: =IF('TD Siniestros_'!D49="","",'TD Siniestros_'!D49) -> -8.960022335 | F51: =IF('TD Siniestros_'!E49="","",'TD Siniestros_'!E49) -> 0 | G51: =IF('TD Siniestros_'!F49="","",'TD Siniestros_'!F49) -> 41.58490402 | H51: =IF('TD Siniestros_'!G49="","",'TD Siniestros_'!G49) -> 52.1178089 | I51: =IF('TD Siniestros_'!H49="","",'TD Siniestros_'!H49) -> 0.1439201012
B52: =IF('TD Siniestros_'!A50="","",'TD Siniestros_'!A50) -> 43 | C52: =IF('TD Siniestros_'!B50="","",'TD Siniestros_'!B50) -> Tokio Marine | D52: =IF('TD Siniestros_'!C50="","",'TD Siniestros_'!C50) -> 595057.628 | E52: =IF('TD Siniestros_'!D50="","",'TD Siniestros_'!D50) -> -21.4002016 | F52: =IF('TD Siniestros_'!E50="","",'TD Siniestros_'!E50) -> -1321.50783 | G52: =IF('TD Siniestros_'!F50="","",'TD Siniestros_'!F50) -> 42.68901534 | H52: =IF('TD Siniestros_'!G50="","",'TD Siniestros_'!G50) -> 55.0829104 | I52: =IF('TD Siniestros_'!H50="","",'TD Siniestros_'!H50) -> 0.1443160635
B53: =IF('TD Siniestros_'!A51="","",'TD Siniestros_'!A51) -> 44 | C53: =IF('TD Siniestros_'!B51="","",'TD Siniestros_'!B51) -> La Latinoamericana | D53: =IF('TD Siniestros_'!C51="","",'TD Siniestros_'!C51) -> 773285.0902 | E53: =IF('TD Siniestros_'!D51="","",'TD Siniestros_'!D51) -> -3.015851218 | F53: =IF('TD Siniestros_'!E51="","",'TD Siniestros_'!E51) -> 3424.28538 | G53: =IF('TD Siniestros_'!F51="","",'TD Siniestros_'!F51) -> 57.51044068 | H53: =IF('TD Siniestros_'!G51="","",'TD Siniestros_'!G51) -> 60.3072299 | I53: =IF('TD Siniestros_'!H51="","",'TD Siniestros_'!H51) -> 0.1875405925
B54: =IF('TD Siniestros_'!A52="","",'TD Siniestros_'!A52) -> 45 | C54: =IF('TD Siniestros_'!B52="","",'TD Siniestros_'!B52) -> HDI Global Seguros | D54: =IF('TD Siniestros_'!C52="","",'TD Siniestros_'!C52) -> 389690.0421 | E54: =IF('TD Siniestros_'!D52="","",'TD Siniestros_'!D52) -> 59.26142399 | F54: =IF('TD Siniestros_'!E52="","",'TD Siniestros_'!E52) -> 0 | G54: =IF('TD Siniestros_'!F52="","",'TD Siniestros_'!F52) -> 34.58318966 | H54: =IF('TD Siniestros_'!G52="","",'TD Siniestros_'!G52) -> 23.45106532 | I54: =IF('TD Siniestros_'!H52="","",'TD Siniestros_'!H52) -> 0.09450938899
B55: =IF('TD Siniestros_'!A53="","",'TD Siniestros_'!A53) -> 46 | C55: =IF('TD Siniestros_'!B53="","",'TD Siniestros_'!B53) -> Assurant Vida | D55: =IF('TD Siniestros_'!C53="","",'TD Siniestros_'!C53) -> 246251.0592 | E55: =IF('TD Siniestros_'!D53="","",'TD Siniestros_'!D53) -> -51.15474069 | F55: =IF('TD Siniestros_'!E53="","",'TD Siniestros_'!E53) -> 8345.47733 | G55: =IF('TD Siniestros_'!F53="","",'TD Siniestros_'!F53) -> 22.93711531 | H55: =IF('TD Siniestros_'!G53="","",'TD Siniestros_'!G53) -> 49.2039163 | I55: =IF('TD Siniestros_'!H53="","",'TD Siniestros_'!H53) -> 0.05972191906
B56: =IF('TD Siniestros_'!A54="","",'TD Siniestros_'!A54) -> 47 | C56: =IF('TD Siniestros_'!B54="","",'TD Siniestros_'!B54) -> General de Salud | D56: =IF('TD Siniestros_'!C54="","",'TD Siniestros_'!C54) -> 677020.8711 | E56: =IF('TD Siniestros_'!D54="","",'TD Siniestros_'!D54) -> 67.08151759 | F56: =IF('TD Siniestros_'!E54="","",'TD Siniestros_'!E54) -> 0 | G56: =IF('TD Siniestros_'!F54="","",'TD Siniestros_'!F54) -> 64.24950662 | H56: =IF('TD Siniestros_'!G54="","",'TD Siniestros_'!G54) -> 78.84835697 | I56: =IF('TD Siniestros_'!H54="","",'TD Siniestros_'!H54) -> 0.1641941593
B57: =IF('TD Siniestros_'!A55="","",'TD Siniestros_'!A55) -> 48 | C57: =IF('TD Siniestros_'!B55="","",'TD Siniestros_'!B55) -> Primero Seguros | D57: =IF('TD Siniestros_'!C55="","",'TD Siniestros_'!C55) -> 548948.89 | E57: =IF('TD Siniestros_'!D55="","",'TD Siniestros_'!D55) -> 4.372589291 | F57: =IF('TD Siniestros_'!E55="","",'TD Siniestros_'!E55) -> 0 | G57: =IF('TD Siniestros_'!F55="","",'TD Siniestros_'!F55) -> 55.54774602 | H57: =IF('TD Siniestros_'!G55="","",'TD Siniestros_'!G55) -> 69.86847091 | I57: =IF('TD Siniestros_'!H55="","",'TD Siniestros_'!H55) -> 0.1331335641
B58: =IF('TD Siniestros_'!A56="","",'TD Siniestros_'!A56) -> 49 | C58: =IF('TD Siniestros_'!B56="","",'TD Siniestros_'!B56) -> BBVA Bancomer Salud | D58: =IF('TD Siniestros_'!C56="","",'TD Siniestros_'!C56) -> 715689.0064 | E58: =IF('TD Siniestros_'!D56="","",'TD Siniestros_'!D56) -> -1.328990181 | F58: =IF('TD Siniestros_'!E56="","",'TD Siniestros_'!E56) -> 0 | G58: =IF('TD Siniestros_'!F56="","",'TD Siniestros_'!F56) -> 73.62591717 | H58: =IF('TD Siniestros_'!G56="","",'TD Siniestros_'!G56) -> 60.89743696 | I58: =IF('TD Siniestros_'!H56="","",'TD Siniestros_'!H56) -> 0.1735721302
B59: =IF('TD Siniestros_'!A57="","",'TD Siniestros_'!A57) -> 50 | C59: =IF('TD Siniestros_'!B57="","",'TD Siniestros_'!B57) -> Pan-American México | D59: =IF('TD Siniestros_'!C57="","",'TD Siniestros_'!C57) -> 521869.1892 | E59: =IF('TD Siniestros_'!D57="","",'TD Siniestros_'!D57) -> -13.81330231 | F59: =IF('TD Siniestros_'!E57="","",'TD Siniestros_'!E57) -> 11078.40328 | G59: =IF('TD Siniestros_'!F57="","",'TD Siniestros_'!F57) -> 54.72016717 | H59: =IF('TD Siniestros_'!G57="","",'TD Siniestros_'!G57) -> 78.69047057 | I59: =IF('TD Siniestros_'!H57="","",'TD Siniestros_'!H57) -> 0.1265660727
B60: =IF('TD Siniestros_'!A58="","",'TD Siniestros_'!A58) -> 51 | C60: =IF('TD Siniestros_'!B58="","",'TD Siniestros_'!B58) -> Atradius | D60: =IF('TD Siniestros_'!C58="","",'TD Siniestros_'!C58) -> 181850.3109 | E60: =IF('TD Siniestros_'!D58="","",'TD Siniestros_'!D58) -> 1476.561479 | F60: =IF('TD Siniestros_'!E58="","",'TD Siniestros_'!E58) -> 19191.945 | G60: =IF('TD Siniestros_'!F58="","",'TD Siniestros_'!F58) -> 22.48621839 | H60: =IF('TD Siniestros_'!G58="","",'TD Siniestros_'!G58) -> 1.85491421 | I60: =IF('TD Siniestros_'!H58="","",'TD Siniestros_'!H58) -> 0.0441031587
B61: =IF('TD Siniestros_'!A59="","",'TD Siniestros_'!A59) -> 52 | C61: =IF('TD Siniestros_'!B59="","",'TD Siniestros_'!B59) -> Sompo Japan | D61: =IF('TD Siniestros_'!C59="","",'TD Siniestros_'!C59) -> 29032.57158 | E61: =IF('TD Siniestros_'!D59="","",'TD Siniestros_'!D59) -> -86.98212247 | F61: =IF('TD Siniestros_'!E59="","",'TD Siniestros_'!E59) -> 9.4211 | G61: =IF('TD Siniestros_'!F59="","",'TD Siniestros_'!F59) -> 4.146056829 | H61: =IF('TD Siniestros_'!G59="","",'TD Siniestros_'!G59) -> 36.81038693 | I61: =IF('TD Siniestros_'!H59="","",'TD Siniestros_'!H59) -> 0.007041110382
B62: =IF('TD Siniestros_'!A60="","",'TD Siniestros_'!A60) -> 53 | C62: =IF('TD Siniestros_'!B60="","",'TD Siniestros_'!B60) -> Solunion Crédito | D62: =IF('TD Siniestros_'!C60="","",'TD Siniestros_'!C60) -> 142452.9281 | E62: =IF('TD Siniestros_'!D60="","",'TD Siniestros_'!D60) -> -38.97443075 | F62: =IF('TD Siniestros_'!E60="","",'TD Siniestros_'!E60) -> 733.84482 | G62: =IF('TD Siniestros_'!F60="","",'TD Siniestros_'!F60) -> 21.10412377 | H62: =IF('TD Siniestros_'!G60="","",'TD Siniestros_'!G60) -> 43.30370111 | I62: =IF('TD Siniestros_'!H60="","",'TD Siniestros_'!H60) -> 0.03454832749
B63: =IF('TD Siniestros_'!A61="","",'TD Siniestros_'!A61) -> 54 | C63: =IF('TD Siniestros_'!B61="","",'TD Siniestros_'!B61) -> Swiss Re Corporate Solutions | D63: =IF('TD Siniestros_'!C61="","",'TD Siniestros_'!C61) -> 34790.2682 | E63: =IF('TD Siniestros_'!D61="","",'TD Siniestros_'!D61) -> -248.2433338 | F63: =IF('TD Siniestros_'!E61="","",'TD Siniestros_'!E61) -> -293.2492 | G63: =IF('TD Siniestros_'!F61="","",'TD Siniestros_'!F61) -> 5.171588608 | H63: =IF('TD Siniestros_'!G61="","",'TD Siniestros_'!G61) -> -7.39152015 | I63: =IF('TD Siniestros_'!H61="","",'TD Siniestros_'!H61) -> 0.008437492971
B64: =IF('TD Siniestros_'!A62="","",'TD Siniestros_'!A62) -> 55 | C64: =IF('TD Siniestros_'!B62="","",'TD Siniestros_'!B62) -> Berkley Seguros | D64: =IF('TD Siniestros_'!C62="","",'TD Siniestros_'!C62) -> 412985.0796 | E64: =IF('TD Siniestros_'!D62="","",'TD Siniestros_'!D62) -> 146.5362575 | F64: =IF('TD Siniestros_'!E62="","",'TD Siniestros_'!E62) -> 2418.83794 | G64: =IF('TD Siniestros_'!F62="","",'TD Siniestros_'!F62) -> 64.9289481 | H64: =IF('TD Siniestros_'!G62="","",'TD Siniestros_'!G62) -> 36.02453067 | I64: =IF('TD Siniestros_'!H62="","",'TD Siniestros_'!H62) -> 0.1001590067
B65: =IF('TD Siniestros_'!A63="","",'TD Siniestros_'!A63) -> 56 | C65: =IF('TD Siniestros_'!B63="","",'TD Siniestros_'!B63) -> PREVEM Seguros | D65: =IF('TD Siniestros_'!C63="","",'TD Siniestros_'!C63) -> 355377.5728 | E65: =IF('TD Siniestros_'!D63="","",'TD Siniestros_'!D63) -> 39.63269182 | F65: =IF('TD Siniestros_'!E63="","",'TD Siniestros_'!E63) -> 0 | G65: =IF('TD Siniestros_'!F63="","",'TD Siniestros_'!F63) -> 61.18644071 | H65: =IF('TD Siniestros_'!G63="","",'TD Siniestros_'!G63) -> 51.32703379 | I65: =IF('TD Siniestros_'!H63="","",'TD Siniestros_'!H63) -> 0.08618777397
B66: =IF('TD Siniestros_'!A64="","",'TD Siniestros_'!A64) -> 57 | C66: =IF('TD Siniestros_'!B64="","",'TD Siniestros_'!B64) -> Patrimonial Inbursa | D66: =IF('TD Siniestros_'!C64="","",'TD Siniestros_'!C64) -> 61401.30629 | E66: =IF('TD Siniestros_'!D64="","",'TD Siniestros_'!D64) -> -68.21434167 | F66: =IF('TD Siniestros_'!E64="","",'TD Siniestros_'!E64) -> 0 | G66: =IF('TD Siniestros_'!F64="","",'TD Siniestros_'!F64) -> 10.67058583 | H66: =IF('TD Siniestros_'!G64="","",'TD Siniestros_'!G64) -> 30.50713462 | I66: =IF('TD Siniestros_'!H64="","",'TD Siniestros_'!H64) -> 0.01489132211
B67: =IF('TD Siniestros_'!A65="","",'TD Siniestros_'!A65) -> 58 | C67: =IF('TD Siniestros_'!B65="","",'TD Siniestros_'!B65) -> AXA Salud | D67: =IF('TD Siniestros_'!C65="","",'TD Siniestros_'!C65) -> 523388.0102 | E67: =IF('TD Siniestros_'!D65="","",'TD Siniestros_'!D65) -> 14.90212563 | F67: =IF('TD Siniestros_'!E65="","",'TD Siniestros_'!E65) -> 0 | G67: =IF('TD Siniestros_'!F65="","",'TD Siniestros_'!F65) -> 91.21486808 | H67: =IF('TD Siniestros_'!G65="","",'TD Siniestros_'!G65) -> 278.140804 | I67: =IF('TD Siniestros_'!H65="","",'TD Siniestros_'!H65) -> 0.1269344241
B68: =IF('TD Siniestros_'!A66="","",'TD Siniestros_'!A66) -> 59 | C68: =IF('TD Siniestros_'!B66="","",'TD Siniestros_'!B66) -> Dentegra | D68: =IF('TD Siniestros_'!C66="","",'TD Siniestros_'!C66) -> 165464.5238 | E68: =IF('TD Siniestros_'!D66="","",'TD Siniestros_'!D66) -> 19.59543455 | F68: =IF('TD Siniestros_'!E66="","",'TD Siniestros_'!E66) -> 53.53645 | G68: =IF('TD Siniestros_'!F66="","",'TD Siniestros_'!F66) -> 32.69598977 | H68: =IF('TD Siniestros_'!G66="","",'TD Siniestros_'!G66) -> 30.75140012 | I68: =IF('TD Siniestros_'!H66="","",'TD Siniestros_'!H66) -> 0.04012920361
B69: =IF('TD Siniestros_'!A67="","",'TD Siniestros_'!A67) -> 60 | C69: =IF('TD Siniestros_'!B67="","",'TD Siniestros_'!B67) -> Skandia Life | D69: =IF('TD Siniestros_'!C67="","",'TD Siniestros_'!C67) -> 66540.00445 | E69: =IF('TD Siniestros_'!D67="","",'TD Siniestros_'!D67) -> -0.09128820846 | F69: =IF('TD Siniestros_'!E67="","",'TD Siniestros_'!E67) -> 0 | G69: =IF('TD Siniestros_'!F67="","",'TD Siniestros_'!F67) -> 14.88108665 | H69: =IF('TD Siniestros_'!G67="","",'TD Siniestros_'!G67) -> 15.59925591 | I69: =IF('TD Siniestros_'!H67="","",'TD Siniestros_'!H67) -> 0.0161375824
B70: =IF('TD Siniestros_'!A68="","",'TD Siniestros_'!A68) -> 61 | C70: =IF('TD Siniestros_'!B68="","",'TD Siniestros_'!B68) -> Coface | D70: =IF('TD Siniestros_'!C68="","",'TD Siniestros_'!C68) -> 46682.78404 | E70: =IF('TD Siniestros_'!D68="","",'TD Siniestros_'!D68) -> 243.4001476 | F70: =IF('TD Siniestros_'!E68="","",'TD Siniestros_'!E68) -> 13239.2675 | G70: =IF('TD Siniestros_'!F68="","",'TD Siniestros_'!F68) -> 12.10704807 | H70: =IF('TD Siniestros_'!G68="","",'TD Siniestros_'!G68) -> 4.114303385 | I70: =IF('TD Siniestros_'!H68="","",'TD Siniestros_'!H68) -> 0.01132171962
B71: =IF('TD Siniestros_'!A69="","",'TD Siniestros_'!A69) -> 62 | C71: =IF('TD Siniestros_'!B69="","",'TD Siniestros_'!B69) -> SHF Cred Vivienda | D71: =IF('TD Siniestros_'!C69="","",'TD Siniestros_'!C69) -> 64047.90936 | E71: =IF('TD Siniestros_'!D69="","",'TD Siniestros_'!D69) -> -158.7933989 | F71: =IF('TD Siniestros_'!E69="","",'TD Siniestros_'!E69) -> 0 | G71: =IF('TD Siniestros_'!F69="","",'TD Siniestros_'!F69) -> 16.91494503 | H71: =IF('TD Siniestros_'!G69="","",'TD Siniestros_'!G69) -> -25.96742882 | I71: =IF('TD Siniestros_'!H69="","",'TD Siniestros_'!H69) -> 0.01553318824
B72: =IF('TD Siniestros_'!A70="","",'TD Siniestros_'!A70) -> 63 | C72: =IF('TD Siniestros_'!B70="","",'TD Siniestros_'!B70) -> MediAccess | D72: =IF('TD Siniestros_'!C70="","",'TD Siniestros_'!C70) -> 143738.2977 | E72: =IF('TD Siniestros_'!D70="","",'TD Siniestros_'!D70) -> 5.111495962 | F72: =IF('TD Siniestros_'!E70="","",'TD Siniestros_'!E70) -> 0 | G72: =IF('TD Siniestros_'!F70="","",'TD Siniestros_'!F70) -> 50.02150567 | H72: =IF('TD Siniestros_'!G70="","",'TD Siniestros_'!G70) -> 61.52235207 | I72: =IF('TD Siniestros_'!H70="","",'TD Siniestros_'!H70) -> 0.03486006114
B73: =IF('TD Siniestros_'!A71="","",'TD Siniestros_'!A71) -> 64 | C73: =IF('TD Siniestros_'!B71="","",'TD Siniestros_'!B71) -> Patrimonial Daños | D73: =IF('TD Siniestros_'!C71="","",'TD Siniestros_'!C71) -> 41259.52115 | E73: =IF('TD Siniestros_'!D71="","",'TD Siniestros_'!D71) -> -20.8717537 | F73: =IF('TD Siniestros_'!E71="","",'TD Siniestros_'!E71) -> 0 | G73: =IF('TD Siniestros_'!F71="","",'TD Siniestros_'!F71) -> 14.47839957 | H73: =IF('TD Siniestros_'!G71="","",'TD Siniestros_'!G71) -> 30.17264129 | I73: =IF('TD Siniestros_'!H71="","",'TD Siniestros_'!H71) -> 0.01000644541
B74: =IF('TD Siniestros_'!A72="","",'TD Siniestros_'!A72) -> 65 | C74: =IF('TD Siniestros_'!B72="","",'TD Siniestros_'!B72) -> Assurant Daños | D74: =IF('TD Siniestros_'!C72="","",'TD Siniestros_'!C72) -> 62642.31524 | E74: =IF('TD Siniestros_'!D72="","",'TD Siniestros_'!D72) -> 12.58281005 | F74: =IF('TD Siniestros_'!E72="","",'TD Siniestros_'!E72) -> 511.87678 | G74: =IF('TD Siniestros_'!F72="","",'TD Siniestros_'!F72) -> 32.11500248 | H74: =IF('TD Siniestros_'!G72="","",'TD Siniestros_'!G72) -> 31.65567721 | I74: =IF('TD Siniestros_'!H72="","",'TD Siniestros_'!H72) -> 0.01519229721
B75: =IF('TD Siniestros_'!A73="","",'TD Siniestros_'!A73) -> 66 | C75: =IF('TD Siniestros_'!B73="","",'TD Siniestros_'!B73) -> Centauro | D75: =IF('TD Siniestros_'!C73="","",'TD Siniestros_'!C73) -> 94180.36984 | E75: =IF('TD Siniestros_'!D73="","",'TD Siniestros_'!D73) -> 25.65891414 | F75: =IF('TD Siniestros_'!E73="","",'TD Siniestros_'!E73) -> -38.20543 | G75: =IF('TD Siniestros_'!F73="","",'TD Siniestros_'!F73) -> 51.44519677 | H75: =IF('TD Siniestros_'!G73="","",'TD Siniestros_'!G73) -> 46.30512157 | I75: =IF('TD Siniestros_'!H73="","",'TD Siniestros_'!H73) -> 0.02284104865
B76: =IF('TD Siniestros_'!A74="","",'TD Siniestros_'!A74) -> 67 | C76: =IF('TD Siniestros_'!B74="","",'TD Siniestros_'!B74) -> Tláloc Seguros | D76: =IF('TD Siniestros_'!C74="","",'TD Siniestros_'!C74) -> 74814.19031 | E76: =IF('TD Siniestros_'!D74="","",'TD Siniestros_'!D74) -> -21.16103183 | F76: =IF('TD Siniestros_'!E74="","",'TD Siniestros_'!E74) -> 0 | G76: =IF('TD Siniestros_'!F74="","",'TD Siniestros_'!F74) -> 65.22002829 | H76: =IF('TD Siniestros_'!G74="","",'TD Siniestros_'!G74) -> 77.34446665 | I76: =IF('TD Siniestros_'!H74="","",'TD Siniestros_'!H74) -> 0.01814427532
B77: =IF('TD Siniestros_'!A75="","",'TD Siniestros_'!A75) -> 68 | C77: =IF('TD Siniestros_'!B75="","",'TD Siniestros_'!B75) -> Virginia Surety | D77: =IF('TD Siniestros_'!C75="","",'TD Siniestros_'!C75) -> 28969.15519 | E77: =IF('TD Siniestros_'!D75="","",'TD Siniestros_'!D75) -> 104.2153143 | F77: =IF('TD Siniestros_'!E75="","",'TD Siniestros_'!E75) -> 0 | G77: =IF('TD Siniestros_'!F75="","",'TD Siniestros_'!F75) -> 26.62483415 | H77: =IF('TD Siniestros_'!G75="","",'TD Siniestros_'!G75) -> 19.92064001 | I77: =IF('TD Siniestros_'!H75="","",'TD Siniestros_'!H75) -> 0.007025730353
B78: =IF('TD Siniestros_'!A76="","",'TD Siniestros_'!A76) -> 69 | C78: =IF('TD Siniestros_'!B76="","",'TD Siniestros_'!B76) -> Odontoprev | D78: =IF('TD Siniestros_'!C76="","",'TD Siniestros_'!C76) -> 21827.24595 | E78: =IF('TD Siniestros_'!D76="","",'TD Siniestros_'!D76) -> 22.02271221 | F78: =IF('TD Siniestros_'!E76="","",'TD Siniestros_'!E76) -> 0 | G78: =IF('TD Siniestros_'!F76="","",'TD Siniestros_'!F76) -> 26.84632874 | H78: =IF('TD Siniestros_'!G76="","",'TD Siniestros_'!G76) -> 23.23281138 | I78: =IF('TD Siniestros_'!H76="","",'TD Siniestros_'!H76) -> 0.005293642268
B79: =IF('TD Siniestros_'!A77="","",'TD Siniestros_'!A77) -> 70 | C79: =IF('TD Siniestros_'!B77="","",'TD Siniestros_'!B77) -> Genworth Seg. de Crédito | D79: =IF('TD Siniestros_'!C77="","",'TD Siniestros_'!C77) -> 11744.4062 | E79: =IF('TD Siniestros_'!D77="","",'TD Siniestros_'!D77) -> -243.2901927 | F79: =IF('TD Siniestros_'!E77="","",'TD Siniestros_'!E77) -> 0 | G79: =IF('TD Siniestros_'!F77="","",'TD Siniestros_'!F77) -> 16.69101939 | H79: =IF('TD Siniestros_'!G77="","",'TD Siniestros_'!G77) -> -12.43434726 | I79: =IF('TD Siniestros_'!H77="","",'TD Siniestros_'!H77) -> 0.002848306434
B80: =IF('TD Siniestros_'!A78="","",'TD Siniestros_'!A78) -> 71 | C80: =IF('TD Siniestros_'!B78="","",'TD Siniestros_'!B78) -> Crabi | D80: =IF('TD Siniestros_'!C78="","",'TD Siniestros_'!C78) -> 34438.8394 | E80: =IF('TD Siniestros_'!D78="","",'TD Siniestros_'!D78) -> -17.99389758 | F80: =IF('TD Siniestros_'!E78="","",'TD Siniestros_'!E78) -> 0 | G80: =IF('TD Siniestros_'!F78="","",'TD Siniestros_'!F78) -> 93.99397685 | H80: =IF('TD Siniestros_'!G78="","",'TD Siniestros_'!G78) -> 103.5808824 | I80: =IF('TD Siniestros_'!H78="","",'TD Siniestros_'!H78) -> 0.008352262871
B81: =IF('TD Siniestros_'!A79="","",'TD Siniestros_'!A79) -> 72 | C81: =IF('TD Siniestros_'!B79="","",'TD Siniestros_'!B79) -> SPT | D81: =IF('TD Siniestros_'!C79="","",'TD Siniestros_'!C79) -> 21183.37144 | E81: =IF('TD Siniestros_'!D79="","",'TD Siniestros_'!D79) ->  | F81: =IF('TD Siniestros_'!E79="","",'TD Siniestros_'!E79) -> 0 | G81: =IF('TD Siniestros_'!F79="","",'TD Siniestros_'!F79) -> 68.00755545 | H81: =IF('TD Siniestros_'!G79="","",'TD Siniestros_'!G79) ->  | I81: =IF('TD Siniestros_'!H79="","",'TD Siniestros_'!H79) -> 0.005137486914
B82: =IF('TD Siniestros_'!A80="","",'TD Siniestros_'!A80) -> 73 | C82: =IF('TD Siniestros_'!B80="","",'TD Siniestros_'!B80) -> Metlife Más | D82: =IF('TD Siniestros_'!C80="","",'TD Siniestros_'!C80) -> 2858.59672 | E82: =IF('TD Siniestros_'!D80="","",'TD Siniestros_'!D80) -> 234.9133013 | F82: =IF('TD Siniestros_'!E80="","",'TD Siniestros_'!E80) -> 0 | G82: =IF('TD Siniestros_'!F80="","",'TD Siniestros_'!F80) -> 9.473655071 | H82: =IF('TD Siniestros_'!G80="","",'TD Siniestros_'!G80) -> 2.744917196 | I82: =IF('TD Siniestros_'!H80="","",'TD Siniestros_'!H80) -> 0.0006932797871
B83: =IF('TD Siniestros_'!A81="","",'TD Siniestros_'!A81) -> 74 | C83: =IF('TD Siniestros_'!B81="","",'TD Siniestros_'!B81) -> Citibanamex Pensiones | D83: =IF('TD Siniestros_'!C81="","",'TD Siniestros_'!C81) -> 762473.8199 | E83: =IF('TD Siniestros_'!D81="","",'TD Siniestros_'!D81) -> 4.57336092 | F83: =IF('TD Siniestros_'!E81="","",'TD Siniestros_'!E81) -> 0 | G83: =IF('TD Siniestros_'!F81="","",'TD Siniestros_'!F81) -> 3605.169066 | H83: =IF('TD Siniestros_'!G81="","",'TD Siniestros_'!G81) -> 6024.794693 | I83: =IF('TD Siniestros_'!H81="","",'TD Siniestros_'!H81) -> 0.1849185944
B84: =IF('TD Siniestros_'!A82="","",'TD Siniestros_'!A82) -> 75 | C84: =IF('TD Siniestros_'!B82="","",'TD Siniestros_'!B82) -> Metlife Pensiones | D84: =IF('TD Siniestros_'!C82="","",'TD Siniestros_'!C82) -> 351445.4143 | E84: =IF('TD Siniestros_'!D82="","",'TD Siniestros_'!D82) -> 5.870845223 | F84: =IF('TD Siniestros_'!E82="","",'TD Siniestros_'!E82) -> 0 | G84: =IF('TD Siniestros_'!F82="","",'TD Siniestros_'!F82) -> 1717.598385 | H84: =IF('TD Siniestros_'!G82="","",'TD Siniestros_'!G82) -> 2075.267857 | I84: =IF('TD Siniestros_'!H82="","",'TD Siniestros_'!H82) -> 0.08523412914
B85: =IF('TD Siniestros_'!A83="","",'TD Siniestros_'!A83) -> 76 | C85: =IF('TD Siniestros_'!B83="","",'TD Siniestros_'!B83) -> SIS NOVA | D85: =IF('TD Siniestros_'!C83="","",'TD Siniestros_'!C83) -> 130897.2733 | E85: =IF('TD Siniestros_'!D83="","",'TD Siniestros_'!D83) -> -84.66828992 | F85: =IF('TD Siniestros_'!E83="","",'TD Siniestros_'!E83) -> 0 | G85: =IF('TD Siniestros_'!F83="","",'TD Siniestros_'!F83) -> 707.299651 | H85: =IF('TD Siniestros_'!G83="","",'TD Siniestros_'!G83) -> 90.90870398 | I85: =IF('TD Siniestros_'!H83="","",'TD Siniestros_'!H83) -> 0.03174579791
B86: =IF('TD Siniestros_'!A84="","",'TD Siniestros_'!A84) -> 77 | C86: =IF('TD Siniestros_'!B84="","",'TD Siniestros_'!B84) -> Pensiones Inbursa | D86: =IF('TD Siniestros_'!C84="","",'TD Siniestros_'!C84) -> 24422.15746 | E86: =IF('TD Siniestros_'!D84="","",'TD Siniestros_'!D84) -> 5.15741596 | F86: =IF('TD Siniestros_'!E84="","",'TD Siniestros_'!E84) -> 0 | G86: =IF('TD Siniestros_'!F84="","",'TD Siniestros_'!F84) -> 1842.937579 | H86: =IF('TD Siniestros_'!G84="","",'TD Siniestros_'!G84) -> 4354.975807 | I86: =IF('TD Siniestros_'!H84="","",'TD Siniestros_'!H84) -> 0.005922971927
B87: =IF('TD Siniestros_'!A85="","",'TD Siniestros_'!A85) -> 78 | C87: =IF('TD Siniestros_'!B85="","",'TD Siniestros_'!B85) -> Aserta Seguros de Vida | D87: =IF('TD Siniestros_'!C85="","",'TD Siniestros_'!C85) -> 23923.40601 | E87: =IF('TD Siniestros_'!D85="","",'TD Siniestros_'!D85) -> -93.9217125 | F87: =IF('TD Siniestros_'!E85="","",'TD Siniestros_'!E85) -> 0 | G87: =IF('TD Siniestros_'!F85="","",'TD Siniestros_'!F85) -> 4010.992648 | H87: =IF('TD Siniestros_'!G85="","",'TD Siniestros_'!G85) -> 228.0949316 | I87: =IF('TD Siniestros_'!H85="","",'TD Siniestros_'!H85) -> 0.005802012473
B88: =IF('TD Siniestros_'!A86="","",'TD Siniestros_'!A86) -> 79 | C88: =IF('TD Siniestros_'!B86="","",'TD Siniestros_'!B86) -> Principal México | D88: =IF('TD Siniestros_'!C86="","",'TD Siniestros_'!C86) -> 0 | E88: =IF('TD Siniestros_'!D86="","",'TD Siniestros_'!D86) ->  | F88: =IF('TD Siniestros_'!E86="","",'TD Siniestros_'!E86) -> 0 | G88: =IF('TD Siniestros_'!F86="","",'TD Siniestros_'!F86) ->  | H88: =IF('TD Siniestros_'!G86="","",'TD Siniestros_'!G86) ->  | I88: =IF('TD Siniestros_'!H86="","",'TD Siniestros_'!H86) -> 
B89: =IF('TD Siniestros_'!A87="","",'TD Siniestros_'!A87) -> 79 | C89: =IF('TD Siniestros_'!B87="","",'TD Siniestros_'!B87) -> Zurich Daños | D89: =IF('TD Siniestros_'!C87="","",'TD Siniestros_'!C87) -> -2.000000336e-05 | E89: =IF('TD Siniestros_'!D87="","",'TD Siniestros_'!D87) -> -100 | F89: =IF('TD Siniestros_'!E87="","",'TD Siniestros_'!E87) -> 0 | G89: =IF('TD Siniestros_'!F87="","",'TD Siniestros_'!F87) ->  | H89: =IF('TD Siniestros_'!G87="","",'TD Siniestros_'!G87) -> 65.93723781 | I89: =IF('TD Siniestros_'!H87="","",'TD Siniestros_'!H87) -> -4.850491143e-12
B90: =IF('TD Siniestros_'!A88="","",'TD Siniestros_'!A88) -> 79 | C90: =IF('TD Siniestros_'!B88="","",'TD Siniestros_'!B88) -> Zurich Vida | D90: =IF('TD Siniestros_'!C88="","",'TD Siniestros_'!C88) -> 0 | E90: =IF('TD Siniestros_'!D88="","",'TD Siniestros_'!D88) ->  | F90: =IF('TD Siniestros_'!E88="","",'TD Siniestros_'!E88) -> 0 | G90: =IF('TD Siniestros_'!F88="","",'TD Siniestros_'!F88) ->  | H90: =IF('TD Siniestros_'!G88="","",'TD Siniestros_'!G88) ->  | I90: =IF('TD Siniestros_'!H88="","",'TD Siniestros_'!H88) -> 
B91: =IF('TD Siniestros_'!A89="","",'TD Siniestros_'!A89) -> 150.1 | C91: =IF('TD Siniestros_'!B89="","",'TD Siniestros_'!B89) -> TOTAL RESTO | D91: =IF('TD Siniestros_'!C89="","",'TD Siniestros_'!C89) -> 76365314.55 | E91: =IF('TD Siniestros_'!D89="","",'TD Siniestros_'!D89) -> 3.337765047 | F91: =IF('TD Siniestros_'!E89="","",'TD Siniestros_'!E89) -> 652909.0852 | G91: =IF('TD Siniestros_'!F89="","",'TD Siniestros_'!F89) -> 50.94828903 | H91: =IF('TD Siniestros_'!G89="","",'TD Siniestros_'!G89) -> 53.25317695 | I91: =IF('TD Siniestros_'!H89="","",'TD Siniestros_'!H89) -> 18.52046098
B92: =IF('TD Siniestros_'!A90="","",'TD Siniestros_'!A90) -> 200 | C92: =IF('TD Siniestros_'!B90="","",'TD Siniestros_'!B90) -> Patria | D92: =IF('TD Siniestros_'!C90="","",'TD Siniestros_'!C90) -> 0 | E92: =IF('TD Siniestros_'!D90="","",'TD Siniestros_'!D90) ->  | F92: =IF('TD Siniestros_'!E90="","",'TD Siniestros_'!E90) -> 0 | G92: =IF('TD Siniestros_'!F90="","",'TD Siniestros_'!F90) ->  | H92: =IF('TD Siniestros_'!G90="","",'TD Siniestros_'!G90) ->  | I92: =IF('TD Siniestros_'!H90="","",'TD Siniestros_'!H90) -> 
B93: =IF('TD Siniestros_'!A91="","",'TD Siniestros_'!A91) -> 201.1 | C93: =IF('TD Siniestros_'!B91="","",'TD Siniestros_'!B91) -> TOTAL | D93: =IF('TD Siniestros_'!C91="","",'TD Siniestros_'!C91) -> 412329448.1 | E93: =IF('TD Siniestros_'!D91="","",'TD Siniestros_'!D91) -> 3.156999437 | F93: =IF('TD Siniestros_'!E91="","",'TD Siniestros_'!E91) -> 2425971.586 | G93: =IF('TD Siniestros_'!F91="","",'TD Siniestros_'!F91) -> 61.82404787 | H93: =IF('TD Siniestros_'!G91="","",'TD Siniestros_'!G91) -> 63.10584934 | I93: =IF('TD Siniestros_'!H91="","",'TD Siniestros_'!H91) -> 100
B94: =IF('TD Siniestros_'!A92="","",'TD Siniestros_'!A92) ->  | C94: =IF('TD Siniestros_'!B92="","",'TD Siniestros_'!B92) ->  | D94: =IF('TD Siniestros_'!C92="","",'TD Siniestros_'!C92) ->  | E94: =IF('TD Siniestros_'!D92="","",'TD Siniestros_'!D92) ->  | F94: =IF('TD Siniestros_'!E92="","",'TD Siniestros_'!E92) ->  | G94: =IF('TD Siniestros_'!F92="","",'TD Siniestros_'!F92) ->  | H94: =IF('TD Siniestros_'!G92="","",'TD Siniestros_'!G92) ->  | I94: =IF('TD Siniestros_'!H92="","",'TD Siniestros_'!H92) -> 
B95: =IF('TD Siniestros_'!A93="","",'TD Siniestros_'!A93) ->  | C95: =IF('TD Siniestros_'!B93="","",'TD Siniestros_'!B93) ->  | D95: =IF('TD Siniestros_'!C93="","",'TD Siniestros_'!C93) ->  | E95: =IF('TD Siniestros_'!D93="","",'TD Siniestros_'!D93) ->  | F95: =IF('TD Siniestros_'!E93="","",'TD Siniestros_'!E93) ->  | G95: =IF('TD Siniestros_'!F93="","",'TD Siniestros_'!F93) ->  | H95: =IF('TD Siniestros_'!G93="","",'TD Siniestros_'!G93) ->  | I95: =IF('TD Siniestros_'!H93="","",'TD Siniestros_'!H93) -> 
B96: =IF('TD Siniestros_'!A94="","",'TD Siniestros_'!A94) ->  | C96: =IF('TD Siniestros_'!B94="","",'TD Siniestros_'!B94) ->  | D96: =IF('TD Siniestros_'!C94="","",'TD Siniestros_'!C94) ->  | E96: =IF('TD Siniestros_'!D94="","",'TD Siniestros_'!D94) ->  | F96: =IF('TD Siniestros_'!E94="","",'TD Siniestros_'!E94) ->  | G96: =IF('TD Siniestros_'!F94="","",'TD Siniestros_'!F94) ->  | H96: =IF('TD Siniestros_'!G94="","",'TD Siniestros_'!G94) ->  | I96: =IF('TD Siniestros_'!H94="","",'TD Siniestros_'!H94) -> 
B97: =IF('TD Siniestros_'!A95="","",'TD Siniestros_'!A95) ->  | C97: =IF('TD Siniestros_'!B95="","",'TD Siniestros_'!B95) ->  | D97: =IF('TD Siniestros_'!C95="","",'TD Siniestros_'!C95) ->  | E97: =IF('TD Siniestros_'!D95="","",'TD Siniestros_'!D95) ->  | F97: =IF('TD Siniestros_'!E95="","",'TD Siniestros_'!E95) ->  | G97: =IF('TD Siniestros_'!F95="","",'TD Siniestros_'!F95) ->  | H97: =IF('TD Siniestros_'!G95="","",'TD Siniestros_'!G95) ->  | I97: =IF('TD Siniestros_'!H95="","",'TD Siniestros_'!H95) -> 
B98: =IF('TD Siniestros_'!A96="","",'TD Siniestros_'!A96) ->  | C98: =IF('TD Siniestros_'!B96="","",'TD Siniestros_'!B96) ->  | D98: =IF('TD Siniestros_'!C96="","",'TD Siniestros_'!C96) ->  | E98: =IF('TD Siniestros_'!D96="","",'TD Siniestros_'!D96) ->  | F98: =IF('TD Siniestros_'!E96="","",'TD Siniestros_'!E96) ->  | G98: =IF('TD Siniestros_'!F96="","",'TD Siniestros_'!F96) ->  | H98: =IF('TD Siniestros_'!G96="","",'TD Siniestros_'!G96) ->  | I98: =IF('TD Siniestros_'!H96="","",'TD Siniestros_'!H96) -> 
B99: =IF('TD Siniestros_'!A97="","",'TD Siniestros_'!A97) ->  | C99: =IF('TD Siniestros_'!B97="","",'TD Siniestros_'!B97) ->  | D99: =IF('TD Siniestros_'!C97="","",'TD Siniestros_'!C97) ->  | E99: =IF('TD Siniestros_'!D97="","",'TD Siniestros_'!D97) ->  | F99: =IF('TD Siniestros_'!E97="","",'TD Siniestros_'!E97) ->  | G99: =IF('TD Siniestros_'!F97="","",'TD Siniestros_'!F97) ->  | H99: =IF('TD Siniestros_'!G97="","",'TD Siniestros_'!G97) ->  | I99: =IF('TD Siniestros_'!H97="","",'TD Siniestros_'!H97) -> 
B100: =IF('TD Siniestros_'!A98="","",'TD Siniestros_'!A98) ->  | C100: =IF('TD Siniestros_'!B98="","",'TD Siniestros_'!B98) ->  | D100: =IF('TD Siniestros_'!C98="","",'TD Siniestros_'!C98) ->  | E100: =IF('TD Siniestros_'!D98="","",'TD Siniestros_'!D98) ->  | F100: =IF('TD Siniestros_'!E98="","",'TD Siniestros_'!E98) ->  | G100: =IF('TD Siniestros_'!F98="","",'TD Siniestros_'!F98) ->  | H100: =IF('TD Siniestros_'!G98="","",'TD Siniestros_'!G98) ->  | I100: =IF('TD Siniestros_'!H98="","",'TD Siniestros_'!H98) -> 
B101: =IF('TD Siniestros_'!A99="","",'TD Siniestros_'!A99) ->  | C101: =IF('TD Siniestros_'!B99="","",'TD Siniestros_'!B99) ->  | D101: =IF('TD Siniestros_'!C99="","",'TD Siniestros_'!C99) ->  | E101: =IF('TD Siniestros_'!D99="","",'TD Siniestros_'!D99) ->  | F101: =IF('TD Siniestros_'!E99="","",'TD Siniestros_'!E99) ->  | G101: =IF('TD Siniestros_'!F99="","",'TD Siniestros_'!F99) ->  | H101: =IF('TD Siniestros_'!G99="","",'TD Siniestros_'!G99) ->  | I101: =IF('TD Siniestros_'!H99="","",'TD Siniestros_'!H99) -> 
B102: =IF('TD Siniestros_'!A100="","",'TD Siniestros_'!A100) ->  | C102: =IF('TD Siniestros_'!B100="","",'TD Siniestros_'!B100) ->  | D102: =IF('TD Siniestros_'!C100="","",'TD Siniestros_'!C100) ->  | E102: =IF('TD Siniestros_'!D100="","",'TD Siniestros_'!D100) ->  | F102: =IF('TD Siniestros_'!E100="","",'TD Siniestros_'!E100) ->  | G102: =IF('TD Siniestros_'!F100="","",'TD Siniestros_'!F100) ->  | H102: =IF('TD Siniestros_'!G100="","",'TD Siniestros_'!G100) ->  | I102: =IF('TD Siniestros_'!H100="","",'TD Siniestros_'!H100) -> 
B103: =IF('TD Siniestros_'!A101="","",'TD Siniestros_'!A101) ->  | C103: =IF('TD Siniestros_'!B101="","",'TD Siniestros_'!B101) ->  | D103: =IF('TD Siniestros_'!C101="","",'TD Siniestros_'!C101) ->  | E103: =IF('TD Siniestros_'!D101="","",'TD Siniestros_'!D101) ->  | F103: =IF('TD Siniestros_'!E101="","",'TD Siniestros_'!E101) ->  | G103: =IF('TD Siniestros_'!F101="","",'TD Siniestros_'!F101) ->  | H103: =IF('TD Siniestros_'!G101="","",'TD Siniestros_'!G101) ->  | I103: =IF('TD Siniestros_'!H101="","",'TD Siniestros_'!H101) -> 
B104: =IF('TD Siniestros_'!A102="","",'TD Siniestros_'!A102) ->  | C104: =IF('TD Siniestros_'!B102="","",'TD Siniestros_'!B102) ->  | D104: =IF('TD Siniestros_'!C102="","",'TD Siniestros_'!C102) ->  | E104: =IF('TD Siniestros_'!D102="","",'TD Siniestros_'!D102) ->  | F104: =IF('TD Siniestros_'!E102="","",'TD Siniestros_'!E102) ->  | G104: =IF('TD Siniestros_'!F102="","",'TD Siniestros_'!F102) ->  | H104: =IF('TD Siniestros_'!G102="","",'TD Siniestros_'!G102) ->  | I104: =IF('TD Siniestros_'!H102="","",'TD Siniestros_'!H102) -> 
B105: =IF('TD Siniestros_'!A103="","",'TD Siniestros_'!A103) ->  | C105: =IF('TD Siniestros_'!B103="","",'TD Siniestros_'!B103) ->  | D105: =IF('TD Siniestros_'!C103="","",'TD Siniestros_'!C103) ->  | E105: =IF('TD Siniestros_'!D103="","",'TD Siniestros_'!D103) ->  | F105: =IF('TD Siniestros_'!E103="","",'TD Siniestros_'!E103) ->  | G105: =IF('TD Siniestros_'!F103="","",'TD Siniestros_'!F103) ->  | H105: =IF('TD Siniestros_'!G103="","",'TD Siniestros_'!G103) ->  | I105: =IF('TD Siniestros_'!H103="","",'TD Siniestros_'!H103) -> 
B106: =IF('TD Siniestros_'!A104="","",'TD Siniestros_'!A104) ->  | C106: =IF('TD Siniestros_'!B104="","",'TD Siniestros_'!B104) ->  | D106: =IF('TD Siniestros_'!C104="","",'TD Siniestros_'!C104) ->  | E106: =IF('TD Siniestros_'!D104="","",'TD Siniestros_'!D104) ->  | F106: =IF('TD Siniestros_'!E104="","",'TD Siniestros_'!E104) ->  | G106: =IF('TD Siniestros_'!F104="","",'TD Siniestros_'!F104) ->  | H106: =IF('TD Siniestros_'!G104="","",'TD Siniestros_'!G104) ->  | I106: =IF('TD Siniestros_'!H104="","",'TD Siniestros_'!H104) -> 
B107: =IF('TD Siniestros_'!A105="","",'TD Siniestros_'!A105) ->  | C107: =IF('TD Siniestros_'!B105="","",'TD Siniestros_'!B105) ->  | D107: =IF('TD Siniestros_'!C105="","",'TD Siniestros_'!C105) ->  | E107: =IF('TD Siniestros_'!D105="","",'TD Siniestros_'!D105) ->  | F107: =IF('TD Siniestros_'!E105="","",'TD Siniestros_'!E105) ->  | G107: =IF('TD Siniestros_'!F105="","",'TD Siniestros_'!F105) ->  | H107: =IF('TD Siniestros_'!G105="","",'TD Siniestros_'!G105) ->  | I107: =IF('TD Siniestros_'!H105="","",'TD Siniestros_'!H105) -> 
B108: =IF('TD Siniestros_'!A106="","",'TD Siniestros_'!A106) ->  | C108: =IF('TD Siniestros_'!B106="","",'TD Siniestros_'!B106) ->  | D108: =IF('TD Siniestros_'!C106="","",'TD Siniestros_'!C106) ->  | E108: =IF('TD Siniestros_'!D106="","",'TD Siniestros_'!D106) ->  | F108: =IF('TD Siniestros_'!E106="","",'TD Siniestros_'!E106) ->  | G108: =IF('TD Siniestros_'!F106="","",'TD Siniestros_'!F106) ->  | H108: =IF('TD Siniestros_'!G106="","",'TD Siniestros_'!G106) ->  | I108: =IF('TD Siniestros_'!H106="","",'TD Siniestros_'!H106) -> 
B109: =IF('TD Siniestros_'!A107="","",'TD Siniestros_'!A107) ->  | C109: =IF('TD Siniestros_'!B107="","",'TD Siniestros_'!B107) ->  | D109: =IF('TD Siniestros_'!C107="","",'TD Siniestros_'!C107) ->  | E109: =IF('TD Siniestros_'!D107="","",'TD Siniestros_'!D107) ->  | F109: =IF('TD Siniestros_'!E107="","",'TD Siniestros_'!E107) ->  | G109: =IF('TD Siniestros_'!F107="","",'TD Siniestros_'!F107) ->  | H109: =IF('TD Siniestros_'!G107="","",'TD Siniestros_'!G107) ->  | I109: =IF('TD Siniestros_'!H107="","",'TD Siniestros_'!H107) -> 
B110: =IF('TD Siniestros_'!A108="","",'TD Siniestros_'!A108) ->  | C110: =IF('TD Siniestros_'!B108="","",'TD Siniestros_'!B108) ->  | D110: =IF('TD Siniestros_'!C108="","",'TD Siniestros_'!C108) ->  | E110: =IF('TD Siniestros_'!D108="","",'TD Siniestros_'!D108) ->  | F110: =IF('TD Siniestros_'!E108="","",'TD Siniestros_'!E108) ->  | G110: =IF('TD Siniestros_'!F108="","",'TD Siniestros_'!F108) ->  | H110: =IF('TD Siniestros_'!G108="","",'TD Siniestros_'!G108) ->  | I110: =IF('TD Siniestros_'!H108="","",'TD Siniestros_'!H108) -> 
B111: =IF('TD Siniestros_'!A109="","",'TD Siniestros_'!A109) ->  | C111: =IF('TD Siniestros_'!B109="","",'TD Siniestros_'!B109) ->  | D111: =IF('TD Siniestros_'!C109="","",'TD Siniestros_'!C109) ->  | E111: =IF('TD Siniestros_'!D109="","",'TD Siniestros_'!D109) ->  | F111: =IF('TD Siniestros_'!E109="","",'TD Siniestros_'!E109) ->  | G111: =IF('TD Siniestros_'!F109="","",'TD Siniestros_'!F109) ->  | H111: =IF('TD Siniestros_'!G109="","",'TD Siniestros_'!G109) ->  | I111: =IF('TD Siniestros_'!H109="","",'TD Siniestros_'!H109) -> 
B112: =IF('TD Siniestros_'!A110="","",'TD Siniestros_'!A110) ->  | C112: =IF('TD Siniestros_'!B110="","",'TD Siniestros_'!B110) ->  | D112: =IF('TD Siniestros_'!C110="","",'TD Siniestros_'!C110) ->  | E112: =IF('TD Siniestros_'!D110="","",'TD Siniestros_'!D110) ->  | F112: =IF('TD Siniestros_'!E110="","",'TD Siniestros_'!E110) ->  | G112: =IF('TD Siniestros_'!F110="","",'TD Siniestros_'!F110) ->  | H112: =IF('TD Siniestros_'!G110="","",'TD Siniestros_'!G110) ->  | I112: =IF('TD Siniestros_'!H110="","",'TD Siniestros_'!H110) -> 
B113: =IF('TD Siniestros_'!A111="","",'TD Siniestros_'!A111) ->  | C113: =IF('TD Siniestros_'!B111="","",'TD Siniestros_'!B111) ->  | D113: =IF('TD Siniestros_'!C111="","",'TD Siniestros_'!C111) ->  | E113: =IF('TD Siniestros_'!D111="","",'TD Siniestros_'!D111) ->  | F113: =IF('TD Siniestros_'!E111="","",'TD Siniestros_'!E111) ->  | G113: =IF('TD Siniestros_'!F111="","",'TD Siniestros_'!F111) ->  | H113: =IF('TD Siniestros_'!G111="","",'TD Siniestros_'!G111) ->  | I113: =IF('TD Siniestros_'!H111="","",'TD Siniestros_'!H111) -> 
B114: =IF('TD Siniestros_'!A112="","",'TD Siniestros_'!A112) ->  | C114: =IF('TD Siniestros_'!B112="","",'TD Siniestros_'!B112) ->  | D114: =IF('TD Siniestros_'!C112="","",'TD Siniestros_'!C112) ->  | E114: =IF('TD Siniestros_'!D112="","",'TD Siniestros_'!D112) ->  | F114: =IF('TD Siniestros_'!E112="","",'TD Siniestros_'!E112) ->  | G114: =IF('TD Siniestros_'!F112="","",'TD Siniestros_'!F112) ->  | H114: =IF('TD Siniestros_'!G112="","",'TD Siniestros_'!G112) ->  | I114: =IF('TD Siniestros_'!H112="","",'TD Siniestros_'!H112) -> 
B115: =IF('TD Siniestros_'!A113="","",'TD Siniestros_'!A113) ->  | C115: =IF('TD Siniestros_'!B113="","",'TD Siniestros_'!B113) ->  | D115: =IF('TD Siniestros_'!C113="","",'TD Siniestros_'!C113) ->  | E115: =IF('TD Siniestros_'!D113="","",'TD Siniestros_'!D113) ->  | F115: =IF('TD Siniestros_'!E113="","",'TD Siniestros_'!E113) ->  | G115: =IF('TD Siniestros_'!F113="","",'TD Siniestros_'!F113) ->  | H115: =IF('TD Siniestros_'!G113="","",'TD Siniestros_'!G113) ->  | I115: =IF('TD Siniestros_'!H113="","",'TD Siniestros_'!H113) -> 
B116: =IF('TD Siniestros_'!A114="","",'TD Siniestros_'!A114) ->  | C116: =IF('TD Siniestros_'!B114="","",'TD Siniestros_'!B114) ->  | D116: =IF('TD Siniestros_'!C114="","",'TD Siniestros_'!C114) ->  | E116: =IF('TD Siniestros_'!D114="","",'TD Siniestros_'!D114) ->  | F116: =IF('TD Siniestros_'!E114="","",'TD Siniestros_'!E114) ->  | G116: =IF('TD Siniestros_'!F114="","",'TD Siniestros_'!F114) ->  | H116: =IF('TD Siniestros_'!G114="","",'TD Siniestros_'!G114) ->  | I116: =IF('TD Siniestros_'!H114="","",'TD Siniestros_'!H114) -> 
B117: =IF('TD Siniestros_'!A115="","",'TD Siniestros_'!A115) ->  | C117: =IF('TD Siniestros_'!B115="","",'TD Siniestros_'!B115) ->  | D117: =IF('TD Siniestros_'!C115="","",'TD Siniestros_'!C115) ->  | E117: =IF('TD Siniestros_'!D115="","",'TD Siniestros_'!D115) ->  | F117: =IF('TD Siniestros_'!E115="","",'TD Siniestros_'!E115) ->  | G117: =IF('TD Siniestros_'!F115="","",'TD Siniestros_'!F115) ->  | H117: =IF('TD Siniestros_'!G115="","",'TD Siniestros_'!G115) ->  | I117: =IF('TD Siniestros_'!H115="","",'TD Siniestros_'!H115) -> 
B118: =IF('TD Siniestros_'!A116="","",'TD Siniestros_'!A116) ->  | C118: =IF('TD Siniestros_'!B116="","",'TD Siniestros_'!B116) ->  | D118: =IF('TD Siniestros_'!C116="","",'TD Siniestros_'!C116) ->  | E118: =IF('TD Siniestros_'!D116="","",'TD Siniestros_'!D116) ->  | F118: =IF('TD Siniestros_'!E116="","",'TD Siniestros_'!E116) ->  | G118: =IF('TD Siniestros_'!F116="","",'TD Siniestros_'!F116) ->  | H118: =IF('TD Siniestros_'!G116="","",'TD Siniestros_'!G116) ->  | I118: =IF('TD Siniestros_'!H116="","",'TD Siniestros_'!H116) -> 
B119: =IF('TD Siniestros_'!A117="","",'TD Siniestros_'!A117) ->  | C119: =IF('TD Siniestros_'!B117="","",'TD Siniestros_'!B117) ->  | D119: =IF('TD Siniestros_'!C117="","",'TD Siniestros_'!C117) ->  | E119: =IF('TD Siniestros_'!D117="","",'TD Siniestros_'!D117) ->  | F119: =IF('TD Siniestros_'!E117="","",'TD Siniestros_'!E117) ->  | G119: =IF('TD Siniestros_'!F117="","",'TD Siniestros_'!F117) ->  | H119: =IF('TD Siniestros_'!G117="","",'TD Siniestros_'!G117) ->  | I119: =IF('TD Siniestros_'!H117="","",'TD Siniestros_'!H117) -> 
B120: =IF('TD Siniestros_'!A118="","",'TD Siniestros_'!A118) ->  | C120: =IF('TD Siniestros_'!B118="","",'TD Siniestros_'!B118) ->  | D120: =IF('TD Siniestros_'!C118="","",'TD Siniestros_'!C118) ->  | E120: =IF('TD Siniestros_'!D118="","",'TD Siniestros_'!D118) ->  | F120: =IF('TD Siniestros_'!E118="","",'TD Siniestros_'!E118) ->  | G120: =IF('TD Siniestros_'!F118="","",'TD Siniestros_'!F118) ->  | H120: =IF('TD Siniestros_'!G118="","",'TD Siniestros_'!G118) ->  | I120: =IF('TD Siniestros_'!H118="","",'TD Siniestros_'!H118) -> 
B121: =IF('TD Siniestros_'!A119="","",'TD Siniestros_'!A119) ->  | C121: =IF('TD Siniestros_'!B119="","",'TD Siniestros_'!B119) ->  | D121: =IF('TD Siniestros_'!C119="","",'TD Siniestros_'!C119) ->  | E121: =IF('TD Siniestros_'!D119="","",'TD Siniestros_'!D119) ->  | F121: =IF('TD Siniestros_'!E119="","",'TD Siniestros_'!E119) ->  | G121: =IF('TD Siniestros_'!F119="","",'TD Siniestros_'!F119) ->  | H121: =IF('TD Siniestros_'!G119="","",'TD Siniestros_'!G119) ->  | I121: =IF('TD Siniestros_'!H119="","",'TD Siniestros_'!H119) -> 
B122: =IF('TD Siniestros_'!A120="","",'TD Siniestros_'!A120) ->  | C122: =IF('TD Siniestros_'!B120="","",'TD Siniestros_'!B120) ->  | D122: =IF('TD Siniestros_'!C120="","",'TD Siniestros_'!C120) ->  | E122: =IF('TD Siniestros_'!D120="","",'TD Siniestros_'!D120) ->  | F122: =IF('TD Siniestros_'!E120="","",'TD Siniestros_'!E120) ->  | G122: =IF('TD Siniestros_'!F120="","",'TD Siniestros_'!F120) ->  | H122: =IF('TD Siniestros_'!G120="","",'TD Siniestros_'!G120) ->  | I122: =IF('TD Siniestros_'!H120="","",'TD Siniestros_'!H120) -> 
B123: =IF('TD Siniestros_'!A121="","",'TD Siniestros_'!A121) ->  | C123: =IF('TD Siniestros_'!B121="","",'TD Siniestros_'!B121) ->  | D123: =IF('TD Siniestros_'!C121="","",'TD Siniestros_'!C121) ->  | E123: =IF('TD Siniestros_'!D121="","",'TD Siniestros_'!D121) ->  | F123: =IF('TD Siniestros_'!E121="","",'TD Siniestros_'!E121) ->  | G123: =IF('TD Siniestros_'!F121="","",'TD Siniestros_'!F121) ->  | H123: =IF('TD Siniestros_'!G121="","",'TD Siniestros_'!G121) ->  | I123: =IF('TD Siniestros_'!H121="","",'TD Siniestros_'!H121) -> 
B124: =IF('TD Siniestros_'!A122="","",'TD Siniestros_'!A122) ->  | C124: =IF('TD Siniestros_'!B122="","",'TD Siniestros_'!B122) ->  | D124: =IF('TD Siniestros_'!C122="","",'TD Siniestros_'!C122) ->  | E124: =IF('TD Siniestros_'!D122="","",'TD Siniestros_'!D122) ->  | F124: =IF('TD Siniestros_'!E122="","",'TD Siniestros_'!E122) ->  | G124: =IF('TD Siniestros_'!F122="","",'TD Siniestros_'!F122) ->  | H124: =IF('TD Siniestros_'!G122="","",'TD Siniestros_'!G122) ->  | I124: =IF('TD Siniestros_'!H122="","",'TD Siniestros_'!H122) -> 

Sheet Primas Directas (Vida)
C1: Análisis de Primas Directas | L1: =VLOOKUP(RIGHT('TDPrimas Vida'!B2,2),Cat!$N$2:$O$5,2,0)&" "&LEFT('TDPrimas Vida'!B2,4) -> Cuarto Trimestre 2022
C2: =UPPER(RIGHT('TDPrimas Vida'!B3,LEN('TDPrimas Vida'!B3)-3)) -> VIDA TOTAL
L3: Cifras en miles
E4: 2 | F4: 3 | G4: 4 | H4: 5 | I4: 6 | J4: 7 | K4: 8 | L4: 9
E5: Primas Directas | G5: % Part. en Merc. | I5: Incremento | K5: % de Cartera
C6: Compañías | E6: ='Primas Directas'!$D$6 -> 2022 | F6: ='Primas Directas'!$E$6 -> 2021 | G6: =$E$6 -> 2022 | H6: =$F$6 -> 2021 | I6: Importe | J6: % | K6: Por | L6: Total
E7: Importe | F7: Importe | K7: Operación | L7: Cartera
B8: =IF(C8="",B2,D8) -> TOTAL | C8: 151.1 | D8: TOTAL | E8: =VLOOKUP($D8,$D$12:$L$211,E$4,0) -> 259244122.7 | F8: =VLOOKUP($D8,$D$12:$L$211,F$4,0) -> 249438867.5 | G8: 100 | H8: 103.9309252 | I8: 9805255.239 | J8: 3.930925176 | K8: ND | L8: 48.26997529
B9: =IF(C9="",B8,D9) -> TOTAL | D9: =IF(D8="","","1er Año") -> 1er Año | E9: =IF(E8="","",(VLOOKUP(B9,'TDPrimas Vida'!$B:$N,5,0))) -> 111283402.2 | F9: =IF(E8="","",(VLOOKUP(B9,'TDPrimas Vida'!$B:$N,6,0))) -> 110994421.3 | G9: =IFERROR((E9/VLOOKUP("TOTAL",$D$12:$L$312,2,0))*100,"") -> 42.92610419 | H9: =IFERROR((E9/VLOOKUP("TOTAL",$D$12:$L$312,3,0))*100,"") -> 44.61349723 | I9: =IF(E8="","",E9-F9) -> 288980.8873 | J9: =IF(E8="","",IFERROR((E9/F9-1)*100,"ND")) -> 0.2603562268 | K9: =IF(E8="","",IFERROR((E9/VLOOKUP(B9&"|"&VLOOKUP(TDPrimas!$B$4,Cat!R:T,2,0),'TD Operación'!A:D,4,0))*100,"ND")) -> ND | L9: =IF(E8="","",(VLOOKUP(B9,'TDPrimas Vida'!$B:$N,7,0))) -> 20.72041989
B10: TOTAL | D10: =IF(D9="","","Renovación") -> Renovación | E10: =IF(E8="","",(VLOOKUP(B10,'TDPrimas Vida'!$B:$N,8,0))) -> 116493381.9 | F10: =IF(E8="","",(VLOOKUP(B10,'TDPrimas Vida'!$B:$N,9,0))) -> 109310781.8 | G10: =IFERROR((E10/VLOOKUP("TOTAL",$D$12:$L$312,2,0))*100,"") -> 44.93578513 | H10: =IFERROR((E10/VLOOKUP("TOTAL",$D$12:$L$312,3,0))*100,"") -> 46.70217723 | I10: =IF(E8="","",E10-F10) -> 7182600.114 | J10: =IF(E8="","",IFERROR((E10/F10-1)*100,"ND")) -> 6.570806643 | K10: =IF(E8="","",IFERROR((E10/VLOOKUP(B10&"|"&VLOOKUP(TDPrimas!$B$4,Cat!R:T,2,0),'TD Operación'!A:D,4,0))*100,"ND")) -> ND | L10: =IF(E8="","",(VLOOKUP(B10,'TDPrimas Vida'!$B:$N,10,0))) -> 21.69049238
B11: TOTAL | D11: =IF(D10="","","Únicas") -> Únicas | E11: =IF(E9="","",(VLOOKUP(B11,'TDPrimas Vida'!$B:$N,11,0))) -> 31466785.31 | F11: =IF(E9="","",(VLOOKUP(B11,'TDPrimas Vida'!$B:$N,12,0))) -> 28630589.02 | G11: =IFERROR((E11/VLOOKUP("TOTAL",$D$12:$L$312,2,0))*100,"") -> 12.13789728 | H11: =IFERROR((E11/VLOOKUP("TOTAL",$D$12:$L$312,3,0))*100,"") -> 12.61502894 | I11: =IF(E8="","",E11-F11) -> 2836196.286 | J11: =IF(E8="","",IFERROR((E11/F11-1)*100,"ND")) -> 9.906175117 | K11: =IF(E8="","",IFERROR((E11/VLOOKUP(B11&"|"&VLOOKUP(TDPrimas!$B$4,Cat!R:T,2,0),'TD Operación'!A:D,4,0))*100,"ND")) -> ND | L11: =IF(E8="","",(VLOOKUP(B11,'TDPrimas Vida'!$B:$N,13,0))) -> 5.858960016
B12: =IF(C12="",B7,D12) -> Metlife México | C12: =IF('TDPrimas Vida'!A7="","",'TDPrimas Vida'!A7) -> 1 | D12: =IF('TDPrimas Vida'!B7="","",'TDPrimas Vida'!B7) -> Metlife México | E12: =IF('TDPrimas Vida'!C7="","",'TDPrimas Vida'!C7) -> 48016518.99 | F12: =IF('TDPrimas Vida'!D7="","",'TDPrimas Vida'!D7) -> 45847773.85 | G12: =IF('TDPrimas Vida'!C7="","",IFERROR((E12/VLOOKUP("TOTAL",$D$12:$L$312,2,0))*100,"")) -> 18.5217387 | H12: =IF('TDPrimas Vida'!C7="","",IFERROR((E12/VLOOKUP("TOTAL",$D$12:$L$312,3,0))*100,"")) -> 19.24981438 | I12: =IF('TDPrimas Vida'!C7="","",E12-F12) -> 2168745.141 | J12: =IFERROR(IF('TDPrimas Vida'!C7="","",(E12/F12-1)*100),"ND") -> 4.730317219 | K12: =IFERROR((E12/VLOOKUP(B12&"|"&VLOOKUP(TDPrimas!$B$4,Cat!R:T,2,0),'TD Operación'!A:D,4,0))*100,"ND") -> ND | L12: =IF('TDPrimas Vida'!E7="","",'TDPrimas Vida'!E7) -> 68.91012768
B13: =IF(C13="",B12,D13) -> Metlife México | D13: =IF(D12="","","1er Año") -> 1er Año | E13: =IF(E12="","",(VLOOKUP(B13,'TDPrimas Vida'!$B:$N,5,0))) -> 9244390.84 | F13: =IF(E12="","",(VLOOKUP(B13,'TDPrimas Vida'!$B:$N,6,0))) -> 8748784.907 | G13: =IFERROR((E13/VLOOKUP("TOTAL",$D$12:$L$312,2,0))*100,"") -> 3.565901801 | H13: =IFERROR((E13/VLOOKUP("TOTAL",$D$12:$L$312,3,0))*100,"") -> 3.706074732 | I13: =IF(E12="","",E13-F13) -> 495605.9325 | J13: =IF(E12="","",IFERROR((E13/F13-1)*100,"ND")) -> 5.664854466 | K13: =IF(E12="","",IFERROR((E13/VLOOKUP(B13&"|"&VLOOKUP(TDPrimas!$B$4,Cat!R:T,2,0),'TD Operación'!A:D,4,0))*100,"ND")) -> ND | L13: =IF(E12="","",(VLOOKUP(B13,'TDPrimas Vida'!$B:$N,7,0))) -> 13.26693743
B14: Metlife México | D14: =IF(D13="","","Renovación") -> Renovación | E14: =IF(E12="","",(VLOOKUP(B14,'TDPrimas Vida'!$B:$N,8,0))) -> 32002822.34 | F14: =IF(E12="","",(VLOOKUP(B14,'TDPrimas Vida'!$B:$N,9,0))) -> 30911024.16 | G14: =IFERROR((E14/VLOOKUP("TOTAL",$D$12:$L$312,2,0))*100,"") -> 12.34466649 | H14: =IFERROR((E14/VLOOKUP("TOTAL",$D$12:$L$312,3,0))*100,"") -> 12.82992609 | I14: =IF(E12="","",E14-F14) -> 1091798.19 | J14: =IF(E12="","",IFERROR((E14/F14-1)*100,"ND")) -> 3.532067344 | K14: =IF(E12="","",IFERROR((E14/VLOOKUP(B14&"|"&VLOOKUP(TDPrimas!$B$4,Cat!R:T,2,0),'TD Operación'!A:D,4,0))*100,"ND")) -> ND | L14: =IF(E12="","",(VLOOKUP(B14,'TDPrimas Vida'!$B:$N,10,0))) -> 45.92833092
B15: Metlife México | D15: =IF(D14="","","Únicas") -> Únicas | E15: =IF(E13="","",(VLOOKUP(B15,'TDPrimas Vida'!$B:$N,11,0))) -> 6769305.805 | F15: =IF(E13="","",(VLOOKUP(B15,'TDPrimas Vida'!$B:$N,12,0))) -> 6187964.785 | G15: =IFERROR((E15/VLOOKUP("TOTAL",$D$12:$L$312,2,0))*100,"") -> 2.611170404 | H15: =IFERROR((E15/VLOOKUP("TOTAL",$D$12:$L$312,3,0))*100,"") -> 2.713813558 | I15: =IF(E12="","",E15-F15) -> 581341.0193 | J15: =IF(E12="","",IFERROR((E15/F15-1)*100,"ND")) -> 9.394704713 | K15: =IF(E12="","",IFERROR((E15/VLOOKUP(B15&"|"&VLOOKUP(TDPrimas!$B$4,Cat!R:T,2,0),'TD Operación'!A:D,4,0))*100,"ND")) -> ND | L15: =IF(E12="","",(VLOOKUP(B15,'TDPrimas Vida'!$B:$N,13,0))) -> 9.714859326
B16: BBVA Bancomer | C16: =IF('TDPrimas Vida'!A8="","",'TDPrimas Vida'!A8) -> 2 | D16: =IF('TDPrimas Vida'!B8="","",'TDPrimas Vida'!B8) -> BBVA Bancomer | E16: =IF('TDPrimas Vida'!C8="","",'TDPrimas Vida'!C8) -> 43150700.47 | F16: =IF('TDPrimas Vida'!D8="","",'TDPrimas Vida'!D8) -> 37325851.61 | G16: =IF('TDPrimas Vida'!C8="","",IFERROR((E16/VLOOKUP("TOTAL",$D$12:$L$312,2,0))*100,"")) -> 16.6448134 | H16: =IF('TDPrimas Vida'!C8="","",IFERROR((E16/VLOOKUP("TOTAL",$D$12:$L$312,3,0))*100,"")) -> 17.29910856 | I16: =IF('TDPrimas Vida'!C8="","",E16-F16) -> 5824848.865 | J16: =IFERROR(IF('TDPrimas Vida'!C8="","",(E16/F16-1)*100),"ND") -> 15.60540112 | K16: =IF(E16="","",IFERROR((E16/VLOOKUP(D16&"|"&VLOOKUP(TDPrimas!$B$4,Cat!R:T,2,0),'TD Operación'!A:D,4,0))*100,"ND")) -> ND | L16: =IF('TDPrimas Vida'!E8="","",'TDPrimas Vida'!E8) -> 79.06722269
B17: BBVA Bancomer | D17: =IF(D16="","","1er Año") -> 1er Año | E17: =IF(E16="","",(VLOOKUP(B17,'TDPrimas Vida'!$B:$N,5,0))) -> 36550558.51 | F17: =IF(E16="","",(VLOOKUP(B17,'TDPrimas Vida'!$B:$N,6,0))) -> 31939704.63 | G17: =IFERROR((E17/VLOOKUP("TOTAL",$D$12:$L$312,2,0))*100,"") -> 14.09889572 | H17: =IFERROR((E17/VLOOKUP("TOTAL",$D$12:$L$312,3,0))*100,"") -> 14.65311276 | I17: =IF(E16="","",E17-F17) -> 4610853.88 | J17: =IF(E16="","",IFERROR((E17/F17-1)*100,"ND")) -> 14.43611935 | K17: =IF(E16="","",IFERROR((E17/VLOOKUP(B17&"|"&VLOOKUP(TDPrimas!$B$4,Cat!R:T,2,0),'TD Operación'!A:D,4,0))*100,"ND")) -> ND | L17: =IF(E16="","",(VLOOKUP(B17,'TDPrimas Vida'!$B:$N,7,0))) -> 66.97344695
B18: BBVA Bancomer | D18: =IF(D17="","","Renovación") -> Renovación | E18: =IF(E16="","",(VLOOKUP(B18,'TDPrimas Vida'!$B:$N,8,0))) -> 4528194.094 | F18: =IF(E16="","",(VLOOKUP(B18,'TDPrimas Vida'!$B:$N,9,0))) -> 4119155.011 | G18: =IFERROR((E18/VLOOKUP("TOTAL",$D$12:$L$312,2,0))*100,"") -> 1.746691129 | H18: =IFERROR((E18/VLOOKUP("TOTAL",$D$12:$L$312,3,0))*100,"") -> 1.815352251 | I18: =IF(E16="","",E18-F18) -> 409039.0829 | J18: =IF(E16="","",IFERROR((E18/F18-1)*100,"ND")) -> 9.930169703 | K18: =IF(E16="","",IFERROR((E18/VLOOKUP(B18&"|"&VLOOKUP(TDPrimas!$B$4,Cat!R:T,2,0),'TD Operación'!A:D,4,0))*100,"ND")) -> ND | L18: =IF(E16="","",(VLOOKUP(B18,'TDPrimas Vida'!$B:$N,10,0))) -> 8.297240297
B19: BBVA Bancomer | D19: =IF(D18="","","Únicas") -> Únicas | E19: =IF(E17="","",(VLOOKUP(B19,'TDPrimas Vida'!$B:$N,11,0))) -> 2071947.872 | F19: =IF(E17="","",(VLOOKUP(B19,'TDPrimas Vida'!$B:$N,12,0))) -> 1266991.97 | G19: =IFERROR((E19/VLOOKUP("TOTAL",$D$12:$L$312,2,0))*100,"") -> 0.7992265553 | H19: =IFERROR((E19/VLOOKUP("TOTAL",$D$12:$L$312,3,0))*100,"") -> 0.8306435532 | I19: =IF(E16="","",E19-F19) -> 804955.9021 | J19: =IF(E16="","",IFERROR((E19/F19-1)*100,"ND")) -> 63.53283378 | K19: =IF(E16="","",IFERROR((E19/VLOOKUP(B19&"|"&VLOOKUP(TDPrimas!$B$4,Cat!R:T,2,0),'TD Operación'!A:D,4,0))*100,"ND")) -> ND | L19: =IF(E16="","",(VLOOKUP(B19,'TDPrimas Vida'!$B:$N,13,0))) -> 3.796535444
B20: =IF(C20="",B16,D20) -> G.N.P. | C20: =IF('TDPrimas Vida'!A9="","",'TDPrimas Vida'!A9) -> 3 | D20: =IF('TDPrimas Vida'!B9="","",'TDPrimas Vida'!B9) -> G.N.P. | E20: =IF('TDPrimas Vida'!C9="","",'TDPrimas Vida'!C9) -> 35246575.57 | F20: =IF('TDPrimas Vida'!D9="","",'TDPrimas Vida'!D9) -> 32138338.2 | G20: =IF('TDPrimas Vida'!C9="","",IFERROR((E20/VLOOKUP("TOTAL",$D$12:$L$312,2,0))*100,"")) -> 13.5959015 | H20: =IF('TDPrimas Vida'!C9="","",IFERROR((E20/VLOOKUP("TOTAL",$D$12:$L$312,3,0))*100,"")) -> 14.13034621 | I20: =IF('TDPrimas Vida'!C9="","",E20-F20) -> 3108237.362 | J20: =IFERROR(IF('TDPrimas Vida'!C9="","",(E20/F20-1)*100),"ND") -> 9.671431492 | K20: =IF(E20="","",IFERROR((E20/VLOOKUP(D20&"|"&VLOOKUP(TDPrimas!$B$4,Cat!R:T,2,0),'TD Operación'!A:D,4,0))*100,"ND")) -> ND | L20: =IF('TDPrimas Vida'!E9="","",'TDPrimas Vida'!E9) -> 39.64912243
B21: =IF(C21="",B20,D21) -> G.N.P. | D21: =IF(D20="","","1er Año") -> 1er Año | E21: =IF(E20="","",(VLOOKUP(B21,'TDPrimas Vida'!$B:$N,5,0))) -> 8615839.587 | F21: =IF(E20="","",(VLOOKUP(B21,'TDPrimas Vida'!$B:$N,6,0))) -> 7791578.782 | G21: =IFERROR((E21/VLOOKUP("TOTAL",$D$12:$L$312,2,0))*100,"") -> 3.323446448 | H21: =IFERROR((E21/VLOOKUP("TOTAL",$D$12:$L$312,3,0))*100,"") -> 3.454088641 | I21: =IF(E20="","",E21-F21) -> 824260.8044 | J21: =IF(E20="","",IFERROR((E21/F21-1)*100,"ND")) -> 10.57886761 | K21: =IF(E20="","",IFERROR((E21/VLOOKUP(B21&"|"&VLOOKUP(TDPrimas!$B$4,Cat!R:T,2,0),'TD Operación'!A:D,4,0))*100,"ND")) -> ND | L21: =IF(E20="","",(VLOOKUP(B21,'TDPrimas Vida'!$B:$N,7,0))) -> 9.692018959
B22: =IF(C22="",B21,D22) -> G.N.P. | D22: =IF(D21="","","Renovación") -> Renovación | E22: =IF(E20="","",(VLOOKUP(B22,'TDPrimas Vida'!$B:$N,8,0))) -> 18931513.77 | F22: =IF(E20="","",(VLOOKUP(B22,'TDPrimas Vida'!$B:$N,9,0))) -> 17995644.97 | G22: =IFERROR((E22/VLOOKUP("TOTAL",$D$12:$L$312,2,0))*100,"") -> 7.302581665 | H22: =IFERROR((E22/VLOOKUP("TOTAL",$D$12:$L$312,3,0))*100,"") -> 7.589640686 | I22: =IF(E20="","",E22-F22) -> 935868.8052 | J22: =IF(E20="","",IFERROR((E22/F22-1)*100,"ND")) -> 5.200529389 | K22: =IF(E20="","",IFERROR((E22/VLOOKUP(B22&"|"&VLOOKUP(TDPrimas!$B$4,Cat!R:T,2,0),'TD Operación'!A:D,4,0))*100,"ND")) -> ND | L22: =IF(E20="","",(VLOOKUP(B22,'TDPrimas Vida'!$B:$N,10,0))) -> 21.29619389
B23: =IF(C23="",B22,D23) -> G.N.P. | D23: =IF(D22="","","Únicas") -> Únicas | E23: =IF(E21="","",(VLOOKUP(B23,'TDPrimas Vida'!$B:$N,11,0))) -> 7699222.208 | F23: =IF(E21="","",(VLOOKUP(B23,'TDPrimas Vida'!$B:$N,12,0))) -> 6351114.456 | G23: =IFERROR((E23/VLOOKUP("TOTAL",$D$12:$L$312,2,0))*100,"") -> 2.969873387 | H23: =IFERROR((E23/VLOOKUP("TOTAL",$D$12:$L$312,3,0))*100,"") -> 3.086616888 | I23: =IF(E20="","",E23-F23) -> 1348107.752 | J23: =IF(E20="","",IFERROR((E23/F23-1)*100,"ND")) -> 21.22631803 | K23: =IF(E20="","",IFERROR((E23/VLOOKUP(B23&"|"&VLOOKUP(TDPrimas!$B$4,Cat!R:T,2,0),'TD Operación'!A:D,4,0))*100,"ND")) -> ND | L23: =IF(E20="","",(VLOOKUP(B23,'TDPrimas Vida'!$B:$N,13,0))) -> 8.660909579
B24: =IF(C24="",B20,D24) -> Monterrey New York Life | C24: =IF('TDPrimas Vida'!A10="","",'TDPrimas Vida'!A10) -> 4 | D24: =IF('TDPrimas Vida'!B10="","",'TDPrimas Vida'!B10) -> Monterrey New York Life | E24: =IF('TDPrimas Vida'!C10="","",'TDPrimas Vida'!C10) -> 25726165.11 | F24: =IF('TDPrimas Vida'!D10="","",'TDPrimas Vida'!D10) -> 23548993.2 | G24: =IF('TDPrimas Vida'!C10="","",IFERROR((E24/VLOOKUP("TOTAL",$D$12:$L$312,2,0))*100,"")) -> 9.923528773 | H24: =IF('TDPrimas Vida'!C10="","",IFERROR((E24/VLOOKUP("TOTAL",$D$12:$L$312,3,0))*100,"")) -> 10.31361526 | I24: =IF('TDPrimas Vida'!C10="","",E24-F24) -> 2177171.91 | J24: =IFERROR(IF('TDPrimas Vida'!C10="","",(E24/F24-1)*100),"ND") -> 9.245286591 | K24: =IF(E24="","",IFERROR((E24/VLOOKUP(D24&"|"&VLOOKUP(TDPrimas!$B$4,Cat!R:T,2,0),'TD Operación'!A:D,4,0))*100,"ND")) -> ND | L24: =IF('TDPrimas Vida'!E10="","",'TDPrimas Vida'!E10) -> 68.56356922
B25: =IF(C25="",B24,D25) -> Monterrey New York Life | D25: =IF(D24="","","1er Año") -> 1er Año | E25: =IF(E24="","",(VLOOKUP(B25,'TDPrimas Vida'!$B:$N,5,0))) -> 2404396.266 | F25: =IF(E24="","",(VLOOKUP(B25,'TDPrimas Vida'!$B:$N,6,0))) -> 2200084.573 | G25: =IFERROR((E25/VLOOKUP("TOTAL",$D$12:$L$312,2,0))*100,"") -> 0.9274641374 | H25: =IFERROR((E25/VLOOKUP("TOTAL",$D$12:$L$312,3,0))*100,"") -> 0.9639220586 | I25: =IF(E24="","",E25-F25) -> 204311.6934 | J25: =IF(E24="","",IFERROR((E25/F25-1)*100,"ND")) -> 9.286538162 | K25: =IF(E24="","",IFERROR((E25/VLOOKUP(B25&"|"&VLOOKUP(TDPrimas!$B$4,Cat!R:T,2,0),'TD Operación'!A:D,4,0))*100,"ND")) -> ND | L25: =IF(E24="","",(VLOOKUP(B25,'TDPrimas Vida'!$B:$N,7,0))) -> 6.408028136
B26: =IF(C26="",B25,D26) -> Monterrey New York Life | D26: =IF(D25="","","Renovación") -> Renovación | E26: =IF(E24="","",(VLOOKUP(B26,'TDPrimas Vida'!$B:$N,8,0))) -> 16907794.13 | F26: =IF(E24="","",(VLOOKUP(B26,'TDPrimas Vida'!$B:$N,9,0))) -> 15411250.56 | G26: =IFERROR((E26/VLOOKUP("TOTAL",$D$12:$L$312,2,0))*100,"") -> 6.521958513 | H26: =IFERROR((E26/VLOOKUP("TOTAL",$D$12:$L$312,3,0))*100,"") -> 6.778331822 | I26: =IF(E24="","",E26-F26) -> 1496543.567 | J26: =IF(E24="","",IFERROR((E26/F26-1)*100,"ND")) -> 9.710721141 | K26: =IF(E24="","",IFERROR((E26/VLOOKUP(B26&"|"&VLOOKUP(TDPrimas!$B$4,Cat!R:T,2,0),'TD Operación'!A:D,4,0))*100,"ND")) -> ND | L26: =IF(E24="","",(VLOOKUP(B26,'TDPrimas Vida'!$B:$N,10,0))) -> 45.06146596
B27: =IF(C27="",B26,D27) -> Monterrey New York Life | D27: =IF(D26="","","Únicas") -> Únicas | E27: =IF(E25="","",(VLOOKUP(B27,'TDPrimas Vida'!$B:$N,11,0))) -> 6413974.711 | F27: =IF(E25="","",(VLOOKUP(B27,'TDPrimas Vida'!$B:$N,12,0))) -> 5937658.061 | G27: =IFERROR((E27/VLOOKUP("TOTAL",$D$12:$L$312,2,0))*100,"") -> 2.474106122 | H27: =IFERROR((E27/VLOOKUP("TOTAL",$D$12:$L$312,3,0))*100,"") -> 2.571361383 | I27: =IF(E24="","",E27-F27) -> 476316.6504 | J27: =IF(E24="","",IFERROR((E27/F27-1)*100,"ND")) -> 8.021961615 | K27: =IF(E24="","",IFERROR((E27/VLOOKUP(B27&"|"&VLOOKUP(TDPrimas!$B$4,Cat!R:T,2,0),'TD Operación'!A:D,4,0))*100,"ND")) -> ND | L27: =IF(E24="","",(VLOOKUP(B27,'TDPrimas Vida'!$B:$N,13,0))) -> 17.09407513
B28: =IF(C28="",B24,D28) -> Citibanamex Seguros | C28: =IF('TDPrimas Vida'!A11="","",'TDPrimas Vida'!A11) -> 5 | D28: =IF('TDPrimas Vida'!B11="","",'TDPrimas Vida'!B11) -> Citibanamex Seguros | E28: =IF('TDPrimas Vida'!C11="","",'TDPrimas Vida'!C11) -> 16107597.51 | F28: =IF('TDPrimas Vida'!D11="","",'TDPrimas Vida'!D11) -> 23397154.32 | G28: =IF('TDPrimas Vida'!C11="","",IFERROR((E28/VLOOKUP("TOTAL",$D$12:$L$312,2,0))*100,"")) -> 6.213293223 | H28: =IF('TDPrimas Vida'!C11="","",IFERROR((E28/VLOOKUP("TOTAL",$D$12:$L$312,3,0))*100,"")) -> 6.457533131 | I28: =IF('TDPrimas Vida'!C11="","",E28-F28) -> -7289556.818 | J28: =IFERROR(IF('TDPrimas Vida'!C11="","",(E28/F28-1)*100),"ND") -> -31.15574107 | K28: =IF(E28="","",IFERROR((E28/VLOOKUP(D28&"|"&VLOOKUP(TDPrimas!$B$4,Cat!R:T,2,0),'TD Operación'!A:D,4,0))*100,"ND")) -> ND | L28: =IF('TDPrimas Vida'!E11="","",'TDPrimas Vida'!E11) -> 94.34000981
B29: =IF(C29="",B28,D29) -> Citibanamex Seguros | D29: =IF(D28="","","1er Año") -> 1er Año | E29: =IF(E28="","",(VLOOKUP(B29,'TDPrimas Vida'!$B:$N,5,0))) -> 8860948.793 | F29: =IF(E28="","",(VLOOKUP(B29,'TDPrimas Vida'!$B:$N,6,0))) -> 14333370.96 | G29: =IFERROR((E29/VLOOKUP("TOTAL",$D$12:$L$312,2,0))*100,"") -> 3.41799409 | H29: =IFERROR((E29/VLOOKUP("TOTAL",$D$12:$L$312,3,0))*100,"") -> 3.55235288 | I29: =IF(E28="","",E29-F29) -> -5472422.171 | J29: =IF(E28="","",IFERROR((E29/F29-1)*100,"ND")) -> -38.17958933 | K29: =IF(E28="","",IFERROR((E29/VLOOKUP(B29&"|"&VLOOKUP(TDPrimas!$B$4,Cat!R:T,2,0),'TD Operación'!A:D,4,0))*100,"ND")) -> ND | L29: =IF(E28="","",(VLOOKUP(B29,'TDPrimas Vida'!$B:$N,7,0))) -> 51.897373
B30: =IF(C30="",B29,D30) -> Citibanamex Seguros | D30: =IF(D29="","","Renovación") -> Renovación | E30: =IF(E28="","",(VLOOKUP(B30,'TDPrimas Vida'!$B:$N,8,0))) -> 7246648.714 | F30: =IF(E28="","",(VLOOKUP(B30,'TDPrimas Vida'!$B:$N,9,0))) -> 9063783.361 | G30: =IFERROR((E30/VLOOKUP("TOTAL",$D$12:$L$312,2,0))*100,"") -> 2.795299133 | H30: =IFERROR((E30/VLOOKUP("TOTAL",$D$12:$L$312,3,0))*100,"") -> 2.90518025 | I30: =IF(E28="","",E30-F30) -> -1817134.647 | J30: =IF(E28="","",IFERROR((E30/F30-1)*100,"ND")) -> -20.04830185 | K30: =IF(E28="","",IFERROR((E30/VLOOKUP(B30&"|"&VLOOKUP(TDPrimas!$B$4,Cat!R:T,2,0),'TD Operación'!A:D,4,0))*100,"ND")) -> ND | L30: =IF(E28="","",(VLOOKUP(B30,'TDPrimas Vida'!$B:$N,10,0))) -> 42.4426368
B31: =IF(C31="",B30,D31) -> Citibanamex Seguros | D31: =IF(D30="","","Únicas") -> Únicas | E31: =IF(E29="","",(VLOOKUP(B31,'TDPrimas Vida'!$B:$N,11,0))) -> 0 | F31: =IF(E29="","",(VLOOKUP(B31,'TDPrimas Vida'!$B:$N,12,0))) -> 0 | G31: =IFERROR((E31/VLOOKUP("TOTAL",$D$12:$L$312,2,0))*100,"") -> 0 | H31: =IFERROR((E31/VLOOKUP("TOTAL",$D$12:$L$312,3,0))*100,"") -> 0 | I31: =IF(E28="","",E31-F31) -> 0 | J31: =IF(E28="","",IFERROR((E31/F31-1)*100,"ND")) -> ND | K31: =IF(E28="","",IFERROR((E31/VLOOKUP(B31&"|"&VLOOKUP(TDPrimas!$B$4,Cat!R:T,2,0),'TD Operación'!A:D,4,0))*100,"ND")) -> ND | L31: =IF(E28="","",(VLOOKUP(B31,'TDPrimas Vida'!$B:$N,13,0))) -> 0
B32: =IF(C32="",B28,D32) -> TOTAL GRANDES | C32: =IF('TDPrimas Vida'!A12="","",'TDPrimas Vida'!A12) -> 5.1 | D32: =IF('TDPrimas Vida'!B12="","",'TDPrimas Vida'!B12) -> TOTAL GRANDES | E32: =IF('TDPrimas Vida'!C12="","",'TDPrimas Vida'!C12) -> 168247557.6 | F32: =IF('TDPrimas Vida'!D12="","",'TDPrimas Vida'!D12) -> 162258111.2 | G32: =IF('TDPrimas Vida'!C12="","",IFERROR((E32/VLOOKUP("TOTAL",$D$12:$L$312,2,0))*100,"")) -> 64.89927559 | H32: =IF('TDPrimas Vida'!C12="","",IFERROR((E32/VLOOKUP("TOTAL",$D$12:$L$312,3,0))*100,"")) -> 67.45041755 | I32: =IF('TDPrimas Vida'!C12="","",E32-F32) -> 5989446.461 | J32: =IFERROR(IF('TDPrimas Vida'!C12="","",(E32/F32-1)*100),"ND") -> 3.691307891 | K32: =IF(E32="","",IFERROR((E32/VLOOKUP(D32&"|"&VLOOKUP(TDPrimas!$B$4,Cat!R:T,2,0),'TD Operación'!A:D,4,0))*100,"ND")) -> ND | L32: =IF('TDPrimas Vida'!E12="","",'TDPrimas Vida'!E12) -> 62.83838824
B33: =IF(C33="",B32,D33) -> TOTAL GRANDES | D33: =IF(D32="","","1er Año") -> 1er Año | E33: =IF(E32="","",(VLOOKUP(B33,'TDPrimas Vida'!$B:$N,5,0))) -> 65676133.99 | F33: =IF(E32="","",(VLOOKUP(B33,'TDPrimas Vida'!$B:$N,6,0))) -> 65013523.85 | G33: =IFERROR((E33/VLOOKUP("TOTAL",$D$12:$L$312,2,0))*100,"") -> 25.33370219 | H33: =IFERROR((E33/VLOOKUP("TOTAL",$D$12:$L$312,3,0))*100,"") -> 26.32955107 | I33: =IF(E32="","",E33-F33) -> 662610.1392 | J33: =IF(E32="","",IFERROR((E33/F33-1)*100,"ND")) -> 1.019188163 | K33: =IF(E32="","",IFERROR((E33/VLOOKUP(B33&"|"&VLOOKUP(TDPrimas!$B$4,Cat!R:T,2,0),'TD Operación'!A:D,4,0))*100,"ND")) -> ND | L33: =IF(E32="","",(VLOOKUP(B33,'TDPrimas Vida'!$B:$N,7,0))) -> 24.52922624
B34: =IF(C34="",B33,D34) -> TOTAL GRANDES | D34: =IF(D33="","","Renovación") -> Renovación | E34: =IF(E32="","",(VLOOKUP(B34,'TDPrimas Vida'!$B:$N,8,0))) -> 79616973.05 | F34: =IF(E32="","",(VLOOKUP(B34,'TDPrimas Vida'!$B:$N,9,0))) -> 77500858.06 | G34: =IFERROR((E34/VLOOKUP("TOTAL",$D$12:$L$312,2,0))*100,"") -> 30.71119693 | H34: =IFERROR((E34/VLOOKUP("TOTAL",$D$12:$L$312,3,0))*100,"") -> 31.9184311 | I34: =IF(E32="","",E34-F34) -> 2116114.998 | J34: =IF(E32="","",IFERROR((E34/F34-1)*100,"ND")) -> 2.730440734 | K34: =IF(E32="","",IFERROR((E34/VLOOKUP(B34&"|"&VLOOKUP(TDPrimas!$B$4,Cat!R:T,2,0),'TD Operación'!A:D,4,0))*100,"ND")) -> ND | L34: =IF(E32="","",(VLOOKUP(B34,'TDPrimas Vida'!$B:$N,10,0))) -> 29.73595773
B35: =IF(C35="",B34,D35) -> TOTAL GRANDES | D35: =IF(D34="","","Únicas") -> Únicas | E35: =IF(E33="","",(VLOOKUP(B35,'TDPrimas Vida'!$B:$N,11,0))) -> 22954450.6 | F35: =IF(E33="","",(VLOOKUP(B35,'TDPrimas Vida'!$B:$N,12,0))) -> 19743729.27 | G35: =IFERROR((E35/VLOOKUP("TOTAL",$D$12:$L$312,2,0))*100,"") -> 8.854376468 | H35: =IFERROR((E35/VLOOKUP("TOTAL",$D$12:$L$312,3,0))*100,"") -> 9.202435382 | I35: =IF(E32="","",E35-F35) -> 3210721.324 | J35: =IF(E32="","",IFERROR((E35/F35-1)*100,"ND")) -> 16.2619801 | K35: =IF(E32="","",IFERROR((E35/VLOOKUP(B35&"|"&VLOOKUP(TDPrimas!$B$4,Cat!R:T,2,0),'TD Operación'!A:D,4,0))*100,"ND")) -> ND | L35: =IF(E32="","",(VLOOKUP(B35,'TDPrimas Vida'!$B:$N,13,0))) -> 8.573204262
B36: =IF(C36="",B32,D36) -> Banorte | C36: =IF('TDPrimas Vida'!A13="","",'TDPrimas Vida'!A13) -> 6 | D36: =IF('TDPrimas Vida'!B13="","",'TDPrimas Vida'!B13) -> Banorte | E36: =IF('TDPrimas Vida'!C13="","",'TDPrimas Vida'!C13) -> 15636401.48 | F36: =IF('TDPrimas Vida'!D13="","",'TDPrimas Vida'!D13) -> 15171410.45 | G36: =IF('TDPrimas Vida'!C13="","",IFERROR((E36/VLOOKUP("TOTAL",$D$12:$L$312,2,0))*100,"")) -> 6.031535572 | H36: =IF('TDPrimas Vida'!C13="","",IFERROR((E36/VLOOKUP("TOTAL",$D$12:$L$312,3,0))*100,"")) -> 6.268630722 | I36: =IF('TDPrimas Vida'!C13="","",E36-F36) -> 464991.0284 | J36: =IFERROR(IF('TDPrimas Vida'!C13="","",(E36/F36-1)*100),"ND") -> 3.064916278 | K36: =IF(E36="","",IFERROR((E36/VLOOKUP(D36&"|"&VLOOKUP(TDPrimas!$B$4,Cat!R:T,2,0),'TD Operación'!A:D,4,0))*100,"ND")) -> ND | L36: =IF('TDPrimas Vida'!E13="","",'TDPrimas Vida'!E13) -> 54.07863955
B37: =IF(C37="",B36,D37) -> Banorte | D37: =IF(D36="","","1er Año") -> 1er Año | E37: =IF(E36="","",(VLOOKUP(B37,'TDPrimas Vida'!$B:$N,5,0))) -> 5176883.032 | F37: =IF(E36="","",(VLOOKUP(B37,'TDPrimas Vida'!$B:$N,6,0))) -> 3838669.01 | G37: =IFERROR((E37/VLOOKUP("TOTAL",$D$12:$L$312,2,0))*100,"") -> 1.996914329 | H37: =IFERROR((E37/VLOOKUP("TOTAL",$D$12:$L$312,3,0))*100,"") -> 2.075411537 | I37: =IF(E36="","",E37-F37) -> 1338214.022 | J37: =IF(E36="","",IFERROR((E37/F37-1)*100,"ND")) -> 34.86140686 | K37: =IF(E36="","",IFERROR((E37/VLOOKUP(B37&"|"&VLOOKUP(TDPrimas!$B$4,Cat!R:T,2,0),'TD Operación'!A:D,4,0))*100,"ND")) -> ND | L37: =IF(E36="","",(VLOOKUP(B37,'TDPrimas Vida'!$B:$N,7,0))) -> 17.90429799
B38: =IF(C38="",B37,D38) -> Banorte | D38: =IF(D37="","","Renovación") -> Renovación | E38: =IF(E36="","",(VLOOKUP(B38,'TDPrimas Vida'!$B:$N,8,0))) -> 7984926.705 | F38: =IF(E36="","",(VLOOKUP(B38,'TDPrimas Vida'!$B:$N,9,0))) -> 7476991.336 | G38: =IFERROR((E38/VLOOKUP("TOTAL",$D$12:$L$312,2,0))*100,"") -> 3.080080127 | H38: =IFERROR((E38/VLOOKUP("TOTAL",$D$12:$L$312,3,0))*100,"") -> 3.201155773 | I38: =IF(E36="","",E38-F38) -> 507935.3684 | J38: =IF(E36="","",IFERROR((E38/F38-1)*100,"ND")) -> 6.79331225 | K38: =IF(E36="","",IFERROR((E38/VLOOKUP(B38&"|"&VLOOKUP(TDPrimas!$B$4,Cat!R:T,2,0),'TD Operación'!A:D,4,0))*100,"ND")) -> ND | L38: =IF(E36="","",(VLOOKUP(B38,'TDPrimas Vida'!$B:$N,10,0))) -> 27.61594307
B39: =IF(C39="",B38,D39) -> Banorte | D39: =IF(D38="","","Únicas") -> Únicas | E39: =IF(E37="","",(VLOOKUP(B39,'TDPrimas Vida'!$B:$N,11,0))) -> 2474591.741 | F39: =IF(E37="","",(VLOOKUP(B39,'TDPrimas Vida'!$B:$N,12,0))) -> 3855750.103 | G39: =IFERROR((E39/VLOOKUP("TOTAL",$D$12:$L$312,2,0))*100,"") -> 0.9545411156 | H39: =IFERROR((E39/VLOOKUP("TOTAL",$D$12:$L$312,3,0))*100,"") -> 0.9920634126 | I39: =IF(E36="","",E39-F39) -> -1381158.362 | J39: =IF(E36="","",IFERROR((E39/F39-1)*100,"ND")) -> -35.82074369 | K39: =IF(E36="","",IFERROR((E39/VLOOKUP(B39&"|"&VLOOKUP(TDPrimas!$B$4,Cat!R:T,2,0),'TD Operación'!A:D,4,0))*100,"ND")) -> ND | L39: =IF(E36="","",(VLOOKUP(B39,'TDPrimas Vida'!$B:$N,13,0))) -> 8.558398489
B40: =IF(C40="",B36,D40) -> Allianz México | C40: =IF('TDPrimas Vida'!A14="","",'TDPrimas Vida'!A14) -> 7 | D40: =IF('TDPrimas Vida'!B14="","",'TDPrimas Vida'!B14) -> Allianz México | E40: =IF('TDPrimas Vida'!C14="","",'TDPrimas Vida'!C14) -> 10326844.2 | F40: =IF('TDPrimas Vida'!D14="","",'TDPrimas Vida'!D14) -> 9080227.052 | G40: =IF('TDPrimas Vida'!C14="","",IFERROR((E40/VLOOKUP("TOTAL",$D$12:$L$312,2,0))*100,"")) -> 3.983443902 | H40: =IF('TDPrimas Vida'!C14="","",IFERROR((E40/VLOOKUP("TOTAL",$D$12:$L$312,3,0))*100,"")) -> 4.140030101 | I40: =IF('TDPrimas Vida'!C14="","",E40-F40) -> 1246617.144 | J40: =IFERROR(IF('TDPrimas Vida'!C14="","",(E40/F40-1)*100),"ND") -> 13.7289204 | K40: =IF(E40="","",IFERROR((E40/VLOOKUP(D40&"|"&VLOOKUP(TDPrimas!$B$4,Cat!R:T,2,0),'TD Operación'!A:D,4,0))*100,"ND")) -> ND | L40: =IF('TDPrimas Vida'!E14="","",'TDPrimas Vida'!E14) -> 54.49673298
B41: =IF(C41="",B40,D41) -> Allianz México | D41: =IF(D40="","","1er Año") -> 1er Año | E41: =IF(E40="","",(VLOOKUP(B41,'TDPrimas Vida'!$B:$N,5,0))) -> 4570849.743 | F41: =IF(E40="","",(VLOOKUP(B41,'TDPrimas Vida'!$B:$N,6,0))) -> 4859120.954 | G41: =IFERROR((E41/VLOOKUP("TOTAL",$D$12:$L$312,2,0))*100,"") -> 1.763144983 | H41: =IFERROR((E41/VLOOKUP("TOTAL",$D$12:$L$312,3,0))*100,"") -> 1.832452893 | I41: =IF(E40="","",E41-F41) -> -288271.211 | J41: =IF(E40="","",IFERROR((E41/F41-1)*100,"ND")) -> -5.932579446 | K41: =IF(E40="","",IFERROR((E41/VLOOKUP(B41&"|"&VLOOKUP(TDPrimas!$B$4,Cat!R:T,2,0),'TD Operación'!A:D,4,0))*100,"ND")) -> ND | L41: =IF(E40="","",(VLOOKUP(B41,'TDPrimas Vida'!$B:$N,7,0))) -> 24.12124878
B42: =IF(C42="",B41,D42) -> Allianz México | D42: =IF(D41="","","Renovación") -> Renovación | E42: =IF(E40="","",(VLOOKUP(B42,'TDPrimas Vida'!$B:$N,8,0))) -> 5755994.453 | F42: =IF(E40="","",(VLOOKUP(B42,'TDPrimas Vida'!$B:$N,9,0))) -> 4221106.098 | G42: =IFERROR((E42/VLOOKUP("TOTAL",$D$12:$L$312,2,0))*100,"") -> 2.220298919 | H42: =IFERROR((E42/VLOOKUP("TOTAL",$D$12:$L$312,3,0))*100,"") -> 2.307577208 | I42: =IF(E40="","",E42-F42) -> 1534888.355 | J42: =IF(E40="","",IFERROR((E42/F42-1)*100,"ND")) -> 36.36223111 | K42: =IF(E40="","",IFERROR((E42/VLOOKUP(B42&"|"&VLOOKUP(TDPrimas!$B$4,Cat!R:T,2,0),'TD Operación'!A:D,4,0))*100,"ND")) -> ND | L42: =IF(E40="","",(VLOOKUP(B42,'TDPrimas Vida'!$B:$N,10,0))) -> 30.3754842
B43: =IF(C43="",B42,D43) -> Allianz México | D43: =IF(D42="","","Únicas") -> Únicas | E43: =IF(E41="","",(VLOOKUP(B43,'TDPrimas Vida'!$B:$N,11,0))) -> 0 | F43: =IF(E41="","",(VLOOKUP(B43,'TDPrimas Vida'!$B:$N,12,0))) -> 0 | G43: =IFERROR((E43/VLOOKUP("TOTAL",$D$12:$L$312,2,0))*100,"") -> 0 | H43: =IFERROR((E43/VLOOKUP("TOTAL",$D$12:$L$312,3,0))*100,"") -> 0 | I43: =IF(E40="","",E43-F43) -> 0 | J43: =IF(E40="","",IFERROR((E43/F43-1)*100,"ND")) -> ND | K43: =IF(E40="","",IFERROR((E43/VLOOKUP(B43&"|"&VLOOKUP(TDPrimas!$B$4,Cat!R:T,2,0),'TD Operación'!A:D,4,0))*100,"ND")) -> ND | L43: =IF(E40="","",(VLOOKUP(B43,'TDPrimas Vida'!$B:$N,13,0))) -> 0
B44: =IF(C44="",B40,D44) -> Zurich Santander | C44: =IF('TDPrimas Vida'!A15="","",'TDPrimas Vida'!A15) -> 8 | D44: =IF('TDPrimas Vida'!B15="","",'TDPrimas Vida'!B15) -> Zurich Santander | E44: =IF('TDPrimas Vida'!C15="","",'TDPrimas Vida'!C15) -> 10124406.06 | F44: =IF('TDPrimas Vida'!D15="","",'TDPrimas Vida'!D15) -> 10872638.54 | G44: =IF('TDPrimas Vida'!C15="","",IFERROR((E44/VLOOKUP("TOTAL",$D$12:$L$312,2,0))*100,"")) -> 3.905356061 | H44: =IF('TDPrimas Vida'!C15="","",IFERROR((E44/VLOOKUP("TOTAL",$D$12:$L$312,3,0))*100,"")) -> 4.058872686 | I44: =IF('TDPrimas Vida'!C15="","",E44-F44) -> -748232.4821 | J44: =IFERROR(IF('TDPrimas Vida'!C15="","",(E44/F44-1)*100),"ND") -> -6.881793037 | K44: =IF(E44="","",IFERROR((E44/VLOOKUP(D44&"|"&VLOOKUP(TDPrimas!$B$4,Cat!R:T,2,0),'TD Operación'!A:D,4,0))*100,"ND")) -> ND | L44: =IF('TDPrimas Vida'!E15="","",'TDPrimas Vida'!E15) -> 69.64083484
B45: =IF(C45="",B44,D45) -> Zurich Santander | D45: =IF(D44="","","1er Año") -> 1er Año | E45: =IF(E44="","",(VLOOKUP(B45,'TDPrimas Vida'!$B:$N,5,0))) -> 4184166.794 | F45: =IF(E44="","",(VLOOKUP(B45,'TDPrimas Vida'!$B:$N,6,0))) -> 6128239.404 | G45: =IFERROR((E45/VLOOKUP("TOTAL",$D$12:$L$312,2,0))*100,"") -> 1.613987137 | H45: =IFERROR((E45/VLOOKUP("TOTAL",$D$12:$L$312,3,0))*100,"") -> 1.677431764 | I45: =IF(E44="","",E45-F45) -> -1944072.61 | J45: =IF(E44="","",IFERROR((E45/F45-1)*100,"ND")) -> -31.72318314 | K45: =IF(E44="","",IFERROR((E45/VLOOKUP(B45&"|"&VLOOKUP(TDPrimas!$B$4,Cat!R:T,2,0),'TD Operación'!A:D,4,0))*100,"ND")) -> ND | L45: =IF(E44="","",(VLOOKUP(B45,'TDPrimas Vida'!$B:$N,7,0))) -> 28.78083583
B46: =IF(C46="",B45,D46) -> Zurich Santander | D46: =IF(D45="","","Renovación") -> Renovación | E46: =IF(E44="","",(VLOOKUP(B46,'TDPrimas Vida'!$B:$N,8,0))) -> 1359424.265 | F46: =IF(E44="","",(VLOOKUP(B46,'TDPrimas Vida'!$B:$N,9,0))) -> 1224789.944 | G46: =IFERROR((E46/VLOOKUP("TOTAL",$D$12:$L$312,2,0))*100,"") -> 0.5243799748 | H46: =IFERROR((E46/VLOOKUP("TOTAL",$D$12:$L$312,3,0))*100,"") -> 0.5449929592 | I46: =IF(E44="","",E46-F46) -> 134634.3212 | J46: =IF(E44="","",IFERROR((E46/F46-1)*100,"ND")) -> 10.99244176 | K46: =IF(E44="","",IFERROR((E46/VLOOKUP(B46&"|"&VLOOKUP(TDPrimas!$B$4,Cat!R:T,2,0),'TD Operación'!A:D,4,0))*100,"ND")) -> ND | L46: =IF(E44="","",(VLOOKUP(B46,'TDPrimas Vida'!$B:$N,10,0))) -> 9.350814278
B47: =IF(C47="",B46,D47) -> Zurich Santander | D47: =IF(D46="","","Únicas") -> Únicas | E47: =IF(E45="","",(VLOOKUP(B47,'TDPrimas Vida'!$B:$N,11,0))) -> 4580814.999 | F47: =IF(E45="","",(VLOOKUP(B47,'TDPrimas Vida'!$B:$N,12,0))) -> 3519609.193 | G47: =IFERROR((E47/VLOOKUP("TOTAL",$D$12:$L$312,2,0))*100,"") -> 1.766988949 | H47: =IFERROR((E47/VLOOKUP("TOTAL",$D$12:$L$312,3,0))*100,"") -> 1.836447963 | I47: =IF(E44="","",E47-F47) -> 1061205.806 | J47: =IF(E44="","",IFERROR((E47/F47-1)*100,"ND")) -> 30.15123975 | K47: =IF(E44="","",IFERROR((E47/VLOOKUP(B47&"|"&VLOOKUP(TDPrimas!$B$4,Cat!R:T,2,0),'TD Operación'!A:D,4,0))*100,"ND")) -> ND | L47: =IF(E44="","",(VLOOKUP(B47,'TDPrimas Vida'!$B:$N,13,0))) -> 31.50918473
B48: =IF(C48="",B44,D48) -> HSBC Seguros | C48: =IF('TDPrimas Vida'!A16="","",'TDPrimas Vida'!A16) -> 9 | D48: =IF('TDPrimas Vida'!B16="","",'TDPrimas Vida'!B16) -> HSBC Seguros | E48: =IF('TDPrimas Vida'!C16="","",'TDPrimas Vida'!C16) -> 6262776.066 | F48: =IF('TDPrimas Vida'!D16="","",'TDPrimas Vida'!D16) -> 6118480.682 | G48: =IF('TDPrimas Vida'!C16="","",IFERROR((E48/VLOOKUP("TOTAL",$D$12:$L$312,2,0))*100,"")) -> 2.41578324 | H48: =IF('TDPrimas Vida'!C16="","",IFERROR((E48/VLOOKUP("TOTAL",$D$12:$L$312,3,0))*100,"")) -> 2.510745871 | I48: =IF('TDPrimas Vida'!C16="","",E48-F48) -> 144295.3839 | J48: =IFERROR(IF('TDPrimas Vida'!C16="","",(E48/F48-1)*100),"ND") -> 2.358353183 | K48: =IF(E48="","",IFERROR((E48/VLOOKUP(D48&"|"&VLOOKUP(TDPrimas!$B$4,Cat!R:T,2,0),'TD Operación'!A:D,4,0))*100,"ND")) -> ND | L48: =IF('TDPrimas Vida'!E16="","",'TDPrimas Vida'!E16) -> 94.60138793
B49: =IF(C49="",B48,D49) -> HSBC Seguros | D49: =IF(D48="","","1er Año") -> 1er Año | E49: =IF(E48="","",(VLOOKUP(B49,'TDPrimas Vida'!$B:$N,5,0))) -> 3961507.714 | F49: =IF(E48="","",(VLOOKUP(B49,'TDPrimas Vida'!$B:$N,6,0))) -> 4219031.923 | G49: =IFERROR((E49/VLOOKUP("TOTAL",$D$12:$L$312,2,0))*100,"") -> 1.528099335 | H49: =IFERROR((E49/VLOOKUP("TOTAL",$D$12:$L$312,3,0))*100,"") -> 1.588167776 | I49: =IF(E48="","",E49-F49) -> -257524.2086 | J49: =IF(E48="","",IFERROR((E49/F49-1)*100,"ND")) -> -6.103869638 | K49: =IF(E48="","",IFERROR((E49/VLOOKUP(B49&"|"&VLOOKUP(TDPrimas!$B$4,Cat!R:T,2,0),'TD Operación'!A:D,4,0))*100,"ND")) -> ND | L49: =IF(E48="","",(VLOOKUP(B49,'TDPrimas Vida'!$B:$N,7,0))) -> 59.83993745
B50: =IF(C50="",B49,D50) -> HSBC Seguros | D50: =IF(D49="","","Renovación") -> Renovación | E50: =IF(E48="","",(VLOOKUP(B50,'TDPrimas Vida'!$B:$N,8,0))) -> 2301268.352 | F50: =IF(E48="","",(VLOOKUP(B50,'TDPrimas Vida'!$B:$N,9,0))) -> 1899448.759 | G50: =IFERROR((E50/VLOOKUP("TOTAL",$D$12:$L$312,2,0))*100,"") -> 0.887683905 | H50: =IFERROR((E50/VLOOKUP("TOTAL",$D$12:$L$312,3,0))*100,"") -> 0.9225780951 | I50: =IF(E48="","",E50-F50) -> 401819.5925 | J50: =IF(E48="","",IFERROR((E50/F50-1)*100,"ND")) -> 21.1545371 | K50: =IF(E48="","",IFERROR((E50/VLOOKUP(B50&"|"&VLOOKUP(TDPrimas!$B$4,Cat!R:T,2,0),'TD Operación'!A:D,4,0))*100,"ND")) -> ND | L50: =IF(E48="","",(VLOOKUP(B50,'TDPrimas Vida'!$B:$N,10,0))) -> 34.76145048
B51: =IF(C51="",B50,D51) -> HSBC Seguros | D51: =IF(D50="","","Únicas") -> Únicas | E51: =IF(E49="","",(VLOOKUP(B51,'TDPrimas Vida'!$B:$N,11,0))) -> 0 | F51: =IF(E49="","",(VLOOKUP(B51,'TDPrimas Vida'!$B:$N,12,0))) -> 0 | G51: =IFERROR((E51/VLOOKUP("TOTAL",$D$12:$L$312,2,0))*100,"") -> 0 | H51: =IFERROR((E51/VLOOKUP("TOTAL",$D$12:$L$312,3,0))*100,"") -> 0 | I51: =IF(E48="","",E51-F51) -> 0 | J51: =IF(E48="","",IFERROR((E51/F51-1)*100,"ND")) -> ND | K51: =IF(E48="","",IFERROR((E51/VLOOKUP(B51&"|"&VLOOKUP(TDPrimas!$B$4,Cat!R:T,2,0),'TD Operación'!A:D,4,0))*100,"ND")) -> ND | L51: =IF(E48="","",(VLOOKUP(B51,'TDPrimas Vida'!$B:$N,13,0))) -> 0
B52: =IF(C52="",B48,D52) -> AXA Seguros | C52: =IF('TDPrimas Vida'!A17="","",'TDPrimas Vida'!A17) -> 10 | D52: =IF('TDPrimas Vida'!B17="","",'TDPrimas Vida'!B17) -> AXA Seguros | E52: =IF('TDPrimas Vida'!C17="","",'TDPrimas Vida'!C17) -> 5473617.575 | F52: =IF('TDPrimas Vida'!D17="","",'TDPrimas Vida'!D17) -> 5769071.136 | G52: =IF('TDPrimas Vida'!C17="","",IFERROR((E52/VLOOKUP("TOTAL",$D$12:$L$312,2,0))*100,"")) -> 2.111375764 | H52: =IF('TDPrimas Vida'!C17="","",IFERROR((E52/VLOOKUP("TOTAL",$D$12:$L$312,3,0))*100,"")) -> 2.194372365 | I52: =IF('TDPrimas Vida'!C17="","",E52-F52) -> -295453.5609 | J52: =IFERROR(IF('TDPrimas Vida'!C17="","",(E52/F52-1)*100),"ND") -> -5.121336762 | K52: =IF(E52="","",IFERROR((E52/VLOOKUP(D52&"|"&VLOOKUP(TDPrimas!$B$4,Cat!R:T,2,0),'TD Operación'!A:D,4,0))*100,"ND")) -> ND | L52: =IF('TDPrimas Vida'!E17="","",'TDPrimas Vida'!E17) -> 11.64242436
B53: =IF(C53="",B52,D53) -> AXA Seguros | D53: =IF(D52="","","1er Año") -> 1er Año | E53: =IF(E52="","",(VLOOKUP(B53,'TDPrimas Vida'!$B:$N,5,0))) -> 1151388.461 | F53: =IF(E52="","",(VLOOKUP(B53,'TDPrimas Vida'!$B:$N,6,0))) -> 1329927.921 | G53: =IFERROR((E53/VLOOKUP("TOTAL",$D$12:$L$312,2,0))*100,"") -> 0.4441329079 | H53: =IFERROR((E53/VLOOKUP("TOTAL",$D$12:$L$312,3,0))*100,"") -> 0.4615914402 | I53: =IF(E52="","",E53-F53) -> -178539.4603 | J53: =IF(E52="","",IFERROR((E53/F53-1)*100,"ND")) -> -13.42474712 | K53: =IF(E52="","",IFERROR((E53/VLOOKUP(B53&"|"&VLOOKUP(TDPrimas!$B$4,Cat!R:T,2,0),'TD Operación'!A:D,4,0))*100,"ND")) -> ND | L53: =IF(E52="","",(VLOOKUP(B53,'TDPrimas Vida'!$B:$N,7,0))) -> 2.449011624
B54: =IF(C54="",B53,D54) -> AXA Seguros | D54: =IF(D53="","","Renovación") -> Renovación | E54: =IF(E52="","",(VLOOKUP(B54,'TDPrimas Vida'!$B:$N,8,0))) -> 4315534.032 | F54: =IF(E52="","",(VLOOKUP(B54,'TDPrimas Vida'!$B:$N,9,0))) -> 4433822.948 | G54: =IFERROR((E54/VLOOKUP("TOTAL",$D$12:$L$312,2,0))*100,"") -> 1.664660316 | H54: =IFERROR((E54/VLOOKUP("TOTAL",$D$12:$L$312,3,0))*100,"") -> 1.730096867 | I54: =IF(E52="","",E54-F54) -> -118288.9168 | J54: =IF(E52="","",IFERROR((E54/F54-1)*100,"ND")) -> -2.667876416 | K54: =IF(E52="","",IFERROR((E54/VLOOKUP(B54&"|"&VLOOKUP(TDPrimas!$B$4,Cat!R:T,2,0),'TD Operación'!A:D,4,0))*100,"ND")) -> ND | L54: =IF(E52="","",(VLOOKUP(B54,'TDPrimas Vida'!$B:$N,10,0))) -> 9.179172249
B55: =IF(C55="",B54,D55) -> AXA Seguros | D55: =IF(D54="","","Únicas") -> Únicas | E55: =IF(E53="","",(VLOOKUP(B55,'TDPrimas Vida'!$B:$N,11,0))) -> 6695.08307 | F55: =IF(E53="","",(VLOOKUP(B55,'TDPrimas Vida'!$B:$N,12,0))) -> 5320.26688 | G55: =IFERROR((E55/VLOOKUP("TOTAL",$D$12:$L$312,2,0))*100,"") -> 0.002582539963 | H55: =IFERROR((E55/VLOOKUP("TOTAL",$D$12:$L$312,3,0))*100,"") -> 0.002684057676 | I55: =IF(E52="","",E55-F55) -> 1374.81619 | J55: =IF(E52="","",IFERROR((E55/F55-1)*100,"ND")) -> 25.84111326 | K55: =IF(E52="","",IFERROR((E55/VLOOKUP(B55&"|"&VLOOKUP(TDPrimas!$B$4,Cat!R:T,2,0),'TD Operación'!A:D,4,0))*100,"ND")) -> ND | L55: =IF(E52="","",(VLOOKUP(B55,'TDPrimas Vida'!$B:$N,13,0))) -> 0.01424049035
B56: =IF(C56="",B52,D56) -> Mapfre México | C56: =IF('TDPrimas Vida'!A18="","",'TDPrimas Vida'!A18) -> 11 | D56: =IF('TDPrimas Vida'!B18="","",'TDPrimas Vida'!B18) -> Mapfre México | E56: =IF('TDPrimas Vida'!C18="","",'TDPrimas Vida'!C18) -> 5365137.705 | F56: =IF('TDPrimas Vida'!D18="","",'TDPrimas Vida'!D18) -> 5405617.678 | G56: =IF('TDPrimas Vida'!C18="","",IFERROR((E56/VLOOKUP("TOTAL",$D$12:$L$312,2,0))*100,"")) -> 2.069531085 | H56: =IF('TDPrimas Vida'!C18="","",IFERROR((E56/VLOOKUP("TOTAL",$D$12:$L$312,3,0))*100,"")) -> 2.150882803 | I56: =IF('TDPrimas Vida'!C18="","",E56-F56) -> -40479.97378 | J56: =IFERROR(IF('TDPrimas Vida'!C18="","",(E56/F56-1)*100),"ND") -> -0.7488501072 | K56: =IF(E56="","",IFERROR((E56/VLOOKUP(D56&"|"&VLOOKUP(TDPrimas!$B$4,Cat!R:T,2,0),'TD Operación'!A:D,4,0))*100,"ND")) -> ND | L56: =IF('TDPrimas Vida'!E18="","",'TDPrimas Vida'!E18) -> 25.34670433
B57: =IF(C57="",B56,D57) -> Mapfre México | D57: =IF(D56="","","1er Año") -> 1er Año | E57: =IF(E56="","",(VLOOKUP(B57,'TDPrimas Vida'!$B:$N,5,0))) -> 4602141.839 | F57: =IF(E56="","",(VLOOKUP(B57,'TDPrimas Vida'!$B:$N,6,0))) -> 4596064.591 | G57: =IFERROR((E57/VLOOKUP("TOTAL",$D$12:$L$312,2,0))*100,"") -> 1.775215496 | H57: =IFERROR((E57/VLOOKUP("TOTAL",$D$12:$L$312,3,0))*100,"") -> 1.844997889 | I57: =IF(E56="","",E57-F57) -> 6077.24867 | J57: =IF(E56="","",IFERROR((E57/F57-1)*100,"ND")) -> 0.1322272251 | K57: =IF(E56="","",IFERROR((E57/VLOOKUP(B57&"|"&VLOOKUP(TDPrimas!$B$4,Cat!R:T,2,0),'TD Operación'!A:D,4,0))*100,"ND")) -> ND | L57: =IF(E56="","",(VLOOKUP(B57,'TDPrimas Vida'!$B:$N,7,0))) -> 21.74205675
B58: =IF(C58="",B57,D58) -> Mapfre México | D58: =IF(D57="","","Renovación") -> Renovación | E58: =IF(E56="","",(VLOOKUP(B58,'TDPrimas Vida'!$B:$N,8,0))) -> 759074.1155 | F58: =IF(E56="","",(VLOOKUP(B58,'TDPrimas Vida'!$B:$N,9,0))) -> 808465.8015 | G58: =IFERROR((E58/VLOOKUP("TOTAL",$D$12:$L$312,2,0))*100,"") -> 0.2928028252 | H58: =IFERROR((E58/VLOOKUP("TOTAL",$D$12:$L$312,3,0))*100,"") -> 0.3043126852 | I58: =IF(E56="","",E58-F58) -> -49391.68605 | J58: =IF(E56="","",IFERROR((E58/F58-1)*100,"ND")) -> -6.109310494 | K58: =IF(E56="","",IFERROR((E58/VLOOKUP(B58&"|"&VLOOKUP(TDPrimas!$B$4,Cat!R:T,2,0),'TD Operación'!A:D,4,0))*100,"ND")) -> ND | L58: =IF(E56="","",(VLOOKUP(B58,'TDPrimas Vida'!$B:$N,10,0))) -> 3.586119914
B59: =IF(C59="",B58,D59) -> Mapfre México | D59: =IF(D58="","","Únicas") -> Únicas | E59: =IF(E57="","",(VLOOKUP(B59,'TDPrimas Vida'!$B:$N,11,0))) -> 3368.52744 | F59: =IF(E57="","",(VLOOKUP(B59,'TDPrimas Vida'!$B:$N,12,0))) -> 1087.28627 | G59: =IFERROR((E59/VLOOKUP("TOTAL",$D$12:$L$312,2,0))*100,"") -> 0.001299365017 | H59: =IFERROR((E59/VLOOKUP("TOTAL",$D$12:$L$312,3,0))*100,"") -> 0.001350442084 | I59: =IF(E56="","",E59-F59) -> 2281.24117 | J59: =IF(E56="","",IFERROR((E59/F59-1)*100,"ND")) -> 209.8105378 | K59: =IF(E56="","",IFERROR((E59/VLOOKUP(B59&"|"&VLOOKUP(TDPrimas!$B$4,Cat!R:T,2,0),'TD Operación'!A:D,4,0))*100,"ND")) -> ND | L59: =IF(E56="","",(VLOOKUP(B59,'TDPrimas Vida'!$B:$N,13,0))) -> 0.01591404988
B60: =IF(C60="",B56,D60) -> Inbursa | C60: =IF('TDPrimas Vida'!A19="","",'TDPrimas Vida'!A19) -> 12 | D60: =IF('TDPrimas Vida'!B19="","",'TDPrimas Vida'!B19) -> Inbursa | E60: =IF('TDPrimas Vida'!C19="","",'TDPrimas Vida'!C19) -> 5269961.063 | F60: =IF('TDPrimas Vida'!D19="","",'TDPrimas Vida'!D19) -> 5013331.068 | G60: =IF('TDPrimas Vida'!C19="","",IFERROR((E60/VLOOKUP("TOTAL",$D$12:$L$312,2,0))*100,"")) -> 2.032817951 | H60: =IF('TDPrimas Vida'!C19="","",IFERROR((E60/VLOOKUP("TOTAL",$D$12:$L$312,3,0))*100,"")) -> 2.112726504 | I60: =IF('TDPrimas Vida'!C19="","",E60-F60) -> 256629.9951 | J60: =IFERROR(IF('TDPrimas Vida'!C19="","",(E60/F60-1)*100),"ND") -> 5.118951683 | K60: =IF(E60="","",IFERROR((E60/VLOOKUP(D60&"|"&VLOOKUP(TDPrimas!$B$4,Cat!R:T,2,0),'TD Operación'!A:D,4,0))*100,"ND")) -> ND | L60: =IF('TDPrimas Vida'!E19="","",'TDPrimas Vida'!E19) -> 22.86828498
B61: =IF(C61="",B60,D61) -> Inbursa | D61: =IF(D60="","","1er Año") -> 1er Año | E61: =IF(E60="","",(VLOOKUP(B61,'TDPrimas Vida'!$B:$N,5,0))) -> 2958038.826 | F61: =IF(E60="","",(VLOOKUP(B61,'TDPrimas Vida'!$B:$N,6,0))) -> 2847270.967 | G61: =IFERROR((E61/VLOOKUP("TOTAL",$D$12:$L$312,2,0))*100,"") -> 1.14102445 | H61: =IFERROR((E61/VLOOKUP("TOTAL",$D$12:$L$312,3,0))*100,"") -> 1.185877268 | I61: =IF(E60="","",E61-F61) -> 110767.8589 | J61: =IF(E60="","",IFERROR((E61/F61-1)*100,"ND")) -> 3.890316733 | K61: =IF(E60="","",IFERROR((E61/VLOOKUP(B61&"|"&VLOOKUP(TDPrimas!$B$4,Cat!R:T,2,0),'TD Operación'!A:D,4,0))*100,"ND")) -> ND | L61: =IF(E60="","",(VLOOKUP(B61,'TDPrimas Vida'!$B:$N,7,0))) -> 12.83601037
B62: =IF(C62="",B61,D62) -> Inbursa | D62: =IF(D61="","","Renovación") -> Renovación | E62: =IF(E60="","",(VLOOKUP(B62,'TDPrimas Vida'!$B:$N,8,0))) -> 2311922.237 | F62: =IF(E60="","",(VLOOKUP(B62,'TDPrimas Vida'!$B:$N,9,0))) -> 2166060.101 | G62: =IFERROR((E62/VLOOKUP("TOTAL",$D$12:$L$312,2,0))*100,"") -> 0.8917935008 | H62: =IFERROR((E62/VLOOKUP("TOTAL",$D$12:$L$312,3,0))*100,"") -> 0.926849236 | I62: =IF(E60="","",E62-F62) -> 145862.1362 | J62: =IF(E60="","",IFERROR((E62/F62-1)*100,"ND")) -> 6.733983797 | K62: =IF(E60="","",IFERROR((E62/VLOOKUP(B62&"|"&VLOOKUP(TDPrimas!$B$4,Cat!R:T,2,0),'TD Operación'!A:D,4,0))*100,"ND")) -> ND | L62: =IF(E60="","",(VLOOKUP(B62,'TDPrimas Vida'!$B:$N,10,0))) -> 10.03227461
B63: =IF(C63="",B62,D63) -> Inbursa | D63: =IF(D62="","","Únicas") -> Únicas | E63: =IF(E61="","",(VLOOKUP(B63,'TDPrimas Vida'!$B:$N,11,0))) -> 0 | F63: =IF(E61="","",(VLOOKUP(B63,'TDPrimas Vida'!$B:$N,12,0))) -> 0 | G63: =IFERROR((E63/VLOOKUP("TOTAL",$D$12:$L$312,2,0))*100,"") -> 0 | H63: =IFERROR((E63/VLOOKUP("TOTAL",$D$12:$L$312,3,0))*100,"") -> 0 | I63: =IF(E60="","",E63-F63) -> 0 | J63: =IF(E60="","",IFERROR((E63/F63-1)*100,"ND")) -> ND | K63: =IF(E60="","",IFERROR((E63/VLOOKUP(B63&"|"&VLOOKUP(TDPrimas!$B$4,Cat!R:T,2,0),'TD Operación'!A:D,4,0))*100,"ND")) -> ND | L63: =IF(E60="","",(VLOOKUP(B63,'TDPrimas Vida'!$B:$N,13,0))) -> 0
B64: =IF(C64="",B60,D64) -> Seguros Azteca | C64: =IF('TDPrimas Vida'!A20="","",'TDPrimas Vida'!A20) -> 13 | D64: =IF('TDPrimas Vida'!B20="","",'TDPrimas Vida'!B20) -> Seguros Azteca | E64: =IF('TDPrimas Vida'!C20="","",'TDPrimas Vida'!C20) -> 3769814.528 | F64: =IF('TDPrimas Vida'!D20="","",'TDPrimas Vida'!D20) -> 4867012.418 | G64: =IF('TDPrimas Vida'!C20="","",IFERROR((E64/VLOOKUP("TOTAL",$D$12:$L$312,2,0))*100,"")) -> 1.454156217 | H64: =IF('TDPrimas Vida'!C20="","",IFERROR((E64/VLOOKUP("TOTAL",$D$12:$L$312,3,0))*100,"")) -> 1.51131801 | I64: =IF('TDPrimas Vida'!C20="","",E64-F64) -> -1097197.89 | J64: =IFERROR(IF('TDPrimas Vida'!C20="","",(E64/F64-1)*100),"ND") -> -22.54356052 | K64: =IF(E64="","",IFERROR((E64/VLOOKUP(D64&"|"&VLOOKUP(TDPrimas!$B$4,Cat!R:T,2,0),'TD Operación'!A:D,4,0))*100,"ND")) -> ND | L64: =IF('TDPrimas Vida'!E20="","",'TDPrimas Vida'!E20) -> 96.25448235
B65: =IF(C65="",B64,D65) -> Seguros Azteca | D65: =IF(D64="","","1er Año") -> 1er Año | E65: =IF(E64="","",(VLOOKUP(B65,'TDPrimas Vida'!$B:$N,5,0))) -> 3667577.854 | F65: =IF(E64="","",(VLOOKUP(B65,'TDPrimas Vida'!$B:$N,6,0))) -> 4782784.052 | G65: =IFERROR((E65/VLOOKUP("TOTAL",$D$12:$L$312,2,0))*100,"") -> 1.414719769 | H65: =IFERROR((E65/VLOOKUP("TOTAL",$D$12:$L$312,3,0))*100,"") -> 1.470331345 | I65: =IF(E64="","",E65-F65) -> -1115206.199 | J65: =IF(E64="","",IFERROR((E65/F65-1)*100,"ND")) -> -23.31709286 | K65: =IF(E64="","",IFERROR((E65/VLOOKUP(B65&"|"&VLOOKUP(TDPrimas!$B$4,Cat!R:T,2,0),'TD Operación'!A:D,4,0))*100,"ND")) -> ND | L65: =IF(E64="","",(VLOOKUP(B65,'TDPrimas Vida'!$B:$N,7,0))) -> 93.64407856
B66: =IF(C66="",B65,D66) -> Seguros Azteca | D66: =IF(D65="","","Renovación") -> Renovación | E66: =IF(E64="","",(VLOOKUP(B66,'TDPrimas Vida'!$B:$N,8,0))) -> 11381.52445 | F66: =IF(E64="","",(VLOOKUP(B66,'TDPrimas Vida'!$B:$N,9,0))) -> 9354.4844 | G66: =IFERROR((E66/VLOOKUP("TOTAL",$D$12:$L$312,2,0))*100,"") -> 0.004390272895 | H66: =IFERROR((E66/VLOOKUP("TOTAL",$D$12:$L$312,3,0))*100,"") -> 0.004562851237 | I66: =IF(E64="","",E66-F66) -> 2027.04005 | J66: =IF(E64="","",IFERROR((E66/F66-1)*100,"ND")) -> 21.66917986 | K66: =IF(E64="","",IFERROR((E66/VLOOKUP(B66&"|"&VLOOKUP(TDPrimas!$B$4,Cat!R:T,2,0),'TD Operación'!A:D,4,0))*100,"ND")) -> ND | L66: =IF(E64="","",(VLOOKUP(B66,'TDPrimas Vida'!$B:$N,10,0))) -> 0.2906038842
B67: =IF(C67="",B66,D67) -> Seguros Azteca | D67: =IF(D66="","","Únicas") -> Únicas | E67: =IF(E65="","",(VLOOKUP(B67,'TDPrimas Vida'!$B:$N,11,0))) -> 90855.14963 | F67: =IF(E65="","",(VLOOKUP(B67,'TDPrimas Vida'!$B:$N,12,0))) -> 74873.88082 | G67: =IFERROR((E67/VLOOKUP("TOTAL",$D$12:$L$312,2,0))*100,"") -> 0.03504617527 | H67: =IFERROR((E67/VLOOKUP("TOTAL",$D$12:$L$312,3,0))*100,"") -> 0.0364238142 | I67: =IF(E64="","",E67-F67) -> 15981.26881 | J67: =IF(E64="","",IFERROR((E67/F67-1)*100,"ND")) -> 21.34425067 | K67: =IF(E64="","",IFERROR((E67/VLOOKUP(B67&"|"&VLOOKUP(TDPrimas!$B$4,Cat!R:T,2,0),'TD Operación'!A:D,4,0))*100,"ND")) -> ND | L67: =IF(E64="","",(VLOOKUP(B67,'TDPrimas Vida'!$B:$N,13,0))) -> 2.319799909
B68: =IF(C68="",B64,D68) -> Seguros Argos | C68: =IF('TDPrimas Vida'!A21="","",'TDPrimas Vida'!A21) -> 14 | D68: =IF('TDPrimas Vida'!B21="","",'TDPrimas Vida'!B21) -> Seguros Argos | E68: =IF('TDPrimas Vida'!C21="","",'TDPrimas Vida'!C21) -> 3759735.104 | F68: =IF('TDPrimas Vida'!D21="","",'TDPrimas Vida'!D21) -> 3067143.767 | G68: =IF('TDPrimas Vida'!C21="","",IFERROR((E68/VLOOKUP("TOTAL",$D$12:$L$312,2,0))*100,"")) -> 1.450268212 | H68: =IF('TDPrimas Vida'!C21="","",IFERROR((E68/VLOOKUP("TOTAL",$D$12:$L$312,3,0))*100,"")) -> 1.507277171 | I68: =IF('TDPrimas Vida'!C21="","",E68-F68) -> 692591.337 | J68: =IFERROR(IF('TDPrimas Vida'!C21="","",(E68/F68-1)*100),"ND") -> 22.58098706 | K68: =IF(E68="","",IFERROR((E68/VLOOKUP(D68&"|"&VLOOKUP(TDPrimas!$B$4,Cat!R:T,2,0),'TD Operación'!A:D,4,0))*100,"ND")) -> ND | L68: =IF('TDPrimas Vida'!E21="","",'TDPrimas Vida'!E21) -> 100
B69: =IF(C69="",B68,D69) -> Seguros Argos | D69: =IF(D68="","","1er Año") -> 1er Año | E69: =IF(E68="","",(VLOOKUP(B69,'TDPrimas Vida'!$B:$N,5,0))) -> 976257.407 | F69: =IF(E68="","",(VLOOKUP(B69,'TDPrimas Vida'!$B:$N,6,0))) -> 745728.4944 | G69: =IFERROR((E69/VLOOKUP("TOTAL",$D$12:$L$312,2,0))*100,"") -> 0.3765784145 | H69: =IFERROR((E69/VLOOKUP("TOTAL",$D$12:$L$312,3,0))*100,"") -> 0.3913814302 | I69: =IF(E68="","",E69-F69) -> 230528.9126 | J69: =IF(E68="","",IFERROR((E69/F69-1)*100,"ND")) -> 30.91324984 | K69: =IF(E68="","",IFERROR((E69/VLOOKUP(B69&"|"&VLOOKUP(TDPrimas!$B$4,Cat!R:T,2,0),'TD Operación'!A:D,4,0))*100,"ND")) -> ND | L69: =IF(E68="","",(VLOOKUP(B69,'TDPrimas Vida'!$B:$N,7,0))) -> 25.96612208
B70: =IF(C70="",B69,D70) -> Seguros Argos | D70: =IF(D69="","","Renovación") -> Renovación | E70: =IF(E68="","",(VLOOKUP(B70,'TDPrimas Vida'!$B:$N,8,0))) -> 2511749.588 | F70: =IF(E68="","",(VLOOKUP(B70,'TDPrimas Vida'!$B:$N,9,0))) -> 1910456.997 | G70: =IFERROR((E70/VLOOKUP("TOTAL",$D$12:$L$312,2,0))*100,"") -> 0.968874265 | H70: =IFERROR((E70/VLOOKUP("TOTAL",$D$12:$L$312,3,0))*100,"") -> 1.006959987 | I70: =IF(E68="","",E70-F70) -> 601292.591 | J70: =IF(E68="","",IFERROR((E70/F70-1)*100,"ND")) -> 31.4737569 | K70: =IF(E68="","",IFERROR((E70/VLOOKUP(B70&"|"&VLOOKUP(TDPrimas!$B$4,Cat!R:T,2,0),'TD Operación'!A:D,4,0))*100,"ND")) -> ND | L70: =IF(E68="","",(VLOOKUP(B70,'TDPrimas Vida'!$B:$N,10,0))) -> 66.80655734
B71: =IF(C71="",B70,D71) -> Seguros Argos | D71: =IF(D70="","","Únicas") -> Únicas | E71: =IF(E69="","",(VLOOKUP(B71,'TDPrimas Vida'!$B:$N,11,0))) -> 271728.1087 | F71: =IF(E69="","",(VLOOKUP(B71,'TDPrimas Vida'!$B:$N,12,0))) -> 410958.2758 | G71: =IFERROR((E71/VLOOKUP("TOTAL",$D$12:$L$312,2,0))*100,"") -> 0.1048155329 | H71: =IFERROR((E71/VLOOKUP("TOTAL",$D$12:$L$312,3,0))*100,"") -> 0.1089357531 | I71: =IF(E68="","",E71-F71) -> -139230.1671 | J71: =IF(E68="","",IFERROR((E71/F71-1)*100,"ND")) -> -33.87939245 | K71: =IF(E68="","",IFERROR((E71/VLOOKUP(B71&"|"&VLOOKUP(TDPrimas!$B$4,Cat!R:T,2,0),'TD Operación'!A:D,4,0))*100,"ND")) -> ND | L71: =IF(E68="","",(VLOOKUP(B71,'TDPrimas Vida'!$B:$N,13,0))) -> 7.227320575
B72: =IF(C72="",B68,D72) -> Hir Seguros | C72: =IF('TDPrimas Vida'!A22="","",'TDPrimas Vida'!A22) -> 15 | D72: =IF('TDPrimas Vida'!B22="","",'TDPrimas Vida'!B22) -> Hir Seguros | E72: =IF('TDPrimas Vida'!C22="","",'TDPrimas Vida'!C22) -> 3672557.955 | F72: =IF('TDPrimas Vida'!D22="","",'TDPrimas Vida'!D22) -> 1927562.535 | G72: =IF('TDPrimas Vida'!C22="","",IFERROR((E72/VLOOKUP("TOTAL",$D$12:$L$312,2,0))*100,"")) -> 1.416640777 | H72: =IF('TDPrimas Vida'!C22="","",IFERROR((E72/VLOOKUP("TOTAL",$D$12:$L$312,3,0))*100,"")) -> 1.472327866 | I72: =IF('TDPrimas Vida'!C22="","",E72-F72) -> 1744995.42 | J72: =IFERROR(IF('TDPrimas Vida'!C22="","",(E72/F72-1)*100),"ND") -> 90.52860223 | K72: =IF(E72="","",IFERROR((E72/VLOOKUP(D72&"|"&VLOOKUP(TDPrimas!$B$4,Cat!R:T,2,0),'TD Operación'!A:D,4,0))*100,"ND")) -> ND | L72: =IF('TDPrimas Vida'!E22="","",'TDPrimas Vida'!E22) -> 99.09811057
B73: =IF(C73="",B72,D73) -> Hir Seguros | D73: =IF(D72="","","1er Año") -> 1er Año | E73: =IF(E72="","",(VLOOKUP(B73,'TDPrimas Vida'!$B:$N,5,0))) -> 1054319.038 | F73: =IF(E72="","",(VLOOKUP(B73,'TDPrimas Vida'!$B:$N,6,0))) -> 547658.7619 | G73: =IFERROR((E73/VLOOKUP("TOTAL",$D$12:$L$312,2,0))*100,"") -> 0.4066896588 | H73: =IFERROR((E73/VLOOKUP("TOTAL",$D$12:$L$312,3,0))*100,"") -> 0.422676325 | I73: =IF(E72="","",E73-F73) -> 506660.2761 | J73: =IF(E72="","",IFERROR((E73/F73-1)*100,"ND")) -> 92.5138629 | K73: =IF(E72="","",IFERROR((E73/VLOOKUP(B73&"|"&VLOOKUP(TDPrimas!$B$4,Cat!R:T,2,0),'TD Operación'!A:D,4,0))*100,"ND")) -> ND | L73: =IF(E72="","",(VLOOKUP(B73,'TDPrimas Vida'!$B:$N,7,0))) -> 28.44911527
B74: =IF(C74="",B73,D74) -> Hir Seguros | D74: =IF(D73="","","Renovación") -> Renovación | E74: =IF(E72="","",(VLOOKUP(B74,'TDPrimas Vida'!$B:$N,8,0))) -> 2618238.917 | F74: =IF(E72="","",(VLOOKUP(B74,'TDPrimas Vida'!$B:$N,9,0))) -> 1379903.773 | G74: =IFERROR((E74/VLOOKUP("TOTAL",$D$12:$L$312,2,0))*100,"") -> 1.009951119 | H74: =IFERROR((E74/VLOOKUP("TOTAL",$D$12:$L$312,3,0))*100,"") -> 1.049651541 | I74: =IF(E72="","",E74-F74) -> 1238335.144 | J74: =IF(E72="","",IFERROR((E74/F74-1)*100,"ND")) -> 89.74068831 | K74: =IF(E72="","",IFERROR((E74/VLOOKUP(B74&"|"&VLOOKUP(TDPrimas!$B$4,Cat!R:T,2,0),'TD Operación'!A:D,4,0))*100,"ND")) -> ND | L74: =IF(E72="","",(VLOOKUP(B74,'TDPrimas Vida'!$B:$N,10,0))) -> 70.6489953
B75: =IF(C75="",B74,D75) -> Hir Seguros | D75: =IF(D74="","","Únicas") -> Únicas | E75: =IF(E73="","",(VLOOKUP(B75,'TDPrimas Vida'!$B:$N,11,0))) -> 0 | F75: =IF(E73="","",(VLOOKUP(B75,'TDPrimas Vida'!$B:$N,12,0))) -> 0 | G75: =IFERROR((E75/VLOOKUP("TOTAL",$D$12:$L$312,2,0))*100,"") -> 0 | H75: =IFERROR((E75/VLOOKUP("TOTAL",$D$12:$L$312,3,0))*100,"") -> 0 | I75: =IF(E72="","",E75-F75) -> 0 | J75: =IF(E72="","",IFERROR((E75/F75-1)*100,"ND")) -> ND | K75: =IF(E72="","",IFERROR((E75/VLOOKUP(B75&"|"&VLOOKUP(TDPrimas!$B$4,Cat!R:T,2,0),'TD Operación'!A:D,4,0))*100,"ND")) -> ND | L75: =IF(E72="","",(VLOOKUP(B75,'TDPrimas Vida'!$B:$N,13,0))) -> 0
B76: =IF(C76="",B72,D76) -> TOTAL MEDIANAS | C76: =IF('TDPrimas Vida'!A23="","",'TDPrimas Vida'!A23) -> 15.1 | D76: =IF('TDPrimas Vida'!B23="","",'TDPrimas Vida'!B23) -> TOTAL MEDIANAS | E76: =IF('TDPrimas Vida'!C23="","",'TDPrimas Vida'!C23) -> 69661251.73 | F76: =IF('TDPrimas Vida'!D23="","",'TDPrimas Vida'!D23) -> 67292495.33 | G76: =IF('TDPrimas Vida'!C23="","",IFERROR((E76/VLOOKUP("TOTAL",$D$12:$L$312,2,0))*100,"")) -> 26.87090878 | H76: =IF('TDPrimas Vida'!C23="","",IFERROR((E76/VLOOKUP("TOTAL",$D$12:$L$312,3,0))*100,"")) -> 27.9271841 | I76: =IF('TDPrimas Vida'!C23="","",E76-F76) -> 2368756.402 | J76: =IFERROR(IF('TDPrimas Vida'!C23="","",(E76/F76-1)*100),"ND") -> 3.520090004 | K76: =IF(E76="","",IFERROR((E76/VLOOKUP(D76&"|"&VLOOKUP(TDPrimas!$B$4,Cat!R:T,2,0),'TD Operación'!A:D,4,0))*100,"ND")) -> ND | L76: =IF('TDPrimas Vida'!E23="","",'TDPrimas Vida'!E23) -> 40.58795458
B77: =IF(C77="",B76,D77) -> TOTAL MEDIANAS | D77: =IF(D76="","","1er Año") -> 1er Año | E77: =IF(E76="","",(VLOOKUP(B77,'TDPrimas Vida'!$B:$N,5,0))) -> 32303130.71 | F77: =IF(E76="","",(VLOOKUP(B77,'TDPrimas Vida'!$B:$N,6,0))) -> 33894496.08 | G77: =IFERROR((E77/VLOOKUP("TOTAL",$D$12:$L$312,2,0))*100,"") -> 12.46050648 | H77: =IFERROR((E77/VLOOKUP("TOTAL",$D$12:$L$312,3,0))*100,"") -> 12.95031967 | I77: =IF(E76="","",E77-F77) -> -1591365.37 | J77: =IF(E76="","",IFERROR((E77/F77-1)*100,"ND")) -> -4.695055405 | K77: =IF(E76="","",IFERROR((E77/VLOOKUP(B77&"|"&VLOOKUP(TDPrimas!$B$4,Cat!R:T,2,0),'TD Operación'!A:D,4,0))*100,"ND")) -> ND | L77: =IF(E76="","",(VLOOKUP(B77,'TDPrimas Vida'!$B:$N,7,0))) -> 18.82133854
B78: =IF(C78="",B77,D78) -> TOTAL MEDIANAS | D78: =IF(D77="","","Renovación") -> Renovación | E78: =IF(E76="","",(VLOOKUP(B78,'TDPrimas Vida'!$B:$N,8,0))) -> 29929514.19 | F78: =IF(E76="","",(VLOOKUP(B78,'TDPrimas Vida'!$B:$N,9,0))) -> 25530400.24 | G78: =IFERROR((E78/VLOOKUP("TOTAL",$D$12:$L$312,2,0))*100,"") -> 11.54491522 | H78: =IFERROR((E78/VLOOKUP("TOTAL",$D$12:$L$312,3,0))*100,"") -> 11.9987372 | I78: =IF(E76="","",E78-F78) -> 4399113.945 | J78: =IF(E76="","",IFERROR((E78/F78-1)*100,"ND")) -> 17.23088515 | K78: =IF(E76="","",IFERROR((E78/VLOOKUP(B78&"|"&VLOOKUP(TDPrimas!$B$4,Cat!R:T,2,0),'TD Operación'!A:D,4,0))*100,"ND")) -> ND | L78: =IF(E76="","",(VLOOKUP(B78,'TDPrimas Vida'!$B:$N,10,0))) -> 17.43835679
B79: =IF(C79="",B78,D79) -> TOTAL MEDIANAS | D79: =IF(D78="","","Únicas") -> Únicas | E79: =IF(E77="","",(VLOOKUP(B79,'TDPrimas Vida'!$B:$N,11,0))) -> 7428053.609 | F79: =IF(E77="","",(VLOOKUP(B79,'TDPrimas Vida'!$B:$N,12,0))) -> 7867599.005 | G79: =IFERROR((E79/VLOOKUP("TOTAL",$D$12:$L$312,2,0))*100,"") -> 2.865273678 | H79: =IFERROR((E79/VLOOKUP("TOTAL",$D$12:$L$312,3,0))*100,"") -> 2.977905442 | I79: =IF(E76="","",E79-F79) -> -439545.3964 | J79: =IF(E76="","",IFERROR((E79/F79-1)*100,"ND")) -> -5.586779347 | K79: =IF(E76="","",IFERROR((E79/VLOOKUP(B79&"|"&VLOOKUP(TDPrimas!$B$4,Cat!R:T,2,0),'TD Operación'!A:D,4,0))*100,"ND")) -> ND | L79: =IF(E76="","",(VLOOKUP(B79,'TDPrimas Vida'!$B:$N,13,0))) -> 4.327936909
B80: =IF(C80="",B76,D80) -> Cardif Vida | C80: =IF('TDPrimas Vida'!A24="","",'TDPrimas Vida'!A24) -> 16 | D80: =IF('TDPrimas Vida'!B24="","",'TDPrimas Vida'!B24) -> Cardif Vida | E80: =IF('TDPrimas Vida'!C24="","",'TDPrimas Vida'!C24) -> 2711266.144 | F80: =IF('TDPrimas Vida'!D24="","",'TDPrimas Vida'!D24) -> 2596506.437 | G80: =IF('TDPrimas Vida'!C24="","",IFERROR((E80/VLOOKUP("TOTAL",$D$12:$L$312,2,0))*100,"")) -> 1.045835144 | H80: =IF('TDPrimas Vida'!C24="","",IFERROR((E80/VLOOKUP("TOTAL",$D$12:$L$312,3,0))*100,"")) -> 1.086946141 | I80: =IF('TDPrimas Vida'!C24="","",E80-F80) -> 114759.7071 | J80: =IFERROR(IF('TDPrimas Vida'!C24="","",(E80/F80-1)*100),"ND") -> 4.419773643 | K80: =IF(E80="","",IFERROR((E80/VLOOKUP(D80&"|"&VLOOKUP(TDPrimas!$B$4,Cat!R:T,2,0),'TD Operación'!A:D,4,0))*100,"ND")) -> ND | L80: =IF('TDPrimas Vida'!E24="","",'TDPrimas Vida'!E24) -> 91.83814024
B81: =IF(C81="",B80,D81) -> Cardif Vida | D81: =IF(D80="","","1er Año") -> 1er Año | E81: =IF(E80="","",(VLOOKUP(B81,'TDPrimas Vida'!$B:$N,5,0))) -> 339064.6367 | F81: =IF(E80="","",(VLOOKUP(B81,'TDPrimas Vida'!$B:$N,6,0))) -> 149862.9352 | G81: =IFERROR((E81/VLOOKUP("TOTAL",$D$12:$L$312,2,0))*100,"") -> 0.1307897102 | H81: =IFERROR((E81/VLOOKUP("TOTAL",$D$12:$L$312,3,0))*100,"") -> 0.1359309558 | I81: =IF(E80="","",E81-F81) -> 189201.7015 | J81: =IF(E80="","",IFERROR((E81/F81-1)*100,"ND")) -> 126.2498303 | K81: =IF(E80="","",IFERROR((E81/VLOOKUP(B81&"|"&VLOOKUP(TDPrimas!$B$4,Cat!R:T,2,0),'TD Operación'!A:D,4,0))*100,"ND")) -> ND | L81: =IF(E80="","",(VLOOKUP(B81,'TDPrimas Vida'!$B:$N,7,0))) -> 11.48506417
B82: =IF(C82="",B81,D82) -> Cardif Vida | D82: =IF(D81="","","Renovación") -> Renovación | E82: =IF(E80="","",(VLOOKUP(B82,'TDPrimas Vida'!$B:$N,8,0))) -> 1708593.716 | F82: =IF(E80="","",(VLOOKUP(B82,'TDPrimas Vida'!$B:$N,9,0))) -> 1893173.154 | G82: =IFERROR((E82/VLOOKUP("TOTAL",$D$12:$L$312,2,0))*100,"") -> 0.6590674838 | H82: =IFERROR((E82/VLOOKUP("TOTAL",$D$12:$L$312,3,0))*100,"") -> 0.6849749334 | I82: =IF(E80="","",E82-F82) -> -184579.4381 | J82: =IF(E80="","",IFERROR((E82/F82-1)*100,"ND")) -> -9.749738828 | K82: =IF(E80="","",IFERROR((E82/VLOOKUP(B82&"|"&VLOOKUP(TDPrimas!$B$4,Cat!R:T,2,0),'TD Operación'!A:D,4,0))*100,"ND")) -> ND | L82: =IF(E80="","",(VLOOKUP(B82,'TDPrimas Vida'!$B:$N,10,0))) -> 57.87483079
B83: =IF(C83="",B82,D83) -> Cardif Vida | D83: =IF(D82="","","Únicas") -> Únicas | E83: =IF(E81="","",(VLOOKUP(B83,'TDPrimas Vida'!$B:$N,11,0))) -> 663607.7912 | F83: =IF(E81="","",(VLOOKUP(B83,'TDPrimas Vida'!$B:$N,12,0))) -> 553470.3474 | G83: =IFERROR((E83/VLOOKUP("TOTAL",$D$12:$L$312,2,0))*100,"") -> 0.2559779501 | H83: =IFERROR((E83/VLOOKUP("TOTAL",$D$12:$L$312,3,0))*100,"") -> 0.2660402518 | I83: =IF(E80="","",E83-F83) -> 110137.4438 | J83: =IF(E80="","",IFERROR((E83/F83-1)*100,"ND")) -> 19.8994299 | K83: =IF(E80="","",IFERROR((E83/VLOOKUP(B83&"|"&VLOOKUP(TDPrimas!$B$4,Cat!R:T,2,0),'TD Operación'!A:D,4,0))*100,"ND")) -> ND | L83: =IF(E80="","",(VLOOKUP(B83,'TDPrimas Vida'!$B:$N,13,0))) -> 22.47824527
B84: =IF(C84="",B80,D84) -> Patrimonial Vida | C84: =IF('TDPrimas Vida'!A25="","",'TDPrimas Vida'!A25) -> 17 | D84: =IF('TDPrimas Vida'!B25="","",'TDPrimas Vida'!B25) -> Patrimonial Vida | E84: =IF('TDPrimas Vida'!C25="","",'TDPrimas Vida'!C25) -> 2638295.487 | F84: =IF('TDPrimas Vida'!D25="","",'TDPrimas Vida'!D25) -> 1454885.501 | G84: =IF('TDPrimas Vida'!C25="","",IFERROR((E84/VLOOKUP("TOTAL",$D$12:$L$312,2,0))*100,"")) -> 1.017687676 | H84: =IF('TDPrimas Vida'!C25="","",IFERROR((E84/VLOOKUP("TOTAL",$D$12:$L$312,3,0))*100,"")) -> 1.057692217 | I84: =IF('TDPrimas Vida'!C25="","",E84-F84) -> 1183409.986 | J84: =IFERROR(IF('TDPrimas Vida'!C25="","",(E84/F84-1)*100),"ND") -> 81.34042062 | K84: =IF(E84="","",IFERROR((E84/VLOOKUP(D84&"|"&VLOOKUP(TDPrimas!$B$4,Cat!R:T,2,0),'TD Operación'!A:D,4,0))*100,"ND")) -> ND | L84: =IF('TDPrimas Vida'!E25="","",'TDPrimas Vida'!E25) -> 100
B85: =IF(C85="",B84,D85) -> Patrimonial Vida | D85: =IF(D84="","","1er Año") -> 1er Año | E85: =IF(E84="","",(VLOOKUP(B85,'TDPrimas Vida'!$B:$N,5,0))) -> 2638295.487 | F85: =IF(E84="","",(VLOOKUP(B85,'TDPrimas Vida'!$B:$N,6,0))) -> 1454885.501 | G85: =IFERROR((E85/VLOOKUP("TOTAL",$D$12:$L$312,2,0))*100,"") -> 1.017687676 | H85: =IFERROR((E85/VLOOKUP("TOTAL",$D$12:$L$312,3,0))*100,"") -> 1.057692217 | I85: =IF(E84="","",E85-F85) -> 1183409.986 | J85: =IF(E84="","",IFERROR((E85/F85-1)*100,"ND")) -> 81.34042062 | K85: =IF(E84="","",IFERROR((E85/VLOOKUP(B85&"|"&VLOOKUP(TDPrimas!$B$4,Cat!R:T,2,0),'TD Operación'!A:D,4,0))*100,"ND")) -> ND | L85: =IF(E84="","",(VLOOKUP(B85,'TDPrimas Vida'!$B:$N,7,0))) -> 100
B86: =IF(C86="",B85,D86) -> Patrimonial Vida | D86: =IF(D85="","","Renovación") -> Renovación | E86: =IF(E84="","",(VLOOKUP(B86,'TDPrimas Vida'!$B:$N,8,0))) -> 0 | F86: =IF(E84="","",(VLOOKUP(B86,'TDPrimas Vida'!$B:$N,9,0))) -> 0 | G86: =IFERROR((E86/VLOOKUP("TOTAL",$D$12:$L$312,2,0))*100,"") -> 0 | H86: =IFERROR((E86/VLOOKUP("TOTAL",$D$12:$L$312,3,0))*100,"") -> 0 | I86: =IF(E84="","",E86-F86) -> 0 | J86: =IF(E84="","",IFERROR((E86/F86-1)*100,"ND")) -> ND | K86: =IF(E84="","",IFERROR((E86/VLOOKUP(B86&"|"&VLOOKUP(TDPrimas!$B$4,Cat!R:T,2,0),'TD Operación'!A:D,4,0))*100,"ND")) -> ND | L86: =IF(E84="","",(VLOOKUP(B86,'TDPrimas Vida'!$B:$N,10,0))) -> 0
B87: =IF(C87="",B86,D87) -> Patrimonial Vida | D87: =IF(D86="","","Únicas") -> Únicas | E87: =IF(E85="","",(VLOOKUP(B87,'TDPrimas Vida'!$B:$N,11,0))) -> 0 | F87: =IF(E85="","",(VLOOKUP(B87,'TDPrimas Vida'!$B:$N,12,0))) -> 0 | G87: =IFERROR((E87/VLOOKUP("TOTAL",$D$12:$L$312,2,0))*100,"") -> 0 | H87: =IFERROR((E87/VLOOKUP("TOTAL",$D$12:$L$312,3,0))*100,"") -> 0 | I87: =IF(E84="","",E87-F87) -> 0 | J87: =IF(E84="","",IFERROR((E87/F87-1)*100,"ND")) -> ND | K87: =IF(E84="","",IFERROR((E87/VLOOKUP(B87&"|"&VLOOKUP(TDPrimas!$B$4,Cat!R:T,2,0),'TD Operación'!A:D,4,0))*100,"ND")) -> ND | L87: =IF(E84="","",(VLOOKUP(B87,'TDPrimas Vida'!$B:$N,13,0))) -> 0
B88: =IF(C88="",B84,D88) -> Atlas | C88: =IF('TDPrimas Vida'!A26="","",'TDPrimas Vida'!A26) -> 18 | D88: =IF('TDPrimas Vida'!B26="","",'TDPrimas Vida'!B26) -> Atlas | E88: =IF('TDPrimas Vida'!C26="","",'TDPrimas Vida'!C26) -> 2612427.283 | F88: =IF('TDPrimas Vida'!D26="","",'TDPrimas Vida'!D26) -> 2388659.077 | G88: =IF('TDPrimas Vida'!C26="","",IFERROR((E88/VLOOKUP("TOTAL",$D$12:$L$312,2,0))*100,"")) -> 1.007709357 | H88: =IF('TDPrimas Vida'!C26="","",IFERROR((E88/VLOOKUP("TOTAL",$D$12:$L$312,3,0))*100,"")) -> 1.047321658 | I88: =IF('TDPrimas Vida'!C26="","",E88-F88) -> 223768.2054 | J88: =IFERROR(IF('TDPrimas Vida'!C26="","",(E88/F88-1)*100),"ND") -> 9.367942356 | K88: =IF(E88="","",IFERROR((E88/VLOOKUP(D88&"|"&VLOOKUP(TDPrimas!$B$4,Cat!R:T,2,0),'TD Operación'!A:D,4,0))*100,"ND")) -> ND | L88: =IF('TDPrimas Vida'!E26="","",'TDPrimas Vida'!E26) -> 15.01626266
B89: =IF(C89="",B88,D89) -> Atlas | D89: =IF(D88="","","1er Año") -> 1er Año | E89: =IF(E88="","",(VLOOKUP(B89,'TDPrimas Vida'!$B:$N,5,0))) -> 1824502.26 | F89: =IF(E88="","",(VLOOKUP(B89,'TDPrimas Vida'!$B:$N,6,0))) -> 1602285.869 | G89: =IFERROR((E89/VLOOKUP("TOTAL",$D$12:$L$312,2,0))*100,"") -> 0.7037776754 | H89: =IFERROR((E89/VLOOKUP("TOTAL",$D$12:$L$312,3,0))*100,"") -> 0.7314426493 | I89: =IF(E88="","",E89-F89) -> 222216.3914 | J89: =IF(E88="","",IFERROR((E89/F89-1)*100,"ND")) -> 13.86871068 | K89: =IF(E88="","",IFERROR((E89/VLOOKUP(B89&"|"&VLOOKUP(TDPrimas!$B$4,Cat!R:T,2,0),'TD Operación'!A:D,4,0))*100,"ND")) -> ND | L89: =IF(E88="","",(VLOOKUP(B89,'TDPrimas Vida'!$B:$N,7,0))) -> 10.48726039
B90: =IF(C90="",B89,D90) -> Atlas | D90: =IF(D89="","","Renovación") -> Renovación | E90: =IF(E88="","",(VLOOKUP(B90,'TDPrimas Vida'!$B:$N,8,0))) -> 708213.5183 | F90: =IF(E88="","",(VLOOKUP(B90,'TDPrimas Vida'!$B:$N,9,0))) -> 646101.1058 | G90: =IFERROR((E90/VLOOKUP("TOTAL",$D$12:$L$312,2,0))*100,"") -> 0.2731840209 | H90: =IFERROR((E90/VLOOKUP("TOTAL",$D$12:$L$312,3,0))*100,"") -> 0.2839226803 | I90: =IF(E88="","",E90-F90) -> 62112.41247 | J90: =IF(E88="","",IFERROR((E90/F90-1)*100,"ND")) -> 9.613419929 | K90: =IF(E88="","",IFERROR((E90/VLOOKUP(B90&"|"&VLOOKUP(TDPrimas!$B$4,Cat!R:T,2,0),'TD Operación'!A:D,4,0))*100,"ND")) -> ND | L90: =IF(E88="","",(VLOOKUP(B90,'TDPrimas Vida'!$B:$N,10,0))) -> 4.07081961
B91: =IF(C91="",B90,D91) -> Atlas | D91: =IF(D90="","","Únicas") -> Únicas | E91: =IF(E89="","",(VLOOKUP(B91,'TDPrimas Vida'!$B:$N,11,0))) -> 79711.50393 | F91: =IF(E89="","",(VLOOKUP(B91,'TDPrimas Vida'!$B:$N,12,0))) -> 140272.1024 | G91: =IFERROR((E91/VLOOKUP("TOTAL",$D$12:$L$312,2,0))*100,"") -> 0.03074766097 | H91: =IFERROR((E91/VLOOKUP("TOTAL",$D$12:$L$312,3,0))*100,"") -> 0.03195632852 | I91: =IF(E88="","",E91-F91) -> -60560.59846 | J91: =IF(E88="","",IFERROR((E91/F91-1)*100,"ND")) -> -43.1736585 | K91: =IF(E88="","",IFERROR((E91/VLOOKUP(B91&"|"&VLOOKUP(TDPrimas!$B$4,Cat!R:T,2,0),'TD Operación'!A:D,4,0))*100,"ND")) -> ND | L91: =IF(E88="","",(VLOOKUP(B91,'TDPrimas Vida'!$B:$N,13,0))) -> 0.4581826596
B92: =IF(C92="",B88,D92) -> Afirme | C92: =IF('TDPrimas Vida'!A27="","",'TDPrimas Vida'!A27) -> 19 | D92: =IF('TDPrimas Vida'!B27="","",'TDPrimas Vida'!B27) -> Afirme | E92: =IF('TDPrimas Vida'!C27="","",'TDPrimas Vida'!C27) -> 2172231.379 | F92: =IF('TDPrimas Vida'!D27="","",'TDPrimas Vida'!D27) -> 2880992.41 | G92: =IF('TDPrimas Vida'!C27="","",IFERROR((E92/VLOOKUP("TOTAL",$D$12:$L$312,2,0))*100,"")) -> 0.8379095952 | H92: =IF('TDPrimas Vida'!C27="","",IFERROR((E92/VLOOKUP("TOTAL",$D$12:$L$312,3,0))*100,"")) -> 0.8708471945 | I92: =IF('TDPrimas Vida'!C27="","",E92-F92) -> -708761.031 | J92: =IFERROR(IF('TDPrimas Vida'!C27="","",(E92/F92-1)*100),"ND") -> -24.60128074 | K92: =IF(E92="","",IFERROR((E92/VLOOKUP(D92&"|"&VLOOKUP(TDPrimas!$B$4,Cat!R:T,2,0),'TD Operación'!A:D,4,0))*100,"ND")) -> ND | L92: =IF('TDPrimas Vida'!E27="","",'TDPrimas Vida'!E27) -> 28.6095274
B93: =IF(C93="",B92,D93) -> Afirme | D93: =IF(D92="","","1er Año") -> 1er Año | E93: =IF(E92="","",(VLOOKUP(B93,'TDPrimas Vida'!$B:$N,5,0))) -> 2172231.379 | F93: =IF(E92="","",(VLOOKUP(B93,'TDPrimas Vida'!$B:$N,6,0))) -> 2880992.41 | G93: =IFERROR((E93/VLOOKUP("TOTAL",$D$12:$L$312,2,0))*100,"") -> 0.8379095952 | H93: =IFERROR((E93/VLOOKUP("TOTAL",$D$12:$L$312,3,0))*100,"") -> 0.8708471945 | I93: =IF(E92="","",E93-F93) -> -708761.031 | J93: =IF(E92="","",IFERROR((E93/F93-1)*100,"ND")) -> -24.60128074 | K93: =IF(E92="","",IFERROR((E93/VLOOKUP(B93&"|"&VLOOKUP(TDPrimas!$B$4,Cat!R:T,2,0),'TD Operación'!A:D,4,0))*100,"ND")) -> ND | L93: =IF(E92="","",(VLOOKUP(B93,'TDPrimas Vida'!$B:$N,7,0))) -> 28.6095274
B94: =IF(C94="",B93,D94) -> Afirme | D94: =IF(D93="","","Renovación") -> Renovación | E94: =IF(E92="","",(VLOOKUP(B94,'TDPrimas Vida'!$B:$N,8,0))) -> 0 | F94: =IF(E92="","",(VLOOKUP(B94,'TDPrimas Vida'!$B:$N,9,0))) -> 0 | G94: =IFERROR((E94/VLOOKUP("TOTAL",$D$12:$L$312,2,0))*100,"") -> 0 | H94: =IFERROR((E94/VLOOKUP("TOTAL",$D$12:$L$312,3,0))*100,"") -> 0 | I94: =IF(E92="","",E94-F94) -> 0 | J94: =IF(E92="","",IFERROR((E94/F94-1)*100,"ND")) -> ND | K94: =IF(E92="","",IFERROR((E94/VLOOKUP(B94&"|"&VLOOKUP(TDPrimas!$B$4,Cat!R:T,2,0),'TD Operación'!A:D,4,0))*100,"ND")) -> ND | L94: =IF(E92="","",(VLOOKUP(B94,'TDPrimas Vida'!$B:$N,10,0))) -> 0
B95: =IF(C95="",B94,D95) -> Afirme | D95: =IF(D94="","","Únicas") -> Únicas | E95: =IF(E93="","",(VLOOKUP(B95,'TDPrimas Vida'!$B:$N,11,0))) -> 0 | F95: =IF(E93="","",(VLOOKUP(B95,'TDPrimas Vida'!$B:$N,12,0))) -> 0 | G95: =IFERROR((E95/VLOOKUP("TOTAL",$D$12:$L$312,2,0))*100,"") -> 0 | H95: =IFERROR((E95/VLOOKUP("TOTAL",$D$12:$L$312,3,0))*100,"") -> 0 | I95: =IF(E92="","",E95-F95) -> 0 | J95: =IF(E92="","",IFERROR((E95/F95-1)*100,"ND")) -> ND | K95: =IF(E92="","",IFERROR((E95/VLOOKUP(B95&"|"&VLOOKUP(TDPrimas!$B$4,Cat!R:T,2,0),'TD Operación'!A:D,4,0))*100,"ND")) -> ND | L95: =IF(E92="","",(VLOOKUP(B95,'TDPrimas Vida'!$B:$N,13,0))) -> 0
B96: =IF(C96="",B92,D96) -> Insignia Life | C96: =IF('TDPrimas Vida'!A28="","",'TDPrimas Vida'!A28) -> 20 | D96: =IF('TDPrimas Vida'!B28="","",'TDPrimas Vida'!B28) -> Insignia Life | E96: =IF('TDPrimas Vida'!C28="","",'TDPrimas Vida'!C28) -> 1967652.949 | F96: =IF('TDPrimas Vida'!D28="","",'TDPrimas Vida'!D28) -> 1738938.033 | G96: =IF('TDPrimas Vida'!C28="","",IFERROR((E96/VLOOKUP("TOTAL",$D$12:$L$312,2,0))*100,"")) -> 0.7589961648 | H96: =IF('TDPrimas Vida'!C28="","",IFERROR((E96/VLOOKUP("TOTAL",$D$12:$L$312,3,0))*100,"")) -> 0.7888317361 | I96: =IF('TDPrimas Vida'!C28="","",E96-F96) -> 228714.9162 | J96: =IFERROR(IF('TDPrimas Vida'!C28="","",(E96/F96-1)*100),"ND") -> 13.15256277 | K96: =IF(E96="","",IFERROR((E96/VLOOKUP(D96&"|"&VLOOKUP(TDPrimas!$B$4,Cat!R:T,2,0),'TD Operación'!A:D,4,0))*100,"ND")) -> ND | L96: =IF('TDPrimas Vida'!E28="","",'TDPrimas Vida'!E28) -> 100
B97: =IF(C97="",B96,D97) -> Insignia Life | D97: =IF(D96="","","1er Año") -> 1er Año | E97: =IF(E96="","",(VLOOKUP(B97,'TDPrimas Vida'!$B:$N,5,0))) -> 577363.1559 | F97: =IF(E96="","",(VLOOKUP(B97,'TDPrimas Vida'!$B:$N,6,0))) -> 489251.2496 | G97: =IFERROR((E97/VLOOKUP("TOTAL",$D$12:$L$312,2,0))*100,"") -> 0.22271022 | H97: =IFERROR((E97/VLOOKUP("TOTAL",$D$12:$L$312,3,0))*100,"") -> 0.2314647921 | I97: =IF(E96="","",E97-F97) -> 88111.90639 | J97: =IF(E96="","",IFERROR((E97/F97-1)*100,"ND")) -> 18.00954141 | K97: =IF(E96="","",IFERROR((E97/VLOOKUP(B97&"|"&VLOOKUP(TDPrimas!$B$4,Cat!R:T,2,0),'TD Operación'!A:D,4,0))*100,"ND")) -> ND | L97: =IF(E96="","",(VLOOKUP(B97,'TDPrimas Vida'!$B:$N,7,0))) -> 29.34273325
B98: =IF(C98="",B97,D98) -> Insignia Life | D98: =IF(D97="","","Renovación") -> Renovación | E98: =IF(E96="","",(VLOOKUP(B98,'TDPrimas Vida'!$B:$N,8,0))) -> 1392872.776 | F98: =IF(E96="","",(VLOOKUP(B98,'TDPrimas Vida'!$B:$N,9,0))) -> 1255059.761 | G98: =IFERROR((E98/VLOOKUP("TOTAL",$D$12:$L$312,2,0))*100,"") -> 0.5372822967 | H98: =IFERROR((E98/VLOOKUP("TOTAL",$D$12:$L$312,3,0))*100,"") -> 0.5584024617 | I98: =IF(E96="","",E98-F98) -> 137813.0152 | J98: =IF(E96="","",IFERROR((E98/F98-1)*100,"ND")) -> 10.98059387 | K98: =IF(E96="","",IFERROR((E98/VLOOKUP(B98&"|"&VLOOKUP(TDPrimas!$B$4,Cat!R:T,2,0),'TD Operación'!A:D,4,0))*100,"ND")) -> ND | L98: =IF(E96="","",(VLOOKUP(B98,'TDPrimas Vida'!$B:$N,10,0))) -> 70.78853907
B99: =IF(C99="",B98,D99) -> Insignia Life | D99: =IF(D98="","","Únicas") -> Únicas | E99: =IF(E97="","",(VLOOKUP(B99,'TDPrimas Vida'!$B:$N,11,0))) -> -2582.98365 | F99: =IF(E97="","",(VLOOKUP(B99,'TDPrimas Vida'!$B:$N,12,0))) -> -5372.97824 | G99: =IFERROR((E99/VLOOKUP("TOTAL",$D$12:$L$312,2,0))*100,"") -> -0.0009963518645 | H99: =IFERROR((E99/VLOOKUP("TOTAL",$D$12:$L$312,3,0))*100,"") -> -0.001035517711 | I99: =IF(E96="","",E99-F99) -> 2789.99459 | J99: =IF(E96="","",IFERROR((E99/F99-1)*100,"ND")) -> -51.92640776 | K99: =IF(E96="","",IFERROR((E99/VLOOKUP(B99&"|"&VLOOKUP(TDPrimas!$B$4,Cat!R:T,2,0),'TD Operación'!A:D,4,0))*100,"ND")) -> ND | L99: =IF(E96="","",(VLOOKUP(B99,'TDPrimas Vida'!$B:$N,13,0))) -> -0.1312723187
B100: =IF(C100="",B96,D100) -> Seguros SURA | C100: =IF('TDPrimas Vida'!A29="","",'TDPrimas Vida'!A29) -> 21 | D100: =IF('TDPrimas Vida'!B29="","",'TDPrimas Vida'!B29) -> Seguros SURA | E100: =IF('TDPrimas Vida'!C29="","",'TDPrimas Vida'!C29) -> 1862741.333 | F100: =IF('TDPrimas Vida'!D29="","",'TDPrimas Vida'!D29) -> 1457579.496 | G100: =IF('TDPrimas Vida'!C29="","",IFERROR((E100/VLOOKUP("TOTAL",$D$12:$L$312,2,0))*100,"")) -> 0.7185278932 | H100: =IF('TDPrimas Vida'!C29="","",IFERROR((E100/VLOOKUP("TOTAL",$D$12:$L$312,3,0))*100,"")) -> 0.746772687 | I100: =IF('TDPrimas Vida'!C29="","",E100-F100) -> 405161.837 | J100: =IFERROR(IF('TDPrimas Vida'!C29="","",(E100/F100-1)*100),"ND") -> 27.79689465 | K100: =IF(E100="","",IFERROR((E100/VLOOKUP(D100&"|"&VLOOKUP(TDPrimas!$B$4,Cat!R:T,2,0),'TD Operación'!A:D,4,0))*100,"ND")) -> ND | L100: =IF('TDPrimas Vida'!E29="","",'TDPrimas Vida'!E29) -> 26.94019787
B101: =IF(C101="",B100,D101) -> Seguros SURA | D101: =IF(D100="","","1er Año") -> 1er Año | E101: =IF(E100="","",(VLOOKUP(B101,'TDPrimas Vida'!$B:$N,5,0))) -> 1602380.46 | F101: =IF(E100="","",(VLOOKUP(B101,'TDPrimas Vida'!$B:$N,6,0))) -> 1190642.442 | G101: =IFERROR((E101/VLOOKUP("TOTAL",$D$12:$L$312,2,0))*100,"") -> 0.6180971214 | H101: =IFERROR((E101/VLOOKUP("TOTAL",$D$12:$L$312,3,0))*100,"") -> 0.6423940568 | I101: =IF(E100="","",E101-F101) -> 411738.0179 | J101: =IF(E100="","",IFERROR((E101/F101-1)*100,"ND")) -> 34.5811642 | K101: =IF(E100="","",IFERROR((E101/VLOOKUP(B101&"|"&VLOOKUP(TDPrimas!$B$4,Cat!R:T,2,0),'TD Operación'!A:D,4,0))*100,"ND")) -> ND | L101: =IF(E100="","",(VLOOKUP(B101,'TDPrimas Vida'!$B:$N,7,0))) -> 23.17468662
B102: =IF(C102="",B101,D102) -> Seguros SURA | D102: =IF(D101="","","Renovación") -> Renovación | E102: =IF(E100="","",(VLOOKUP(B102,'TDPrimas Vida'!$B:$N,8,0))) -> 255559.0793 | F102: =IF(E100="","",(VLOOKUP(B102,'TDPrimas Vida'!$B:$N,9,0))) -> 261495.0305 | G102: =IFERROR((E102/VLOOKUP("TOTAL",$D$12:$L$312,2,0))*100,"") -> 0.09857854312 | H102: =IFERROR((E102/VLOOKUP("TOTAL",$D$12:$L$312,3,0))*100,"") -> 0.1024535919 | I102: =IF(E100="","",E102-F102) -> -5935.95126 | J102: =IF(E100="","",IFERROR((E102/F102-1)*100,"ND")) -> -2.270005379 | K102: =IF(E100="","",IFERROR((E102/VLOOKUP(B102&"|"&VLOOKUP(TDPrimas!$B$4,Cat!R:T,2,0),'TD Operación'!A:D,4,0))*100,"ND")) -> ND | L102: =IF(E100="","",(VLOOKUP(B102,'TDPrimas Vida'!$B:$N,10,0))) -> 3.696064526
B103: =IF(C103="",B102,D103) -> Seguros SURA | D103: =IF(D102="","","Únicas") -> Únicas | E103: =IF(E101="","",(VLOOKUP(B103,'TDPrimas Vida'!$B:$N,11,0))) -> 4801.7945 | F103: =IF(E101="","",(VLOOKUP(B103,'TDPrimas Vida'!$B:$N,12,0))) -> 5442.02343 | G103: =IFERROR((E103/VLOOKUP("TOTAL",$D$12:$L$312,2,0))*100,"") -> 0.001852228876 | H103: =IFERROR((E103/VLOOKUP("TOTAL",$D$12:$L$312,3,0))*100,"") -> 0.001925038607 | I103: =IF(E100="","",E103-F103) -> -640.22893 | J103: =IF(E100="","",IFERROR((E103/F103-1)*100,"ND")) -> -11.76453829 | K103: =IF(E100="","",IFERROR((E103/VLOOKUP(B103&"|"&VLOOKUP(TDPrimas!$B$4,Cat!R:T,2,0),'TD Operación'!A:D,4,0))*100,"ND")) -> ND | L103: =IF(E100="","",(VLOOKUP(B103,'TDPrimas Vida'!$B:$N,13,0))) -> 0.06944672975
B104: =IF(C104="",B100,D104) -> Prudential | C104: =IF('TDPrimas Vida'!A30="","",'TDPrimas Vida'!A30) -> 22 | D104: =IF('TDPrimas Vida'!B30="","",'TDPrimas Vida'!B30) -> Prudential | E104: =IF('TDPrimas Vida'!C30="","",'TDPrimas Vida'!C30) -> 1613118.019 | F104: =IF('TDPrimas Vida'!D30="","",'TDPrimas Vida'!D30) -> 1176956.401 | G104: =IF('TDPrimas Vida'!C30="","",IFERROR((E104/VLOOKUP("TOTAL",$D$12:$L$312,2,0))*100,"")) -> 0.6222389933 | H104: =IF('TDPrimas Vida'!C30="","",IFERROR((E104/VLOOKUP("TOTAL",$D$12:$L$312,3,0))*100,"")) -> 0.6466987426 | I104: =IF('TDPrimas Vida'!C30="","",E104-F104) -> 436161.6183 | J104: =IFERROR(IF('TDPrimas Vida'!C30="","",(E104/F104-1)*100),"ND") -> 37.05843462 | K104: =IF(E104="","",IFERROR((E104/VLOOKUP(D104&"|"&VLOOKUP(TDPrimas!$B$4,Cat!R:T,2,0),'TD Operación'!A:D,4,0))*100,"ND")) -> ND | L104: =IF('TDPrimas Vida'!E30="","",'TDPrimas Vida'!E30) -> 100
B105: =IF(C105="",B104,D105) -> Prudential | D105: =IF(D104="","","1er Año") -> 1er Año | E105: =IF(E104="","",(VLOOKUP(B105,'TDPrimas Vida'!$B:$N,5,0))) -> 555658.74 | F105: =IF(E104="","",(VLOOKUP(B105,'TDPrimas Vida'!$B:$N,6,0))) -> 445529.6856 | G105: =IFERROR((E105/VLOOKUP("TOTAL",$D$12:$L$312,2,0))*100,"") -> 0.2143380279 | H105: =IFERROR((E105/VLOOKUP("TOTAL",$D$12:$L$312,3,0))*100,"") -> 0.2227634954 | I105: =IF(E104="","",E105-F105) -> 110129.0544 | J105: =IF(E104="","",IFERROR((E105/F105-1)*100,"ND")) -> 24.71867934 | K105: =IF(E104="","",IFERROR((E105/VLOOKUP(B105&"|"&VLOOKUP(TDPrimas!$B$4,Cat!R:T,2,0),'TD Operación'!A:D,4,0))*100,"ND")) -> ND | L105: =IF(E104="","",(VLOOKUP(B105,'TDPrimas Vida'!$B:$N,7,0))) -> 34.44625461
B106: =IF(C106="",B105,D106) -> Prudential | D106: =IF(D105="","","Renovación") -> Renovación | E106: =IF(E104="","",(VLOOKUP(B106,'TDPrimas Vida'!$B:$N,8,0))) -> 1023104.967 | F106: =IF(E104="","",(VLOOKUP(B106,'TDPrimas Vida'!$B:$N,9,0))) -> 695859.7244 | G106: =IFERROR((E106/VLOOKUP("TOTAL",$D$12:$L$312,2,0))*100,"") -> 0.3946492427 | H106: =IFERROR((E106/VLOOKUP("TOTAL",$D$12:$L$312,3,0))*100,"") -> 0.4101626092 | I106: =IF(E104="","",E106-F106) -> 327245.2426 | J106: =IF(E104="","",IFERROR((E106/F106-1)*100,"ND")) -> 47.0274728 | K106: =IF(E104="","",IFERROR((E106/VLOOKUP(B106&"|"&VLOOKUP(TDPrimas!$B$4,Cat!R:T,2,0),'TD Operación'!A:D,4,0))*100,"ND")) -> ND | L106: =IF(E104="","",(VLOOKUP(B106,'TDPrimas Vida'!$B:$N,10,0))) -> 63.42406165
B107: =IF(C107="",B106,D107) -> Prudential | D107: =IF(D106="","","Únicas") -> Únicas | E107: =IF(E105="","",(VLOOKUP(B107,'TDPrimas Vida'!$B:$N,11,0))) -> 34354.31222 | F107: =IF(E105="","",(VLOOKUP(B107,'TDPrimas Vida'!$B:$N,12,0))) -> 35566.99092 | G107: =IFERROR((E107/VLOOKUP("TOTAL",$D$12:$L$312,2,0))*100,"") -> 0.01325172269 | H107: =IFERROR((E107/VLOOKUP("TOTAL",$D$12:$L$312,3,0))*100,"") -> 0.01377263799 | I107: =IF(E104="","",E107-F107) -> -1212.6787 | J107: =IF(E104="","",IFERROR((E107/F107-1)*100,"ND")) -> -3.409562262 | K107: =IF(E104="","",IFERROR((E107/VLOOKUP(B107&"|"&VLOOKUP(TDPrimas!$B$4,Cat!R:T,2,0),'TD Operación'!A:D,4,0))*100,"ND")) -> ND | L107: =IF(E104="","",(VLOOKUP(B107,'TDPrimas Vida'!$B:$N,13,0))) -> 2.129683743
B108: =IF(C108="",B104,D108) -> Assurant Vida | C108: =IF('TDPrimas Vida'!A31="","",'TDPrimas Vida'!A31) -> 23 | D108: =IF('TDPrimas Vida'!B31="","",'TDPrimas Vida'!B31) -> Assurant Vida | E108: =IF('TDPrimas Vida'!C31="","",'TDPrimas Vida'!C31) -> 1073592.106 | F108: =IF('TDPrimas Vida'!D31="","",'TDPrimas Vida'!D31) -> 1024603.929 | G108: =IF('TDPrimas Vida'!C31="","",IFERROR((E108/VLOOKUP("TOTAL",$D$12:$L$312,2,0))*100,"")) -> 0.4141239905 | H108: =IF('TDPrimas Vida'!C31="","",IFERROR((E108/VLOOKUP("TOTAL",$D$12:$L$312,3,0))*100,"")) -> 0.4304028947 | I108: =IF('TDPrimas Vida'!C31="","",E108-F108) -> 48988.17727 | J108: =IFERROR(IF('TDPrimas Vida'!C31="","",(E108/F108-1)*100),"ND") -> 4.781181869 | K108: =IF(E108="","",IFERROR((E108/VLOOKUP(D108&"|"&VLOOKUP(TDPrimas!$B$4,Cat!R:T,2,0),'TD Operación'!A:D,4,0))*100,"ND")) -> ND | L108: =IF('TDPrimas Vida'!E31="","",'TDPrimas Vida'!E31) -> 100
B109: =IF(C109="",B108,D109) -> Assurant Vida | D109: =IF(D108="","","1er Año") -> 1er Año | E109: =IF(E108="","",(VLOOKUP(B109,'TDPrimas Vida'!$B:$N,5,0))) -> 1062278.157 | F109: =IF(E108="","",(VLOOKUP(B109,'TDPrimas Vida'!$B:$N,6,0))) -> 1013361.026 | G109: =IFERROR((E109/VLOOKUP("TOTAL",$D$12:$L$312,2,0))*100,"") -> 0.409759784 | H109: =IFERROR((E109/VLOOKUP("TOTAL",$D$12:$L$312,3,0))*100,"") -> 0.4258671345 | I109: =IF(E108="","",E109-F109) -> 48917.13062 | J109: =IF(E108="","",IFERROR((E109/F109-1)*100,"ND")) -> 4.827216495 | K109: =IF(E108="","",IFERROR((E109/VLOOKUP(B109&"|"&VLOOKUP(TDPrimas!$B$4,Cat!R:T,2,0),'TD Operación'!A:D,4,0))*100,"ND")) -> ND | L109: =IF(E108="","",(VLOOKUP(B109,'TDPrimas Vida'!$B:$N,7,0))) -> 98.94615946
B110: =IF(C110="",B109,D110) -> Assurant Vida | D110: =IF(D109="","","Renovación") -> Renovación | E110: =IF(E108="","",(VLOOKUP(B110,'TDPrimas Vida'!$B:$N,8,0))) -> 11313.94886 | F110: =IF(E108="","",(VLOOKUP(B110,'TDPrimas Vida'!$B:$N,9,0))) -> 11242.90221 | G110: =IFERROR((E110/VLOOKUP("TOTAL",$D$12:$L$312,2,0))*100,"") -> 0.004364206502 | H110: =IFERROR((E110/VLOOKUP("TOTAL",$D$12:$L$312,3,0))*100,"") -> 0.004535760195 | I110: =IF(E108="","",E110-F110) -> 71.04665 | J110: =IF(E108="","",IFERROR((E110/F110-1)*100,"ND")) -> 0.6319244682 | K110: =IF(E108="","",IFERROR((E110/VLOOKUP(B110&"|"&VLOOKUP(TDPrimas!$B$4,Cat!R:T,2,0),'TD Operación'!A:D,4,0))*100,"ND")) -> ND | L110: =IF(E108="","",(VLOOKUP(B110,'TDPrimas Vida'!$B:$N,10,0))) -> 1.053840541
B111: =IF(C111="",B110,D111) -> Assurant Vida | D111: =IF(D110="","","Únicas") -> Únicas | E111: =IF(E109="","",(VLOOKUP(B111,'TDPrimas Vida'!$B:$N,11,0))) -> 0 | F111: =IF(E109="","",(VLOOKUP(B111,'TDPrimas Vida'!$B:$N,12,0))) -> 0 | G111: =IFERROR((E111/VLOOKUP("TOTAL",$D$12:$L$312,2,0))*100,"") -> 0 | H111: =IFERROR((E111/VLOOKUP("TOTAL",$D$12:$L$312,3,0))*100,"") -> 0 | I111: =IF(E108="","",E111-F111) -> 0 | J111: =IF(E108="","",IFERROR((E111/F111-1)*100,"ND")) -> ND | K111: =IF(E108="","",IFERROR((E111/VLOOKUP(B111&"|"&VLOOKUP(TDPrimas!$B$4,Cat!R:T,2,0),'TD Operación'!A:D,4,0))*100,"ND")) -> ND | L111: =IF(E108="","",(VLOOKUP(B111,'TDPrimas Vida'!$B:$N,13,0))) -> 0
B112: =IF(C112="",B108,D112) -> Chubb Seguros México | C112: =IF('TDPrimas Vida'!A32="","",'TDPrimas Vida'!A32) -> 24 | D112: =IF('TDPrimas Vida'!B32="","",'TDPrimas Vida'!B32) -> Chubb Seguros México | E112: =IF('TDPrimas Vida'!C32="","",'TDPrimas Vida'!C32) -> 969501.0056 | F112: =IF('TDPrimas Vida'!D32="","",'TDPrimas Vida'!D32) -> 1024740.448 | G112: =IF('TDPrimas Vida'!C32="","",IFERROR((E112/VLOOKUP("TOTAL",$D$12:$L$312,2,0))*100,"")) -> 0.3739722218 | H112: =IF('TDPrimas Vida'!C32="","",IFERROR((E112/VLOOKUP("TOTAL",$D$12:$L$312,3,0))*100,"")) -> 0.38867279 | I112: =IF('TDPrimas Vida'!C32="","",E112-F112) -> -55239.4429 | J112: =IFERROR(IF('TDPrimas Vida'!C32="","",(E112/F112-1)*100),"ND") -> -5.390578949 | K112: =IF(E112="","",IFERROR((E112/VLOOKUP(D112&"|"&VLOOKUP(TDPrimas!$B$4,Cat!R:T,2,0),'TD Operación'!A:D,4,0))*100,"ND")) -> ND | L112: =IF('TDPrimas Vida'!E32="","",'TDPrimas Vida'!E32) -> 4.631254547
B113: =IF(C113="",B112,D113) -> Chubb Seguros México | D113: =IF(D112="","","1er Año") -> 1er Año | E113: =IF(E112="","",(VLOOKUP(B113,'TDPrimas Vida'!$B:$N,5,0))) -> 969501.0056 | F113: =IF(E112="","",(VLOOKUP(B113,'TDPrimas Vida'!$B:$N,6,0))) -> 1024740.448 | G113: =IFERROR((E113/VLOOKUP("TOTAL",$D$12:$L$312,2,0))*100,"") -> 0.3739722218 | H113: =IFERROR((E113/VLOOKUP("TOTAL",$D$12:$L$312,3,0))*100,"") -> 0.38867279 | I113: =IF(E112="","",E113-F113) -> -55239.4429 | J113: =IF(E112="","",IFERROR((E113/F113-1)*100,"ND")) -> -5.390578949 | K113: =IF(E112="","",IFERROR((E113/VLOOKUP(B113&"|"&VLOOKUP(TDPrimas!$B$4,Cat!R:T,2,0),'TD Operación'!A:D,4,0))*100,"ND")) -> ND | L113: =IF(E112="","",(VLOOKUP(B113,'TDPrimas Vida'!$B:$N,7,0))) -> 4.631254547
B114: =IF(C114="",B113,D114) -> Chubb Seguros México | D114: =IF(D113="","","Renovación") -> Renovación | E114: =IF(E112="","",(VLOOKUP(B114,'TDPrimas Vida'!$B:$N,8,0))) -> 0 | F114: =IF(E112="","",(VLOOKUP(B114,'TDPrimas Vida'!$B:$N,9,0))) -> 0 | G114: =IFERROR((E114/VLOOKUP("TOTAL",$D$12:$L$312,2,0))*100,"") -> 0 | H114: =IFERROR((E114/VLOOKUP("TOTAL",$D$12:$L$312,3,0))*100,"") -> 0 | I114: =IF(E112="","",E114-F114) -> 0 | J114: =IF(E112="","",IFERROR((E114/F114-1)*100,"ND")) -> ND | K114: =IF(E112="","",IFERROR((E114/VLOOKUP(B114&"|"&VLOOKUP(TDPrimas!$B$4,Cat!R:T,2,0),'TD Operación'!A:D,4,0))*100,"ND")) -> ND | L114: =IF(E112="","",(VLOOKUP(B114,'TDPrimas Vida'!$B:$N,10,0))) -> 0
B115: =IF(C115="",B114,D115) -> Chubb Seguros México | D115: =IF(D114="","","Únicas") -> Únicas | E115: =IF(E113="","",(VLOOKUP(B115,'TDPrimas Vida'!$B:$N,11,0))) -> 0 | F115: =IF(E113="","",(VLOOKUP(B115,'TDPrimas Vida'!$B:$N,12,0))) -> 0 | G115: =IFERROR((E115/VLOOKUP("TOTAL",$D$12:$L$312,2,0))*100,"") -> 0 | H115: =IFERROR((E115/VLOOKUP("TOTAL",$D$12:$L$312,3,0))*100,"") -> 0 | I115: =IF(E112="","",E115-F115) -> 0 | J115: =IF(E112="","",IFERROR((E115/F115-1)*100,"ND")) -> ND | K115: =IF(E112="","",IFERROR((E115/VLOOKUP(B115&"|"&VLOOKUP(TDPrimas!$B$4,Cat!R:T,2,0),'TD Operación'!A:D,4,0))*100,"ND")) -> ND | L115: =IF(E112="","",(VLOOKUP(B115,'TDPrimas Vida'!$B:$N,13,0))) -> 0
B116: =IF(C116="",B112,D116) -> General de Seguros | C116: =IF('TDPrimas Vida'!A33="","",'TDPrimas Vida'!A33) -> 25 | D116: =IF('TDPrimas Vida'!B33="","",'TDPrimas Vida'!B33) -> General de Seguros | E116: =IF('TDPrimas Vida'!C33="","",'TDPrimas Vida'!C33) -> 593549.9112 | F116: =IF('TDPrimas Vida'!D33="","",'TDPrimas Vida'!D33) -> 706075.5755 | G116: =IF('TDPrimas Vida'!C33="","",IFERROR((E116/VLOOKUP("TOTAL",$D$12:$L$312,2,0))*100,"")) -> 0.2289540473 | H116: =IF('TDPrimas Vida'!C33="","",IFERROR((E116/VLOOKUP("TOTAL",$D$12:$L$312,3,0))*100,"")) -> 0.2379540596 | I116: =IF('TDPrimas Vida'!C33="","",E116-F116) -> -112525.6643 | J116: =IFERROR(IF('TDPrimas Vida'!C33="","",(E116/F116-1)*100),"ND") -> -15.93677338 | K116: =IF(E116="","",IFERROR((E116/VLOOKUP(D116&"|"&VLOOKUP(TDPrimas!$B$4,Cat!R:T,2,0),'TD Operación'!A:D,4,0))*100,"ND")) -> ND | L116: =IF('TDPrimas Vida'!E33="","",'TDPrimas Vida'!E33) -> 22.19478759
B117: =IF(C117="",B116,D117) -> General de Seguros | D117: =IF(D116="","","1er Año") -> 1er Año | E117: =IF(E116="","",(VLOOKUP(B117,'TDPrimas Vida'!$B:$N,5,0))) -> 172497.4866 | F117: =IF(E116="","",(VLOOKUP(B117,'TDPrimas Vida'!$B:$N,6,0))) -> 445757.1978 | G117: =IFERROR((E117/VLOOKUP("TOTAL",$D$12:$L$312,2,0))*100,"") -> 0.0665386296 | H117: =IFERROR((E117/VLOOKUP("TOTAL",$D$12:$L$312,3,0))*100,"") -> 0.06915421335 | I117: =IF(E116="","",E117-F117) -> -273259.7113 | J117: =IF(E116="","",IFERROR((E117/F117-1)*100,"ND")) -> -61.30236653 | K117: =IF(E116="","",IFERROR((E117/VLOOKUP(B117&"|"&VLOOKUP(TDPrimas!$B$4,Cat!R:T,2,0),'TD Operación'!A:D,4,0))*100,"ND")) -> ND | L117: =IF(E116="","",(VLOOKUP(B117,'TDPrimas Vida'!$B:$N,7,0))) -> 6.450249596
B118: =IF(C118="",B117,D118) -> General de Seguros | D118: =IF(D117="","","Renovación") -> Renovación | E118: =IF(E116="","",(VLOOKUP(B118,'TDPrimas Vida'!$B:$N,8,0))) -> 421052.4246 | F118: =IF(E116="","",(VLOOKUP(B118,'TDPrimas Vida'!$B:$N,9,0))) -> 260318.3777 | G118: =IFERROR((E118/VLOOKUP("TOTAL",$D$12:$L$312,2,0))*100,"") -> 0.1624154177 | H118: =IFERROR((E118/VLOOKUP("TOTAL",$D$12:$L$312,3,0))*100,"") -> 0.1687998462 | I118: =IF(E116="","",E118-F118) -> 160734.0469 | J118: =IF(E116="","",IFERROR((E118/F118-1)*100,"ND")) -> 61.74517848 | K118: =IF(E116="","",IFERROR((E118/VLOOKUP(B118&"|"&VLOOKUP(TDPrimas!$B$4,Cat!R:T,2,0),'TD Operación'!A:D,4,0))*100,"ND")) -> ND | L118: =IF(E116="","",(VLOOKUP(B118,'TDPrimas Vida'!$B:$N,10,0))) -> 15.744538
